Workbook

Sheet GUIA PARA PREENCHIMENTO
A1: GUIA PARA PREENCHIMENTO
A3: 1 - Preencher apenas as guias azuis:
A5: 2 - Recomendamos preencher somente as células com fundo azul claro. As demais possuem fórmulas e sugerimos não alterá-las.

Sheet MODELO PROPOSTA
B2: MODELO DA PROPOSTA COMPLETA
B4: .
B5: I – FORMALIZAÇÃO
B7: PREGÃO ELETRÔNICO N. 54/22
B8: OBJETO: Prestação de serviços continuados, por alocação de postos de trabalho, nas áreas de operação e de manutenção preventiva e corretiva dos sistemas de detecção e combate a incêndio da Câmara dos Deputados, com fornecimento de materiais de consumo, ferramentas, equipamentos e, mediante ressarcimento, de peças de reposição e de serviços especializados, pelo período de doze meses.
B9: LICITANTE: _____________________________________________________
B10: CNPJ: ________________________________________________________
B11: ENDEREÇO COMPLETO: _________________________________________
B12: TELEFONE:_____________________________________________________
B13: E-MAIL: ________________________________________________________
B15: Apresentamos nossa proposta para o item único da presente licitação, de acordo com as disposições do Edital.
B16: Decorre do conteúdo da presente proposta a explicitação do seguinte PREÇO DE JULGAMENTO (GLOBAL ANUAL) PARA O ITEM:
B17: =' RESUMO'!H89 -> 1397172.63
B18: =Extenso_Valor(B17) -> um milhão, trezentos e noventa e sete mil, cento e setenta e dois reais e sessenta e três centavos
B20: (por extenso)
B22: No valor proposto estão incluídos todos os custos e todas as despesas, diretas e indiretas, para a execução dos serviços objeto da licitação, em conformidade com as especificações e demais condições e exigências constantes do Edital.
B23: Informamos que eventuais rubricas dispostas em Acordo ou Convenção Coletiva de Trabalho que não se relacionem ao custo direto da venda do serviço, tais como “Participação nos Resultados” e “Abono substitutivo de Participação nos Resultados”, serão consideradas nos custos indiretos da proposta.
B24: O prazo de validade da presente proposta é de ______ (por extenso) dias. (observado o disposto no Título 11 do Edital).
B26: Convenção coletiva de trabalho ou a norma coletiva a que estamos obrigados:
B27: Data-Base:
B28: Número do Registro SRT:
B29: Regime de tributação da empresa:
B30: Empresa é beneficiada pela desoneração da folha de pagamento instituída pela Lei n. 12.546, de 2001, alterada pela Lei n. 13.161, de 2015?
B31: Empresa adere ao PAT (Programa de Alimentação do Trabalhador)?
B32: (Se adere ao PAT): Os valores do auxílio-alimentação apresentados na presente proposta correspondem somente aos efetivamente pagos pela empresa aos empregados?
B34: DECLARAÇÕES
B36: A SEREM PRESTADAS SOMENTE NA HIPÓTESE DE LICITANTE MICROEMPRESA OU EMPRESA DE PEQUENO PORTE, EM CONFORMIDADE COM OS ARTIGOS 17, 18, 30 E 31 DA LEI COMPLEMENTAR N. 123, de 2006, E O ACÓRDÃO TCU 2798/2010-PLENÁRIO
B37: Declaramos que:
B38: a) em se tratando dos serviços vedados descritos no artigo 17 da Lei Complementar n. 123, de 2006, notadamente os descritos no inciso XII (cessão ou locação de mão de obra), ressalvados os serviços listados nos parágrafos 5o-B a 5o-E do artigo 18 da referida Lei, a proposta apresentada não contempla qualquer benefício tributário referente ao SIMPLES NACIONAL, conforme os subitens 5.7 e 5.8 do Edital;
B39: b) na hipótese de contratação desta Microempresa ou Empresa de Pequeno Porte inscrita no SIMPLES NACIONAL e executora de atividade vedada, ficamos sujeitos à exclusão obrigatória no SIMPLES NACIONAL a contar do mês seguinte ao da contratação, em consequência do que dispõem o artigo 17, inciso XII e o artigo 31, inciso II da Lei Complementar n, 123, de 2006, devendo entregar à Câmara dos Deputados, à título de comprovação, cópia de ofício – com comprovante de entrega e recebimento, que comunique a assinatura do contrato de prestação de serviços mediante cessão de mão de obra e encaminhado pela contratada à Receita Federal do Brasil até o último dia útil do mês subsequente ao da contratação, consoante artigo 30, § 1º, inciso II da Lei Complementar n. 123, de 2006.
B46: Declaramos, sob as penas da Lei, que:
B47: a) recolhemos a contribuição previdenciária incidente sobre o valor da receita bruta, em substituição às contribuições previdenciárias incidentes sobre a folha de pagamento, previstas nos incisos I e III do caput do artigo 22 da Lei n. 8.212, de 24 de julho de 1991, na forma do caput do artigo 7º (ou 8º) da Lei n. 12.546, de 14 de dezembro de 2011, alterada pela Lei n. 13.161, de 31 de agosto de 2015;
B48: b) temos ciência que nossa manifestação, conforme alínea “a” anterior, será remetida à Receita Federal do Brasil e que, em caso de constatação de falsidade, estará sujeita às sanções administrativas cabíveis, sem prejuízo do encaminhamento dos documentos ao Ministério Público para apuração de eventual responsabilidade criminal desta declarante.
B59: É OBRIGATÓRIA A COMPROVAÇÃO A QUE SE REFERE A ALÍNEA “A” DO SUBITEM 5.9.5 DO TÍTULO 5 DO EDITAL.
B61: DADOS PARA ASSINATURA DO CONTRATO
B62: Nome do signatário
B63: Cargo
B64: Qualificação (Naturalidade e domicílio)
B65: OBS.: O signatário deve possuir poderes de administração estabelecidos em contrato social e/ou possuir procuração com poderes para assinar contratos em nome da empresa. A documentação comprobatória deverá ser encaminhada quando da assinatura do contrato.
B68: Brasília, de de 2022.
B70: Assinatura do representante legal da empresa
B73: Nome do representante legal da empresa

Sheet Remunerações
B1: QUADRO DE REMUNERAÇÕES
C3: ITEM | D3: POSTO DE TRABALHO | E3: QUANTIDADE | F3: SALÁRIO | G3: ADICIONAL DE PERICULOSIDADE | H3: ADICIONAL DE INSALUBRIDADE | I3: ADICIONAL NOTURNO | J3: OUTROS | K3: SALÁRIO COM ADICIONAIS
C4: 1 | D4: =HLOOKUP($C4,'Dados Gerais'!$D$5:$I$68,6) -> BOMBEIRO HIDRÁULICO DE MANUTENÇÃO | E4: =HLOOKUP($C4,'Dados Gerais'!$D$5:$H$68,10) -> 1 | F4: =HLOOKUP($C4,'Dados Gerais'!$D$5:$I$68,8) -> 2176.581733 | G4: =HLOOKUP($C4,'Dados Gerais'!$D$5:$I$68,25) -> 0 | H4: =HLOOKUP($C4,'Dados Gerais'!$D$5:$I$68,31) -> 0 | I4: =HLOOKUP($C4,'Dados Gerais'!$D$5:$I$68,46) -> 0 | J4: =HLOOKUP($C4,'Dados Gerais'!$D$5:$I$68,34) -> 0 | K4: =SUM(F4:J4) -> 2176.581733
C5: 2 | D5: =HLOOKUP($C5,'Dados Gerais'!$D$5:$I$68,6) -> ENCARREGADO DE INSTALAÇÕES | E5: =HLOOKUP($C5,'Dados Gerais'!$D$5:$H$68,10) -> 1 | F5: =HLOOKUP($C5,'Dados Gerais'!$D$5:$I$68,8) -> 3527.923263 | G5: =HLOOKUP($C5,'Dados Gerais'!$D$5:$I$68,25) -> 0 | H5: =HLOOKUP($C5,'Dados Gerais'!$D$5:$I$68,31) -> 0 | I5: =HLOOKUP($C5,'Dados Gerais'!$D$5:$I$68,46) -> 0 | J5: =HLOOKUP($C5,'Dados Gerais'!$D$5:$I$68,34) -> 0 | K5: =SUM(F5:J5) -> 3527.923263
C6: 3 | D6: =HLOOKUP($C6,'Dados Gerais'!$D$5:$I$68,6) -> TÉCNICO EM ELETRÔNICA (DETECÇÃO, ALARME E COMBATE A INCÊNCIO) | E6: =HLOOKUP($C6,'Dados Gerais'!$D$5:$H$68,10) -> 1 | F6: =HLOOKUP($C6,'Dados Gerais'!$D$5:$I$68,8) -> 2899.894873 | G6: =HLOOKUP($C6,'Dados Gerais'!$D$5:$I$68,25) -> 0 | H6: =HLOOKUP($C6,'Dados Gerais'!$D$5:$I$68,31) -> 0 | I6: =HLOOKUP($C6,'Dados Gerais'!$D$5:$I$68,46) -> 0 | J6: =HLOOKUP($C6,'Dados Gerais'!$D$5:$I$68,34) -> 0 | K6: 2899.894873
C7: 4 | D7: =HLOOKUP($C7,'Dados Gerais'!$D$5:$I$68,6) -> TÉCNICO EM ELETROTÉCNICA (QUADROS DE COMANDO E AUTOMAÇÃO) | E7: =HLOOKUP($C7,'Dados Gerais'!$D$5:$H$68,10) -> 1 | F7: =HLOOKUP($C7,'Dados Gerais'!$D$5:$I$68,8) -> 3004.863483 | G7: =HLOOKUP($C7,'Dados Gerais'!$D$5:$I$68,25) -> 0 | H7: =HLOOKUP($C7,'Dados Gerais'!$D$5:$I$68,31) -> 0 | I7: =HLOOKUP($C7,'Dados Gerais'!$D$5:$I$68,46) -> 0 | J7: =HLOOKUP($C7,'Dados Gerais'!$D$5:$I$68,34) -> 0 | K7: 3004.863483
C8: 5 | D8: =HLOOKUP($C8,'Dados Gerais'!$D$5:$I$68,6) -> OPERADOR DE CENTRAL DE DETECÇÃO E ALARME DE INCÊNDIO | E8: =HLOOKUP($C8,'Dados Gerais'!$D$5:$H$68,10) -> 4 | F8: =HLOOKUP($C8,'Dados Gerais'!$D$5:$I$68,8) -> 2333.407505 | G8: =HLOOKUP($C8,'Dados Gerais'!$D$5:$I$68,25) -> 0 | H8: =HLOOKUP($C8,'Dados Gerais'!$D$5:$I$68,31) -> 0 | I8: =HLOOKUP($C8,'Dados Gerais'!$D$5:$I$68,46) -> 0 | J8: =HLOOKUP($C8,'Dados Gerais'!$D$5:$I$68,34) -> 0 | K8: =SUM(F8:J8) -> 2333.407505
C9: 6 | D9: =HLOOKUP($C9,'Dados Gerais'!$D$5:$I$68,6) -> OPERADOR DE CENTRAL DE DETECÇÃO E ALARME DE INCÊNDIO (COM ADICIONAL NOTURNO) | E9: =HLOOKUP($C9,'Dados Gerais'!$D$5:$H$68,10) -> 4 | F9: =HLOOKUP($C9,'Dados Gerais'!$D$5:$I$68,8) -> 2333.407505 | G9: =HLOOKUP($C9,'Dados Gerais'!$D$5:$I$68,25) -> 0 | H9: =HLOOKUP($C9,'Dados Gerais'!$D$5:$I$68,31) -> 0 | I9: =HLOOKUP($C9,'Dados Gerais'!$D$5:$I$68,46) -> 272.23 | J9: =HLOOKUP($C9,'Dados Gerais'!$D$5:$I$68,34) -> 0 | K9: 2605.637505
D11: TOTAL DE POSTOS | E11: =SUM(E4:E9) -> 12

Sheet RESUMO
B3: RESUMO - TOTAIS MENSAIS - FATURA ORDINÁRIA (SEM O 13º E SEM OS ITENS SOB DEMANDA)
C6: ITEM | D6: POSTO DE TRABALHO | E6: QUANTIDADE | F6: PREÇO UNIT (SEM O 13º) | G6: DESTAQUE DO 13º | H6: PREÇO POR EMPREGADO | I6: PREÇO TOTAL (MENSAL)
C7: 1 | D7: =HLOOKUP(C7,'Dados Gerais'!$D$5:$BK$10,6) -> BOMBEIRO HIDRÁULICO DE MANUTENÇÃO | E7: =HLOOKUP(C7,'Dados Gerais'!$D$5:$BK$14,10) -> 1 | F7: ='1'!$E$116 -> 5613.949088 | G7: 0 | H7: =G7+F7 -> 5613.949088 | I7: =H7*E7 -> 5613.949088
C8: 2 | D8: =HLOOKUP(C8,'Dados Gerais'!$D$5:$BK$10,6) -> ENCARREGADO DE INSTALAÇÕES | E8: =HLOOKUP(C8,'Dados Gerais'!$D$5:$BK$14,10) -> 1 | F8: ='2'!$E$116 -> 8374.096308 | G8: 0 | H8: 8374.096308 | I8: 8374.096308
C9: 3 | D9: =HLOOKUP(C9,'Dados Gerais'!$D$5:$BK$10,6) -> TÉCNICO EM ELETRÔNICA (DETECÇÃO, ALARME E COMBATE A INCÊNCIO) | E9: =HLOOKUP(C9,'Dados Gerais'!$D$5:$BK$14,10) -> 1 | F9: ='3'!$E$116 -> 7072.569838 | G9: 0 | H9: 7072.569838 | I9: 7072.569838
C10: 4 | D10: =HLOOKUP(C10,'Dados Gerais'!$D$5:$BK$10,6) -> TÉCNICO EM ELETROTÉCNICA (QUADROS DE COMANDO E AUTOMAÇÃO) | E10: =HLOOKUP(C10,'Dados Gerais'!$D$5:$BK$14,10) -> 1 | F10: ='4'!$E$116 -> 7281.815969 | G10: 0 | H10: 7281.815969 | I10: 7281.815969
C11: 5 | D11: =HLOOKUP(C11,'Dados Gerais'!$D$5:$BK$10,6) -> OPERADOR DE CENTRAL DE DETECÇÃO E ALARME DE INCÊNDIO | E11: =HLOOKUP(C11,'Dados Gerais'!$D$5:$BK$14,10) -> 4 | F11: ='5'!$E$116 -> 5992.517518 | G11: 0 | H11: 5992.517518 | I11: 23970.07007
C12: 6 | D12: =HLOOKUP(C12,'Dados Gerais'!$D$5:$BK$10,6) -> OPERADOR DE CENTRAL DE DETECÇÃO E ALARME DE INCÊNDIO (COM ADICIONAL NOTURNO) | E12: =HLOOKUP(C12,'Dados Gerais'!$D$5:$BK$14,10) -> 4 | F12: ='6'!$E$116 -> 6547.816548 | G12: 0 | H12: 6547.816548 | I12: 26191.26619
D14: TOTAL MENSAL - SALÁRIOS | I14: =SUM(I7:I13) -> 78503.76747
B17: RESUMO - TOTAIS MENSAIS - DESTAQUE DO 13º SALÁRIO
C20: ITEM | D20: POSTO DE TRABALHO | E20: QUANTIDADE | F20: PREÇO UNIT (SEM O 13º) | G20: DESTAQUE DO 13º | H20: PREÇO POR EMPREGADO | I20: PREÇO TOTAL (MENSAL)
C21: 1 | D21: =HLOOKUP(C21,'Dados Gerais'!$D$5:$BK$10,6) -> BOMBEIRO HIDRÁULICO DE MANUTENÇÃO | E21: =HLOOKUP(C21,'Dados Gerais'!$D$5:$BK$14,10) -> 1 | F21: 0 | G21: =G35 -> 335.06 | H21: =G21+F21 -> 335.06 | I21: =H21*E21 -> 335.06
C22: 2 | D22: =HLOOKUP(C22,'Dados Gerais'!$D$5:$BK$10,6) -> ENCARREGADO DE INSTALAÇÕES | E22: =HLOOKUP(C22,'Dados Gerais'!$D$5:$BK$14,10) -> 1 | F22: 0 | G22: 543.09 | H22: =G22+F22 -> 543.09 | I22: 543.09
C23: 3 | D23: =HLOOKUP(C23,'Dados Gerais'!$D$5:$BK$10,6) -> TÉCNICO EM ELETRÔNICA (DETECÇÃO, ALARME E COMBATE A INCÊNCIO) | E23: =HLOOKUP(C23,'Dados Gerais'!$D$5:$BK$14,10) -> 1 | F23: 0 | G23: 446.41 | H23: 446.41 | I23: 446.41
C24: 4 | D24: =HLOOKUP(C24,'Dados Gerais'!$D$5:$BK$10,6) -> TÉCNICO EM ELETROTÉCNICA (QUADROS DE COMANDO E AUTOMAÇÃO) | E24: =HLOOKUP(C24,'Dados Gerais'!$D$5:$BK$14,10) -> 1 | F24: 0 | G24: 462.58 | H24: 462.58 | I24: 462.58
C25: 5 | D25: =HLOOKUP(C25,'Dados Gerais'!$D$5:$BK$10,6) -> OPERADOR DE CENTRAL DE DETECÇÃO E ALARME DE INCÊNDIO | E25: =HLOOKUP(C25,'Dados Gerais'!$D$5:$BK$14,10) -> 4 | F25: 0 | G25: 383.15 | H25: 383.15 | I25: 1532.6
C26: 6 | D26: =HLOOKUP(C26,'Dados Gerais'!$D$5:$BK$10,6) -> OPERADOR DE CENTRAL DE DETECÇÃO E ALARME DE INCÊNDIO (COM ADICIONAL NOTURNO) | E26: =HLOOKUP(C26,'Dados Gerais'!$D$5:$BK$14,10) -> 4 | F26: 0 | G26: 425.07 | H26: 425.07 | I26: 1700.28
D28: TOTAL MENSAL - DESTAQUE DO 13º | I28: =SUM(I21:I27) -> 5020.02
B31: RESUMO - TOTAIS MENSAIS - FATURA ORDINÁRIA TOTAL
C34: ITEM | D34: POSTO DE TRABALHO | E34: QUANTIDADE | F34: PREÇO UNIT (SEM O 13º) | G34: DESTAQUE DO 13º | H34: PREÇO POR EMPREGADO | I34: PREÇO TOTAL (MENSAL)
C35: 1 | D35: =HLOOKUP(C35,'Dados Gerais'!$D$5:$BK$10,6) -> BOMBEIRO HIDRÁULICO DE MANUTENÇÃO | E35: =HLOOKUP(C35,'Dados Gerais'!$D$5:$BK$14,10) -> 1 | F35: ='1'!$E$116 -> 5613.949088 | G35: ='1'!$E$117 -> 335.06 | H35: =G35+F35 -> 5949.009088 | I35: =H35*E35 -> 5949.009088 | K35: =I35/$I$42 -> 0.07122532715 | L35: =$I$58*K35 -> 2343.830715
C36: 2 | D36: =HLOOKUP(C36,'Dados Gerais'!$D$5:$BK$10,6) -> ENCARREGADO DE INSTALAÇÕES | E36: =HLOOKUP(C36,'Dados Gerais'!$D$5:$BK$14,10) -> 1 | F36: ='2'!$E$116 -> 8374.096308 | G36: ='2'!$E$117 -> 543.09 | H36: 8917.186308 | I36: 8917.186308 | K36: 0.106762236 | L36: 3513.253191
C37: 3 | D37: =HLOOKUP(C37,'Dados Gerais'!$D$5:$BK$10,6) -> TÉCNICO EM ELETRÔNICA (DETECÇÃO, ALARME E COMBATE A INCÊNCIO) | E37: =HLOOKUP(C37,'Dados Gerais'!$D$5:$BK$14,10) -> 1 | F37: ='3'!$E$116 -> 7072.569838 | G37: ='3'!$E$117 -> 446.41 | H37: 7518.979838 | I37: 7518.979838 | K37: 0.09002201727 | L37: 2962.378378
C38: 4 | D38: =HLOOKUP(C38,'Dados Gerais'!$D$5:$BK$10,6) -> TÉCNICO EM ELETROTÉCNICA (QUADROS DE COMANDO E AUTOMAÇÃO) | E38: =HLOOKUP(C38,'Dados Gerais'!$D$5:$BK$14,10) -> 1 | F38: ='4'!$E$116 -> 7281.815969 | G38: ='4'!$E$117 -> 462.58 | H38: 7744.395969 | I38: 7744.395969 | K38: 0.09272084281 | L38: 3051.189345
C39: 5 | D39: =HLOOKUP(C39,'Dados Gerais'!$D$5:$BK$10,6) -> OPERADOR DE CENTRAL DE DETECÇÃO E ALARME DE INCÊNDIO | E39: =HLOOKUP(C39,'Dados Gerais'!$D$5:$BK$14,10) -> 4 | F39: ='5'!$E$116 -> 5992.517518 | G39: ='5'!$E$117 -> 383.15 | H39: 6375.667518 | I39: 25502.67007 | K39: 0.3053342149 | L39: 10047.71392
C40: 6 | D40: =HLOOKUP(C40,'Dados Gerais'!$D$5:$BK$10,6) -> OPERADOR DE CENTRAL DE DETECÇÃO E ALARME DE INCÊNDIO (COM ADICIONAL NOTURNO) | E40: =HLOOKUP(C40,'Dados Gerais'!$D$5:$BK$14,10) -> 4 | F40: ='6'!$E$116 -> 6547.816548 | G40: ='6'!$E$117 -> 425.07 | H40: 6972.886548 | I40: 27891.54619 | K40: 0.3339353619 | L40: 10988.89945
K41: 0 | L41: =#REF!*K41 -> 
D42: TOTAL MENSAL - SALÁRIOS | I42: =SUM(I35:I41) -> 83523.78747 | L42: =#REF!*K42 -> 
C44: ITEM | D44: DESCRIÇÃO | I44: PREÇO TOTAL (MENSAL)
C45: EQUIP | D45: EQUIPAMENTOS NÃO RELACIONADOS DIRETAMENTE A UM POSTO DE TRABALHO | I45: 0
C46: HEXTRA | D46: HORAS EXTRAS (SOB DEMANDA) | I46: ='Horas extras_Demanda'!G76 -> 0
C47: HNOT | D47: ADICIONAL DE HORAS NOTURNAS (SOB DEMANDA) | I47: ='Not. Demanda'!G56 -> 0
C48: SOBREAV | D48: HORAS DE SOBREAVISO (SOB DEMANDA) | I48: =SOBREAVISO!G50 -> 0
C49: SREP | D49: SISTEMA DE REGISTRO ELETRÔNICO DE PRESENÇA - SREP | I49: =SREP!$M$45 -> 629.92
C50: EPI - N.REL | D50: EQUIPAMENTOS DE PROTEÇÃO INDIVIDUAL NÃO RELACIONADOS DIRETAMENTE A UM POSTO DE TRABALHO | I50: ='Não Rel - EPI'!K15 -> 98.16416667
C51: UNIFORMES - N.REL | D51: UNIFORMES NÃO RELACIONADOS DIRETAMENTE A UM POSTO DE TRABALHO | I51: ='Não Rel - Uniformes'!K30 -> 0
C52: FERR - N.REL | D52: FERRAMENTAS NÃO RELACIONADAS DIRETAMENTE A UM POSTO DE TRABALHO | I52: ='Não Rel - Depr'!M62 -> 73.71
C53: MAT SOB DEMANDA | D53: MATERIAIS NÃO RELACIONADOS DIRETAMENTE A UM POSTO DE TRABALHO - AQUISIÇÃO SOB DEMANDA | I53: ='Não Rel - Mat Consumo'!L25 -> 588.375
C54: MAT CONS DURAVEL SOB DEMANDA | D54: MATERIAIS DE CONSUMO DURÁVEL NÃO RELACIONADOS DIRETAMENTE A UM POSTO DE TRABALHO - AQUISIÇÃO SOB DEMANDA | I54: ='Não Rel - Mat Cons Durável'!L42 -> 0
C55: PEÇAS REPOS. SOB DEMANDA | D55: PREÇAS DE REPOSIÇÃO - AQUISIÇÃO SOB DEMANDA | I55: ='Não Rel - Peças de rep. sob dem'!K99 -> 12441.60667
C56: SERV SOB DEMANDA | D56: SERVIÇOS NÃO RELACIONADOS DIRETAMENTE A UM POSTO DE TRABALHO - AQUISIÇÃO SOB DEMANDA | I56: ='Não Rel - Serviços'!K24 -> 19075.48917
D58: TOTAL MENSAL - ITENS SOB DEMANDA | I58: =SUM(I45:I57) -> 32907.265 | K58: =(I58+I42)*12 -> 1397172.63
D60: TOTAL MENSAL - ITENS ORDINÁRIOS
D61: DESCRIÇÃO | H61: VALOR
D62: Postos de Trabalho - Inclusive 13º Salário | H62: =I42 -> 83523.78747
D63: Adicional de Horas Noturnas | H63: 0
D64: Sistema de Registro Eletrônico de Presença - SREP | H64: =I49 -> 629.92
D65: Equipamentos de Proteção Individual não relacionados diretamente a um posto de trabalho | H65: =I50 -> 98.16416667
D66: Uniformes não relacionados diretamente a um posto de trabalho | H66: 0
D67: Ferramentas não relacionadas diretamente a um posto de trabalho | H67: 73.71
G69: TOTAL MENSAL DA CONTRATAÇÃO | H69: =SUM(H62:H68) -> 84325.58164
D71: TOTAL ANUAL - ITENS ORDINÁRIOS
G73: 12 x TOTAL MENSAL | H73: =H69*12 -> 1011906.98
D75: TOTAL MENSAL - ITENS SOB DEMANDA
D76: DESCRIÇÃO | H76: VALOR
D77: MATERIAIS NÃO RELACIONADOS DIRETAMENTE A UM POSTO DE TRABALHO (SOB DEMANDA) | H77: =I53 -> 588.375
D78: PEÇAS DE REPOSIÇÃO (SOB DEMANDA) | H78: =I55 -> 12441.60667
D79: SERVIÇOS (SOB DEMANDA) | H79: =I56 -> 19075.48917
G81: TOTAL MENSAL DA CONTRATAÇÃO | H81: =SUM(H77:H80) -> 32105.47083
D83: TOTAL ANUAL - ITENS SOB DEMANDA
G85: 12 x TOTAL MENSAL | H85: =H81*12 -> 385265.65
D87: TOTAL ANUAL GLOBAL DA CONTRATAÇÃO
H89: =H85+H73 -> 1397172.63
G93: TOTAL MENSAL | H93: =H69+H81 -> 116431.0525
H95: =Extenso_Valor($H$93) -> cento e dezesseis mil, quatrocentos e trinta e um reais e cinco centavos

Sheet 1
B2: PLANILHA DE ESTIMATIVA DE CUSTOS
B3: Padrão IN 05/2017 e IN 07/2018 - MPDG
B5: 1 | D5: =HLOOKUP($B$5,'Dados Gerais'!$D$5:$BK$20,6) -> BOMBEIRO HIDRÁULICO DE MANUTENÇÃO | E5: QUANTIDADE | F5: =HLOOKUP($B$5,'Dados Gerais'!$D$5:$BK$20,10) -> 1
B6: CCT | D6: =HLOOKUP($B$5,'Dados Gerais'!$D$5:$BK$20,15) -> CCT STICOMBE/DF x SINDUSCON/DF 2021/2023 | E6: DATA-BASE | F6: ='Dados Gerais'!F20 -> 2021-05-01
B8: MÓDULO 1 - COMPOSIÇÃO DA REMUNERAÇÃO | F8: Valor
C9: A | D9: Salário-Base | F9: =HLOOKUP($B$5,'Dados Gerais'!$D$5:$BK$20,8) -> 2176.581733
C10: B | D10: Adicional de Periculosidade | F10: =HLOOKUP($B$5,'Dados Gerais'!$D$5:$BK$37,25) -> 0
C11: C | D11: Adicional de Insalubridade | F11: =HLOOKUP($B$5,'Dados Gerais'!$D$5:$BK$37,31) -> 0
C12: D | D12: Adicional Noturno | F12: =HLOOKUP($B$5,'Dados Gerais'!$D$5:$BK$50,46) -> 0 | H12: * Nota 1 - O Módulo 1 refere-se ao valor mensal devido ao empregado pela prestação do serviço no período de 12 meses.
C13: E | D13: Adicional de Hora Extra | F13: =HLOOKUP($B$5,'Dados Gerais'!$D$5:$BK$67,63) -> 0 | H13: * Nota 2 - O adicional de hora extra no feriado trabalhado foi suprimido pela Lei 13.467/17
C14: F | D14: Outros (especificar) | F14: =HLOOKUP($B$5,'Dados Gerais'!$D$5:$BK$59,33) -> 0 | H14: * Nota 3 - ART. 7º, § 2º, DA LEI Nº 605/49.Sendo mensalista o obreiro, o adicional noturno pago de forma fixa já é considerado integrado para os efeitos do pagamento do repouso semanal remunerado, nos termos do art. 7º, § 2º, da Lei nº 605/49.
D16: TOTAL DA REMUNERAÇÃO | F16: =SUM(F9:F14) -> 2176.581733
B18: MÓDULO 2 - ENCARGOS E BENEFÍCIOS ANUAIS, MENSAIS E DIÁRIOS | E18: Percentuais | F18: Valor
B19: Submódulo 2.1 - 13º Salário, Férias e Adicional de Férias
C20: A | D20: 13º Salário - Calculado no Módulo 7 - Destacado | E20: 0 | F20: =ROUND(E20*F$16,2) -> 0
C21: B | D21: Adicional de Férias | E21: ='Encargos Sociais'!E30 -> 0.0303030303 | F21: =ROUND(E21*F$16,2) -> 65.96 | H21: * Nota 1 - Provisiona-se, mensalmente, o proporcional a 1/12 dos valores referentes a gratificação natalina, férias e adicional de férias.
H22: * Nota 2 - O adicional de férias contido no Submódulo 2.1 corresponde a 1/3 da remuneração que, por sua vez, é dividida por 12 contome Nota 1.
B23: Submódulo 2.2 - Encargos Previdenciários (GPS), Fundo de Garantia por Tempo de Serviço (FGTS) e Outras Contribuições
C24: A | D24: INSS (art. 22, inciso I, Lei nº 8.212/91) | E24: ='Encargos Sociais'!E13 -> 0.2 | F24: =ROUND(E24*($F$16+$F$41+$F$73),2) -> 496.8
C25: B | D25: Salário Educação (art. 3º, inciso I, Decreto nº 87.043/82) | E25: ='Encargos Sociais'!E14 -> 0.025 | F25: =ROUND(E25*($F$16+$F$41+$F$73),2) -> 62.1
C26: C | D26: SAT/RAT (art. 22, II, Lei 8.212/91 e Anexo V, Decreto 6.042/07) - Enquadramento 8211-3/00 | E26: ='Encargos Sociais'!E15 -> 0.01 | F26: 24.84
C27: D | D27: SESC ou SESI (art. 30, Lei nº 8.036/90 e art. 1º, Lei 8.154/90) | E27: ='Encargos Sociais'!E16 -> 0.015 | F27: 37.26
C28: E | D28: SENAI ou SENAC (Decreto nº 2.318/86) | E28: ='Encargos Sociais'!E17 -> 0.01 | F28: 24.84
C29: F | D29: SEBRAE (§ 3º, art. 8º, Lei 8.029/90, alterada pela Lei nº 8.154/90) | E29: ='Encargos Sociais'!E18 -> 0.006 | F29: 14.9
C30: G | D30: INCRA (art. 1º, I, Decreto Lei 1.146/70 e Lei 7.787, de 30/06/89) | E30: ='Encargos Sociais'!E19 -> 0.002 | F30: 4.97 | H30: * Nota 1 - Os percentuais dos encargos previdenciários, do FGTS e demais contribuições são estabelecidos por legislação vigente.
C31: H | D31: FGTS (Lei Complementar nº 110/01 e art. 30, Lei nº 8.036/90) | E31: ='Encargos Sociais'!E20 -> 0.08 | F31: 198.72 | H31: * Nota 2 - O SAT, a depender do grau de risco do serviço, irá variar entre 1%, para risco leve, de 2%, para risco médio, e de 3% para risco grave.
C32: I | D32: SECONCI (Convenções Coletivas de Trabalho da construção) | E32: ='Encargos Sociais'!E21 -> 0.01 | F32: 24.84 | H32: * Nota 3 - Os percentuais do Submódulo 2.2 incidem sobre o Módulo 1 e o Submódulo 2.1.
B34: Submódulo 2.3 - Benefícios Mensais e Diários
C35: A | D35: Auxílio Transporte | F35: =HLOOKUP($B$5,'Dados Gerais'!$D$5:$BK$93,82) -> 302.54
C36: B | D36: Auxílio Alimentação | F36: =HLOOKUP($B$5,'Dados Gerais'!$D$5:$BK$93,89) -> 534.82
C37: C | D37: Assistência Médica e Familiar | F37: =HLOOKUP($B$5,'Dados Gerais'!$D$5:$BK$101,97) -> 0
C38: D | D38: Outros (Seguro de vida e auxílio funeral e auxílio odontológico) | F38: =HLOOKUP($B$5,'Dados Gerais'!$D$5:$BK$118,114) -> 0 | H38: * Nota 1 - O valor informado deverá ser o custo real do benefício (descontado o valor eventualmente pago pelo empregado).
H39: * Nota 2 - Observar a previsão dos benefícios contidos em Acordos, Convenções e Dissídios Coletivos de Trabalho e o disposto no art. 6º da IN 5/2017
D40: QUADRO-RESUMO DO MÓDULO 2
D41: 2.1 - 13º Salário, Férias e Adicional de Férias - 13º Destacado - Calculado no Módulo 7 | E41: =SUM(E20:E21) -> 0.0303030303 | F41: =F20+F21 -> 65.96
D42: 2.2 - Encargos Previdenciários (GPS), Fundo de Garantia por Tempo de Serviço (FGTS) e Contribuições | E42: =SUM(E24:E32) -> 0.358 | F42: =SUM(F24:F32) -> 889.27
D43: 2.3 - Benefícios Mensais e Diários | F43: =SUM(F35:F38) -> 837.36
D45: TOTAL DOS ENCARGOS E BENEFÍCIOS | F45: =SUM(F41:F43) -> 1792.59
B47: MÓDULO 3 - PREVISÃO PARA RESCISÃO | E47: Percentuais | F47: Valor
C48: A | D48: Aviso Prévio Indenizado (Art. 7º, inciso XXI, da CF/1988 e arts. 477, 487, §1º, e 491 da CLT) | E48: ='Encargos Sociais'!E35 -> 0.008333333333 | F48: =ROUND(E48*$F$16,2) -> 18.14
C49: B | D49: Incidência do FGTS sobre o Aviso Prévio Indenizado (Súmula 305 TST) | E49: ='Encargos Sociais'!E36 -> 0.0006666666667 | F49: 1.45 | H49: * Nota 1 - Adotou-se os parâmetros do estudo do STF (http://www.stf.jus.br/arquivo/cms/sobrestfestudosci/anexo/encargos_sociais_03102007.pdf), onde 5% do pessoal é demitido pelo empregador no decurso do contrato (para estes, considerou-se o aviso prévio indenizado). Desprezou-se as demissões por justa causa e os pedidos de demissão.
C50: C | D50: Multa do FGTS e Contribuição Social sobre o Aviso Prévio Indenizado (Art. 18, §1º, da Lei 8.036/1990 e art. 1º da LC nº 110/2001) | E50: ='Encargos Sociais'!E37 -> 0.001274074074 | F50: 2.77 | H50: * Nota 2 - No cálculo do percentual, considerou-se 36 dias, correspondendo à metade da duração média dos contratos (2 anos)
C51: D | D51: Aviso Prévio Trabalhado (Art. 488, parágrafo único, CLT) | E51: ='Encargos Sociais'!E38 -> 0.01203703704 | F51: 26.2 | H51: * Nota 3 - Incide sobre a Remuneração + 13º salário (1/12) + Férias (1/12) + Adicional de Férias (1/36) x 50% multa (40% para o empregado e 10% de contribuição social) x 8% FGTS
C52: E | D52: Incidência de GPS, FGTS e outras contribuições sobre o Aviso Prévio Trabalhado | E52: ='Encargos Sociais'!E39 -> 0.004309259259 | F52: 9.38 | H52: * Nota 4 - Os 95% restantes do cálculo, a um prazo médio de contrato de 4 anos. Assim, calcula-se 7 dias para o 1º ano de contrato e mais 3 dias para os 3 anos seguintes.
C53: F | D53: Multa do FGTS e Contribuição Social sobre o Aviso Prévio Trabalhado | E53: ='Encargos Sociais'!E40 -> 0.03050515556 | F53: 66.4
D55: TOTAL DE PREVISÃO PARA RESCISÃO | F55: =SUM(F48:F53) -> 124.34
B57: MÓDULO 4 - CUSTO DE REPOSIÇÃO DO PROFISSIONAL AUSENTE | E57: Percentuais | F57: Valor
B58: Submódulo 4.1 - Ausências Legais
C59: A | D59: Férias (Arts. 129 e 130, inc. I, da CLT) | E59: ='Encargos Sociais'!E24 -> 0.09090909091 | F59: =ROUND(E59*$F$16,2) -> 197.87 | H59: * Nota 1 - As alíneas “A” a “F” referem-se somente ao custo que será pago ao repositor pelos dias trabalhados quando da necessidade de substituir a mão de obra alocada na prestação do serviço.
C60: B | D60: Ausências Legais (Arts. 131 e 473 da CLT) | E60: ='Encargos Sociais'!E25 -> 0.007936507937 | F60: 17.27 | H60: * Nota 2 - Adotou-se a estimativa do SINAPI de 2 dias por ano.
C61: C | D61: Licença-Paternidade (Art. 7º, XIX, e art. 10, §1º, do ADCT, CF/1988 e Art. 1º, II, da Lei 11.770/2008) | E61: ='Encargos Sociais'!E26 -> 0.0008277777778 | F61: 1.8 | H61: * Nota 3 - Utilizada a proporção de 50% para homens, 5 dias de afastamento, e a probabilidade de um trabalhador requerer a Licença Paternidade em 5,22%, conforme SINAPI (citando dados da PNAD 2015)
C62: D | D62: Ausência por Acidente de Trabalho (Art. 131, III, da CLT) | E62: ='Encargos Sociais'!E27 -> 0.0008541666667 | F62: 1.86 | H62: * Nota 4 - Utilzada a estatística de 1,96% dos contribuintes beneficiados com a emissão do auxílio, conforme Anuário Estatístico da Previdência Social. Afastamento de 15 dias a cargo da empresa.
C63: E | D63: Afastamento Maternidade (Art. 71 da Lei nº 8.213/1991) | E63: ='Encargos Sociais'!E28 -> 0.003292592593 | F63: 7.17 | H63: * Nota 5 - Utilizada a proporção de 50% para mulheres, 180 dias de afastamento, e a probabilidade de uma trabalhadora requerer a Licença Maternidade em 4,91%, conforme SINAPI (citando dados do IBGE 2016)
C64: F | D64: Auxílio Enfermidade - Doença (Art. 59 da Lei nº 8.213/1991) | E64: ='Encargos Sociais'!E29 -> 0.007122222222 | F64: 15.5 | H64: * Nota 6 - Utilizada a estatística de 3,37% dos contribuintes beneficiados com o auxílio, conforme Anuário Estatístico da Previdência Social de 2015 (acrescidos de 2 dias ao ano, para os quais o trabalhador nem requer o benefício da Previdência - conforme SINAPI)
B66: Submódulo 4.2 - Intrajornada
C67: A | D67: Intervalo para repouso ou alimentação | E67: ='Encargos Sociais'!E32 -> 0 | F67: =ROUND(E67*$F$16,2) -> 0
D69: QUADRO-RESUMO DO MÓDULO 4 | F69: Valor
D70: 4.1 - Ausências Legais | E70: =SUM(E59:E64) -> 0.1109423581 | F70: =ROUND(E70*$F$16,2) -> 241.48
D71: 4.2 - Intrajornada | E71: =E67 -> 0 | F71: =ROUND(E71*$F$16,2) -> 0
D73: TOTAL DE PREVISÃO PARA RESCISÃO E INTERVALO INTRAJORNADA | F73: =SUM(F70:F71) -> 241.48
B75: MÓDULO 5 - INSUMOS DIVERSOS | F75: Valor
C76: A | D76: Uniformes - aquisição | F76: =ROUND(HLOOKUP($B$5,Uniformes!K3:DZ33,3)/12,2) -> 32.38
C77: B | D77: Materiais de consumo relacionados ao posto - aquisição | F77: =ROUND(HLOOKUP(B5,'Mat Cons'!I11:DX13,3)/12,2) -> 0
C78: C | D78: Materiais permanentes relacionados ao posto - remuneração da sua depreciação / manutenção | F78: =HLOOKUP(B5,'Mat Perm'!Q11:EF13,3) -> 0
C79: D | D79: Equipamentos relacionados ao posto - remuneração da sua depreciação / manutenção | F79: =HLOOKUP(B5,'Equip Rel'!Q11:EF13,3) -> 0
C80: E | D80: Equipamentos de Proteção Individual - EPI - aquisição | F80: =ROUND(HLOOKUP(B5,EPI!I3:DX67,3)/12,2) -> 55.15
D82: TOTAL DE INSUMOS DIVERSOS | F82: =SUM(F76:F81) -> 87.53 | H82: * Nota - Valores mensais por empregado
B84: MÓDULO 6 - CUSTOS INDIRETOS, TRIBUTOS E LUCRO - BDI | E84: Percentuais | F84: Valor
C85: A | D85: Custos Indiretos | E85: =BDI!E6 -> 0.0444
C86: A.1 | D86: Administração Central | E86: =BDI!E7 -> 0.039
C87: A.2 | D87: Seguros, Garantias e Riscos | E87: =BDI!E8 -> 0.0054
C88: B | D88: Lucro | E88: =BDI!E10 -> 0.06
C89: C | D89: Tributos | E89: =SUM(E90:E91) -> 0.124
C90: C.1 | D90: Tributos Federais (COFINS, PIS e CPRB) | E90: =BDI!E18 -> 0.074
C91: C.2 | D91: Tributos Distritais (ISS) | E91: =BDI!E23 -> 0.05 | H91: * Nota - Utilizou-se o indicado pelo Sindicato da Arquitetura e da Engenharia (Sinaenco, 2008, p. 22), que adota um percentual redutor de 20% no cálculo dos custos tributários relativos às contribuições PIS e COFINS
C92: D | D92: Despesas Financeiras | E92: =BDI!E13 -> 0.004466921098
D94: TOTAL DE BDI | E94: =BDI!E26 -> 0.2694 | F94: =E94*E102 -> 1191.427355
D96: QUADRO-RESUMO DO CUSTO MENSAL POR EMPREGADO - SEM O 13º | E96: Valor
D97: Módulo 1 - Composição da Remuneração | E97: =F16 -> 2176.581733
D98: Módulo 2 - Encargos e Benefícios Anuais, Mensais e Diários | E98: =F45 -> 1792.59
D99: Módulo 3 - Provisão para Rescisão | E99: =F55 -> 124.34
D100: Módulo 4 - Custo de Reposição do Profissional Ausente | E100: =F73 -> 241.48
D101: Módulo 5 - Insumos Diversos | E101: =F82 -> 87.53
D102: SUBTOTAL (A+B+C+D+E) | E102: =SUM(E97:E101) -> 4422.521733
D103: Módulo 6 - Custos Indiretos, Tributos e Lucro | E103: =F94 -> 1191.427355
D105: TOTAL DO POSTO | E105: =SUM(E102:E103) -> 5613.949088
B107: MÓDULO 7 - DESTAQUE DO MÓDULO 2 - 13º SALÁRIO | E107: Percentuais | F107: Valor
C108: A | D108: 13º Salário | E108: ='Encargos Sociais'!E31 -> 0.08333333333 | F108: =ROUND(E108*F$16,2) -> 181.38
C109: B | D109: Encargos Sociais sobre o 13º Salário - Taxa calculada no SUBMÓDULO 2.2 | E109: =SUM($E$24:$E$32) -> 0.358 | F109: =ROUND(E109*$F$108,2) -> 64.93 | H109: * Nota 1 - Provisiona-se, mensalmente, o proporcional a 1/12 dos valores referentes a gratificação natalina e adicional de férias.
C110: C | D110: Reincidência de férias sobre o 13º Salário | E110: =E59 -> 0.09090909091 | F110: =ROUND(E110*($F$108+$F$109),2) -> 22.39
C111: D | D111: BDI sobre o 13º Salário - Taxa calculada no MÓDULO 6 | E111: =E94 -> 0.2694 | F111: =ROUND(E111*($F$108+$F$109),2) -> 66.36
D113: TOTAL DO DESTAQUE DO 13º SALÁRIO | F113: =SUM(F108:F111) -> 335.06
D115: QUADRO-RESUMO DO CUSTO MENSAL POR EMPREGADO | E115: Valor
D116: Custo total - sem o 13º Salário | E116: =E105 -> 5613.949088
D117: Destaque do 13º Salário (valor mensal) | E117: =F113 -> 335.06
D119: TOTAL DO POSTO | E119: =E116+E117 -> 5949.009088

Sheet 2
B2: PLANILHA DE ESTIMATIVA DE CUSTOS
B3: Padrão IN 05/2017 e IN 07/2018 - MPDG
B5: 2 | D5: =HLOOKUP($B$5,'Dados Gerais'!$D$5:$BK$20,6) -> ENCARREGADO DE INSTALAÇÕES | E5: QUANTIDADE | F5: =HLOOKUP($B$5,'Dados Gerais'!$D$5:$BK$20,10) -> 1
B6: CCT | D6: =HLOOKUP($B$5,'Dados Gerais'!$D$5:$BK$20,15) -> CCT STICOMBE/DF x SINDUSCON/DF 2021/2023 | E6: DATA-BASE | F6: =HLOOKUP($B$5,'Dados Gerais'!$D$5:$BK$20,16) -> 2021-05-01
B8: MÓDULO 1 - COMPOSIÇÃO DA REMUNERAÇÃO | F8: Valor
C9: A | D9: Salário-Base | F9: =HLOOKUP($B$5,'Dados Gerais'!$D$5:$BK$20,8) -> 3527.923263
C10: B | D10: Adicional de Periculosidade | F10: =HLOOKUP($B$5,'Dados Gerais'!$D$5:$BK$37,25) -> 0
C11: C | D11: Adicional de Insalubridade | F11: =HLOOKUP($B$5,'Dados Gerais'!$D$5:$BK$37,31) -> 0
C12: D | D12: Adicional Noturno | F12: =HLOOKUP($B$5,'Dados Gerais'!$D$5:$BK$50,46) -> 0 | H12: * Nota 1 - O Módulo 1 refere-se ao valor mensal devido ao empregado pela prestação do serviço no período de 12 meses.
C13: E | D13: Adicional de Hora Extra | F13: =HLOOKUP($B$5,'Dados Gerais'!$D$5:$BK$67,63) -> 0 | H13: * Nota 2 - O adicional de hora extra no feriado trabalhado foi suprimido pela Lei 13.467/17
C14: F | D14: Outros (especificar) | F14: =HLOOKUP($B$5,'Dados Gerais'!$D$5:$BK$59,33) -> 0 | H14: * Nota 3 - ART. 7º, § 2º, DA LEI Nº 605/49.Sendo mensalista o obreiro, o adicional noturno pago de forma fixa já é considerado integrado para os efeitos do pagamento do repouso semanal remunerado, nos termos do art. 7º, § 2º, da Lei nº 605/49.
D16: TOTAL DA REMUNERAÇÃO | F16: =SUM(F9:F14) -> 3527.923263
B18: MÓDULO 2 - ENCARGOS E BENEFÍCIOS ANUAIS, MENSAIS E DIÁRIOS | E18: Percentuais | F18: Valor
B19: Submódulo 2.1 - 13º Salário, Férias e Adicional de Férias
C20: A | D20: 13º Salário - Calculado no Módulo 7 - Destacado | E20: 0 | F20: =ROUND(E20*F$16,2) -> 0
C21: B | D21: Adicional de Férias | E21: ='Encargos Sociais'!E30 -> 0.0303030303 | F21: =ROUND(E21*F$16,2) -> 106.91 | H21: * Nota 1 - Provisiona-se, mensalmente, o proporcional a 1/12 dos valores referentes a gratificação natalina, férias e adicional de férias.
H22: * Nota 2 - O adicional de férias contido no Submódulo 2.1 corresponde a 1/3 da remuneração que, por sua vez, é dividida por 12 contome Nota 1.
B23: Submódulo 2.2 - Encargos Previdenciários (GPS), Fundo de Garantia por Tempo de Serviço (FGTS) e Outras Contribuições
C24: A | D24: INSS (art. 22, inciso I, Lei nº 8.212/91) | E24: ='Encargos Sociais'!E13 -> 0.2 | F24: =ROUND(E24*($F$16+$F$41+$F$73),2) -> 805.25
C25: B | D25: Salário Educação (art. 3º, inciso I, Decreto nº 87.043/82) | E25: ='Encargos Sociais'!E14 -> 0.025 | F25: =ROUND(E25*($F$16+$F$41+$F$73),2) -> 100.66
C26: C | D26: SAT/RAT (art. 22, II, Lei 8.212/91 e Anexo V, Decreto 6.042/07) - Enquadramento 8211-3/00 | E26: ='Encargos Sociais'!E15 -> 0.01 | F26: 40.26
C27: D | D27: SESC ou SESI (art. 30, Lei nº 8.036/90 e art. 1º, Lei 8.154/90) | E27: ='Encargos Sociais'!E16 -> 0.015 | F27: 60.39
C28: E | D28: SENAI ou SENAC (Decreto nº 2.318/86) | E28: ='Encargos Sociais'!E17 -> 0.01 | F28: 40.26
C29: F | D29: SEBRAE (§ 3º, art. 8º, Lei 8.029/90, alterada pela Lei nº 8.154/90) | E29: ='Encargos Sociais'!E18 -> 0.006 | F29: 24.16
C30: G | D30: INCRA (art. 1º, I, Decreto Lei 1.146/70 e Lei 7.787, de 30/06/89) | E30: ='Encargos Sociais'!E19 -> 0.002 | F30: 8.05 | H30: * Nota 1 - Os percentuais dos encargos previdenciários, do FGTS e demais contribuições são estabelecidos por legislação vigente.
C31: H | D31: FGTS (Lei Complementar nº 110/01 e art. 30, Lei nº 8.036/90) | E31: ='Encargos Sociais'!E20 -> 0.08 | F31: 322.1 | H31: * Nota 2 - O SAT, a depender do grau de risco do serviço, irá variar entre 1%, para risco leve, de 2%, para risco médio, e de 3% para risco grave.
C32: I | D32: SECONCI (Convenções Coletivas de Trabalho da construção) | E32: ='Encargos Sociais'!E21 -> 0.01 | F32: 40.26 | H32: * Nota 3 - Os percentuais do Submódulo 2.2 incidem sobre o Módulo 1 e o Submódulo 2.1.
B34: Submódulo 2.3 - Benefícios Mensais e Diários
C35: A | D35: Auxílio Transporte | F35: =HLOOKUP($B$5,'Dados Gerais'!$D$5:$BK$93,82) -> 302.54
C36: B | D36: Auxílio Alimentação | F36: =HLOOKUP($B$5,'Dados Gerais'!$D$5:$BK$93,89) -> 534.82
C37: C | D37: Assistência Médica e Familiar | F37: =HLOOKUP($B$5,'Dados Gerais'!$D$5:$BK$101,97) -> 0
C38: D | D38: Outros (Seguro de vida e auxílio funeral e auxílio odontológico) | F38: =HLOOKUP($B$5,'Dados Gerais'!$D$5:$BK$118,114) -> 0 | H38: * Nota 1 - O valor informado deverá ser o custo real do benefício (descontado o valor eventualmente pago pelo empregado).
H39: * Nota 2 - Observar a previsão dos benefícios contidos em Acordos, Convenções e Dissídios Coletivos de Trabalho e o disposto no art. 6º da IN 5/2017
D40: QUADRO-RESUMO DO MÓDULO 2
D41: 2.1 - 13º Salário, Férias e Adicional de Férias - 13º Destacado - Calculado no Módulo 7 | E41: =SUM(E20:E21) -> 0.0303030303 | F41: =F20+F21 -> 106.91
D42: 2.2 - Encargos Previdenciários (GPS), Fundo de Garantia por Tempo de Serviço (FGTS) e Contribuições | E42: =SUM(E24:E32) -> 0.358 | F42: =SUM(F24:F32) -> 1441.39
D43: 2.3 - Benefícios Mensais e Diários | F43: =SUM(F35:F38) -> 837.36
D45: TOTAL DOS ENCARGOS E BENEFÍCIOS | F45: =SUM(F41:F43) -> 2385.66
B47: MÓDULO 3 - PREVISÃO PARA RESCISÃO | E47: Percentuais | F47: Valor
C48: A | D48: Aviso Prévio Indenizado (Art. 7º, inciso XXI, da CF/1988 e arts. 477, 487, §1º, e 491 da CLT) | E48: ='Encargos Sociais'!E35 -> 0.008333333333 | F48: =ROUND(E48*$F$16,2) -> 29.4
C49: B | D49: Incidência do FGTS sobre o Aviso Prévio Indenizado (Súmula 305 TST) | E49: ='Encargos Sociais'!E36 -> 0.0006666666667 | F49: 2.35 | H49: * Nota 1 - Adotou-se os parâmetros do estudo do STF (http://www.stf.jus.br/arquivo/cms/sobrestfestudosci/anexo/encargos_sociais_03102007.pdf), onde 5% do pessoal é demitido pelo empregador no decurso do contrato (para estes, considerou-se o aviso prévio indenizado). Desprezou-se as demissões por justa causa e os pedidos de demissão.
C50: C | D50: Multa do FGTS e Contribuição Social sobre o Aviso Prévio Indenizado (Art. 18, §1º, da Lei 8.036/1990 e art. 1º da LC nº 110/2001) | E50: ='Encargos Sociais'!E37 -> 0.001274074074 | F50: 4.49 | H50: * Nota 2 - No cálculo do percentual, considerou-se 36 dias, correspondendo à metade da duração média dos contratos (2 anos)
C51: D | D51: Aviso Prévio Trabalhado (Art. 488, parágrafo único, CLT) | E51: ='Encargos Sociais'!E38 -> 0.01203703704 | F51: 42.47 | H51: * Nota 3 - Incide sobre a Remuneração + 13º salário (1/12) + Férias (1/12) + Adicional de Férias (1/36) x 50% multa (40% para o empregado e 10% de contribuição social) x 8% FGTS
C52: E | D52: Incidência de GPS, FGTS e outras contribuições sobre o Aviso Prévio Trabalhado | E52: ='Encargos Sociais'!E39 -> 0.004309259259 | F52: 15.2 | H52: * Nota 4 - Os 95% restantes do cálculo, a um prazo médio de contrato de 4 anos. Assim, calcula-se 7 dias para o 1º ano de contrato e mais 3 dias para os 3 anos seguintes.
C53: F | D53: Multa do FGTS e Contribuição Social sobre o Aviso Prévio Trabalhado | E53: ='Encargos Sociais'!E40 -> 0.03050515556 | F53: 107.62
D55: TOTAL DE PREVISÃO PARA RESCISÃO | F55: =SUM(F48:F53) -> 201.53
B57: MÓDULO 4 - CUSTO DE REPOSIÇÃO DO PROFISSIONAL AUSENTE | E57: Percentuais | F57: Valor
B58: Submódulo 4.1 - Ausências Legais
C59: A | D59: Férias (Arts. 129 e 130, inc. I, da CLT) | E59: ='Encargos Sociais'!E24 -> 0.09090909091 | F59: =ROUND(E59*$F$16,2) -> 320.72 | H59: * Nota 1 - As alíneas “A” a “F” referem-se somente ao custo que será pago ao repositor pelos dias trabalhados quando da necessidade de substituir a mão de obra alocada na prestação do serviço.
C60: B | D60: Ausências Legais (Arts. 131 e 473 da CLT) | E60: ='Encargos Sociais'!E25 -> 0.007936507937 | F60: 28 | H60: * Nota 2 - Adotou-se a estimativa do SINAPI de 2 dias por ano.
C61: C | D61: Licença-Paternidade (Art. 7º, XIX, e art. 10, §1º, do ADCT, CF/1988 e Art. 1º, II, da Lei 11.770/2008) | E61: ='Encargos Sociais'!E26 -> 0.0008277777778 | F61: 2.92 | H61: * Nota 3 - Utilizada a proporção de 50% para homens, 5 dias de afastamento, e a probabilidade de um trabalhador requerer a Licença Paternidade em 5,22%, conforme SINAPI (citando dados da PNAD 2015)
C62: D | D62: Ausência por Acidente de Trabalho (Art. 131, III, da CLT) | E62: ='Encargos Sociais'!E27 -> 0.0008541666667 | F62: 3.01 | H62: * Nota 4 - Utilzada a estatística de 1,96% dos contribuintes beneficiados com a emissão do auxílio, conforme Anuário Estatístico da Previdência Social. Afastamento de 15 dias a cargo da empresa.
C63: E | D63: Afastamento Maternidade (Art. 71 da Lei nº 8.213/1991) | E63: ='Encargos Sociais'!E28 -> 0.003292592593 | F63: 11.62 | H63: * Nota 5 - Utilizada a proporção de 50% para mulheres, 180 dias de afastamento, e a probabilidade de uma trabalhadora requerer a Licença Maternidade em 4,91%, conforme SINAPI (citando dados do IBGE 2016)
C64: F | D64: Auxílio Enfermidade - Doença (Art. 59 da Lei nº 8.213/1991) | E64: ='Encargos Sociais'!E29 -> 0.007122222222 | F64: 25.13 | H64: * Nota 6 - Utilizada a estatística de 3,37% dos contribuintes beneficiados com o auxílio, conforme Anuário Estatístico da Previdência Social de 2015 (acrescidos de 2 dias ao ano, para os quais o trabalhador nem requer o benefício da Previdência - conforme SINAPI)
B66: Submódulo 4.2 - Intrajornada
C67: A | D67: Intervalo para repouso ou alimentação | E67: ='Encargos Sociais'!E32 -> 0 | F67: =ROUND(E67*$F$16,2) -> 0
D69: QUADRO-RESUMO DO MÓDULO 4 | F69: Valor
D70: 4.1 - Ausências Legais | E70: =SUM(E59:E64) -> 0.1109423581 | F70: =ROUND(E70*$F$16,2) -> 391.4
D71: 4.2 - Intrajornada | E71: =E67 -> 0 | F71: =ROUND(E71*$F$16,2) -> 0
D73: TOTAL DE PREVISÃO PARA RESCISÃO E INTERVALO INTRAJORNADA | F73: =SUM(F70:F71) -> 391.4
B75: MÓDULO 5 - INSUMOS DIVERSOS | F75: Valor
C76: A | D76: Uniformes - aquisição | F76: =ROUND(HLOOKUP($B$5,Uniformes!K3:DZ33,3)/12,2) -> 32.38
C77: B | D77: Materiais de consumo relacionados ao posto - aquisição | F77: =ROUND(HLOOKUP(B5,'Mat Cons'!I11:DX13,3)/12,2) -> 0
C78: C | D78: Materiais permanentes relacionados ao posto - remuneração da sua depreciação / manutenção | F78: =HLOOKUP(B5,'Mat Perm'!Q11:EF13,3) -> 0
C79: D | D79: Equipamentos relacionados ao posto - remuneração da sua depreciação / manutenção | F79: =HLOOKUP(B5,'Equip Rel'!Q11:EF13,3) -> 0
C80: E | D80: Equipamentos de Proteção Individual - EPI - aquisição | F80: =ROUND(HLOOKUP(B5,EPI!I3:DX67,3)/12,2) -> 58
D82: TOTAL DE INSUMOS DIVERSOS | F82: =SUM(F76:F81) -> 90.38 | H82: * Nota - Valores mensais por empregado
B84: MÓDULO 6 - CUSTOS INDIRETOS, TRIBUTOS E LUCRO - BDI | E84: Percentuais | F84: Valor
C85: A | D85: Custos Indiretos | E85: =BDI!E6 -> 0.0444
C86: A.1 | D86: Administração Central | E86: =BDI!E7 -> 0.039
C87: A.2 | D87: Seguros, Garantias e Riscos | E87: =BDI!E8 -> 0.0054
C88: B | D88: Lucro | E88: =BDI!E10 -> 0.06
C89: C | D89: Tributos | E89: =SUM(E90:E91) -> 0.124
C90: C.1 | D90: Tributos Federais (COFINS, PIS e CPRB) | E90: =BDI!E18 -> 0.074
C91: C.2 | D91: Tributos Distritais (ISS) | E91: =BDI!E23 -> 0.05 | H91: * Nota - Utilizou-se o indicado pelo Sindicato da Arquitetura e da Engenharia (Sinaenco, 2008, p. 22), que adota um percentual redutor de 20% no cálculo dos custos tributários relativos às contribuições PIS e COFINS
C92: D | D92: Despesas Financeiras | E92: =BDI!E13 -> 0.004466921098
D94: TOTAL DE BDI | E94: =BDI!E26 -> 0.2694 | F94: =E94*E102 -> 1777.203045
D96: QUADRO-RESUMO DO CUSTO MENSAL POR EMPREGADO - SEM O 13º | E96: Valor
D97: Módulo 1 - Composição da Remuneração | E97: =F16 -> 3527.923263
D98: Módulo 2 - Encargos e Benefícios Anuais, Mensais e Diários | E98: =F45 -> 2385.66
D99: Módulo 3 - Provisão para Rescisão | E99: =F55 -> 201.53
D100: Módulo 4 - Custo de Reposição do Profissional Ausente | E100: =F73 -> 391.4
D101: Módulo 5 - Insumos Diversos | E101: =F82 -> 90.38
D102: SUBTOTAL (A+B+C+D+E) | E102: =SUM(E97:E101) -> 6596.893263
D103: Módulo 6 - Custos Indiretos, Tributos e Lucro | E103: =F94 -> 1777.203045
D105: TOTAL DO POSTO | E105: =SUM(E102:E103) -> 8374.096308
B107: MÓDULO 7 - DESTAQUE DO MÓDULO 2 - 13º SALÁRIO | E107: Percentuais | F107: Valor
C108: A | D108: 13º Salário | E108: ='Encargos Sociais'!E31 -> 0.08333333333 | F108: =ROUND(E108*F$16,2) -> 293.99
C109: B | D109: Encargos Sociais sobre o 13º Salário - Taxa calculada no SUBMÓDULO 2.2 | E109: =SUM($E$24:$E$32) -> 0.358 | F109: =ROUND(E109*$F$108,2) -> 105.25 | H109: * Nota 1 - Provisiona-se, mensalmente, o proporcional a 1/12 dos valores referentes a gratificação natalina e adicional de férias.
C110: C | D110: Reincidência de férias sobre o 13º Salário | E110: =E59 -> 0.09090909091 | F110: =ROUND(E110*($F$108+$F$109),2) -> 36.29
C111: D | D111: BDI sobre o 13º Salário - Taxa calculada no MÓDULO 6 | E111: =E94 -> 0.2694 | F111: =ROUND(E111*($F$108+$F$109),2) -> 107.56
D113: TOTAL DO DESTAQUE DO 13º SALÁRIO | F113: =SUM(F108:F111) -> 543.09
D115: QUADRO-RESUMO DO CUSTO MENSAL POR EMPREGADO | E115: Valor
D116: Custo total - sem o 13º Salário | E116: =E105 -> 8374.096308
D117: Destaque do 13º Salário (valor mensal) | E117: =F113 -> 543.09
D119: TOTAL DO POSTO | E119: =E116+E117 -> 8917.186308

Sheet 3
B2: PLANILHA DE ESTIMATIVA DE CUSTOS
B3: Padrão IN 05/2017 e IN 07/2018 - MPDG
B5: 3 | D5: =HLOOKUP($B$5,'Dados Gerais'!$D$5:$BK$20,6) -> TÉCNICO EM ELETRÔNICA (DETECÇÃO, ALARME E COMBATE A INCÊNCIO) | E5: QUANTIDADE | F5: =HLOOKUP($B$5,'Dados Gerais'!$D$5:$BK$20,10) -> 1
B6: CCT | D6: =HLOOKUP($B$5,'Dados Gerais'!$D$5:$BK$20,15) -> CCT STICOMBE/DF x SINDUSCON/DF 2021/2023 | E6: DATA-BASE | F6: =HLOOKUP($B$5,'Dados Gerais'!$D$5:$BK$20,16) -> 2021-05-01
B8: MÓDULO 1 - COMPOSIÇÃO DA REMUNERAÇÃO | F8: Valor
C9: A | D9: Salário-Base | F9: =HLOOKUP($B$5,'Dados Gerais'!$D$5:$BK$20,8) -> 2899.894873
C10: B | D10: Adicional de Periculosidade | F10: =HLOOKUP($B$5,'Dados Gerais'!$D$5:$BK$37,25) -> 0
C11: C | D11: Adicional de Insalubridade | F11: =HLOOKUP($B$5,'Dados Gerais'!$D$5:$BK$37,31) -> 0
C12: D | D12: Adicional Noturno | F12: =HLOOKUP($B$5,'Dados Gerais'!$D$5:$BK$50,46) -> 0 | H12: * Nota 1 - O Módulo 1 refere-se ao valor mensal devido ao empregado pela prestação do serviço no período de 12 meses.
C13: E | D13: Adicional de Hora Extra | F13: =HLOOKUP($B$5,'Dados Gerais'!$D$5:$BK$67,63) -> 0 | H13: * Nota 2 - O adicional de hora extra no feriado trabalhado foi suprimido pela Lei 13.467/17
C14: F | D14: Outros (especificar) | F14: =HLOOKUP($B$5,'Dados Gerais'!$D$5:$BK$59,33) -> 0 | H14: * Nota 3 - ART. 7º, § 2º, DA LEI Nº 605/49.Sendo mensalista o obreiro, o adicional noturno pago de forma fixa já é considerado integrado para os efeitos do pagamento do repouso semanal remunerado, nos termos do art. 7º, § 2º, da Lei nº 605/49.
D16: TOTAL DA REMUNERAÇÃO | F16: =SUM(F9:F14) -> 2899.894873
B18: MÓDULO 2 - ENCARGOS E BENEFÍCIOS ANUAIS, MENSAIS E DIÁRIOS | E18: Percentuais | F18: Valor
B19: Submódulo 2.1 - 13º Salário, Férias e Adicional de Férias
C20: A | D20: 13º Salário - Calculado no Módulo 7 - Destacado | E20: 0 | F20: =ROUND(E20*F$16,2) -> 0
C21: B | D21: Adicional de Férias | E21: ='Encargos Sociais'!E30 -> 0.0303030303 | F21: =ROUND(E21*F$16,2) -> 87.88 | H21: * Nota 1 - Provisiona-se, mensalmente, o proporcional a 1/12 dos valores referentes a gratificação natalina, férias e adicional de férias.
H22: * Nota 2 - O adicional de férias contido no Submódulo 2.1 corresponde a 1/3 da remuneração que, por sua vez, é dividida por 12 contome Nota 1.
B23: Submódulo 2.2 - Encargos Previdenciários (GPS), Fundo de Garantia por Tempo de Serviço (FGTS) e Outras Contribuições
C24: A | D24: INSS (art. 22, inciso I, Lei nº 8.212/91) | E24: ='Encargos Sociais'!E13 -> 0.2 | F24: =ROUND(E24*($F$16+$F$41+$F$73),2) -> 661.9
C25: B | D25: Salário Educação (art. 3º, inciso I, Decreto nº 87.043/82) | E25: ='Encargos Sociais'!E14 -> 0.025 | F25: =ROUND(E25*($F$16+$F$41+$F$73),2) -> 82.74
C26: C | D26: SAT/RAT (art. 22, II, Lei 8.212/91 e Anexo V, Decreto 6.042/07) - Enquadramento 8211-3/00 | E26: ='Encargos Sociais'!E15 -> 0.01 | F26: 33.09
C27: D | D27: SESC ou SESI (art. 30, Lei nº 8.036/90 e art. 1º, Lei 8.154/90) | E27: ='Encargos Sociais'!E16 -> 0.015 | F27: 49.64
C28: E | D28: SENAI ou SENAC (Decreto nº 2.318/86) | E28: ='Encargos Sociais'!E17 -> 0.01 | F28: 33.09
C29: F | D29: SEBRAE (§ 3º, art. 8º, Lei 8.029/90, alterada pela Lei nº 8.154/90) | E29: ='Encargos Sociais'!E18 -> 0.006 | F29: 19.86
C30: G | D30: INCRA (art. 1º, I, Decreto Lei 1.146/70 e Lei 7.787, de 30/06/89) | E30: ='Encargos Sociais'!E19 -> 0.002 | F30: 6.62 | H30: * Nota 1 - Os percentuais dos encargos previdenciários, do FGTS e demais contribuições são estabelecidos por legislação vigente.
C31: H | D31: FGTS (Lei Complementar nº 110/01 e art. 30, Lei nº 8.036/90) | E31: ='Encargos Sociais'!E20 -> 0.08 | F31: 264.76 | H31: * Nota 2 - O SAT, a depender do grau de risco do serviço, irá variar entre 1%, para risco leve, de 2%, para risco médio, e de 3% para risco grave.
C32: I | D32: SECONCI (Convenções Coletivas de Trabalho da construção) | E32: ='Encargos Sociais'!E21 -> 0.01 | F32: 33.09 | H32: * Nota 3 - Os percentuais do Submódulo 2.2 incidem sobre o Módulo 1 e o Submódulo 2.1.
B34: Submódulo 2.3 - Benefícios Mensais e Diários
C35: A | D35: Auxílio Transporte | F35: =HLOOKUP($B$5,'Dados Gerais'!$D$5:$BK$93,82) -> 302.54
C36: B | D36: Auxílio Alimentação | F36: =HLOOKUP($B$5,'Dados Gerais'!$D$5:$BK$93,89) -> 534.82
C37: C | D37: Assistência Médica e Familiar | F37: =HLOOKUP($B$5,'Dados Gerais'!$D$5:$BK$101,97) -> 0
C38: D | D38: Outros (Seguro de vida e auxílio funeral e auxílio odontológico) | F38: =HLOOKUP($B$5,'Dados Gerais'!$D$5:$BK$118,114) -> 0 | H38: * Nota 1 - O valor informado deverá ser o custo real do benefício (descontado o valor eventualmente pago pelo empregado).
H39: * Nota 2 - Observar a previsão dos benefícios contidos em Acordos, Convenções e Dissídios Coletivos de Trabalho e o disposto no art. 6º da IN 5/2017
D40: QUADRO-RESUMO DO MÓDULO 2
D41: 2.1 - 13º Salário, Férias e Adicional de Férias - 13º Destacado - Calculado no Módulo 7 | E41: =SUM(E20:E21) -> 0.0303030303 | F41: =F20+F21 -> 87.88
D42: 2.2 - Encargos Previdenciários (GPS), Fundo de Garantia por Tempo de Serviço (FGTS) e Contribuições | E42: =SUM(E24:E32) -> 0.358 | F42: =SUM(F24:F32) -> 1184.79
D43: 2.3 - Benefícios Mensais e Diários | F43: =SUM(F35:F38) -> 837.36
D45: TOTAL DOS ENCARGOS E BENEFÍCIOS | F45: =SUM(F41:F43) -> 2110.03
B47: MÓDULO 3 - PREVISÃO PARA RESCISÃO | E47: Percentuais | F47: Valor
C48: A | D48: Aviso Prévio Indenizado (Art. 7º, inciso XXI, da CF/1988 e arts. 477, 487, §1º, e 491 da CLT) | E48: ='Encargos Sociais'!E35 -> 0.008333333333 | F48: =ROUND(E48*$F$16,2) -> 24.17
C49: B | D49: Incidência do FGTS sobre o Aviso Prévio Indenizado (Súmula 305 TST) | E49: ='Encargos Sociais'!E36 -> 0.0006666666667 | F49: 1.93 | H49: * Nota 1 - Adotou-se os parâmetros do estudo do STF (http://www.stf.jus.br/arquivo/cms/sobrestfestudosci/anexo/encargos_sociais_03102007.pdf), onde 5% do pessoal é demitido pelo empregador no decurso do contrato (para estes, considerou-se o aviso prévio indenizado). Desprezou-se as demissões por justa causa e os pedidos de demissão.
C50: C | D50: Multa do FGTS e Contribuição Social sobre o Aviso Prévio Indenizado (Art. 18, §1º, da Lei 8.036/1990 e art. 1º da LC nº 110/2001) | E50: ='Encargos Sociais'!E37 -> 0.001274074074 | F50: 3.69 | H50: * Nota 2 - No cálculo do percentual, considerou-se 36 dias, correspondendo à metade da duração média dos contratos (2 anos)
C51: D | D51: Aviso Prévio Trabalhado (Art. 488, parágrafo único, CLT) | E51: ='Encargos Sociais'!E38 -> 0.01203703704 | F51: 34.91 | H51: * Nota 3 - Incide sobre a Remuneração + 13º salário (1/12) + Férias (1/12) + Adicional de Férias (1/36) x 50% multa (40% para o empregado e 10% de contribuição social) x 8% FGTS
C52: E | D52: Incidência de GPS, FGTS e outras contribuições sobre o Aviso Prévio Trabalhado | E52: ='Encargos Sociais'!E39 -> 0.004309259259 | F52: 12.5 | H52: * Nota 4 - Os 95% restantes do cálculo, a um prazo médio de contrato de 4 anos. Assim, calcula-se 7 dias para o 1º ano de contrato e mais 3 dias para os 3 anos seguintes.
C53: F | D53: Multa do FGTS e Contribuição Social sobre o Aviso Prévio Trabalhado | E53: ='Encargos Sociais'!E40 -> 0.03050515556 | F53: 88.46
D55: TOTAL DE PREVISÃO PARA RESCISÃO | F55: =SUM(F48:F53) -> 165.66
B57: MÓDULO 4 - CUSTO DE REPOSIÇÃO DO PROFISSIONAL AUSENTE | E57: Percentuais | F57: Valor
B58: Submódulo 4.1 - Ausências Legais
C59: A | D59: Férias (Arts. 129 e 130, inc. I, da CLT) | E59: ='Encargos Sociais'!E24 -> 0.09090909091 | F59: =ROUND(E59*$F$16,2) -> 263.63 | H59: * Nota 1 - As alíneas “A” a “F” referem-se somente ao custo que será pago ao repositor pelos dias trabalhados quando da necessidade de substituir a mão de obra alocada na prestação do serviço.
C60: B | D60: Ausências Legais (Arts. 131 e 473 da CLT) | E60: ='Encargos Sociais'!E25 -> 0.007936507937 | F60: 23.02 | H60: * Nota 2 - Adotou-se a estimativa do SINAPI de 2 dias por ano.
C61: C | D61: Licença-Paternidade (Art. 7º, XIX, e art. 10, §1º, do ADCT, CF/1988 e Art. 1º, II, da Lei 11.770/2008) | E61: ='Encargos Sociais'!E26 -> 0.0008277777778 | F61: 2.4 | H61: * Nota 3 - Utilizada a proporção de 50% para homens, 5 dias de afastamento, e a probabilidade de um trabalhador requerer a Licença Paternidade em 5,22%, conforme SINAPI (citando dados da PNAD 2015)
C62: D | D62: Ausência por Acidente de Trabalho (Art. 131, III, da CLT) | E62: ='Encargos Sociais'!E27 -> 0.0008541666667 | F62: 2.48 | H62: * Nota 4 - Utilzada a estatística de 1,96% dos contribuintes beneficiados com a emissão do auxílio, conforme Anuário Estatístico da Previdência Social. Afastamento de 15 dias a cargo da empresa.
C63: E | D63: Afastamento Maternidade (Art. 71 da Lei nº 8.213/1991) | E63: ='Encargos Sociais'!E28 -> 0.003292592593 | F63: 9.55 | H63: * Nota 5 - Utilizada a proporção de 50% para mulheres, 180 dias de afastamento, e a probabilidade de uma trabalhadora requerer a Licença Maternidade em 4,91%, conforme SINAPI (citando dados do IBGE 2016)
C64: F | D64: Auxílio Enfermidade - Doença (Art. 59 da Lei nº 8.213/1991) | E64: ='Encargos Sociais'!E29 -> 0.007122222222 | F64: 20.65 | H64: * Nota 6 - Utilizada a estatística de 3,37% dos contribuintes beneficiados com o auxílio, conforme Anuário Estatístico da Previdência Social de 2015 (acrescidos de 2 dias ao ano, para os quais o trabalhador nem requer o benefício da Previdência - conforme SINAPI)
B66: Submódulo 4.2 - Intrajornada
C67: A | D67: Intervalo para repouso ou alimentação | E67: ='Encargos Sociais'!E32 -> 0 | F67: =ROUND(E67*$F$16,2) -> 0
D69: QUADRO-RESUMO DO MÓDULO 4 | F69: Valor
D70: 4.1 - Ausências Legais | E70: =SUM(E59:E64) -> 0.1109423581 | F70: =ROUND(E70*$F$16,2) -> 321.72
D71: 4.2 - Intrajornada | E71: =E67 -> 0 | F71: =ROUND(E71*$F$16,2) -> 0
D73: TOTAL DE PREVISÃO PARA RESCISÃO E INTERVALO INTRAJORNADA | F73: =SUM(F70:F71) -> 321.72
B75: MÓDULO 5 - INSUMOS DIVERSOS | F75: Valor
C76: A | D76: Uniformes - aquisição | F76: =ROUND(HLOOKUP($B$5,Uniformes!K3:DZ33,3)/12,2) -> 32.38
C77: B | D77: Materiais de consumo relacionados ao posto - aquisição | F77: =ROUND(HLOOKUP(B5,'Mat Cons'!I11:DX204,3)/12,2) -> 0
C78: C | D78: Materiais permanentes relacionados ao posto - remuneração da sua depreciação / manutenção | F78: =HLOOKUP(B5,'Mat Perm'!Q11:EF13,3) -> 0
C79: D | D79: Equipamentos relacionados ao posto - remuneração da sua depreciação / manutenção | F79: =HLOOKUP(B5,'Equip Rel'!Q11:EF13,3) -> 0
C80: E | D80: Equipamentos de Proteção Individual - EPI - aquisição | F80: =ROUND(HLOOKUP(B5,EPI!I3:DX5,3)/12,2) -> 41.9
D82: TOTAL DE INSUMOS DIVERSOS | F82: =SUM(F76:F81) -> 74.28 | H82: * Nota - Valores mensais por empregado
B84: MÓDULO 6 - CUSTOS INDIRETOS, TRIBUTOS E LUCRO - BDI | E84: Percentuais | F84: Valor
C85: A | D85: Custos Indiretos | E85: =BDI!E6 -> 0.0444
C86: A.1 | D86: Administração Central | E86: =BDI!E7 -> 0.039
C87: A.2 | D87: Seguros, Garantias e Riscos | E87: =BDI!E8 -> 0.0054
C88: B | D88: Lucro | E88: =BDI!E10 -> 0.06
C89: C | D89: Tributos | E89: =SUM(E90:E91) -> 0.124
C90: C.1 | D90: Tributos Federais (COFINS, PIS e CPRB) | E90: =BDI!E18 -> 0.074
C91: C.2 | D91: Tributos Distritais (ISS) | E91: =BDI!E23 -> 0.05 | H91: * Nota - Utilizou-se o indicado pelo Sindicato da Arquitetura e da Engenharia (Sinaenco, 2008, p. 22), que adota um percentual redutor de 20% no cálculo dos custos tributários relativos às contribuições PIS e COFINS
C92: D | D92: Despesas Financeiras | E92: =BDI!E13 -> 0.004466921098
D94: TOTAL DE BDI | E94: =BDI!E26 -> 0.2694 | F94: =E94*E102 -> 1500.984965
D96: QUADRO-RESUMO DO CUSTO MENSAL POR EMPREGADO - SEM O 13º | E96: Valor
D97: Módulo 1 - Composição da Remuneração | E97: =F16 -> 2899.894873
D98: Módulo 2 - Encargos e Benefícios Anuais, Mensais e Diários | E98: =F45 -> 2110.03
D99: Módulo 3 - Provisão para Rescisão | E99: =F55 -> 165.66
D100: Módulo 4 - Custo de Reposição do Profissional Ausente | E100: =F73 -> 321.72
D101: Módulo 5 - Insumos Diversos | E101: =F82 -> 74.28
D102: SUBTOTAL (A+B+C+D+E) | E102: =SUM(E97:E101) -> 5571.584873
D103: Módulo 6 - Custos Indiretos, Tributos e Lucro | E103: =F94 -> 1500.984965
D105: TOTAL DO POSTO | E105: =SUM(E102:E103) -> 7072.569838
B107: MÓDULO 7 - DESTAQUE DO MÓDULO 2 - 13º SALÁRIO | E107: Percentuais | F107: Valor
C108: A | D108: 13º Salário | E108: ='Encargos Sociais'!E31 -> 0.08333333333 | F108: =ROUND(E108*F$16,2) -> 241.66
C109: B | D109: Encargos Sociais sobre o 13º Salário - Taxa calculada no SUBMÓDULO 2.2 | E109: =SUM($E$24:$E$32) -> 0.358 | F109: =ROUND(E109*$F$108,2) -> 86.51 | H109: * Nota 1 - Provisiona-se, mensalmente, o proporcional a 1/12 dos valores referentes a gratificação natalina e adicional de férias.
C110: C | D110: Reincidência de férias sobre o 13º Salário | E110: =E59 -> 0.09090909091 | F110: =ROUND(E110*($F$108+$F$109),2) -> 29.83
C111: D | D111: BDI sobre o 13º Salário - Taxa calculada no MÓDULO 6 | E111: =E94 -> 0.2694 | F111: =ROUND(E111*($F$108+$F$109),2) -> 88.41
D113: TOTAL DO DESTAQUE DO 13º SALÁRIO | F113: =SUM(F108:F111) -> 446.41
D115: QUADRO-RESUMO DO CUSTO MENSAL POR EMPREGADO | E115: Valor
D116: Custo total - sem o 13º Salário | E116: =E105 -> 7072.569838
D117: Destaque do 13º Salário (valor mensal) | E117: =F113 -> 446.41
D119: TOTAL DO POSTO | E119: =E116+E117 -> 7518.979838

Sheet 4
B2: PLANILHA DE ESTIMATIVA DE CUSTOS
B3: Padrão IN 05/2017 e IN 07/2018 - MPDG
B5: 4 | D5: =HLOOKUP($B$5,'Dados Gerais'!$D$5:$BK$20,6) -> TÉCNICO EM ELETROTÉCNICA (QUADROS DE COMANDO E AUTOMAÇÃO) | E5: QUANTIDADE | F5: =HLOOKUP($B$5,'Dados Gerais'!$D$5:$BK$20,10) -> 1
B6: CCT | D6: =HLOOKUP($B$5,'Dados Gerais'!$D$5:$BK$20,15) -> CCT STICOMBE/DF x SINDUSCON/DF 2021/2023 | E6: DATA-BASE | F6: =HLOOKUP($B$5,'Dados Gerais'!$D$5:$BK$20,16) -> 2021-05-01
B8: MÓDULO 1 - COMPOSIÇÃO DA REMUNERAÇÃO | F8: Valor
C9: A | D9: Salário-Base | F9: =HLOOKUP($B$5,'Dados Gerais'!$D$5:$BK$20,8) -> 3004.863483
C10: B | D10: Adicional de Periculosidade | F10: =HLOOKUP($B$5,'Dados Gerais'!$D$5:$BK$37,25) -> 0
C11: C | D11: Adicional de Insalubridade | F11: =HLOOKUP($B$5,'Dados Gerais'!$D$5:$BK$37,31) -> 0
C12: D | D12: Adicional Noturno | F12: =HLOOKUP($B$5,'Dados Gerais'!$D$5:$BK$50,46) -> 0 | H12: * Nota 1 - O Módulo 1 refere-se ao valor mensal devido ao empregado pela prestação do serviço no período de 12 meses.
C13: E | D13: Adicional de Hora Extra | F13: =HLOOKUP($B$5,'Dados Gerais'!$D$5:$BK$67,63) -> 0 | H13: * Nota 2 - O adicional de hora extra no feriado trabalhado foi suprimido pela Lei 13.467/17
C14: F | D14: Outros (especificar) | F14: =HLOOKUP($B$5,'Dados Gerais'!$D$5:$BK$59,33) -> 0 | H14: * Nota 3 - ART. 7º, § 2º, DA LEI Nº 605/49.Sendo mensalista o obreiro, o adicional noturno pago de forma fixa já é considerado integrado para os efeitos do pagamento do repouso semanal remunerado, nos termos do art. 7º, § 2º, da Lei nº 605/49.
D16: TOTAL DA REMUNERAÇÃO | F16: =SUM(F9:F14) -> 3004.863483
B18: MÓDULO 2 - ENCARGOS E BENEFÍCIOS ANUAIS, MENSAIS E DIÁRIOS | E18: Percentuais | F18: Valor
B19: Submódulo 2.1 - 13º Salário, Férias e Adicional de Férias
C20: A | D20: 13º Salário - Calculado no Módulo 7 - Destacado | E20: 0 | F20: =ROUND(E20*F$16,2) -> 0
C21: B | D21: Adicional de Férias | E21: ='Encargos Sociais'!E30 -> 0.0303030303 | F21: =ROUND(E21*F$16,2) -> 91.06 | H21: * Nota 1 - Provisiona-se, mensalmente, o proporcional a 1/12 dos valores referentes a gratificação natalina, férias e adicional de férias.
H22: * Nota 2 - O adicional de férias contido no Submódulo 2.1 corresponde a 1/3 da remuneração que, por sua vez, é dividida por 12 contome Nota 1.
B23: Submódulo 2.2 - Encargos Previdenciários (GPS), Fundo de Garantia por Tempo de Serviço (FGTS) e Outras Contribuições
C24: A | D24: INSS (art. 22, inciso I, Lei nº 8.212/91) | E24: ='Encargos Sociais'!E13 -> 0.2 | F24: =ROUND(E24*($F$16+$F$41+$F$73),2) -> 685.86
C25: B | D25: Salário Educação (art. 3º, inciso I, Decreto nº 87.043/82) | E25: ='Encargos Sociais'!E14 -> 0.025 | F25: =ROUND(E25*($F$16+$F$41+$F$73),2) -> 85.73
C26: C | D26: SAT/RAT (art. 22, II, Lei 8.212/91 e Anexo V, Decreto 6.042/07) - Enquadramento 8211-3/00 | E26: ='Encargos Sociais'!E15 -> 0.01 | F26: 34.29
C27: D | D27: SESC ou SESI (art. 30, Lei nº 8.036/90 e art. 1º, Lei 8.154/90) | E27: ='Encargos Sociais'!E16 -> 0.015 | F27: 51.44
C28: E | D28: SENAI ou SENAC (Decreto nº 2.318/86) | E28: ='Encargos Sociais'!E17 -> 0.01 | F28: 34.29
C29: F | D29: SEBRAE (§ 3º, art. 8º, Lei 8.029/90, alterada pela Lei nº 8.154/90) | E29: ='Encargos Sociais'!E18 -> 0.006 | F29: 20.58
C30: G | D30: INCRA (art. 1º, I, Decreto Lei 1.146/70 e Lei 7.787, de 30/06/89) | E30: ='Encargos Sociais'!E19 -> 0.002 | F30: 6.86 | H30: * Nota 1 - Os percentuais dos encargos previdenciários, do FGTS e demais contribuições são estabelecidos por legislação vigente.
C31: H | D31: FGTS (Lei Complementar nº 110/01 e art. 30, Lei nº 8.036/90) | E31: ='Encargos Sociais'!E20 -> 0.08 | F31: 274.34 | H31: * Nota 2 - O SAT, a depender do grau de risco do serviço, irá variar entre 1%, para risco leve, de 2%, para risco médio, e de 3% para risco grave.
C32: I | D32: SECONCI (Convenções Coletivas de Trabalho da construção) | E32: ='Encargos Sociais'!E21 -> 0.01 | F32: 34.29 | H32: * Nota 3 - Os percentuais do Submódulo 2.2 incidem sobre o Módulo 1 e o Submódulo 2.1.
B34: Submódulo 2.3 - Benefícios Mensais e Diários
C35: A | D35: Auxílio Transporte | F35: =HLOOKUP($B$5,'Dados Gerais'!$D$5:$BK$93,82) -> 302.54
C36: B | D36: Auxílio Alimentação | F36: =HLOOKUP($B$5,'Dados Gerais'!$D$5:$BK$93,89) -> 534.82
C37: C | D37: Assistência Médica e Familiar | F37: =HLOOKUP($B$5,'Dados Gerais'!$D$5:$BK$101,97) -> 0
C38: D | D38: Outros (Seguro de vida e auxílio funeral e auxílio odontológico) | F38: =HLOOKUP($B$5,'Dados Gerais'!$D$5:$BK$118,114) -> 0 | H38: * Nota 1 - O valor informado deverá ser o custo real do benefício (descontado o valor eventualmente pago pelo empregado).
H39: * Nota 2 - Observar a previsão dos benefícios contidos em Acordos, Convenções e Dissídios Coletivos de Trabalho e o disposto no art. 6º da IN 5/2017
D40: QUADRO-RESUMO DO MÓDULO 2
D41: 2.1 - 13º Salário, Férias e Adicional de Férias - 13º Destacado - Calculado no Módulo 7 | E41: =SUM(E20:E21) -> 0.0303030303 | F41: =F20+F21 -> 91.06
D42: 2.2 - Encargos Previdenciários (GPS), Fundo de Garantia por Tempo de Serviço (FGTS) e Contribuições | E42: =SUM(E24:E32) -> 0.358 | F42: =SUM(F24:F32) -> 1227.68
D43: 2.3 - Benefícios Mensais e Diários | F43: =SUM(F35:F38) -> 837.36
D45: TOTAL DOS ENCARGOS E BENEFÍCIOS | F45: =SUM(F41:F43) -> 2156.1
B47: MÓDULO 3 - PREVISÃO PARA RESCISÃO | E47: Percentuais | F47: Valor
C48: A | D48: Aviso Prévio Indenizado (Art. 7º, inciso XXI, da CF/1988 e arts. 477, 487, §1º, e 491 da CLT) | E48: ='Encargos Sociais'!E35 -> 0.008333333333 | F48: =ROUND(E48*$F$16,2) -> 25.04
C49: B | D49: Incidência do FGTS sobre o Aviso Prévio Indenizado (Súmula 305 TST) | E49: ='Encargos Sociais'!E36 -> 0.0006666666667 | F49: 2 | H49: * Nota 1 - Adotou-se os parâmetros do estudo do STF (http://www.stf.jus.br/arquivo/cms/sobrestfestudosci/anexo/encargos_sociais_03102007.pdf), onde 5% do pessoal é demitido pelo empregador no decurso do contrato (para estes, considerou-se o aviso prévio indenizado). Desprezou-se as demissões por justa causa e os pedidos de demissão.
C50: C | D50: Multa do FGTS e Contribuição Social sobre o Aviso Prévio Indenizado (Art. 18, §1º, da Lei 8.036/1990 e art. 1º da LC nº 110/2001) | E50: ='Encargos Sociais'!E37 -> 0.001274074074 | F50: 3.83 | H50: * Nota 2 - No cálculo do percentual, considerou-se 36 dias, correspondendo à metade da duração média dos contratos (2 anos)
C51: D | D51: Aviso Prévio Trabalhado (Art. 488, parágrafo único, CLT) | E51: ='Encargos Sociais'!E38 -> 0.01203703704 | F51: 36.17 | H51: * Nota 3 - Incide sobre a Remuneração + 13º salário (1/12) + Férias (1/12) + Adicional de Férias (1/36) x 50% multa (40% para o empregado e 10% de contribuição social) x 8% FGTS
C52: E | D52: Incidência de GPS, FGTS e outras contribuições sobre o Aviso Prévio Trabalhado | E52: ='Encargos Sociais'!E39 -> 0.004309259259 | F52: 12.95 | H52: * Nota 4 - Os 95% restantes do cálculo, a um prazo médio de contrato de 4 anos. Assim, calcula-se 7 dias para o 1º ano de contrato e mais 3 dias para os 3 anos seguintes.
C53: F | D53: Multa do FGTS e Contribuição Social sobre o Aviso Prévio Trabalhado | E53: ='Encargos Sociais'!E40 -> 0.03050515556 | F53: 91.66
D55: TOTAL DE PREVISÃO PARA RESCISÃO | F55: =SUM(F48:F53) -> 171.65
B57: MÓDULO 4 - CUSTO DE REPOSIÇÃO DO PROFISSIONAL AUSENTE | E57: Percentuais | F57: Valor
B58: Submódulo 4.1 - Ausências Legais
C59: A | D59: Férias (Arts. 129 e 130, inc. I, da CLT) | E59: ='Encargos Sociais'!E24 -> 0.09090909091 | F59: =ROUND(E59*$F$16,2) -> 273.17 | H59: * Nota 1 - As alíneas “A” a “F” referem-se somente ao custo que será pago ao repositor pelos dias trabalhados quando da necessidade de substituir a mão de obra alocada na prestação do serviço.
C60: B | D60: Ausências Legais (Arts. 131 e 473 da CLT) | E60: ='Encargos Sociais'!E25 -> 0.007936507937 | F60: 23.85 | H60: * Nota 2 - Adotou-se a estimativa do SINAPI de 2 dias por ano.
C61: C | D61: Licença-Paternidade (Art. 7º, XIX, e art. 10, §1º, do ADCT, CF/1988 e Art. 1º, II, da Lei 11.770/2008) | E61: ='Encargos Sociais'!E26 -> 0.0008277777778 | F61: 2.49 | H61: * Nota 3 - Utilizada a proporção de 50% para homens, 5 dias de afastamento, e a probabilidade de um trabalhador requerer a Licença Paternidade em 5,22%, conforme SINAPI (citando dados da PNAD 2015)
C62: D | D62: Ausência por Acidente de Trabalho (Art. 131, III, da CLT) | E62: ='Encargos Sociais'!E27 -> 0.0008541666667 | F62: 2.57 | H62: * Nota 4 - Utilzada a estatística de 1,96% dos contribuintes beneficiados com a emissão do auxílio, conforme Anuário Estatístico da Previdência Social. Afastamento de 15 dias a cargo da empresa.
C63: E | D63: Afastamento Maternidade (Art. 71 da Lei nº 8.213/1991) | E63: ='Encargos Sociais'!E28 -> 0.003292592593 | F63: 9.89 | H63: * Nota 5 - Utilizada a proporção de 50% para mulheres, 180 dias de afastamento, e a probabilidade de uma trabalhadora requerer a Licença Maternidade em 4,91%, conforme SINAPI (citando dados do IBGE 2016)
C64: F | D64: Auxílio Enfermidade - Doença (Art. 59 da Lei nº 8.213/1991) | E64: ='Encargos Sociais'!E29 -> 0.007122222222 | F64: 21.4 | H64: * Nota 6 - Utilizada a estatística de 3,37% dos contribuintes beneficiados com o auxílio, conforme Anuário Estatístico da Previdência Social de 2015 (acrescidos de 2 dias ao ano, para os quais o trabalhador nem requer o benefício da Previdência - conforme SINAPI)
B66: Submódulo 4.2 - Intrajornada
C67: A | D67: Intervalo para repouso ou alimentação | E67: ='Encargos Sociais'!E32 -> 0 | F67: =ROUND(E67*$F$16,2) -> 0
D69: QUADRO-RESUMO DO MÓDULO 4 | F69: Valor
D70: 4.1 - Ausências Legais | E70: =SUM(E59:E64) -> 0.1109423581 | F70: =ROUND(E70*$F$16,2) -> 333.37
D71: 4.2 - Intrajornada | E71: =E67 -> 0 | F71: =ROUND(E71*$F$16,2) -> 0
D73: TOTAL DE PREVISÃO PARA RESCISÃO E INTERVALO INTRAJORNADA | F73: =SUM(F70:F71) -> 333.37
B75: MÓDULO 5 - INSUMOS DIVERSOS | F75: Valor
C76: A | D76: Uniformes - aquisição | F76: =ROUND(HLOOKUP($B$5,Uniformes!K3:DZ33,3)/12,2) -> 32.38
C77: B | D77: Materiais de consumo relacionados ao posto - aquisição | F77: =ROUND(HLOOKUP(B5,'Mat Cons'!I11:DX13,3)/12,2) -> 0
C78: C | D78: Materiais permanentes relacionados ao posto - remuneração da sua depreciação / manutenção | F78: =HLOOKUP(B5,'Mat Perm'!Q11:EF13,3) -> 0
C79: D | D79: Equipamentos relacionados ao posto - remuneração da sua depreciação / manutenção | F79: =HLOOKUP(B5,'Equip Rel'!Q11:EF13,3) -> 0
C80: E | D80: Equipamentos de Proteção Individual - EPI - aquisição | F80: =ROUND(HLOOKUP(B5,EPI!I3:DX67,3)/12,2) -> 38.06
D82: TOTAL DE INSUMOS DIVERSOS | F82: =SUM(F76:F81) -> 70.44 | H82: * Nota - Valores mensais por empregado
B84: MÓDULO 6 - CUSTOS INDIRETOS, TRIBUTOS E LUCRO - BDI | E84: Percentuais | F84: Valor
C85: A | D85: Custos Indiretos | E85: =BDI!E6 -> 0.0444
C86: A.1 | D86: Administração Central | E86: =BDI!E7 -> 0.039
C87: A.2 | D87: Seguros, Garantias e Riscos | E87: =BDI!E8 -> 0.0054
C88: B | D88: Lucro | E88: =BDI!E10 -> 0.06
C89: C | D89: Tributos | E89: =SUM(E90:E91) -> 0.124
C90: C.1 | D90: Tributos Federais (COFINS, PIS e CPRB) | E90: =BDI!E18 -> 0.074
C91: C.2 | D91: Tributos Distritais (ISS) | E91: =BDI!E23 -> 0.05 | H91: * Nota - Utilizou-se o indicado pelo Sindicato da Arquitetura e da Engenharia (Sinaenco, 2008, p. 22), que adota um percentual redutor de 20% no cálculo dos custos tributários relativos às contribuições PIS e COFINS
C92: D | D92: Despesas Financeiras | E92: =BDI!E13 -> 0.004466921098
D94: TOTAL DE BDI | E94: =BDI!E26 -> 0.2694 | F94: =E94*E102 -> 1545.392486
D96: QUADRO-RESUMO DO CUSTO MENSAL POR EMPREGADO - SEM O 13º | E96: Valor
D97: Módulo 1 - Composição da Remuneração | E97: =F16 -> 3004.863483
D98: Módulo 2 - Encargos e Benefícios Anuais, Mensais e Diários | E98: =F45 -> 2156.1
D99: Módulo 3 - Provisão para Rescisão | E99: =F55 -> 171.65
D100: Módulo 4 - Custo de Reposição do Profissional Ausente | E100: =F73 -> 333.37
D101: Módulo 5 - Insumos Diversos | E101: =F82 -> 70.44
D102: SUBTOTAL (A+B+C+D+E) | E102: =SUM(E97:E101) -> 5736.423483
D103: Módulo 6 - Custos Indiretos, Tributos e Lucro | E103: =F94 -> 1545.392486
D105: TOTAL DO POSTO | E105: =SUM(E102:E103) -> 7281.815969
B107: MÓDULO 7 - DESTAQUE DO MÓDULO 2 - 13º SALÁRIO | E107: Percentuais | F107: Valor
C108: A | D108: 13º Salário | E108: ='Encargos Sociais'!E31 -> 0.08333333333 | F108: =ROUND(E108*F$16,2) -> 250.41
C109: B | D109: Encargos Sociais sobre o 13º Salário - Taxa calculada no SUBMÓDULO 2.2 | E109: =SUM($E$24:$E$32) -> 0.358 | F109: =ROUND(E109*$F$108,2) -> 89.65 | H109: * Nota 1 - Provisiona-se, mensalmente, o proporcional a 1/12 dos valores referentes a gratificação natalina e adicional de férias.
C110: C | D110: Reincidência de férias sobre o 13º Salário | E110: =E59 -> 0.09090909091 | F110: =ROUND(E110*($F$108+$F$109),2) -> 30.91
C111: D | D111: BDI sobre o 13º Salário - Taxa calculada no MÓDULO 6 | E111: =E94 -> 0.2694 | F111: =ROUND(E111*($F$108+$F$109),2) -> 91.61
D113: TOTAL DO DESTAQUE DO 13º SALÁRIO | F113: =SUM(F108:F111) -> 462.58
D115: QUADRO-RESUMO DO CUSTO MENSAL POR EMPREGADO | E115: Valor
D116: Custo total - sem o 13º Salário | E116: =E105 -> 7281.815969
D117: Destaque do 13º Salário (valor mensal) | E117: =F113 -> 462.58
D119: TOTAL DO POSTO | E119: =E116+E117 -> 7744.395969

Sheet 5
B2: PLANILHA DE ESTIMATIVA DE CUSTOS
B3: Padrão IN 05/2017 e IN 07/2018 - MPDG
B5: 5 | D5: =HLOOKUP($B$5,'Dados Gerais'!$D$5:$BK$20,6) -> OPERADOR DE CENTRAL DE DETECÇÃO E ALARME DE INCÊNDIO | E5: QUANTIDADE | F5: =HLOOKUP($B$5,'Dados Gerais'!$D$5:$BK$20,10) -> 4
B6: CCT | D6: =HLOOKUP($B$5,'Dados Gerais'!$D$5:$BK$20,15) -> CCT STICOMBE/DF x SINDUSCON/DF 2021/2023 | E6: DATA-BASE | F6: =HLOOKUP($B$5,'Dados Gerais'!$D$5:$BK$20,16) -> 2021-05-01
B8: MÓDULO 1 - COMPOSIÇÃO DA REMUNERAÇÃO | F8: Valor
C9: A | D9: Salário-Base | F9: =HLOOKUP($B$5,'Dados Gerais'!$D$5:$BK$20,8) -> 2333.407505
C10: B | D10: Adicional de Periculosidade | F10: =HLOOKUP($B$5,'Dados Gerais'!$D$5:$BK$37,25) -> 0
C11: C | D11: Adicional de Insalubridade | F11: =HLOOKUP($B$5,'Dados Gerais'!$D$5:$BK$37,31) -> 0
C12: D | D12: Adicional Noturno | F12: =HLOOKUP($B$5,'Dados Gerais'!$D$5:$BK$50,46) -> 0 | H12: * Nota 1 - O Módulo 1 refere-se ao valor mensal devido ao empregado pela prestação do serviço no período de 12 meses.
C13: E | D13: Adicional de Hora Extra | F13: =HLOOKUP($B$5,'Dados Gerais'!$D$5:$BK$67,63) -> 155.5605004 | H13: * Nota 2 - O adicional de hora extra no feriado trabalhado foi suprimido pela Lei 13.467/17
C14: F | D14: Outros (especificar) | F14: =HLOOKUP($B$5,'Dados Gerais'!$D$5:$BK$59,33) -> 0 | H14: * Nota 3 - ART. 7º, § 2º, DA LEI Nº 605/49.Sendo mensalista o obreiro, o adicional noturno pago de forma fixa já é considerado integrado para os efeitos do pagamento do repouso semanal remunerado, nos termos do art. 7º, § 2º, da Lei nº 605/49.
D16: TOTAL DA REMUNERAÇÃO | F16: =SUM(F9:F14) -> 2488.968006
B18: MÓDULO 2 - ENCARGOS E BENEFÍCIOS ANUAIS, MENSAIS E DIÁRIOS | E18: Percentuais | F18: Valor
B19: Submódulo 2.1 - 13º Salário, Férias e Adicional de Férias
C20: A | D20: 13º Salário - Calculado no Módulo 7 - Destacado | E20: 0 | F20: =ROUND(E20*F$16,2) -> 0
C21: B | D21: Adicional de Férias | E21: ='Encargos Sociais'!E30 -> 0.0303030303 | F21: =ROUND(E21*F$16,2) -> 75.42 | H21: * Nota 1 - Provisiona-se, mensalmente, o proporcional a 1/12 dos valores referentes a gratificação natalina, férias e adicional de férias.
H22: * Nota 2 - O adicional de férias contido no Submódulo 2.1 corresponde a 1/3 da remuneração que, por sua vez, é dividida por 12 contome Nota 1.
B23: Submódulo 2.2 - Encargos Previdenciários (GPS), Fundo de Garantia por Tempo de Serviço (FGTS) e Outras Contribuições
C24: A | D24: INSS (art. 22, inciso I, Lei nº 8.212/91) | E24: ='Encargos Sociais'!E13 -> 0.2 | F24: =ROUND(E24*($F$16+$F$41+$F$73),2) -> 568.1
C25: B | D25: Salário Educação (art. 3º, inciso I, Decreto nº 87.043/82) | E25: ='Encargos Sociais'!E14 -> 0.025 | F25: =ROUND(E25*($F$16+$F$41+$F$73),2) -> 71.01
C26: C | D26: SAT/RAT (art. 22, II, Lei 8.212/91 e Anexo V, Decreto 6.042/07) - Enquadramento 8211-3/00 | E26: ='Encargos Sociais'!E15 -> 0.01 | F26: 28.41
C27: D | D27: SESC ou SESI (art. 30, Lei nº 8.036/90 e art. 1º, Lei 8.154/90) | E27: ='Encargos Sociais'!E16 -> 0.015 | F27: 42.61
C28: E | D28: SENAI ou SENAC (Decreto nº 2.318/86) | E28: ='Encargos Sociais'!E17 -> 0.01 | F28: 28.41
C29: F | D29: SEBRAE (§ 3º, art. 8º, Lei 8.029/90, alterada pela Lei nº 8.154/90) | E29: ='Encargos Sociais'!E18 -> 0.006 | F29: 17.04
C30: G | D30: INCRA (art. 1º, I, Decreto Lei 1.146/70 e Lei 7.787, de 30/06/89) | E30: ='Encargos Sociais'!E19 -> 0.002 | F30: 5.68 | H30: * Nota 1 - Os percentuais dos encargos previdenciários, do FGTS e demais contribuições são estabelecidos por legislação vigente.
C31: H | D31: FGTS (Lei Complementar nº 110/01 e art. 30, Lei nº 8.036/90) | E31: ='Encargos Sociais'!E20 -> 0.08 | F31: 227.24 | H31: * Nota 2 - O SAT, a depender do grau de risco do serviço, irá variar entre 1%, para risco leve, de 2%, para risco médio, e de 3% para risco grave.
C32: I | D32: SECONCI (Convenções Coletivas de Trabalho da construção) | E32: ='Encargos Sociais'!E21 -> 0.01 | F32: 28.41 | H32: * Nota 3 - Os percentuais do Submódulo 2.2 incidem sobre o Módulo 1 e o Submódulo 2.1.
B34: Submódulo 2.3 - Benefícios Mensais e Diários
C35: A | D35: Auxílio Transporte | F35: =HLOOKUP($B$5,'Dados Gerais'!$D$5:$BK$93,82) -> 206.28
C36: B | D36: Auxílio Alimentação | F36: =HLOOKUP($B$5,'Dados Gerais'!$D$5:$BK$93,89) -> 364.65
C37: C | D37: Assistência Médica e Familiar | F37: =HLOOKUP($B$5,'Dados Gerais'!$D$5:$BK$101,97) -> 0
C38: D | D38: Outros (Seguro de vida e auxílio funeral e auxílio odontológico) | F38: =HLOOKUP($B$5,'Dados Gerais'!$D$5:$BK$118,114) -> 0 | H38: * Nota 1 - O valor informado deverá ser o custo real do benefício (descontado o valor eventualmente pago pelo empregado).
H39: * Nota 2 - Observar a previsão dos benefícios contidos em Acordos, Convenções e Dissídios Coletivos de Trabalho e o disposto no art. 6º da IN 5/2017
D40: QUADRO-RESUMO DO MÓDULO 2
D41: 2.1 - 13º Salário, Férias e Adicional de Férias - 13º Destacado - Calculado no Módulo 7 | E41: =SUM(E20:E21) -> 0.0303030303 | F41: =F20+F21 -> 75.42
D42: 2.2 - Encargos Previdenciários (GPS), Fundo de Garantia por Tempo de Serviço (FGTS) e Contribuições | E42: =SUM(E24:E32) -> 0.358 | F42: =SUM(F24:F32) -> 1016.91
D43: 2.3 - Benefícios Mensais e Diários | F43: =SUM(F35:F38) -> 570.93
D45: TOTAL DOS ENCARGOS E BENEFÍCIOS | F45: =SUM(F41:F43) -> 1663.26
B47: MÓDULO 3 - PREVISÃO PARA RESCISÃO | E47: Percentuais | F47: Valor
C48: A | D48: Aviso Prévio Indenizado (Art. 7º, inciso XXI, da CF/1988 e arts. 477, 487, §1º, e 491 da CLT) | E48: ='Encargos Sociais'!E35 -> 0.008333333333 | F48: =ROUND(E48*$F$16,2) -> 20.74
C49: B | D49: Incidência do FGTS sobre o Aviso Prévio Indenizado (Súmula 305 TST) | E49: ='Encargos Sociais'!E36 -> 0.0006666666667 | F49: 1.66 | H49: * Nota 1 - Adotou-se os parâmetros do estudo do STF (http://www.stf.jus.br/arquivo/cms/sobrestfestudosci/anexo/encargos_sociais_03102007.pdf), onde 5% do pessoal é demitido pelo empregador no decurso do contrato (para estes, considerou-se o aviso prévio indenizado). Desprezou-se as demissões por justa causa e os pedidos de demissão.
C50: C | D50: Multa do FGTS e Contribuição Social sobre o Aviso Prévio Indenizado (Art. 18, §1º, da Lei 8.036/1990 e art. 1º da LC nº 110/2001) | E50: ='Encargos Sociais'!E37 -> 0.001274074074 | F50: 3.17 | H50: * Nota 2 - No cálculo do percentual, considerou-se 36 dias, correspondendo à metade da duração média dos contratos (2 anos)
C51: D | D51: Aviso Prévio Trabalhado (Art. 488, parágrafo único, CLT) | E51: ='Encargos Sociais'!E38 -> 0.01203703704 | F51: 29.96 | H51: * Nota 3 - Incide sobre a Remuneração + 13º salário (1/12) + Férias (1/12) + Adicional de Férias (1/36) x 50% multa (40% para o empregado e 10% de contribuição social) x 8% FGTS
C52: E | D52: Incidência de GPS, FGTS e outras contribuições sobre o Aviso Prévio Trabalhado | E52: ='Encargos Sociais'!E39 -> 0.004309259259 | F52: 10.73 | H52: * Nota 4 - Os 95% restantes do cálculo, a um prazo médio de contrato de 4 anos. Assim, calcula-se 7 dias para o 1º ano de contrato e mais 3 dias para os 3 anos seguintes.
C53: F | D53: Multa do FGTS e Contribuição Social sobre o Aviso Prévio Trabalhado | E53: ='Encargos Sociais'!E40 -> 0.03050515556 | F53: 75.93
D55: TOTAL DE PREVISÃO PARA RESCISÃO | F55: =SUM(F48:F53) -> 142.19
B57: MÓDULO 4 - CUSTO DE REPOSIÇÃO DO PROFISSIONAL AUSENTE | E57: Percentuais | F57: Valor
B58: Submódulo 4.1 - Ausências Legais
C59: A | D59: Férias (Arts. 129 e 130, inc. I, da CLT) | E59: ='Encargos Sociais'!E24 -> 0.09090909091 | F59: =ROUND(E59*$F$16,2) -> 226.27 | H59: * Nota 1 - As alíneas “A” a “F” referem-se somente ao custo que será pago ao repositor pelos dias trabalhados quando da necessidade de substituir a mão de obra alocada na prestação do serviço.
C60: B | D60: Ausências Legais (Arts. 131 e 473 da CLT) | E60: ='Encargos Sociais'!E25 -> 0.007936507937 | F60: 19.75 | H60: * Nota 2 - Adotou-se a estimativa do SINAPI de 2 dias por ano.
C61: C | D61: Licença-Paternidade (Art. 7º, XIX, e art. 10, §1º, do ADCT, CF/1988 e Art. 1º, II, da Lei 11.770/2008) | E61: ='Encargos Sociais'!E26 -> 0.0008277777778 | F61: 2.06 | H61: * Nota 3 - Utilizada a proporção de 50% para homens, 5 dias de afastamento, e a probabilidade de um trabalhador requerer a Licença Paternidade em 5,22%, conforme SINAPI (citando dados da PNAD 2015)
C62: D | D62: Ausência por Acidente de Trabalho (Art. 131, III, da CLT) | E62: ='Encargos Sociais'!E27 -> 0.0008541666667 | F62: 2.13 | H62: * Nota 4 - Utilzada a estatística de 1,96% dos contribuintes beneficiados com a emissão do auxílio, conforme Anuário Estatístico da Previdência Social. Afastamento de 15 dias a cargo da empresa.
C63: E | D63: Afastamento Maternidade (Art. 71 da Lei nº 8.213/1991) | E63: ='Encargos Sociais'!E28 -> 0.003292592593 | F63: 8.2 | H63: * Nota 5 - Utilizada a proporção de 50% para mulheres, 180 dias de afastamento, e a probabilidade de uma trabalhadora requerer a Licença Maternidade em 4,91%, conforme SINAPI (citando dados do IBGE 2016)
C64: F | D64: Auxílio Enfermidade - Doença (Art. 59 da Lei nº 8.213/1991) | E64: ='Encargos Sociais'!E29 -> 0.007122222222 | F64: 17.73 | H64: * Nota 6 - Utilizada a estatística de 3,37% dos contribuintes beneficiados com o auxílio, conforme Anuário Estatístico da Previdência Social de 2015 (acrescidos de 2 dias ao ano, para os quais o trabalhador nem requer o benefício da Previdência - conforme SINAPI)
B66: Submódulo 4.2 - Intrajornada
C67: A | D67: Intervalo para repouso ou alimentação | E67: ='Encargos Sociais'!E32 -> 0 | F67: =ROUND(E67*$F$16,2) -> 0
D69: QUADRO-RESUMO DO MÓDULO 4 | F69: Valor
D70: 4.1 - Ausências Legais | E70: =SUM(E59:E64) -> 0.1109423581 | F70: =ROUND(E70*$F$16,2) -> 276.13
D71: 4.2 - Intrajornada | E71: =E67 -> 0 | F71: =ROUND(E71*$F$16,2) -> 0
D73: TOTAL DE PREVISÃO PARA RESCISÃO E INTERVALO INTRAJORNADA | F73: =SUM(F70:F71) -> 276.13
B75: MÓDULO 5 - INSUMOS DIVERSOS | F75: Valor
C76: A | D76: Uniformes - aquisição | F76: =ROUND(HLOOKUP($B$5,Uniformes!K3:DZ33,3)/12,2) -> 32.38
C77: B | D77: Materiais de consumo relacionados ao posto - aquisição | F77: =ROUND(HLOOKUP(B5,'Mat Cons'!I11:DX13,3)/12,2) -> 0
C78: C | D78: Materiais permanentes relacionados ao posto - remuneração da sua depreciação / manutenção | F78: =HLOOKUP(B5,'Mat Perm'!Q11:EF13,3) -> 0
C79: D | D79: Equipamentos relacionados ao posto - remuneração da sua depreciação / manutenção | F79: =HLOOKUP(B5,'Equip Rel'!Q11:EF13,3) -> 0
C80: E | D80: Equipamentos de Proteção Individual - EPI - aquisição | F80: =ROUND(HLOOKUP(B5,EPI!I3:DX67,3)/12,2) -> 117.82
D82: TOTAL DE INSUMOS DIVERSOS | F82: =SUM(F76:F81) -> 150.2 | H82: * Nota - Valores mensais por empregado
B84: MÓDULO 6 - CUSTOS INDIRETOS, TRIBUTOS E LUCRO - BDI | E84: Percentuais | F84: Valor
C85: A | D85: Custos Indiretos | E85: =BDI!E6 -> 0.0444
C86: A.1 | D86: Administração Central | E86: =BDI!E7 -> 0.039
C87: A.2 | D87: Seguros, Garantias e Riscos | E87: =BDI!E8 -> 0.0054
C88: B | D88: Lucro | E88: =BDI!E10 -> 0.06
C89: C | D89: Tributos | E89: =SUM(E90:E91) -> 0.124
C90: C.1 | D90: Tributos Federais (COFINS, PIS e CPRB) | E90: =BDI!E18 -> 0.074
C91: C.2 | D91: Tributos Distritais (ISS) | E91: =BDI!E23 -> 0.05 | H91: * Nota - Utilizou-se o indicado pelo Sindicato da Arquitetura e da Engenharia (Sinaenco, 2008, p. 22), que adota um percentual redutor de 20% no cálculo dos custos tributários relativos às contribuições PIS e COFINS
C92: D | D92: Despesas Financeiras | E92: =BDI!E13 -> 0.004466921098
D94: TOTAL DE BDI | E94: =BDI!E26 -> 0.2694 | F94: =E94*E102 -> 1271.769513
D96: QUADRO-RESUMO DO CUSTO MENSAL POR EMPREGADO - SEM O 13º | E96: Valor
D97: Módulo 1 - Composição da Remuneração | E97: =F16 -> 2488.968006
D98: Módulo 2 - Encargos e Benefícios Anuais, Mensais e Diários | E98: =F45 -> 1663.26
D99: Módulo 3 - Provisão para Rescisão | E99: =F55 -> 142.19
D100: Módulo 4 - Custo de Reposição do Profissional Ausente | E100: =F73 -> 276.13
D101: Módulo 5 - Insumos Diversos | E101: =F82 -> 150.2
D102: SUBTOTAL (A+B+C+D+E) | E102: =SUM(E97:E101) -> 4720.748006
D103: Módulo 6 - Custos Indiretos, Tributos e Lucro | E103: =F94 -> 1271.769513
D105: TOTAL DO POSTO | E105: =SUM(E102:E103) -> 5992.517518
B107: MÓDULO 7 - DESTAQUE DO MÓDULO 2 - 13º SALÁRIO | E107: Percentuais | F107: Valor
C108: A | D108: 13º Salário | E108: ='Encargos Sociais'!E31 -> 0.08333333333 | F108: =ROUND(E108*F$16,2) -> 207.41
C109: B | D109: Encargos Sociais sobre o 13º Salário - Taxa calculada no SUBMÓDULO 2.2 | E109: =SUM($E$24:$E$32) -> 0.358 | F109: =ROUND(E109*$F$108,2) -> 74.25 | H109: * Nota 1 - Provisiona-se, mensalmente, o proporcional a 1/12 dos valores referentes a gratificação natalina e adicional de férias.
C110: C | D110: Reincidência de férias sobre o 13º Salário | E110: =E59 -> 0.09090909091 | F110: =ROUND(E110*($F$108+$F$109),2) -> 25.61
C111: D | D111: BDI sobre o 13º Salário - Taxa calculada no MÓDULO 6 | E111: =E94 -> 0.2694 | F111: =ROUND(E111*($F$108+$F$109),2) -> 75.88
D113: TOTAL DO DESTAQUE DO 13º SALÁRIO | F113: =SUM(F108:F111) -> 383.15
D115: QUADRO-RESUMO DO CUSTO MENSAL POR EMPREGADO | E115: Valor
D116: Custo total - sem o 13º Salário | E116: =E105 -> 5992.517518
D117: Destaque do 13º Salário (valor mensal) | E117: =F113 -> 383.15
D119: TOTAL DO POSTO | E119: =E116+E117 -> 6375.667518

Sheet 6
B2: PLANILHA DE ESTIMATIVA DE CUSTOS
B3: Padrão IN 05/2017 e IN 07/2018 - MPDG
B5: 6 | D5: =HLOOKUP($B$5,'Dados Gerais'!$D$5:$BK$20,6) -> OPERADOR DE CENTRAL DE DETECÇÃO E ALARME DE INCÊNDIO (COM ADICIONAL NOTURNO) | E5: QUANTIDADE | F5: =HLOOKUP($B$5,'Dados Gerais'!$D$5:$BK$20,10) -> 4
B6: CCT | D6: =HLOOKUP($B$5,'Dados Gerais'!$D$5:$BK$20,15) -> CCT STICOMBE/DF x SINDUSCON/DF 2021/2023 | E6: DATA-BASE | F6: =HLOOKUP($B$5,'Dados Gerais'!$D$5:$BK$20,16) -> 2021-05-01
B8: MÓDULO 1 - COMPOSIÇÃO DA REMUNERAÇÃO | F8: Valor
C9: A | D9: Salário-Base | F9: =HLOOKUP($B$5,'Dados Gerais'!$D$5:$BK$20,8) -> 2333.407505
C10: B | D10: Adicional de Periculosidade | F10: =HLOOKUP($B$5,'Dados Gerais'!$D$5:$BK$37,25) -> 0
C11: C | D11: Adicional de Insalubridade | F11: =HLOOKUP($B$5,'Dados Gerais'!$D$5:$BK$37,31) -> 0
C12: D | D12: Adicional Noturno | F12: =HLOOKUP($B$5,'Dados Gerais'!$D$5:$BK$50,46) -> 272.23 | H12: * Nota 1 - O Módulo 1 refere-se ao valor mensal devido ao empregado pela prestação do serviço no período de 12 meses.
C13: E | D13: Adicional de Hora Extra | F13: =HLOOKUP($B$5,'Dados Gerais'!$D$5:$BK$67,63) -> 155.5605004 | H13: * Nota 2 - O adicional de hora extra no feriado trabalhado foi suprimido pela Lei 13.467/17
C14: F | D14: Outros (especificar) | F14: =HLOOKUP($B$5,'Dados Gerais'!$D$5:$BK$59,33) -> 0 | H14: * Nota 3 - ART. 7º, § 2º, DA LEI Nº 605/49.Sendo mensalista o obreiro, o adicional noturno pago de forma fixa já é considerado integrado para os efeitos do pagamento do repouso semanal remunerado, nos termos do art. 7º, § 2º, da Lei nº 605/49.
D16: TOTAL DA REMUNERAÇÃO | F16: =SUM(F9:F14) -> 2761.198006
B18: MÓDULO 2 - ENCARGOS E BENEFÍCIOS ANUAIS, MENSAIS E DIÁRIOS | E18: Percentuais | F18: Valor
B19: Submódulo 2.1 - 13º Salário, Férias e Adicional de Férias
C20: A | D20: 13º Salário - Calculado no Módulo 7 - Destacado | E20: 0 | F20: =ROUND(E20*F$16,2) -> 0
C21: B | D21: Adicional de Férias | E21: ='Encargos Sociais'!E30 -> 0.0303030303 | F21: =ROUND(E21*F$16,2) -> 83.67 | H21: * Nota 1 - Provisiona-se, mensalmente, o proporcional a 1/12 dos valores referentes a gratificação natalina, férias e adicional de férias.
H22: * Nota 2 - O adicional de férias contido no Submódulo 2.1 corresponde a 1/3 da remuneração que, por sua vez, é dividida por 12 contome Nota 1.
B23: Submódulo 2.2 - Encargos Previdenciários (GPS), Fundo de Garantia por Tempo de Serviço (FGTS) e Outras Contribuições
C24: A | D24: INSS (art. 22, inciso I, Lei nº 8.212/91) | E24: ='Encargos Sociais'!E13 -> 0.2 | F24: =ROUND(E24*($F$16+$F$41+$F$73),2) -> 630.24
C25: B | D25: Salário Educação (art. 3º, inciso I, Decreto nº 87.043/82) | E25: ='Encargos Sociais'!E14 -> 0.025 | F25: =ROUND(E25*($F$16+$F$41+$F$73),2) -> 78.78
C26: C | D26: SAT/RAT (art. 22, II, Lei 8.212/91 e Anexo V, Decreto 6.042/07) - Enquadramento 8211-3/00 | E26: ='Encargos Sociais'!E15 -> 0.01 | F26: 31.51
C27: D | D27: SESC ou SESI (art. 30, Lei nº 8.036/90 e art. 1º, Lei 8.154/90) | E27: ='Encargos Sociais'!E16 -> 0.015 | F27: 47.27
C28: E | D28: SENAI ou SENAC (Decreto nº 2.318/86) | E28: ='Encargos Sociais'!E17 -> 0.01 | F28: 31.51
C29: F | D29: SEBRAE (§ 3º, art. 8º, Lei 8.029/90, alterada pela Lei nº 8.154/90) | E29: ='Encargos Sociais'!E18 -> 0.006 | F29: 18.91
C30: G | D30: INCRA (art. 1º, I, Decreto Lei 1.146/70 e Lei 7.787, de 30/06/89) | E30: ='Encargos Sociais'!E19 -> 0.002 | F30: 6.3 | H30: * Nota 1 - Os percentuais dos encargos previdenciários, do FGTS e demais contribuições são estabelecidos por legislação vigente.
C31: H | D31: FGTS (Lei Complementar nº 110/01 e art. 30, Lei nº 8.036/90) | E31: ='Encargos Sociais'!E20 -> 0.08 | F31: 252.1 | H31: * Nota 2 - O SAT, a depender do grau de risco do serviço, irá variar entre 1%, para risco leve, de 2%, para risco médio, e de 3% para risco grave.
C32: I | D32: SECONCI (Convenções Coletivas de Trabalho da construção) | E32: ='Encargos Sociais'!E21 -> 0.01 | F32: 31.51 | H32: * Nota 3 - Os percentuais do Submódulo 2.2 incidem sobre o Módulo 1 e o Submódulo 2.1.
B34: Submódulo 2.3 - Benefícios Mensais e Diários
C35: A | D35: Auxílio Transporte | F35: =HLOOKUP($B$5,'Dados Gerais'!$D$5:$BK$93,82) -> 206.28
C36: B | D36: Auxílio Alimentação | F36: =HLOOKUP($B$5,'Dados Gerais'!$D$5:$BK$93,89) -> 364.65
C37: C | D37: Assistência Médica e Familiar | F37: =HLOOKUP($B$5,'Dados Gerais'!$D$5:$BK$101,97) -> 0
C38: D | D38: Outros (Seguro de vida e auxílio funeral e auxílio odontológico) | F38: =HLOOKUP($B$5,'Dados Gerais'!$D$5:$BK$118,114) -> 0 | H38: * Nota 1 - O valor informado deverá ser o custo real do benefício (descontado o valor eventualmente pago pelo empregado).
H39: * Nota 2 - Observar a previsão dos benefícios contidos em Acordos, Convenções e Dissídios Coletivos de Trabalho e o disposto no art. 6º da IN 5/2017
D40: QUADRO-RESUMO DO MÓDULO 2
D41: 2.1 - 13º Salário, Férias e Adicional de Férias - 13º Destacado - Calculado no Módulo 7 | E41: =SUM(E20:E21) -> 0.0303030303 | F41: =F20+F21 -> 83.67
D42: 2.2 - Encargos Previdenciários (GPS), Fundo de Garantia por Tempo de Serviço (FGTS) e Contribuições | E42: =SUM(E24:E32) -> 0.358 | F42: =SUM(F24:F32) -> 1128.13
D43: 2.3 - Benefícios Mensais e Diários | F43: =SUM(F35:F38) -> 570.93
D45: TOTAL DOS ENCARGOS E BENEFÍCIOS | F45: =SUM(F41:F43) -> 1782.73
B47: MÓDULO 3 - PREVISÃO PARA RESCISÃO | E47: Percentuais | F47: Valor
C48: A | D48: Aviso Prévio Indenizado (Art. 7º, inciso XXI, da CF/1988 e arts. 477, 487, §1º, e 491 da CLT) | E48: ='Encargos Sociais'!E35 -> 0.008333333333 | F48: =ROUND(E48*$F$16,2) -> 23.01
C49: B | D49: Incidência do FGTS sobre o Aviso Prévio Indenizado (Súmula 305 TST) | E49: ='Encargos Sociais'!E36 -> 0.0006666666667 | F49: 1.84 | H49: * Nota 1 - Adotou-se os parâmetros do estudo do STF (http://www.stf.jus.br/arquivo/cms/sobrestfestudosci/anexo/encargos_sociais_03102007.pdf), onde 5% do pessoal é demitido pelo empregador no decurso do contrato (para estes, considerou-se o aviso prévio indenizado). Desprezou-se as demissões por justa causa e os pedidos de demissão.
C50: C | D50: Multa do FGTS e Contribuição Social sobre o Aviso Prévio Indenizado (Art. 18, §1º, da Lei 8.036/1990 e art. 1º da LC nº 110/2001) | E50: ='Encargos Sociais'!E37 -> 0.001274074074 | F50: 3.52 | H50: * Nota 2 - No cálculo do percentual, considerou-se 36 dias, correspondendo à metade da duração média dos contratos (2 anos)
C51: D | D51: Aviso Prévio Trabalhado (Art. 488, parágrafo único, CLT) | E51: ='Encargos Sociais'!E38 -> 0.01203703704 | F51: 33.24 | H51: * Nota 3 - Incide sobre a Remuneração + 13º salário (1/12) + Férias (1/12) + Adicional de Férias (1/36) x 50% multa (40% para o empregado e 10% de contribuição social) x 8% FGTS
C52: E | D52: Incidência de GPS, FGTS e outras contribuições sobre o Aviso Prévio Trabalhado | E52: ='Encargos Sociais'!E39 -> 0.004309259259 | F52: 11.9 | H52: * Nota 4 - Os 95% restantes do cálculo, a um prazo médio de contrato de 4 anos. Assim, calcula-se 7 dias para o 1º ano de contrato e mais 3 dias para os 3 anos seguintes.
C53: F | D53: Multa do FGTS e Contribuição Social sobre o Aviso Prévio Trabalhado | E53: ='Encargos Sociais'!E40 -> 0.03050515556 | F53: 84.23
D55: TOTAL DE PREVISÃO PARA RESCISÃO | F55: =SUM(F48:F53) -> 157.74
B57: MÓDULO 4 - CUSTO DE REPOSIÇÃO DO PROFISSIONAL AUSENTE | E57: Percentuais | F57: Valor
B58: Submódulo 4.1 - Ausências Legais
C59: A | D59: Férias (Arts. 129 e 130, inc. I, da CLT) | E59: ='Encargos Sociais'!E24 -> 0.09090909091 | F59: =ROUND(E59*$F$16,2) -> 251.02 | H59: * Nota 1 - As alíneas “A” a “F” referem-se somente ao custo que será pago ao repositor pelos dias trabalhados quando da necessidade de substituir a mão de obra alocada na prestação do serviço.
C60: B | D60: Ausências Legais (Arts. 131 e 473 da CLT) | E60: ='Encargos Sociais'!E25 -> 0.007936507937 | F60: 21.91 | H60: * Nota 2 - Adotou-se a estimativa do SINAPI de 2 dias por ano.
C61: C | D61: Licença-Paternidade (Art. 7º, XIX, e art. 10, §1º, do ADCT, CF/1988 e Art. 1º, II, da Lei 11.770/2008) | E61: ='Encargos Sociais'!E26 -> 0.0008277777778 | F61: 2.29 | H61: * Nota 3 - Utilizada a proporção de 50% para homens, 5 dias de afastamento, e a probabilidade de um trabalhador requerer a Licença Paternidade em 5,22%, conforme SINAPI (citando dados da PNAD 2015)
C62: D | D62: Ausência por Acidente de Trabalho (Art. 131, III, da CLT) | E62: ='Encargos Sociais'!E27 -> 0.0008541666667 | F62: 2.36 | H62: * Nota 4 - Utilzada a estatística de 1,96% dos contribuintes beneficiados com a emissão do auxílio, conforme Anuário Estatístico da Previdência Social. Afastamento de 15 dias a cargo da empresa.
C63: E | D63: Afastamento Maternidade (Art. 71 da Lei nº 8.213/1991) | E63: ='Encargos Sociais'!E28 -> 0.003292592593 | F63: 9.09 | H63: * Nota 5 - Utilizada a proporção de 50% para mulheres, 180 dias de afastamento, e a probabilidade de uma trabalhadora requerer a Licença Maternidade em 4,91%, conforme SINAPI (citando dados do IBGE 2016)
C64: F | D64: Auxílio Enfermidade - Doença (Art. 59 da Lei nº 8.213/1991) | E64: ='Encargos Sociais'!E29 -> 0.007122222222 | F64: 19.67 | H64: * Nota 6 - Utilizada a estatística de 3,37% dos contribuintes beneficiados com o auxílio, conforme Anuário Estatístico da Previdência Social de 2015 (acrescidos de 2 dias ao ano, para os quais o trabalhador nem requer o benefício da Previdência - conforme SINAPI)
B66: Submódulo 4.2 - Intrajornada
C67: A | D67: Intervalo para repouso ou alimentação | E67: ='Encargos Sociais'!E32 -> 0 | F67: =ROUND(E67*$F$16,2) -> 0
D69: QUADRO-RESUMO DO MÓDULO 4 | F69: Valor
D70: 4.1 - Ausências Legais | E70: =SUM(E59:E64) -> 0.1109423581 | F70: =ROUND(E70*$F$16,2) -> 306.33
D71: 4.2 - Intrajornada | E71: =E67 -> 0 | F71: =ROUND(E71*$F$16,2) -> 0
D73: TOTAL DE PREVISÃO PARA RESCISÃO E INTERVALO INTRAJORNADA | F73: =SUM(F70:F71) -> 306.33
B75: MÓDULO 5 - INSUMOS DIVERSOS | F75: Valor
C76: A | D76: Uniformes - aquisição | F76: =ROUND(HLOOKUP($B$5,Uniformes!K3:DZ33,3)/12,2) -> 32.38
C77: B | D77: Materiais de consumo relacionados ao posto - aquisição | F77: =ROUND(HLOOKUP(B5,'Mat Cons'!I11:DX13,3)/12,2) -> 0
C78: C | D78: Materiais permanentes relacionados ao posto - remuneração da sua depreciação / manutenção | F78: =HLOOKUP(B5,'Mat Perm'!Q11:EF13,3) -> 0
C79: D | D79: Equipamentos relacionados ao posto - remuneração da sua depreciação / manutenção | F79: =HLOOKUP(B5,'Equip Rel'!Q11:EF13,3) -> 0
C80: E | D80: Equipamentos de Proteção Individual - EPI - aquisição | F80: =ROUND(HLOOKUP(B5,EPI!I3:DX67,3)/12,2) -> 117.82
D82: TOTAL DE INSUMOS DIVERSOS | F82: =SUM(F76:F81) -> 150.2 | H82: * Nota - Valores mensais por empregado
B84: MÓDULO 6 - CUSTOS INDIRETOS, TRIBUTOS E LUCRO - BDI | E84: Percentuais | F84: Valor
C85: A | D85: Custos Indiretos | E85: =BDI!E6 -> 0.0444
C86: A.1 | D86: Administração Central | E86: =BDI!E7 -> 0.039
C87: A.2 | D87: Seguros, Garantias e Riscos | E87: =BDI!E8 -> 0.0054
C88: B | D88: Lucro | E88: =BDI!E10 -> 0.06
C89: C | D89: Tributos | E89: =SUM(E90:E91) -> 0.124
C90: C.1 | D90: Tributos Federais (COFINS, PIS e CPRB) | E90: =BDI!E18 -> 0.074
C91: C.2 | D91: Tributos Distritais (ISS) | E91: =BDI!E23 -> 0.05 | H91: * Nota - Utilizou-se o indicado pelo Sindicato da Arquitetura e da Engenharia (Sinaenco, 2008, p. 22), que adota um percentual redutor de 20% no cálculo dos custos tributários relativos às contribuições PIS e COFINS
C92: D | D92: Despesas Financeiras | E92: =BDI!E13 -> 0.004466921098
D94: TOTAL DE BDI | E94: =BDI!E26 -> 0.2694 | F94: =E94*E102 -> 1389.618543
D96: QUADRO-RESUMO DO CUSTO MENSAL POR EMPREGADO - SEM O 13º | E96: Valor
D97: Módulo 1 - Composição da Remuneração | E97: =F16 -> 2761.198006
D98: Módulo 2 - Encargos e Benefícios Anuais, Mensais e Diários | E98: =F45 -> 1782.73
D99: Módulo 3 - Provisão para Rescisão | E99: =F55 -> 157.74
D100: Módulo 4 - Custo de Reposição do Profissional Ausente | E100: =F73 -> 306.33
D101: Módulo 5 - Insumos Diversos | E101: =F82 -> 150.2
D102: SUBTOTAL (A+B+C+D+E) | E102: =SUM(E97:E101) -> 5158.198006
D103: Módulo 6 - Custos Indiretos, Tributos e Lucro | E103: =F94 -> 1389.618543
D105: TOTAL DO POSTO | E105: =SUM(E102:E103) -> 6547.816548
B107: MÓDULO 7 - DESTAQUE DO MÓDULO 2 - 13º SALÁRIO | E107: Percentuais | F107: Valor
C108: A | D108: 13º Salário | E108: ='Encargos Sociais'!E31 -> 0.08333333333 | F108: =ROUND(E108*F$16,2) -> 230.1
C109: B | D109: Encargos Sociais sobre o 13º Salário - Taxa calculada no SUBMÓDULO 2.2 | E109: =SUM($E$24:$E$32) -> 0.358 | F109: =ROUND(E109*$F$108,2) -> 82.38 | H109: * Nota 1 - Provisiona-se, mensalmente, o proporcional a 1/12 dos valores referentes a gratificação natalina e adicional de férias.
C110: C | D110: Reincidência de férias sobre o 13º Salário | E110: =E59 -> 0.09090909091 | F110: =ROUND(E110*($F$108+$F$109),2) -> 28.41
C111: D | D111: BDI sobre o 13º Salário - Taxa calculada no MÓDULO 6 | E111: =E94 -> 0.2694 | F111: =ROUND(E111*($F$108+$F$109),2) -> 84.18
D113: TOTAL DO DESTAQUE DO 13º SALÁRIO | F113: =SUM(F108:F111) -> 425.07
D115: QUADRO-RESUMO DO CUSTO MENSAL POR EMPREGADO | E115: Valor
D116: Custo total - sem o 13º Salário | E116: =E105 -> 6547.816548
D117: Destaque do 13º Salário (valor mensal) | E117: =F113 -> 425.07
D119: TOTAL DO POSTO | E119: =E116+E117 -> 6972.886548

Sheet 7 (hidden)
C1: CÂMARA DOS DEPUTADOS
C2: DEPARTAMENTO TÉCNICO
C3: Coordenação de Planejamento e Gestão
C5: Data: | D5: ='Dados Gerais'!#REF! -> 
C6: Processo: | D6: ='Dados Gerais'!#REF! -> 
C7: Objeto: | D7: ='Dados Gerais'!#REF! -> 
B9: PLANILHA DE ESTIMATIVA DE CUSTOS
B10: Padrão IN 05/2017 e IN 07/2018 - MPDG
B12: 7 | D12: =HLOOKUP($B$12,'Dados Gerais'!$D$5:$BK$20,6) -> 0 | E12: QUANTIDADE | F12: =HLOOKUP($B$12,'Dados Gerais'!$D$5:$BK$20,10) -> 0
B13: CCT | D13: =HLOOKUP($B$12,'Dados Gerais'!$D$5:$BK$20,15) -> 0 | E13: DATA-BASE | F13: =HLOOKUP($B$12,'Dados Gerais'!$D$5:$BK$20,16) -> 00:00:00
B15: MÓDULO 1 - COMPOSIÇÃO DA REMUNERAÇÃO | F15: Valor
C16: A | D16: Salário-Base | F16: =HLOOKUP($B$12,'Dados Gerais'!$D$5:$BK$20,8) -> 0
C17: B | D17: Adicional de Periculosidade | F17: =HLOOKUP($B$12,'Dados Gerais'!$D$5:$BK$37,25) -> 0
C18: C | D18: Adicional de Insalubridade | F18: =HLOOKUP($B$12,'Dados Gerais'!$D$5:$BK$37,31) -> 0
C19: D | D19: Adicional Noturno | F19: =HLOOKUP($B$12,'Dados Gerais'!$D$5:$BK$50,46) ->  | H19: * Nota 1 - O Módulo 1 refere-se ao valor mensal devido ao empregado pela prestação do serviço no período de 12 meses.
C20: E | D20: Adicional de Hora Extra | F20: =HLOOKUP($B$12,'Dados Gerais'!$D$5:$BK$67,63) ->  | H20: * Nota 2 - O adicional de hora extra no feriado trabalhado foi suprimido pela Lei 13.467/17
C21: F | D21: Outros (especificar) | F21: =HLOOKUP($B$12,'Dados Gerais'!$D$5:$BK$59,33) -> 0 | H21: * Nota 3 - ART. 7º, § 2º, DA LEI Nº 605/49.Sendo mensalista o obreiro, o adicional noturno pago de forma fixa já é considerado integrado para os efeitos do pagamento do repouso semanal remunerado, nos termos do art. 7º, § 2º, da Lei nº 605/49.
D23: TOTAL DA REMUNERAÇÃO | F23: =SUM(F16:F21) -> 
B25: MÓDULO 2 - ENCARGOS E BENEFÍCIOS ANUAIS, MENSAIS E DIÁRIOS | E25: Percentuais | F25: Valor
B26: Submódulo 2.1 - 13º Salário, Férias e Adicional de Férias
C27: A | D27: 13º Salário - Calculado no Módulo 7 - Destacado | E27: 0 | F27: =ROUND(E27*F$23,2) -> 
C28: B | D28: Férias e Adicional de Férias | E28: ='Encargos Sociais'!E24+'Encargos Sociais'!E30 -> 0.1212121212 | F28: =ROUND(E28*F$23,2) ->  | H28: * Nota 1 - Provisiona-se, mensalmente, o proporcional a 1/12 dos valores referentes a gratificação natalina, férias e adicional de férias.
H29: * Nota 2 - O adicional de férias contido no Submódulo 2.1 corresponde a 1/3 da remuneração que, por sua vez, é dividida por 12 contome Nota 1.
B30: Submódulo 2.2 - Encargos Previdenciários (GPS), Fundo de Garantia por Tempo de Serviço (FGTS) e Outras Contribuições
C31: A | D31: INSS (art. 22, inciso I, Lei nº 8.212/91) | E31: ='Encargos Sociais'!E13 -> 0.2 | F31: =ROUND(E31*($F$23+$F$48+$F$80),2) -> 
C32: B | D32: Salário Educação (art. 3º, inciso I, Decreto nº 87.043/82) | E32: ='Encargos Sociais'!E14 -> 0.025 | F32: =ROUND(E32*($F$23+$F$48+$F$80),2) -> 
C33: C | D33: SAT/RAT (art. 22, II, Lei 8.212/91 e Anexo V, Decreto 6.042/07) - Enquadramento 8211-3/00 | E33: ='Encargos Sociais'!E15 -> 0.01
C34: D | D34: SESC ou SESI (art. 30, Lei nº 8.036/90 e art. 1º, Lei 8.154/90) | E34: ='Encargos Sociais'!E16 -> 0.015
C35: E | D35: SENAI ou SENAC (Decreto nº 2.318/86) | E35: ='Encargos Sociais'!E17 -> 0.01
C36: F | D36: SEBRAE (§ 3º, art. 8º, Lei 8.029/90, alterada pela Lei nº 8.154/90) | E36: ='Encargos Sociais'!E18 -> 0.006
C37: G | D37: INCRA (art. 1º, I, Decreto Lei 1.146/70 e Lei 7.787, de 30/06/89) | E37: ='Encargos Sociais'!E19 -> 0.002 | H37: * Nota 1 - Os percentuais dos encargos previdenciários, do FGTS e demais contribuições são estabelecidos por legislação vigente.
C38: H | D38: FGTS (Lei Complementar nº 110/01 e art. 30, Lei nº 8.036/90) | E38: ='Encargos Sociais'!E20 -> 0.08 | H38: * Nota 2 - O SAT, a depender do grau de risco do serviço, irá variar entre 1%, para risco leve, de 2%, para risco médio, e de 3% para risco grave.
C39: I | D39: SECONCI (Convenções Coletivas de Trabalho da construção) | E39: ='Encargos Sociais'!E21 -> 0.01 | H39: * Nota 3 - Os percentuais do Submódulo 2.2 incidem sobre o Módulo 1 e o Submódulo 2.1.
B41: Submódulo 2.3 - Benefícios Mensais e Diários
C42: A | D42: Auxílio Transporte | F42: =HLOOKUP($B$12,'Dados Gerais'!$D$5:$BK$93,82) -> 0
C43: B | D43: Auxílio Alimentação | F43: =HLOOKUP($B$12,'Dados Gerais'!$D$5:$BK$93,89) -> 
C44: C | D44: Assistência Médica e Familiar | F44: =HLOOKUP($B$12,'Dados Gerais'!$D$5:$BK$101,97) -> 0
C45: D | D45: Outros (Seguro de vida e auxílio funeral e auxílio odontológico) | F45: =HLOOKUP($B$12,'Dados Gerais'!$D$5:$BK$118,114) -> 0 | H45: * Nota 1 - O valor informado deverá ser o custo real do benefício (descontado o valor eventualmente pago pelo empregado).
H46: * Nota 2 - Observar a previsão dos benefícios contidos em Acordos, Convenções e Dissídios Coletivos de Trabalho e o disposto no art. 6º da IN 5/2017
D47: QUADRO-RESUMO DO MÓDULO 2
D48: 2.1 - 13º Salário, Férias e Adicional de Férias - 13º Destacado - Calculado no Módulo 7 | E48: =SUM(E27:E28) -> 0.1212121212 | F48: =F27+F28 -> 
D49: 2.2 - Encargos Previdenciários (GPS), Fundo de Garantia por Tempo de Serviço (FGTS) e Contribuições | E49: =SUM(E31:E39) -> 0.358 | F49: =SUM(F31:F39) -> 
D50: 2.3 - Benefícios Mensais e Diários | F50: =SUM(F42:F45) -> 
D52: TOTAL DOS ENCARGOS E BENEFÍCIOS | F52: =SUM(F48:F50) -> 
B54: MÓDULO 3 - PREVISÃO PARA RESCISÃO | E54: Percentuais | F54: Valor
C55: A | D55: Aviso Prévio Indenizado (Art. 7º, inciso XXI, da CF/1988 e arts. 477, 487, §1º, e 491 da CLT) | E55: ='Encargos Sociais'!E35 -> 0.008333333333 | F55: =ROUND(E55*$F$23,2) -> 
C56: B | D56: Incidência do FGTS sobre o Aviso Prévio Indenizado (Súmula 305 TST) | E56: ='Encargos Sociais'!E36 -> 0.0006666666667 | H56: * Nota 1 - Adotou-se os parâmetros do estudo do STF (http://www.stf.jus.br/arquivo/cms/sobrestfestudosci/anexo/encargos_sociais_03102007.pdf), onde 5% do pessoal é demitido pelo empregador no decurso do contrato (para estes, considerou-se o aviso prévio indenizado). Desprezou-se as demissões por justa causa e os pedidos de demissão.
C57: C | D57: Multa do FGTS e Contribuição Social sobre o Aviso Prévio Indenizado (Art. 18, §1º, da Lei 8.036/1990 e art. 1º da LC nº 110/2001) | E57: ='Encargos Sociais'!E37 -> 0.001274074074 | H57: * Nota 2 - No cálculo do percentual, considerou-se 36 dias, correspondendo à metade da duração média dos contratos (2 anos)
C58: D | D58: Aviso Prévio Trabalhado (Art. 488, parágrafo único, CLT) | E58: ='Encargos Sociais'!E38 -> 0.01203703704 | H58: * Nota 3 - Incide sobre a Remuneração + 13º salário (1/12) + Férias (1/12) + Adicional de Férias (1/36) x 50% multa (40% para o empregado e 10% de contribuição social) x 8% FGTS
C59: E | D59: Incidência de GPS, FGTS e outras contribuições sobre o Aviso Prévio Trabalhado | E59: ='Encargos Sociais'!E39 -> 0.004309259259 | H59: * Nota 4 - Os 95% restantes do cálculo, a um prazo médio de contrato de 4 anos. Assim, calcula-se 7 dias para o 1º ano de contrato e mais 3 dias para os 3 anos seguintes.
C60: F | D60: Multa do FGTS e Contribuição Social sobre o Aviso Prévio Trabalhado | E60: ='Encargos Sociais'!E40 -> 0.03050515556
D62: TOTAL DE PREVISÃO PARA RESCISÃO | F62: =SUM(F55:F60) -> 
B64: MÓDULO 4 - CUSTO DE REPOSIÇÃO DO PROFISSIONAL AUSENTE | E64: Percentuais | F64: Valor
B65: Submódulo 4.1 - Ausências Legais
C66: A | D66: Férias (Arts. 129 e 130, inc. I, da CLT) - Calculado no Submódulo 2.1 | E66: 0 | F66: =ROUND(E66*$F$23,2) ->  | H66: * Nota 1 - As alíneas “A” a “F” referem-se somente ao custo que será pago ao repositor pelos dias trabalhados quando da necessidade de substituir a mão de obra alocada na prestação do serviço.
C67: B | D67: Ausências Legais (Arts. 131 e 473 da CLT) | E67: ='Encargos Sociais'!E25 -> 0.007936507937 | H67: * Nota 2 - Adotou-se a estimativa do SINAPI de 2 dias por ano.
C68: C | D68: Licença-Paternidade (Art. 7º, XIX, e art. 10, §1º, do ADCT, CF/1988 e Art. 1º, II, da Lei 11.770/2008) | E68: ='Encargos Sociais'!E26 -> 0.0008277777778 | H68: * Nota 3 - Utilizada a proporção de 50% para homens, 5 dias de afastamento, e a probabilidade de um trabalhador requerer a Licença Paternidade em 5,22%, conforme SINAPI (citando dados da PNAD 2015)
C69: D | D69: Ausência por Acidente de Trabalho (Art. 131, III, da CLT) | E69: ='Encargos Sociais'!E27 -> 0.0008541666667 | H69: * Nota 4 - Utilzada a estatística de 1,96% dos contribuintes beneficiados com a emissão do auxílio, conforme Anuário Estatístico da Previdência Social. Afastamento de 15 dias a cargo da empresa.
C70: E | D70: Afastamento Maternidade (Art. 71 da Lei nº 8.213/1991) | E70: ='Encargos Sociais'!E28 -> 0.003292592593 | H70: * Nota 5 - Utilizada a proporção de 50% para mulheres, 180 dias de afastamento, e a probabilidade de uma trabalhadora requerer a Licença Maternidade em 4,91%, conforme SINAPI (citando dados do IBGE 2016)
C71: F | D71: Auxílio Enfermidade - Doença (Art. 59 da Lei nº 8.213/1991) | E71: ='Encargos Sociais'!E29 -> 0.007122222222 | H71: * Nota 6 - Utilizada a estatística de 3,37% dos contribuintes beneficiados com o auxílio, conforme Anuário Estatístico da Previdência Social de 2015 (acrescidos de 2 dias ao ano, para os quais o trabalhador nem requer o benefício da Previdência - conforme SINAPI)
B73: Submódulo 4.2 - Intrajornada
C74: A | D74: Intervalo para repouso ou alimentação | E74: ='Encargos Sociais'!E32 -> 0 | F74: =ROUND(E74*$F$23,2) -> 
D76: QUADRO-RESUMO DO MÓDULO 4 | F76: Valor
D77: 4.1 - Ausências Legais | E77: =SUM(E66:E71) -> 0.0200332672 | F77: =ROUND(E77*$F$23,2) -> 
D78: 4.2 - Intrajornada | E78: =E74 -> 0 | F78: =ROUND(E78*$F$23,2) -> 
D80: TOTAL DE PREVISÃO PARA RESCISÃO E INTERVALO INTRAJORNADA | F80: =SUM(F77:F78) -> 
B82: MÓDULO 5 - INSUMOS DIVERSOS | F82: Valor
C83: A | D83: Uniformes - aquisição | F83: =ROUND(HLOOKUP($B$12,Uniformes!K3:DZ33,3)/12,2) -> 0
C84: B | D84: Materiais de consumo relacionados ao posto - aquisição | F84: =ROUND(HLOOKUP(B12,'Mat Cons'!I11:DX13,3)/12,2) -> 0
C85: C | D85: Materiais permanentes relacionados ao posto - remuneração da sua depreciação / manutenção | F85: =HLOOKUP(B12,'Mat Perm'!Q11:EF13,3) -> 0
C86: D | D86: Equipamentos relacionados ao posto - remuneração da sua depreciação / manutenção | F86: =HLOOKUP(B12,'Equip Rel'!Q11:EF13,3) -> 0
C87: E | D87: Equipamentos de Proteção Individual - EPI - aquisição | F87: =ROUND(HLOOKUP(B12,EPI!I3:DX67,3)/12,2) -> 0
D89: TOTAL DE INSUMOS DIVERSOS | F89: =SUM(F83:F88) -> 0 | H89: * Nota - Valores mensais por empregado
B91: MÓDULO 6 - CUSTOS INDIRETOS, TRIBUTOS E LUCRO - BDI | E91: Percentuais | F91: Valor
C92: A | D92: Custos Indiretos | E92: =BDI!E6 -> 0.0444
C93: A.1 | D93: Administração Central | E93: =BDI!E7 -> 0.039
C94: A.2 | D94: Seguros, Garantias e Riscos | E94: =BDI!E8 -> 0.0054
C95: B | D95: Lucro | E95: =BDI!E10 -> 0.06
C96: C | D96: Tributos | E96: =SUM(E97:E98) -> 0.124
C97: C.1 | D97: Tributos Federais (COFINS, PIS e CPRB) | E97: =BDI!E18 -> 0.074
C98: C.2 | D98: Tributos Distritais (ISS) | E98: =BDI!E23 -> 0.05 | H98: * Nota - Utilizou-se o indicado pelo Sindicato da Arquitetura e da Engenharia (Sinaenco, 2008, p. 22), que adota um percentual redutor de 20% no cálculo dos custos tributários relativos às contribuições PIS e COFINS
C99: D | D99: Despesas Financeiras | E99: =BDI!E13 -> 0.004466921098
D101: TOTAL DE BDI | E101: =BDI!E26 -> 0.2694 | F101: =E101*E109 -> 
D103: QUADRO-RESUMO DO CUSTO MENSAL POR EMPREGADO - SEM O 13º | E103: Valor
D104: Módulo 1 - Composição da Remuneração | E104: =F23 -> 
D105: Módulo 2 - Encargos e Benefícios Anuais, Mensais e Diários | E105: =F52 -> 
D106: Módulo 3 - Provisão para Rescisão | E106: =F62 -> 
D107: Módulo 4 - Custo de Reposição do Profissional Ausente | E107: =F80 -> 
D108: Módulo 5 - Insumos Diversos | E108: =F89 -> 0
D109: SUBTOTAL (A+B+C+D+E) | E109: =SUM(E104:E108) -> 
D110: Módulo 6 - Custos Indiretos, Tributos e Lucro | E110: =F101 -> 
D112: TOTAL DO POSTO | E112: =SUM(E109:E110) -> 
B114: MÓDULO 7 - DESTAQUE DO MÓDULO 2 - 13º SALÁRIO | E114: Percentuais | F114: Valor
C115: A | D115: 13º Salário | E115: ='Encargos Sociais'!E31 -> 0.08333333333 | F115: =ROUND(E115*F$23,2) -> 
C116: B | D116: Encargos Sociais sobre o 13º Salário - Taxa calculada no SUBMÓDULO 2.2 | E116: =SUM($E$31:$E$39) -> 0.358 | F116: =ROUND(E116*$F$115,2) ->  | H116: * Nota 1 - Provisiona-se, mensalmente, o proporcional a 1/12 dos valores referentes a gratificação natalina e adicional de férias.
C117: C | D117: BDI sobre o 13º Salário - Taxa calculada no MÓDULO 6 | E117: =E101 -> 0.2694 | F117: =ROUND(E117*($F$115+$F$116),2) -> 
D119: TOTAL DO DESTAQUE DO 13º SALÁRIO | F119: =SUM(F115:F117) -> 
D121: QUADRO-RESUMO DO CUSTO MENSAL POR EMPREGADO | E121: Valor
D122: Custo total - sem o 13º Salário | E122: =E112 -> 
D123: Destaque do 13º Salário (valor mensal) | E123: =F119 -> 
D125: TOTAL DO POSTO | E125: =E122+E123 -> 

Sheet 8 (hidden)
C1: CÂMARA DOS DEPUTADOS
C2: DEPARTAMENTO TÉCNICO
C3: Coordenação de Planejamento e Gestão
C5: Data: | D5: ='Dados Gerais'!#REF! -> 
C6: Processo: | D6: ='Dados Gerais'!#REF! -> 
C7: Objeto: | D7: ='Dados Gerais'!#REF! -> 
B9: PLANILHA DE ESTIMATIVA DE CUSTOS
B10: Padrão IN 05/2017 e IN 07/2018 - MPDG
B12: 8 | D12: =HLOOKUP($B$12,'Dados Gerais'!$D$5:$BK$20,6) -> 0 | E12: QUANTIDADE | F12: =HLOOKUP($B$12,'Dados Gerais'!$D$5:$BK$20,10) -> 0
B13: CCT | D13: =HLOOKUP($B$12,'Dados Gerais'!$D$5:$BK$20,15) -> 0 | E13: DATA-BASE | F13: =HLOOKUP($B$12,'Dados Gerais'!$D$5:$BK$20,16) -> 00:00:00
B15: MÓDULO 1 - COMPOSIÇÃO DA REMUNERAÇÃO | F15: Valor
C16: A | D16: Salário-Base | F16: =HLOOKUP($B$12,'Dados Gerais'!$D$5:$BK$20,8) -> 0
C17: B | D17: Adicional de Periculosidade | F17: =HLOOKUP($B$12,'Dados Gerais'!$D$5:$BK$37,25) -> 0
C18: C | D18: Adicional de Insalubridade | F18: =HLOOKUP($B$12,'Dados Gerais'!$D$5:$BK$37,31) -> 0
C19: D | D19: Adicional Noturno | F19: =HLOOKUP($B$12,'Dados Gerais'!$D$5:$BK$50,46) ->  | H19: * Nota 1 - O Módulo 1 refere-se ao valor mensal devido ao empregado pela prestação do serviço no período de 12 meses.
C20: E | D20: Adicional de Hora Extra | F20: =HLOOKUP($B$12,'Dados Gerais'!$D$5:$BK$67,63) ->  | H20: * Nota 2 - O adicional de hora extra no feriado trabalhado foi suprimido pela Lei 13.467/17
C21: F | D21: Outros (especificar) | F21: =HLOOKUP($B$12,'Dados Gerais'!$D$5:$BK$59,33) -> 0 | H21: * Nota 3 - ART. 7º, § 2º, DA LEI Nº 605/49.Sendo mensalista o obreiro, o adicional noturno pago de forma fixa já é considerado integrado para os efeitos do pagamento do repouso semanal remunerado, nos termos do art. 7º, § 2º, da Lei nº 605/49.
D23: TOTAL DA REMUNERAÇÃO | F23: =SUM(F16:F21) -> 
B25: MÓDULO 2 - ENCARGOS E BENEFÍCIOS ANUAIS, MENSAIS E DIÁRIOS | E25: Percentuais | F25: Valor
B26: Submódulo 2.1 - 13º Salário, Férias e Adicional de Férias
C27: A | D27: 13º Salário - Calculado no Módulo 7 - Destacado | E27: 0 | F27: =ROUND(E27*F$23,2) -> 
C28: B | D28: Férias e Adicional de Férias | E28: ='Encargos Sociais'!E24+'Encargos Sociais'!E30 -> 0.1212121212 | F28: =ROUND(E28*F$23,2) ->  | H28: * Nota 1 - Provisiona-se, mensalmente, o proporcional a 1/12 dos valores referentes a gratificação natalina, férias e adicional de férias.
H29: * Nota 2 - O adicional de férias contido no Submódulo 2.1 corresponde a 1/3 da remuneração que, por sua vez, é dividida por 12 contome Nota 1.
B30: Submódulo 2.2 - Encargos Previdenciários (GPS), Fundo de Garantia por Tempo de Serviço (FGTS) e Outras Contribuições
C31: A | D31: INSS (art. 22, inciso I, Lei nº 8.212/91) | E31: ='Encargos Sociais'!E13 -> 0.2 | F31: =ROUND(E31*($F$23+$F$48+$F$80),2) -> 
C32: B | D32: Salário Educação (art. 3º, inciso I, Decreto nº 87.043/82) | E32: ='Encargos Sociais'!E14 -> 0.025 | F32: =ROUND(E32*($F$23+$F$48+$F$80),2) -> 
C33: C | D33: SAT/RAT (art. 22, II, Lei 8.212/91 e Anexo V, Decreto 6.042/07) - Enquadramento 8211-3/00 | E33: ='Encargos Sociais'!E15 -> 0.01
C34: D | D34: SESC ou SESI (art. 30, Lei nº 8.036/90 e art. 1º, Lei 8.154/90) | E34: ='Encargos Sociais'!E16 -> 0.015
C35: E | D35: SENAI ou SENAC (Decreto nº 2.318/86) | E35: ='Encargos Sociais'!E17 -> 0.01
C36: F | D36: SEBRAE (§ 3º, art. 8º, Lei 8.029/90, alterada pela Lei nº 8.154/90) | E36: ='Encargos Sociais'!E18 -> 0.006
C37: G | D37: INCRA (art. 1º, I, Decreto Lei 1.146/70 e Lei 7.787, de 30/06/89) | E37: ='Encargos Sociais'!E19 -> 0.002 | H37: * Nota 1 - Os percentuais dos encargos previdenciários, do FGTS e demais contribuições são estabelecidos por legislação vigente.
C38: H | D38: FGTS (Lei Complementar nº 110/01 e art. 30, Lei nº 8.036/90) | E38: ='Encargos Sociais'!E20 -> 0.08 | H38: * Nota 2 - O SAT, a depender do grau de risco do serviço, irá variar entre 1%, para risco leve, de 2%, para risco médio, e de 3% para risco grave.
C39: I | D39: SECONCI (Convenções Coletivas de Trabalho da construção) | E39: ='Encargos Sociais'!E21 -> 0.01 | H39: * Nota 3 - Os percentuais do Submódulo 2.2 incidem sobre o Módulo 1 e o Submódulo 2.1.
B41: Submódulo 2.3 - Benefícios Mensais e Diários
C42: A | D42: Auxílio Transporte | F42: =HLOOKUP($B$12,'Dados Gerais'!$D$5:$BK$93,82) -> 0
C43: B | D43: Auxílio Alimentação | F43: =HLOOKUP($B$12,'Dados Gerais'!$D$5:$BK$93,89) -> 
C44: C | D44: Assistência Médica e Familiar | F44: =HLOOKUP($B$12,'Dados Gerais'!$D$5:$BK$101,97) -> 223
C45: D | D45: Outros (Seguro de vida e auxílio funeral e auxílio odontológico) | F45: =HLOOKUP($B$12,'Dados Gerais'!$D$5:$BK$118,114) -> 0 | H45: * Nota 1 - O valor informado deverá ser o custo real do benefício (descontado o valor eventualmente pago pelo empregado).
H46: * Nota 2 - Observar a previsão dos benefícios contidos em Acordos, Convenções e Dissídios Coletivos de Trabalho e o disposto no art. 6º da IN 5/2017
D47: QUADRO-RESUMO DO MÓDULO 2
D48: 2.1 - 13º Salário, Férias e Adicional de Férias - 13º Destacado - Calculado no Módulo 7 | E48: =SUM(E27:E28) -> 0.1212121212 | F48: =F27+F28 -> 
D49: 2.2 - Encargos Previdenciários (GPS), Fundo de Garantia por Tempo de Serviço (FGTS) e Contribuições | E49: =SUM(E31:E39) -> 0.358 | F49: =SUM(F31:F39) -> 
D50: 2.3 - Benefícios Mensais e Diários | F50: =SUM(F42:F45) -> 
D52: TOTAL DOS ENCARGOS E BENEFÍCIOS | F52: =SUM(F48:F50) -> 
B54: MÓDULO 3 - PREVISÃO PARA RESCISÃO | E54: Percentuais | F54: Valor
C55: A | D55: Aviso Prévio Indenizado (Art. 7º, inciso XXI, da CF/1988 e arts. 477, 487, §1º, e 491 da CLT) | E55: ='Encargos Sociais'!E35 -> 0.008333333333 | F55: =ROUND(E55*$F$23,2) -> 
C56: B | D56: Incidência do FGTS sobre o Aviso Prévio Indenizado (Súmula 305 TST) | E56: ='Encargos Sociais'!E36 -> 0.0006666666667 | H56: * Nota 1 - Adotou-se os parâmetros do estudo do STF (http://www.stf.jus.br/arquivo/cms/sobrestfestudosci/anexo/encargos_sociais_03102007.pdf), onde 5% do pessoal é demitido pelo empregador no decurso do contrato (para estes, considerou-se o aviso prévio indenizado). Desprezou-se as demissões por justa causa e os pedidos de demissão.
C57: C | D57: Multa do FGTS e Contribuição Social sobre o Aviso Prévio Indenizado (Art. 18, §1º, da Lei 8.036/1990 e art. 1º da LC nº 110/2001) | E57: ='Encargos Sociais'!E37 -> 0.001274074074 | H57: * Nota 2 - No cálculo do percentual, considerou-se 36 dias, correspondendo à metade da duração média dos contratos (2 anos)
C58: D | D58: Aviso Prévio Trabalhado (Art. 488, parágrafo único, CLT) | E58: ='Encargos Sociais'!E38 -> 0.01203703704 | H58: * Nota 3 - Incide sobre a Remuneração + 13º salário (1/12) + Férias (1/12) + Adicional de Férias (1/36) x 50% multa (40% para o empregado e 10% de contribuição social) x 8% FGTS
C59: E | D59: Incidência de GPS, FGTS e outras contribuições sobre o Aviso Prévio Trabalhado | E59: ='Encargos Sociais'!E39 -> 0.004309259259 | H59: * Nota 4 - Os 95% restantes do cálculo, a um prazo médio de contrato de 4 anos. Assim, calcula-se 7 dias para o 1º ano de contrato e mais 3 dias para os 3 anos seguintes.
C60: F | D60: Multa do FGTS e Contribuição Social sobre o Aviso Prévio Trabalhado | E60: ='Encargos Sociais'!E40 -> 0.03050515556
D62: TOTAL DE PREVISÃO PARA RESCISÃO | F62: =SUM(F55:F60) -> 
B64: MÓDULO 4 - CUSTO DE REPOSIÇÃO DO PROFISSIONAL AUSENTE | E64: Percentuais | F64: Valor
B65: Submódulo 4.1 - Ausências Legais
C66: A | D66: Férias (Arts. 129 e 130, inc. I, da CLT) - Calculado no Submódulo 2.1 | E66: 0 | F66: =ROUND(E66*$F$23,2) ->  | H66: * Nota 1 - As alíneas “A” a “F” referem-se somente ao custo que será pago ao repositor pelos dias trabalhados quando da necessidade de substituir a mão de obra alocada na prestação do serviço.
C67: B | D67: Ausências Legais (Arts. 131 e 473 da CLT) | E67: ='Encargos Sociais'!E25 -> 0.007936507937 | H67: * Nota 2 - Adotou-se a estimativa do SINAPI de 2 dias por ano.
C68: C | D68: Licença-Paternidade (Art. 7º, XIX, e art. 10, §1º, do ADCT, CF/1988 e Art. 1º, II, da Lei 11.770/2008) | E68: ='Encargos Sociais'!E26 -> 0.0008277777778 | H68: * Nota 3 - Utilizada a proporção de 50% para homens, 5 dias de afastamento, e a probabilidade de um trabalhador requerer a Licença Paternidade em 5,22%, conforme SINAPI (citando dados da PNAD 2015)
C69: D | D69: Ausência por Acidente de Trabalho (Art. 131, III, da CLT) | E69: ='Encargos Sociais'!E27 -> 0.0008541666667 | H69: * Nota 4 - Utilzada a estatística de 1,96% dos contribuintes beneficiados com a emissão do auxílio, conforme Anuário Estatístico da Previdência Social. Afastamento de 15 dias a cargo da empresa.
C70: E | D70: Afastamento Maternidade (Art. 71 da Lei nº 8.213/1991) | E70: ='Encargos Sociais'!E28 -> 0.003292592593 | H70: * Nota 5 - Utilizada a proporção de 50% para mulheres, 180 dias de afastamento, e a probabilidade de uma trabalhadora requerer a Licença Maternidade em 4,91%, conforme SINAPI (citando dados do IBGE 2016)
C71: F | D71: Auxílio Enfermidade - Doença (Art. 59 da Lei nº 8.213/1991) | E71: ='Encargos Sociais'!E29 -> 0.007122222222 | H71: * Nota 6 - Utilizada a estatística de 3,37% dos contribuintes beneficiados com o auxílio, conforme Anuário Estatístico da Previdência Social de 2015 (acrescidos de 2 dias ao ano, para os quais o trabalhador nem requer o benefício da Previdência - conforme SINAPI)
B73: Submódulo 4.2 - Intrajornada
C74: A | D74: Intervalo para repouso ou alimentação | E74: ='Encargos Sociais'!E32 -> 0 | F74: =ROUND(E74*$F$23,2) -> 
D76: QUADRO-RESUMO DO MÓDULO 4 | F76: Valor
D77: 4.1 - Ausências Legais | E77: =SUM(E66:E71) -> 0.0200332672 | F77: =ROUND(E77*$F$23,2) -> 
D78: 4.2 - Intrajornada | E78: =E74 -> 0 | F78: =ROUND(E78*$F$23,2) -> 
D80: TOTAL DE PREVISÃO PARA RESCISÃO E INTERVALO INTRAJORNADA | F80: =SUM(F77:F78) -> 
B82: MÓDULO 5 - INSUMOS DIVERSOS | F82: Valor
C83: A | D83: Uniformes - aquisição | F83: =ROUND(HLOOKUP($B$12,Uniformes!K3:DZ33,3)/12,2) -> 0
C84: B | D84: Materiais de consumo relacionados ao posto - aquisição | F84: =ROUND(HLOOKUP(B12,'Mat Cons'!I11:DX13,3)/12,2) -> 0
C85: C | D85: Materiais permanentes relacionados ao posto - remuneração da sua depreciação / manutenção | F85: =HLOOKUP(B12,'Mat Perm'!Q11:EF13,3) -> 0
C86: D | D86: Equipamentos relacionados ao posto - remuneração da sua depreciação / manutenção | F86: =HLOOKUP(B12,'Equip Rel'!Q11:EF13,3) -> 0
C87: E | D87: Equipamentos de Proteção Individual - EPI - aquisição | F87: =ROUND(HLOOKUP(B12,EPI!I3:DX67,3)/12,2) -> 0
D89: TOTAL DE INSUMOS DIVERSOS | F89: =SUM(F83:F88) -> 0 | H89: * Nota - Valores mensais por empregado
B91: MÓDULO 6 - CUSTOS INDIRETOS, TRIBUTOS E LUCRO - BDI | E91: Percentuais | F91: Valor
C92: A | D92: Custos Indiretos | E92: =BDI!E6 -> 0.0444
C93: A.1 | D93: Administração Central | E93: =BDI!E7 -> 0.039
C94: A.2 | D94: Seguros, Garantias e Riscos | E94: =BDI!E8 -> 0.0054
C95: B | D95: Lucro | E95: =BDI!E10 -> 0.06
C96: C | D96: Tributos | E96: =SUM(E97:E98) -> 0.124
C97: C.1 | D97: Tributos Federais (COFINS, PIS e CPRB) | E97: =BDI!E18 -> 0.074
C98: C.2 | D98: Tributos Distritais (ISS) | E98: =BDI!E23 -> 0.05 | H98: * Nota - Utilizou-se o indicado pelo Sindicato da Arquitetura e da Engenharia (Sinaenco, 2008, p. 22), que adota um percentual redutor de 20% no cálculo dos custos tributários relativos às contribuições PIS e COFINS
C99: D | D99: Despesas Financeiras | E99: =BDI!E13 -> 0.004466921098
D101: TOTAL DE BDI | E101: =BDI!E26 -> 0.2694 | F101: =E101*E109 -> 
D103: QUADRO-RESUMO DO CUSTO MENSAL POR EMPREGADO - SEM O 13º | E103: Valor
D104: Módulo 1 - Composição da Remuneração | E104: =F23 -> 
D105: Módulo 2 - Encargos e Benefícios Anuais, Mensais e Diários | E105: =F52 -> 
D106: Módulo 3 - Provisão para Rescisão | E106: =F62 -> 
D107: Módulo 4 - Custo de Reposição do Profissional Ausente | E107: =F80 -> 
D108: Módulo 5 - Insumos Diversos | E108: =F89 -> 0
D109: SUBTOTAL (A+B+C+D+E) | E109: =SUM(E104:E108) -> 
D110: Módulo 6 - Custos Indiretos, Tributos e Lucro | E110: =F101 -> 
D112: TOTAL DO POSTO | E112: =SUM(E109:E110) -> 
B114: MÓDULO 7 - DESTAQUE DO MÓDULO 2 - 13º SALÁRIO | E114: Percentuais | F114: Valor
C115: A | D115: 13º Salário | E115: ='Encargos Sociais'!E31 -> 0.08333333333 | F115: =ROUND(E115*F$23,2) -> 
C116: B | D116: Encargos Sociais sobre o 13º Salário - Taxa calculada no SUBMÓDULO 2.2 | E116: =SUM($E$31:$E$39) -> 0.358 | F116: =ROUND(E116*$F$115,2) ->  | H116: * Nota 1 - Provisiona-se, mensalmente, o proporcional a 1/12 dos valores referentes a gratificação natalina e adicional de férias.
C117: C | D117: BDI sobre o 13º Salário - Taxa calculada no MÓDULO 6 | E117: =E101 -> 0.2694 | F117: =ROUND(E117*($F$115+$F$116),2) -> 
D119: TOTAL DO DESTAQUE DO 13º SALÁRIO | F119: =SUM(F115:F117) -> 
D121: QUADRO-RESUMO DO CUSTO MENSAL POR EMPREGADO | E121: Valor
D122: Custo total - sem o 13º Salário | E122: =E112 -> 
D123: Destaque do 13º Salário (valor mensal) | E123: =F119 -> 
D125: TOTAL DO POSTO | E125: =E122+E123 -> 

Sheet 9 (hidden)
C1: CÂMARA DOS DEPUTADOS
C2: DEPARTAMENTO TÉCNICO
C3: Coordenação de Planejamento e Gestão
C5: Data: | D5: ='Dados Gerais'!#REF! -> 
C6: Processo: | D6: ='Dados Gerais'!#REF! -> 
C7: Objeto: | D7: ='Dados Gerais'!#REF! -> 
B9: PLANILHA DE ESTIMATIVA DE CUSTOS
B10: Padrão IN 05/2017 e IN 07/2018 - MPDG
B12: 9 | D12: =HLOOKUP($B$12,'Dados Gerais'!$D$5:$BK$20,6) -> 0 | E12: QUANTIDADE | F12: =HLOOKUP($B$12,'Dados Gerais'!$D$5:$BK$20,10) -> 0
B13: CCT | D13: =HLOOKUP($B$12,'Dados Gerais'!$D$5:$BK$20,15) -> 0 | E13: DATA-BASE | F13: =HLOOKUP($B$12,'Dados Gerais'!$D$5:$BK$20,16) -> 00:00:00
B15: MÓDULO 1 - COMPOSIÇÃO DA REMUNERAÇÃO | F15: Valor
C16: A | D16: Salário-Base | F16: =HLOOKUP($B$12,'Dados Gerais'!$D$5:$BK$20,8) -> 0
C17: B | D17: Adicional de Periculosidade | F17: =HLOOKUP($B$12,'Dados Gerais'!$D$5:$BK$37,25) -> 0
C18: C | D18: Adicional de Insalubridade | F18: =HLOOKUP($B$12,'Dados Gerais'!$D$5:$BK$37,31) -> 0
C19: D | D19: Adicional Noturno | F19: =HLOOKUP($B$12,'Dados Gerais'!$D$5:$BK$50,46) ->  | H19: * Nota 1 - O Módulo 1 refere-se ao valor mensal devido ao empregado pela prestação do serviço no período de 12 meses.
C20: E | D20: Adicional de Hora Extra | F20: =HLOOKUP($B$12,'Dados Gerais'!$D$5:$BK$67,63) ->  | H20: * Nota 2 - O adicional de hora extra no feriado trabalhado foi suprimido pela Lei 13.467/17
C21: F | D21: Outros (especificar) | F21: =HLOOKUP($B$12,'Dados Gerais'!$D$5:$BK$59,33) -> 0 | H21: * Nota 3 - ART. 7º, § 2º, DA LEI Nº 605/49.Sendo mensalista o obreiro, o adicional noturno pago de forma fixa já é considerado integrado para os efeitos do pagamento do repouso semanal remunerado, nos termos do art. 7º, § 2º, da Lei nº 605/49.
D23: TOTAL DA REMUNERAÇÃO | F23: =SUM(F16:F21) -> 
B25: MÓDULO 2 - ENCARGOS E BENEFÍCIOS ANUAIS, MENSAIS E DIÁRIOS | E25: Percentuais | F25: Valor
B26: Submódulo 2.1 - 13º Salário, Férias e Adicional de Férias
C27: A | D27: 13º Salário - Calculado no Módulo 7 - Destacado | E27: 0 | F27: =ROUND(E27*F$23,2) -> 
C28: B | D28: Férias e Adicional de Férias | E28: ='Encargos Sociais'!E24+'Encargos Sociais'!E30 -> 0.1212121212 | F28: =ROUND(E28*F$23,2) ->  | H28: * Nota 1 - Provisiona-se, mensalmente, o proporcional a 1/12 dos valores referentes a gratificação natalina, férias e adicional de férias.
H29: * Nota 2 - O adicional de férias contido no Submódulo 2.1 corresponde a 1/3 da remuneração que, por sua vez, é dividida por 12 contome Nota 1.
B30: Submódulo 2.2 - Encargos Previdenciários (GPS), Fundo de Garantia por Tempo de Serviço (FGTS) e Outras Contribuições
C31: A | D31: INSS (art. 22, inciso I, Lei nº 8.212/91) | E31: ='Encargos Sociais'!E13 -> 0.2 | F31: =ROUND(E31*($F$23+$F$48+$F$80),2) -> 
C32: B | D32: Salário Educação (art. 3º, inciso I, Decreto nº 87.043/82) | E32: ='Encargos Sociais'!E14 -> 0.025 | F32: =ROUND(E32*($F$23+$F$48+$F$80),2) -> 
C33: C | D33: SAT/RAT (art. 22, II, Lei 8.212/91 e Anexo V, Decreto 6.042/07) - Enquadramento 8211-3/00 | E33: ='Encargos Sociais'!E15 -> 0.01
C34: D | D34: SESC ou SESI (art. 30, Lei nº 8.036/90 e art. 1º, Lei 8.154/90) | E34: ='Encargos Sociais'!E16 -> 0.015
C35: E | D35: SENAI ou SENAC (Decreto nº 2.318/86) | E35: ='Encargos Sociais'!E17 -> 0.01
C36: F | D36: SEBRAE (§ 3º, art. 8º, Lei 8.029/90, alterada pela Lei nº 8.154/90) | E36: ='Encargos Sociais'!E18 -> 0.006
C37: G | D37: INCRA (art. 1º, I, Decreto Lei 1.146/70 e Lei 7.787, de 30/06/89) | E37: ='Encargos Sociais'!E19 -> 0.002 | H37: * Nota 1 - Os percentuais dos encargos previdenciários, do FGTS e demais contribuições são estabelecidos por legislação vigente.
C38: H | D38: FGTS (Lei Complementar nº 110/01 e art. 30, Lei nº 8.036/90) | E38: ='Encargos Sociais'!E20 -> 0.08 | H38: * Nota 2 - O SAT, a depender do grau de risco do serviço, irá variar entre 1%, para risco leve, de 2%, para risco médio, e de 3% para risco grave.
C39: I | D39: SECONCI (Convenções Coletivas de Trabalho da construção) | E39: ='Encargos Sociais'!E21 -> 0.01 | H39: * Nota 3 - Os percentuais do Submódulo 2.2 incidem sobre o Módulo 1 e o Submódulo 2.1.
B41: Submódulo 2.3 - Benefícios Mensais e Diários
C42: A | D42: Auxílio Transporte | F42: =HLOOKUP($B$12,'Dados Gerais'!$D$5:$BK$93,82) -> 0
C43: B | D43: Auxílio Alimentação | F43: =HLOOKUP($B$12,'Dados Gerais'!$D$5:$BK$93,89) -> 
C44: C | D44: Assistência Médica e Familiar | F44: =HLOOKUP($B$12,'Dados Gerais'!$D$5:$BK$101,97) -> 185.84
C45: D | D45: Outros (Seguro de vida e auxílio funeral e auxílio odontológico) | F45: =HLOOKUP($B$12,'Dados Gerais'!$D$5:$BK$118,114) -> 0 | H45: * Nota 1 - O valor informado deverá ser o custo real do benefício (descontado o valor eventualmente pago pelo empregado).
H46: * Nota 2 - Observar a previsão dos benefícios contidos em Acordos, Convenções e Dissídios Coletivos de Trabalho e o disposto no art. 6º da IN 5/2017
D47: QUADRO-RESUMO DO MÓDULO 2
D48: 2.1 - 13º Salário, Férias e Adicional de Férias - 13º Destacado - Calculado no Módulo 7 | E48: =SUM(E27:E28) -> 0.1212121212 | F48: =F27+F28 -> 
D49: 2.2 - Encargos Previdenciários (GPS), Fundo de Garantia por Tempo de Serviço (FGTS) e Contribuições | E49: =SUM(E31:E39) -> 0.358 | F49: =SUM(F31:F39) -> 
D50: 2.3 - Benefícios Mensais e Diários | F50: =SUM(F42:F45) -> 
D52: TOTAL DOS ENCARGOS E BENEFÍCIOS | F52: =SUM(F48:F50) -> 
B54: MÓDULO 3 - PREVISÃO PARA RESCISÃO | E54: Percentuais | F54: Valor
C55: A | D55: Aviso Prévio Indenizado (Art. 7º, inciso XXI, da CF/1988 e arts. 477, 487, §1º, e 491 da CLT) | E55: ='Encargos Sociais'!E35 -> 0.008333333333 | F55: =ROUND(E55*$F$23,2) -> 
C56: B | D56: Incidência do FGTS sobre o Aviso Prévio Indenizado (Súmula 305 TST) | E56: ='Encargos Sociais'!E36 -> 0.0006666666667 | H56: * Nota 1 - Adotou-se os parâmetros do estudo do STF (http://www.stf.jus.br/arquivo/cms/sobrestfestudosci/anexo/encargos_sociais_03102007.pdf), onde 5% do pessoal é demitido pelo empregador no decurso do contrato (para estes, considerou-se o aviso prévio indenizado). Desprezou-se as demissões por justa causa e os pedidos de demissão.
C57: C | D57: Multa do FGTS e Contribuição Social sobre o Aviso Prévio Indenizado (Art. 18, §1º, da Lei 8.036/1990 e art. 1º da LC nº 110/2001) | E57: ='Encargos Sociais'!E37 -> 0.001274074074 | H57: * Nota 2 - No cálculo do percentual, considerou-se 36 dias, correspondendo à metade da duração média dos contratos (2 anos)
C58: D | D58: Aviso Prévio Trabalhado (Art. 488, parágrafo único, CLT) | E58: ='Encargos Sociais'!E38 -> 0.01203703704 | H58: * Nota 3 - Incide sobre a Remuneração + 13º salário (1/12) + Férias (1/12) + Adicional de Férias (1/36) x 50% multa (40% para o empregado e 10% de contribuição social) x 8% FGTS
C59: E | D59: Incidência de GPS, FGTS e outras contribuições sobre o Aviso Prévio Trabalhado | E59: ='Encargos Sociais'!E39 -> 0.004309259259 | H59: * Nota 4 - Os 95% restantes do cálculo, a um prazo médio de contrato de 4 anos. Assim, calcula-se 7 dias para o 1º ano de contrato e mais 3 dias para os 3 anos seguintes.
C60: F | D60: Multa do FGTS e Contribuição Social sobre o Aviso Prévio Trabalhado | E60: ='Encargos Sociais'!E40 -> 0.03050515556
D62: TOTAL DE PREVISÃO PARA RESCISÃO | F62: =SUM(F55:F60) -> 
B64: MÓDULO 4 - CUSTO DE REPOSIÇÃO DO PROFISSIONAL AUSENTE | E64: Percentuais | F64: Valor
B65: Submódulo 4.1 - Ausências Legais
C66: A | D66: Férias (Arts. 129 e 130, inc. I, da CLT) - Calculado no Submódulo 2.1 | E66: 0 | F66: =ROUND(E66*$F$23,2) ->  | H66: * Nota 1 - As alíneas “A” a “F” referem-se somente ao custo que será pago ao repositor pelos dias trabalhados quando da necessidade de substituir a mão de obra alocada na prestação do serviço.
C67: B | D67: Ausências Legais (Arts. 131 e 473 da CLT) | E67: ='Encargos Sociais'!E25 -> 0.007936507937 | H67: * Nota 2 - Adotou-se a estimativa do SINAPI de 2 dias por ano.
C68: C | D68: Licença-Paternidade (Art. 7º, XIX, e art. 10, §1º, do ADCT, CF/1988 e Art. 1º, II, da Lei 11.770/2008) | E68: ='Encargos Sociais'!E26 -> 0.0008277777778 | H68: * Nota 3 - Utilizada a proporção de 50% para homens, 5 dias de afastamento, e a probabilidade de um trabalhador requerer a Licença Paternidade em 5,22%, conforme SINAPI (citando dados da PNAD 2015)
C69: D | D69: Ausência por Acidente de Trabalho (Art. 131, III, da CLT) | E69: ='Encargos Sociais'!E27 -> 0.0008541666667 | H69: * Nota 4 - Utilzada a estatística de 1,96% dos contribuintes beneficiados com a emissão do auxílio, conforme Anuário Estatístico da Previdência Social. Afastamento de 15 dias a cargo da empresa.
C70: E | D70: Afastamento Maternidade (Art. 71 da Lei nº 8.213/1991) | E70: ='Encargos Sociais'!E28 -> 0.003292592593 | H70: * Nota 5 - Utilizada a proporção de 50% para mulheres, 180 dias de afastamento, e a probabilidade de uma trabalhadora requerer a Licença Maternidade em 4,91%, conforme SINAPI (citando dados do IBGE 2016)
C71: F | D71: Auxílio Enfermidade - Doença (Art. 59 da Lei nº 8.213/1991) | E71: ='Encargos Sociais'!E29 -> 0.007122222222 | H71: * Nota 6 - Utilizada a estatística de 3,37% dos contribuintes beneficiados com o auxílio, conforme Anuário Estatístico da Previdência Social de 2015 (acrescidos de 2 dias ao ano, para os quais o trabalhador nem requer o benefício da Previdência - conforme SINAPI)
B73: Submódulo 4.2 - Intrajornada
C74: A | D74: Intervalo para repouso ou alimentação | E74: ='Encargos Sociais'!E32 -> 0 | F74: =ROUND(E74*$F$23,2) -> 
D76: QUADRO-RESUMO DO MÓDULO 4 | F76: Valor
D77: 4.1 - Ausências Legais | E77: =SUM(E66:E71) -> 0.0200332672 | F77: =ROUND(E77*$F$23,2) -> 
D78: 4.2 - Intrajornada | E78: =E74 -> 0 | F78: =ROUND(E78*$F$23,2) -> 
D80: TOTAL DE PREVISÃO PARA RESCISÃO E INTERVALO INTRAJORNADA | F80: =SUM(F77:F78) -> 
B82: MÓDULO 5 - INSUMOS DIVERSOS | F82: Valor
C83: A | D83: Uniformes - aquisição | F83: =ROUND(HLOOKUP($B$12,Uniformes!K3:DZ33,3)/12,2) -> 0
C84: B | D84: Materiais de consumo relacionados ao posto - aquisição | F84: =ROUND(HLOOKUP(B12,'Mat Cons'!I11:DX13,3)/12,2) -> 0
C85: C | D85: Materiais permanentes relacionados ao posto - remuneração da sua depreciação / manutenção | F85: =HLOOKUP(B12,'Mat Perm'!Q11:EF13,3) -> 0
C86: D | D86: Equipamentos relacionados ao posto - remuneração da sua depreciação / manutenção | F86: =HLOOKUP(B12,'Equip Rel'!Q11:EF13,3) -> 0
C87: E | D87: Equipamentos de Proteção Individual - EPI - aquisição | F87: =ROUND(HLOOKUP(B12,EPI!I3:DX67,3)/12,2) -> 0
D89: TOTAL DE INSUMOS DIVERSOS | F89: =SUM(F83:F88) -> 0 | H89: * Nota - Valores mensais por empregado
B91: MÓDULO 6 - CUSTOS INDIRETOS, TRIBUTOS E LUCRO - BDI | E91: Percentuais | F91: Valor
C92: A | D92: Custos Indiretos | E92: =BDI!E6 -> 0.0444
C93: A.1 | D93: Administração Central | E93: =BDI!E7 -> 0.039
C94: A.2 | D94: Seguros, Garantias e Riscos | E94: =BDI!E8 -> 0.0054
C95: B | D95: Lucro | E95: =BDI!E10 -> 0.06
C96: C | D96: Tributos | E96: =SUM(E97:E98) -> 0.124
C97: C.1 | D97: Tributos Federais (COFINS, PIS e CPRB) | E97: =BDI!E18 -> 0.074
C98: C.2 | D98: Tributos Distritais (ISS) | E98: =BDI!E23 -> 0.05 | H98: * Nota - Utilizou-se o indicado pelo Sindicato da Arquitetura e da Engenharia (Sinaenco, 2008, p. 22), que adota um percentual redutor de 20% no cálculo dos custos tributários relativos às contribuições PIS e COFINS
C99: D | D99: Despesas Financeiras | E99: =BDI!E13 -> 0.004466921098
D101: TOTAL DE BDI | E101: =BDI!E26 -> 0.2694 | F101: =E101*E109 -> 
D103: QUADRO-RESUMO DO CUSTO MENSAL POR EMPREGADO - SEM O 13º | E103: Valor
D104: Módulo 1 - Composição da Remuneração | E104: =F23 -> 
D105: Módulo 2 - Encargos e Benefícios Anuais, Mensais e Diários | E105: =F52 -> 
D106: Módulo 3 - Provisão para Rescisão | E106: =F62 -> 
D107: Módulo 4 - Custo de Reposição do Profissional Ausente | E107: =F80 -> 
D108: Módulo 5 - Insumos Diversos | E108: =F89 -> 0
D109: SUBTOTAL (A+B+C+D+E) | E109: =SUM(E104:E108) -> 
D110: Módulo 6 - Custos Indiretos, Tributos e Lucro | E110: =F101 -> 
D112: TOTAL DO POSTO | E112: =SUM(E109:E110) -> 
B114: MÓDULO 7 - DESTAQUE DO MÓDULO 2 - 13º SALÁRIO | E114: Percentuais | F114: Valor
C115: A | D115: 13º Salário | E115: ='Encargos Sociais'!E31 -> 0.08333333333 | F115: =ROUND(E115*F$23,2) -> 
C116: B | D116: Encargos Sociais sobre o 13º Salário - Taxa calculada no SUBMÓDULO 2.2 | E116: =SUM($E$31:$E$39) -> 0.358 | F116: =ROUND(E116*$F$115,2) ->  | H116: * Nota 1 - Provisiona-se, mensalmente, o proporcional a 1/12 dos valores referentes a gratificação natalina e adicional de férias.
C117: C | D117: BDI sobre o 13º Salário - Taxa calculada no MÓDULO 6 | E117: =E101 -> 0.2694 | F117: =ROUND(E117*($F$115+$F$116),2) -> 
D119: TOTAL DO DESTAQUE DO 13º SALÁRIO | F119: =SUM(F115:F117) -> 
D121: QUADRO-RESUMO DO CUSTO MENSAL POR EMPREGADO | E121: Valor
D122: Custo total - sem o 13º Salário | E122: =E112 -> 
D123: Destaque do 13º Salário (valor mensal) | E123: =F119 -> 
D125: TOTAL DO POSTO | E125: =E122+E123 -> 

Sheet 10 (hidden)
C1: CÂMARA DOS DEPUTADOS
C2: DEPARTAMENTO TÉCNICO
C3: Coordenação de Planejamento e Gestão
C5: Data: | D5: ='Dados Gerais'!#REF! -> 
C6: Processo: | D6: ='Dados Gerais'!#REF! -> 
C7: Objeto: | D7: ='Dados Gerais'!#REF! -> 
B9: PLANILHA DE ESTIMATIVA DE CUSTOS
B10: Padrão IN 05/2017 e IN 07/2018 - MPDG
B12: 10 | D12: =HLOOKUP($B$12,'Dados Gerais'!$D$5:$BK$20,6) -> 0 | E12: QUANTIDADE | F12: =HLOOKUP($B$12,'Dados Gerais'!$D$5:$BK$20,10) -> 0
B13: CCT | D13: =HLOOKUP($B$12,'Dados Gerais'!$D$5:$BK$20,15) -> 0 | E13: DATA-BASE | F13: =HLOOKUP($B$12,'Dados Gerais'!$D$5:$BK$20,16) -> 00:00:00
B15: MÓDULO 1 - COMPOSIÇÃO DA REMUNERAÇÃO | F15: Valor
C16: A | D16: Salário-Base | F16: =HLOOKUP($B$12,'Dados Gerais'!$D$5:$BK$20,8) -> 0
C17: B | D17: Adicional de Periculosidade | F17: =HLOOKUP($B$12,'Dados Gerais'!$D$5:$BK$37,25) -> 0
C18: C | D18: Adicional de Insalubridade | F18: =HLOOKUP($B$12,'Dados Gerais'!$D$5:$BK$37,31) -> 0
C19: D | D19: Adicional Noturno | F19: =HLOOKUP($B$12,'Dados Gerais'!$D$5:$BK$50,46) ->  | H19: * Nota 1 - O Módulo 1 refere-se ao valor mensal devido ao empregado pela prestação do serviço no período de 12 meses.
C20: E | D20: Adicional de Hora Extra | F20: =HLOOKUP($B$12,'Dados Gerais'!$D$5:$BK$67,63) ->  | H20: * Nota 2 - O adicional de hora extra no feriado trabalhado foi suprimido pela Lei 13.467/17
C21: F | D21: Outros (especificar) | F21: =HLOOKUP($B$12,'Dados Gerais'!$D$5:$BK$59,33) -> 0 | H21: * Nota 3 - ART. 7º, § 2º, DA LEI Nº 605/49.Sendo mensalista o obreiro, o adicional noturno pago de forma fixa já é considerado integrado para os efeitos do pagamento do repouso semanal remunerado, nos termos do art. 7º, § 2º, da Lei nº 605/49.
D23: TOTAL DA REMUNERAÇÃO | F23: =SUM(F16:F21) -> 
B25: MÓDULO 2 - ENCARGOS E BENEFÍCIOS ANUAIS, MENSAIS E DIÁRIOS | E25: Percentuais | F25: Valor
B26: Submódulo 2.1 - 13º Salário, Férias e Adicional de Férias
C27: A | D27: 13º Salário - Calculado no Módulo 7 - Destacado | E27: 0 | F27: =ROUND(E27*F$23,2) -> 
C28: B | D28: Férias e Adicional de Férias | E28: ='Encargos Sociais'!E24+'Encargos Sociais'!E30 -> 0.1212121212 | F28: =ROUND(E28*F$23,2) ->  | H28: * Nota 1 - Provisiona-se, mensalmente, o proporcional a 1/12 dos valores referentes a gratificação natalina, férias e adicional de férias.
H29: * Nota 2 - O adicional de férias contido no Submódulo 2.1 corresponde a 1/3 da remuneração que, por sua vez, é dividida por 12 contome Nota 1.
B30: Submódulo 2.2 - Encargos Previdenciários (GPS), Fundo de Garantia por Tempo de Serviço (FGTS) e Outras Contribuições
C31: A | D31: INSS (art. 22, inciso I, Lei nº 8.212/91) | E31: ='Encargos Sociais'!E13 -> 0.2 | F31: =ROUND(E31*($F$23+$F$48+$F$80),2) -> 
C32: B | D32: Salário Educação (art. 3º, inciso I, Decreto nº 87.043/82) | E32: ='Encargos Sociais'!E14 -> 0.025 | F32: =ROUND(E32*($F$23+$F$48+$F$80),2) -> 
C33: C | D33: SAT/RAT (art. 22, II, Lei 8.212/91 e Anexo V, Decreto 6.042/07) - Enquadramento 8211-3/00 | E33: ='Encargos Sociais'!E15 -> 0.01
C34: D | D34: SESC ou SESI (art. 30, Lei nº 8.036/90 e art. 1º, Lei 8.154/90) | E34: ='Encargos Sociais'!E16 -> 0.015
C35: E | D35: SENAI ou SENAC (Decreto nº 2.318/86) | E35: ='Encargos Sociais'!E17 -> 0.01
C36: F | D36: SEBRAE (§ 3º, art. 8º, Lei 8.029/90, alterada pela Lei nº 8.154/90) | E36: ='Encargos Sociais'!E18 -> 0.006
C37: G | D37: INCRA (art. 1º, I, Decreto Lei 1.146/70 e Lei 7.787, de 30/06/89) | E37: ='Encargos Sociais'!E19 -> 0.002 | H37: * Nota 1 - Os percentuais dos encargos previdenciários, do FGTS e demais contribuições são estabelecidos por legislação vigente.
C38: H | D38: FGTS (Lei Complementar nº 110/01 e art. 30, Lei nº 8.036/90) | E38: ='Encargos Sociais'!E20 -> 0.08 | H38: * Nota 2 - O SAT, a depender do grau de risco do serviço, irá variar entre 1%, para risco leve, de 2%, para risco médio, e de 3% para risco grave.
C39: I | D39: SECONCI (Convenções Coletivas de Trabalho da construção) | E39: ='Encargos Sociais'!E21 -> 0.01 | H39: * Nota 3 - Os percentuais do Submódulo 2.2 incidem sobre o Módulo 1 e o Submódulo 2.1.
B41: Submódulo 2.3 - Benefícios Mensais e Diários
C42: A | D42: Auxílio Transporte | F42: =HLOOKUP($B$12,'Dados Gerais'!$D$5:$BK$93,82) -> 0
C43: B | D43: Auxílio Alimentação | F43: =HLOOKUP($B$12,'Dados Gerais'!$D$5:$BK$93,89) -> 
C44: C | D44: Assistência Médica e Familiar | F44: =HLOOKUP($B$12,'Dados Gerais'!$D$5:$BK$101,97) -> 185.84
C45: D | D45: Outros (Seguro de vida e auxílio funeral e auxílio odontológico) | F45: =HLOOKUP($B$12,'Dados Gerais'!$D$5:$BK$118,114) -> 0 | H45: * Nota 1 - O valor informado deverá ser o custo real do benefício (descontado o valor eventualmente pago pelo empregado).
H46: * Nota 2 - Observar a previsão dos benefícios contidos em Acordos, Convenções e Dissídios Coletivos de Trabalho e o disposto no art. 6º da IN 5/2017
D47: QUADRO-RESUMO DO MÓDULO 2
D48: 2.1 - 13º Salário, Férias e Adicional de Férias - 13º Destacado - Calculado no Módulo 7 | E48: =SUM(E27:E28) -> 0.1212121212 | F48: =F27+F28 -> 
D49: 2.2 - Encargos Previdenciários (GPS), Fundo de Garantia por Tempo de Serviço (FGTS) e Contribuições | E49: =SUM(E31:E39) -> 0.358 | F49: =SUM(F31:F39) -> 
D50: 2.3 - Benefícios Mensais e Diários | F50: =SUM(F42:F45) -> 
D52: TOTAL DOS ENCARGOS E BENEFÍCIOS | F52: =SUM(F48:F50) -> 
B54: MÓDULO 3 - PREVISÃO PARA RESCISÃO | E54: Percentuais | F54: Valor
C55: A | D55: Aviso Prévio Indenizado (Art. 7º, inciso XXI, da CF/1988 e arts. 477, 487, §1º, e 491 da CLT) | E55: ='Encargos Sociais'!E35 -> 0.008333333333 | F55: =ROUND(E55*$F$23,2) -> 
C56: B | D56: Incidência do FGTS sobre o Aviso Prévio Indenizado (Súmula 305 TST) | E56: ='Encargos Sociais'!E36 -> 0.0006666666667 | H56: * Nota 1 - Adotou-se os parâmetros do estudo do STF (http://www.stf.jus.br/arquivo/cms/sobrestfestudosci/anexo/encargos_sociais_03102007.pdf), onde 5% do pessoal é demitido pelo empregador no decurso do contrato (para estes, considerou-se o aviso prévio indenizado). Desprezou-se as demissões por justa causa e os pedidos de demissão.
C57: C | D57: Multa do FGTS e Contribuição Social sobre o Aviso Prévio Indenizado (Art. 18, §1º, da Lei 8.036/1990 e art. 1º da LC nº 110/2001) | E57: ='Encargos Sociais'!E37 -> 0.001274074074 | H57: * Nota 2 - No cálculo do percentual, considerou-se 36 dias, correspondendo à metade da duração média dos contratos (2 anos)
C58: D | D58: Aviso Prévio Trabalhado (Art. 488, parágrafo único, CLT) | E58: ='Encargos Sociais'!E38 -> 0.01203703704 | H58: * Nota 3 - Incide sobre a Remuneração + 13º salário (1/12) + Férias (1/12) + Adicional de Férias (1/36) x 50% multa (40% para o empregado e 10% de contribuição social) x 8% FGTS
C59: E | D59: Incidência de GPS, FGTS e outras contribuições sobre o Aviso Prévio Trabalhado | E59: ='Encargos Sociais'!E39 -> 0.004309259259 | H59: * Nota 4 - Os 95% restantes do cálculo, a um prazo médio de contrato de 4 anos. Assim, calcula-se 7 dias para o 1º ano de contrato e mais 3 dias para os 3 anos seguintes.
C60: F | D60: Multa do FGTS e Contribuição Social sobre o Aviso Prévio Trabalhado | E60: ='Encargos Sociais'!E40 -> 0.03050515556
D62: TOTAL DE PREVISÃO PARA RESCISÃO | F62: =SUM(F55:F60) -> 
B64: MÓDULO 4 - CUSTO DE REPOSIÇÃO DO PROFISSIONAL AUSENTE | E64: Percentuais | F64: Valor
B65: Submódulo 4.1 - Ausências Legais
C66: A | D66: Férias (Arts. 129 e 130, inc. I, da CLT) - Calculado no Submódulo 2.1 | E66: 0 | F66: =ROUND(E66*$F$23,2) ->  | H66: * Nota 1 - As alíneas “A” a “F” referem-se somente ao custo que será pago ao repositor pelos dias trabalhados quando da necessidade de substituir a mão de obra alocada na prestação do serviço.
C67: B | D67: Ausências Legais (Arts. 131 e 473 da CLT) | E67: ='Encargos Sociais'!E25 -> 0.007936507937 | H67: * Nota 2 - Adotou-se a estimativa do SINAPI de 2 dias por ano.
C68: C | D68: Licença-Paternidade (Art. 7º, XIX, e art. 10, §1º, do ADCT, CF/1988 e Art. 1º, II, da Lei 11.770/2008) | E68: ='Encargos Sociais'!E26 -> 0.0008277777778 | H68: * Nota 3 - Utilizada a proporção de 50% para homens, 5 dias de afastamento, e a probabilidade de um trabalhador requerer a Licença Paternidade em 5,22%, conforme SINAPI (citando dados da PNAD 2015)
C69: D | D69: Ausência por Acidente de Trabalho (Art. 131, III, da CLT) | E69: ='Encargos Sociais'!E27 -> 0.0008541666667 | H69: * Nota 4 - Utilzada a estatística de 1,96% dos contribuintes beneficiados com a emissão do auxílio, conforme Anuário Estatístico da Previdência Social. Afastamento de 15 dias a cargo da empresa.
C70: E | D70: Afastamento Maternidade (Art. 71 da Lei nº 8.213/1991) | E70: ='Encargos Sociais'!E28 -> 0.003292592593 | H70: * Nota 5 - Utilizada a proporção de 50% para mulheres, 180 dias de afastamento, e a probabilidade de uma trabalhadora requerer a Licença Maternidade em 4,91%, conforme SINAPI (citando dados do IBGE 2016)
C71: F | D71: Auxílio Enfermidade - Doença (Art. 59 da Lei nº 8.213/1991) | E71: ='Encargos Sociais'!E29 -> 0.007122222222 | H71: * Nota 6 - Utilizada a estatística de 3,37% dos contribuintes beneficiados com o auxílio, conforme Anuário Estatístico da Previdência Social de 2015 (acrescidos de 2 dias ao ano, para os quais o trabalhador nem requer o benefício da Previdência - conforme SINAPI)
B73: Submódulo 4.2 - Intrajornada
C74: A | D74: Intervalo para repouso ou alimentação | E74: ='Encargos Sociais'!E32 -> 0 | F74: =ROUND(E74*$F$23,2) -> 
D76: QUADRO-RESUMO DO MÓDULO 4 | F76: Valor
D77: 4.1 - Ausências Legais | E77: =SUM(E66:E71) -> 0.0200332672 | F77: =ROUND(E77*$F$23,2) -> 
D78: 4.2 - Intrajornada | E78: =E74 -> 0 | F78: =ROUND(E78*$F$23,2) -> 
D80: TOTAL DE PREVISÃO PARA RESCISÃO E INTERVALO INTRAJORNADA | F80: =SUM(F77:F78) -> 
B82: MÓDULO 5 - INSUMOS DIVERSOS | F82: Valor
C83: A | D83: Uniformes - aquisição | F83: =ROUND(HLOOKUP($B$12,Uniformes!K3:DZ33,3)/12,2) -> 0
C84: B | D84: Materiais de consumo relacionados ao posto - aquisição | F84: =ROUND(HLOOKUP(B12,'Mat Cons'!I11:DX13,3)/12,2) -> 0
C85: C | D85: Materiais permanentes relacionados ao posto - remuneração da sua depreciação / manutenção | F85: =HLOOKUP(B12,'Mat Perm'!Q11:EF13,3) -> 0
C86: D | D86: Equipamentos relacionados ao posto - remuneração da sua depreciação / manutenção | F86: =HLOOKUP(B12,'Equip Rel'!Q11:EF13,3) -> 0
C87: E | D87: Equipamentos de Proteção Individual - EPI - aquisição | F87: =ROUND(HLOOKUP(B12,EPI!I3:DX67,3)/12,2) -> 0
D89: TOTAL DE INSUMOS DIVERSOS | F89: =SUM(F83:F88) -> 0 | H89: * Nota - Valores mensais por empregado
B91: MÓDULO 6 - CUSTOS INDIRETOS, TRIBUTOS E LUCRO - BDI | E91: Percentuais | F91: Valor
C92: A | D92: Custos Indiretos | E92: =BDI!E6 -> 0.0444
C93: A.1 | D93: Administração Central | E93: =BDI!E7 -> 0.039
C94: A.2 | D94: Seguros, Garantias e Riscos | E94: =BDI!E8 -> 0.0054
C95: B | D95: Lucro | E95: =BDI!E10 -> 0.06
C96: C | D96: Tributos | E96: =SUM(E97:E98) -> 0.124
C97: C.1 | D97: Tributos Federais (COFINS, PIS e CPRB) | E97: =BDI!E18 -> 0.074
C98: C.2 | D98: Tributos Distritais (ISS) | E98: =BDI!E23 -> 0.05 | H98: * Nota - Utilizou-se o indicado pelo Sindicato da Arquitetura e da Engenharia (Sinaenco, 2008, p. 22), que adota um percentual redutor de 20% no cálculo dos custos tributários relativos às contribuições PIS e COFINS
C99: D | D99: Despesas Financeiras | E99: =BDI!E13 -> 0.004466921098
D101: TOTAL DE BDI | E101: =BDI!E26 -> 0.2694 | F101: =E101*E109 -> 
D103: QUADRO-RESUMO DO CUSTO MENSAL POR EMPREGADO - SEM O 13º | E103: Valor
D104: Módulo 1 - Composição da Remuneração | E104: =F23 -> 
D105: Módulo 2 - Encargos e Benefícios Anuais, Mensais e Diários | E105: =F52 -> 
D106: Módulo 3 - Provisão para Rescisão | E106: =F62 -> 
D107: Módulo 4 - Custo de Reposição do Profissional Ausente | E107: =F80 -> 
D108: Módulo 5 - Insumos Diversos | E108: =F89 -> 0
D109: SUBTOTAL (A+B+C+D+E) | E109: =SUM(E104:E108) -> 
D110: Módulo 6 - Custos Indiretos, Tributos e Lucro | E110: =F101 -> 
D112: TOTAL DO POSTO | E112: =SUM(E109:E110) -> 
B114: MÓDULO 7 - DESTAQUE DO MÓDULO 2 - 13º SALÁRIO | E114: Percentuais | F114: Valor
C115: A | D115: 13º Salário | E115: ='Encargos Sociais'!E31 -> 0.08333333333 | F115: =ROUND(E115*F$23,2) -> 
C116: B | D116: Encargos Sociais sobre o 13º Salário - Taxa calculada no SUBMÓDULO 2.2 | E116: =SUM($E$31:$E$39) -> 0.358 | F116: =ROUND(E116*$F$115,2) ->  | H116: * Nota 1 - Provisiona-se, mensalmente, o proporcional a 1/12 dos valores referentes a gratificação natalina e adicional de férias.
C117: C | D117: BDI sobre o 13º Salário - Taxa calculada no MÓDULO 6 | E117: =E101 -> 0.2694 | F117: =ROUND(E117*($F$115+$F$116),2) -> 
D119: TOTAL DO DESTAQUE DO 13º SALÁRIO | F119: =SUM(F115:F117) -> 
D121: QUADRO-RESUMO DO CUSTO MENSAL POR EMPREGADO | E121: Valor
D122: Custo total - sem o 13º Salário | E122: =E112 -> 
D123: Destaque do 13º Salário (valor mensal) | E123: =F119 -> 
D125: TOTAL DO POSTO | E125: =E122+E123 -> 

Sheet 11 (hidden)
C1: CÂMARA DOS DEPUTADOS
C2: DEPARTAMENTO TÉCNICO
C3: Coordenação de Planejamento e Gestão
C5: Data: | D5: ='Dados Gerais'!#REF! -> 
C6: Processo: | D6: ='Dados Gerais'!#REF! -> 
C7: Objeto: | D7: ='Dados Gerais'!#REF! -> 
B9: PLANILHA DE ESTIMATIVA DE CUSTOS
B10: Padrão IN 05/2017 e IN 07/2018 - MPDG
B12: 11 | D12: =HLOOKUP($B$12,'Dados Gerais'!$D$5:$BK$20,6) -> 0 | E12: QUANTIDADE | F12: =HLOOKUP($B$12,'Dados Gerais'!$D$5:$BK$20,10) -> 0
B13: CCT | D13: =HLOOKUP($B$12,'Dados Gerais'!$D$5:$BK$20,15) -> 0 | E13: DATA-BASE | F13: =HLOOKUP($B$12,'Dados Gerais'!$D$5:$BK$20,16) -> 00:00:00
B15: MÓDULO 1 - COMPOSIÇÃO DA REMUNERAÇÃO | F15: Valor
C16: A | D16: Salário-Base | F16: =HLOOKUP($B$12,'Dados Gerais'!$D$5:$BK$20,8) -> 0
C17: B | D17: Adicional de Periculosidade | F17: =HLOOKUP($B$12,'Dados Gerais'!$D$5:$BK$37,25) -> 0
C18: C | D18: Adicional de Insalubridade | F18: =HLOOKUP($B$12,'Dados Gerais'!$D$5:$BK$37,31) -> 0
C19: D | D19: Adicional Noturno | F19: =HLOOKUP($B$12,'Dados Gerais'!$D$5:$BK$50,46) ->  | H19: * Nota 1 - O Módulo 1 refere-se ao valor mensal devido ao empregado pela prestação do serviço no período de 12 meses.
C20: E | D20: Adicional de Hora Extra | F20: =HLOOKUP($B$12,'Dados Gerais'!$D$5:$BK$67,63) ->  | H20: * Nota 2 - O adicional de hora extra no feriado trabalhado foi suprimido pela Lei 13.467/17
C21: F | D21: Outros (especificar) | F21: =HLOOKUP($B$12,'Dados Gerais'!$D$5:$BK$59,33) -> 0 | H21: * Nota 3 - ART. 7º, § 2º, DA LEI Nº 605/49.Sendo mensalista o obreiro, o adicional noturno pago de forma fixa já é considerado integrado para os efeitos do pagamento do repouso semanal remunerado, nos termos do art. 7º, § 2º, da Lei nº 605/49.
D23: TOTAL DA REMUNERAÇÃO | F23: =SUM(F16:F21) -> 
B25: MÓDULO 2 - ENCARGOS E BENEFÍCIOS ANUAIS, MENSAIS E DIÁRIOS | E25: Percentuais | F25: Valor
B26: Submódulo 2.1 - 13º Salário, Férias e Adicional de Férias
C27: A | D27: 13º Salário - Calculado no Módulo 7 - Destacado | E27: 0 | F27: =ROUND(E27*F$23,2) -> 
C28: B | D28: Férias e Adicional de Férias | E28: ='Encargos Sociais'!E24+'Encargos Sociais'!E30 -> 0.1212121212 | F28: =ROUND(E28*F$23,2) ->  | H28: * Nota 1 - Provisiona-se, mensalmente, o proporcional a 1/12 dos valores referentes a gratificação natalina, férias e adicional de férias.
H29: * Nota 2 - O adicional de férias contido no Submódulo 2.1 corresponde a 1/3 da remuneração que, por sua vez, é dividida por 12 contome Nota 1.
B30: Submódulo 2.2 - Encargos Previdenciários (GPS), Fundo de Garantia por Tempo de Serviço (FGTS) e Outras Contribuições
C31: A | D31: INSS (art. 22, inciso I, Lei nº 8.212/91) | E31: ='Encargos Sociais'!E13 -> 0.2 | F31: =ROUND(E31*($F$23+$F$48+$F$80),2) -> 
C32: B | D32: Salário Educação (art. 3º, inciso I, Decreto nº 87.043/82) | E32: ='Encargos Sociais'!E14 -> 0.025 | F32: =ROUND(E32*($F$23+$F$48+$F$80),2) -> 
C33: C | D33: SAT/RAT (art. 22, II, Lei 8.212/91 e Anexo V, Decreto 6.042/07) - Enquadramento 8211-3/00 | E33: ='Encargos Sociais'!E15 -> 0.01
C34: D | D34: SESC ou SESI (art. 30, Lei nº 8.036/90 e art. 1º, Lei 8.154/90) | E34: ='Encargos Sociais'!E16 -> 0.015
C35: E | D35: SENAI ou SENAC (Decreto nº 2.318/86) | E35: ='Encargos Sociais'!E17 -> 0.01
C36: F | D36: SEBRAE (§ 3º, art. 8º, Lei 8.029/90, alterada pela Lei nº 8.154/90) | E36: ='Encargos Sociais'!E18 -> 0.006
C37: G | D37: INCRA (art. 1º, I, Decreto Lei 1.146/70 e Lei 7.787, de 30/06/89) | E37: ='Encargos Sociais'!E19 -> 0.002 | H37: * Nota 1 - Os percentuais dos encargos previdenciários, do FGTS e demais contribuições são estabelecidos por legislação vigente.
C38: H | D38: FGTS (Lei Complementar nº 110/01 e art. 30, Lei nº 8.036/90) | E38: ='Encargos Sociais'!E20 -> 0.08 | H38: * Nota 2 - O SAT, a depender do grau de risco do serviço, irá variar entre 1%, para risco leve, de 2%, para risco médio, e de 3% para risco grave.
C39: I | D39: SECONCI (Convenções Coletivas de Trabalho da construção) | E39: ='Encargos Sociais'!E21 -> 0.01 | H39: * Nota 3 - Os percentuais do Submódulo 2.2 incidem sobre o Módulo 1 e o Submódulo 2.1.
B41: Submódulo 2.3 - Benefícios Mensais e Diários
C42: A | D42: Auxílio Transporte | F42: =HLOOKUP($B$12,'Dados Gerais'!$D$5:$BK$93,82) -> 0
C43: B | D43: Auxílio Alimentação | F43: =HLOOKUP($B$12,'Dados Gerais'!$D$5:$BK$93,89) -> 
C44: C | D44: Assistência Médica e Familiar | F44: =HLOOKUP($B$12,'Dados Gerais'!$D$5:$BK$101,97) -> 185.84
C45: D | D45: Outros (Seguro de vida e auxílio funeral e auxílio odontológico) | F45: =HLOOKUP($B$12,'Dados Gerais'!$D$5:$BK$118,114) -> 0 | H45: * Nota 1 - O valor informado deverá ser o custo real do benefício (descontado o valor eventualmente pago pelo empregado).
H46: * Nota 2 - Observar a previsão dos benefícios contidos em Acordos, Convenções e Dissídios Coletivos de Trabalho e o disposto no art. 6º da IN 5/2017
D47: QUADRO-RESUMO DO MÓDULO 2
D48: 2.1 - 13º Salário, Férias e Adicional de Férias - 13º Destacado - Calculado no Módulo 7 | E48: =SUM(E27:E28) -> 0.1212121212 | F48: =F27+F28 -> 
D49: 2.2 - Encargos Previdenciários (GPS), Fundo de Garantia por Tempo de Serviço (FGTS) e Contribuições | E49: =SUM(E31:E39) -> 0.358 | F49: =SUM(F31:F39) -> 
D50: 2.3 - Benefícios Mensais e Diários | F50: =SUM(F42:F45) -> 
D52: TOTAL DOS ENCARGOS E BENEFÍCIOS | F52: =SUM(F48:F50) -> 
B54: MÓDULO 3 - PREVISÃO PARA RESCISÃO | E54: Percentuais | F54: Valor
C55: A | D55: Aviso Prévio Indenizado (Art. 7º, inciso XXI, da CF/1988 e arts. 477, 487, §1º, e 491 da CLT) | E55: ='Encargos Sociais'!E35 -> 0.008333333333 | F55: =ROUND(E55*$F$23,2) -> 
C56: B | D56: Incidência do FGTS sobre o Aviso Prévio Indenizado (Súmula 305 TST) | E56: ='Encargos Sociais'!E36 -> 0.0006666666667 | H56: * Nota 1 - Adotou-se os parâmetros do estudo do STF (http://www.stf.jus.br/arquivo/cms/sobrestfestudosci/anexo/encargos_sociais_03102007.pdf), onde 5% do pessoal é demitido pelo empregador no decurso do contrato (para estes, considerou-se o aviso prévio indenizado). Desprezou-se as demissões por justa causa e os pedidos de demissão.
C57: C | D57: Multa do FGTS e Contribuição Social sobre o Aviso Prévio Indenizado (Art. 18, §1º, da Lei 8.036/1990 e art. 1º da LC nº 110/2001) | E57: ='Encargos Sociais'!E37 -> 0.001274074074 | H57: * Nota 2 - No cálculo do percentual, considerou-se 36 dias, correspondendo à metade da duração média dos contratos (2 anos)
C58: D | D58: Aviso Prévio Trabalhado (Art. 488, parágrafo único, CLT) | E58: ='Encargos Sociais'!E38 -> 0.01203703704 | H58: * Nota 3 - Incide sobre a Remuneração + 13º salário (1/12) + Férias (1/12) + Adicional de Férias (1/36) x 50% multa (40% para o empregado e 10% de contribuição social) x 8% FGTS
C59: E | D59: Incidência de GPS, FGTS e outras contribuições sobre o Aviso Prévio Trabalhado | E59: ='Encargos Sociais'!E39 -> 0.004309259259 | H59: * Nota 4 - Os 95% restantes do cálculo, a um prazo médio de contrato de 4 anos. Assim, calcula-se 7 dias para o 1º ano de contrato e mais 3 dias para os 3 anos seguintes.
C60: F | D60: Multa do FGTS e Contribuição Social sobre o Aviso Prévio Trabalhado | E60: ='Encargos Sociais'!E40 -> 0.03050515556
D62: TOTAL DE PREVISÃO PARA RESCISÃO | F62: =SUM(F55:F60) -> 
B64: MÓDULO 4 - CUSTO DE REPOSIÇÃO DO PROFISSIONAL AUSENTE | E64: Percentuais | F64: Valor
B65: Submódulo 4.1 - Ausências Legais
C66: A | D66: Férias (Arts. 129 e 130, inc. I, da CLT) - Calculado no Submódulo 2.1 | E66: 0 | F66: =ROUND(E66*$F$23,2) ->  | H66: * Nota 1 - As alíneas “A” a “F” referem-se somente ao custo que será pago ao repositor pelos dias trabalhados quando da necessidade de substituir a mão de obra alocada na prestação do serviço.
C67: B | D67: Ausências Legais (Arts. 131 e 473 da CLT) | E67: ='Encargos Sociais'!E25 -> 0.007936507937 | H67: * Nota 2 - Adotou-se a estimativa do SINAPI de 2 dias por ano.
C68: C | D68: Licença-Paternidade (Art. 7º, XIX, e art. 10, §1º, do ADCT, CF/1988 e Art. 1º, II, da Lei 11.770/2008) | E68: ='Encargos Sociais'!E26 -> 0.0008277777778 | H68: * Nota 3 - Utilizada a proporção de 50% para homens, 5 dias de afastamento, e a probabilidade de um trabalhador requerer a Licença Paternidade em 5,22%, conforme SINAPI (citando dados da PNAD 2015)
C69: D | D69: Ausência por Acidente de Trabalho (Art. 131, III, da CLT) | E69: ='Encargos Sociais'!E27 -> 0.0008541666667 | H69: * Nota 4 - Utilzada a estatística de 1,96% dos contribuintes beneficiados com a emissão do auxílio, conforme Anuário Estatístico da Previdência Social. Afastamento de 15 dias a cargo da empresa.
C70: E | D70: Afastamento Maternidade (Art. 71 da Lei nº 8.213/1991) | E70: ='Encargos Sociais'!E28 -> 0.003292592593 | H70: * Nota 5 - Utilizada a proporção de 50% para mulheres, 180 dias de afastamento, e a probabilidade de uma trabalhadora requerer a Licença Maternidade em 4,91%, conforme SINAPI (citando dados do IBGE 2016)
C71: F | D71: Auxílio Enfermidade - Doença (Art. 59 da Lei nº 8.213/1991) | E71: ='Encargos Sociais'!E29 -> 0.007122222222 | H71: * Nota 6 - Utilizada a estatística de 3,37% dos contribuintes beneficiados com o auxílio, conforme Anuário Estatístico da Previdência Social de 2015 (acrescidos de 2 dias ao ano, para os quais o trabalhador nem requer o benefício da Previdência - conforme SINAPI)
B73: Submódulo 4.2 - Intrajornada
C74: A | D74: Intervalo para repouso ou alimentação | E74: ='Encargos Sociais'!E32 -> 0 | F74: =ROUND(E74*$F$23,2) -> 
D76: QUADRO-RESUMO DO MÓDULO 4 | F76: Valor
D77: 4.1 - Ausências Legais | E77: =SUM(E66:E71) -> 0.0200332672 | F77: =ROUND(E77*$F$23,2) -> 
D78: 4.2 - Intrajornada | E78: =E74 -> 0 | F78: =ROUND(E78*$F$23,2) -> 
D80: TOTAL DE PREVISÃO PARA RESCISÃO E INTERVALO INTRAJORNADA | F80: =SUM(F77:F78) -> 
B82: MÓDULO 5 - INSUMOS DIVERSOS | F82: Valor
C83: A | D83: Uniformes - aquisição | F83: =ROUND(HLOOKUP($B$12,Uniformes!K3:DZ33,3)/12,2) -> 0
C84: B | D84: Materiais de consumo relacionados ao posto - aquisição | F84: =ROUND(HLOOKUP(B12,'Mat Cons'!I11:DX13,3)/12,2) -> 0
C85: C | D85: Materiais permanentes relacionados ao posto - remuneração da sua depreciação / manutenção | F85: =HLOOKUP(B12,'Mat Perm'!Q11:EF13,3) -> 0
C86: D | D86: Equipamentos relacionados ao posto - remuneração da sua depreciação / manutenção | F86: =HLOOKUP(B12,'Equip Rel'!Q11:EF13,3) -> 0
C87: E | D87: Equipamentos de Proteção Individual - EPI - aquisição | F87: =ROUND(HLOOKUP(B12,EPI!I3:DX67,3)/12,2) -> 0
D89: TOTAL DE INSUMOS DIVERSOS | F89: =SUM(F83:F88) -> 0 | H89: * Nota - Valores mensais por empregado
B91: MÓDULO 6 - CUSTOS INDIRETOS, TRIBUTOS E LUCRO - BDI | E91: Percentuais | F91: Valor
C92: A | D92: Custos Indiretos | E92: =BDI!E6 -> 0.0444
C93: A.1 | D93: Administração Central | E93: =BDI!E7 -> 0.039
C94: A.2 | D94: Seguros, Garantias e Riscos | E94: =BDI!E8 -> 0.0054
C95: B | D95: Lucro | E95: =BDI!E10 -> 0.06
C96: C | D96: Tributos | E96: =SUM(E97:E98) -> 0.124
C97: C.1 | D97: Tributos Federais (COFINS, PIS e CPRB) | E97: =BDI!E18 -> 0.074
C98: C.2 | D98: Tributos Distritais (ISS) | E98: =BDI!E23 -> 0.05 | H98: * Nota - Utilizou-se o indicado pelo Sindicato da Arquitetura e da Engenharia (Sinaenco, 2008, p. 22), que adota um percentual redutor de 20% no cálculo dos custos tributários relativos às contribuições PIS e COFINS
C99: D | D99: Despesas Financeiras | E99: =BDI!E13 -> 0.004466921098
D101: TOTAL DE BDI | E101: =BDI!E26 -> 0.2694 | F101: =E101*E109 -> 
D103: QUADRO-RESUMO DO CUSTO MENSAL POR EMPREGADO - SEM O 13º | E103: Valor
D104: Módulo 1 - Composição da Remuneração | E104: =F23 -> 
D105: Módulo 2 - Encargos e Benefícios Anuais, Mensais e Diários | E105: =F52 -> 
D106: Módulo 3 - Provisão para Rescisão | E106: =F62 -> 
D107: Módulo 4 - Custo de Reposição do Profissional Ausente | E107: =F80 -> 
D108: Módulo 5 - Insumos Diversos | E108: =F89 -> 0
D109: SUBTOTAL (A+B+C+D+E) | E109: =SUM(E104:E108) -> 
D110: Módulo 6 - Custos Indiretos, Tributos e Lucro | E110: =F101 -> 
D112: TOTAL DO POSTO | E112: =SUM(E109:E110) -> 
B114: MÓDULO 7 - DESTAQUE DO MÓDULO 2 - 13º SALÁRIO | E114: Percentuais | F114: Valor
C115: A | D115: 13º Salário | E115: ='Encargos Sociais'!E31 -> 0.08333333333 | F115: =ROUND(E115*F$23,2) -> 
C116: B | D116: Encargos Sociais sobre o 13º Salário - Taxa calculada no SUBMÓDULO 2.2 | E116: =SUM($E$31:$E$39) -> 0.358 | F116: =ROUND(E116*$F$115,2) ->  | H116: * Nota 1 - Provisiona-se, mensalmente, o proporcional a 1/12 dos valores referentes a gratificação natalina e adicional de férias.
C117: C | D117: BDI sobre o 13º Salário - Taxa calculada no MÓDULO 6 | E117: =E101 -> 0.2694 | F117: =ROUND(E117*($F$115+$F$116),2) -> 
D119: TOTAL DO DESTAQUE DO 13º SALÁRIO | F119: =SUM(F115:F117) -> 
D121: QUADRO-RESUMO DO CUSTO MENSAL POR EMPREGADO | E121: Valor
D122: Custo total - sem o 13º Salário | E122: =E112 -> 
D123: Destaque do 13º Salário (valor mensal) | E123: =F119 -> 
D125: TOTAL DO POSTO | E125: =E122+E123 -> 

Sheet 12 (hidden)
C1: CÂMARA DOS DEPUTADOS
C2: DEPARTAMENTO TÉCNICO
C3: Coordenação de Planejamento e Gestão
C5: Data: | D5: ='Dados Gerais'!#REF! -> 
C6: Processo: | D6: ='Dados Gerais'!#REF! -> 
C7: Objeto: | D7: ='Dados Gerais'!#REF! -> 
B9: PLANILHA DE ESTIMATIVA DE CUSTOS
B10: Padrão IN 05/2017 e IN 07/2018 - MPDG
B12: 12 | D12: =HLOOKUP($B$12,'Dados Gerais'!$D$5:$BK$20,6) -> 0 | E12: QUANTIDADE | F12: =HLOOKUP($B$12,'Dados Gerais'!$D$5:$BK$20,10) -> 0
B13: CCT | D13: =HLOOKUP($B$12,'Dados Gerais'!$D$5:$BK$20,15) -> 0 | E13: DATA-BASE | F13: =HLOOKUP($B$12,'Dados Gerais'!$D$5:$BK$20,16) -> 00:00:00
B15: MÓDULO 1 - COMPOSIÇÃO DA REMUNERAÇÃO | F15: Valor
C16: A | D16: Salário-Base | F16: =HLOOKUP($B$12,'Dados Gerais'!$D$5:$BK$20,8) -> 0
C17: B | D17: Adicional de Periculosidade | F17: =HLOOKUP($B$12,'Dados Gerais'!$D$5:$BK$37,25) -> 0
C18: C | D18: Adicional de Insalubridade | F18: =HLOOKUP($B$12,'Dados Gerais'!$D$5:$BK$37,31) -> 0
C19: D | D19: Adicional Noturno | F19: =HLOOKUP($B$12,'Dados Gerais'!$D$5:$BK$50,46) ->  | H19: * Nota 1 - O Módulo 1 refere-se ao valor mensal devido ao empregado pela prestação do serviço no período de 12 meses.
C20: E | D20: Adicional de Hora Extra | F20: =HLOOKUP($B$12,'Dados Gerais'!$D$5:$BK$67,63) ->  | H20: * Nota 2 - O adicional de hora extra no feriado trabalhado foi suprimido pela Lei 13.467/17
C21: F | D21: Outros (especificar) | F21: =HLOOKUP($B$12,'Dados Gerais'!$D$5:$BK$59,33) -> 0 | H21: * Nota 3 - ART. 7º, § 2º, DA LEI Nº 605/49.Sendo mensalista o obreiro, o adicional noturno pago de forma fixa já é considerado integrado para os efeitos do pagamento do repouso semanal remunerado, nos termos do art. 7º, § 2º, da Lei nº 605/49.
D23: TOTAL DA REMUNERAÇÃO | F23: =SUM(F16:F21) -> 
B25: MÓDULO 2 - ENCARGOS E BENEFÍCIOS ANUAIS, MENSAIS E DIÁRIOS | E25: Percentuais | F25: Valor
B26: Submódulo 2.1 - 13º Salário, Férias e Adicional de Férias
C27: A | D27: 13º Salário - Calculado no Módulo 7 - Destacado | E27: 0 | F27: =ROUND(E27*F$23,2) -> 
C28: B | D28: Férias e Adicional de Férias | E28: ='Encargos Sociais'!E24+'Encargos Sociais'!E30 -> 0.1212121212 | F28: =ROUND(E28*F$23,2) ->  | H28: * Nota 1 - Provisiona-se, mensalmente, o proporcional a 1/12 dos valores referentes a gratificação natalina, férias e adicional de férias.
H29: * Nota 2 - O adicional de férias contido no Submódulo 2.1 corresponde a 1/3 da remuneração que, por sua vez, é dividida por 12 contome Nota 1.
B30: Submódulo 2.2 - Encargos Previdenciários (GPS), Fundo de Garantia por Tempo de Serviço (FGTS) e Outras Contribuições
C31: A | D31: INSS (art. 22, inciso I, Lei nº 8.212/91) | E31: ='Encargos Sociais'!E13 -> 0.2 | F31: =ROUND(E31*($F$23+$F$48+$F$80),2) -> 
C32: B | D32: Salário Educação (art. 3º, inciso I, Decreto nº 87.043/82) | E32: ='Encargos Sociais'!E14 -> 0.025 | F32: =ROUND(E32*($F$23+$F$48+$F$80),2) -> 
C33: C | D33: SAT/RAT (art. 22, II, Lei 8.212/91 e Anexo V, Decreto 6.042/07) - Enquadramento 8211-3/00 | E33: ='Encargos Sociais'!E15 -> 0.01
C34: D | D34: SESC ou SESI (art. 30, Lei nº 8.036/90 e art. 1º, Lei 8.154/90) | E34: ='Encargos Sociais'!E16 -> 0.015
C35: E | D35: SENAI ou SENAC (Decreto nº 2.318/86) | E35: ='Encargos Sociais'!E17 -> 0.01
C36: F | D36: SEBRAE (§ 3º, art. 8º, Lei 8.029/90, alterada pela Lei nº 8.154/90) | E36: ='Encargos Sociais'!E18 -> 0.006
C37: G | D37: INCRA (art. 1º, I, Decreto Lei 1.146/70 e Lei 7.787, de 30/06/89) | E37: ='Encargos Sociais'!E19 -> 0.002 | H37: * Nota 1 - Os percentuais dos encargos previdenciários, do FGTS e demais contribuições são estabelecidos por legislação vigente.
C38: H | D38: FGTS (Lei Complementar nº 110/01 e art. 30, Lei nº 8.036/90) | E38: ='Encargos Sociais'!E20 -> 0.08 | H38: * Nota 2 - O SAT, a depender do grau de risco do serviço, irá variar entre 1%, para risco leve, de 2%, para risco médio, e de 3% para risco grave.
C39: I | D39: SECONCI (Convenções Coletivas de Trabalho da construção) | E39: ='Encargos Sociais'!E21 -> 0.01 | H39: * Nota 3 - Os percentuais do Submódulo 2.2 incidem sobre o Módulo 1 e o Submódulo 2.1.
B41: Submódulo 2.3 - Benefícios Mensais e Diários
C42: A | D42: Auxílio Transporte | F42: =HLOOKUP($B$12,'Dados Gerais'!$D$5:$BK$93,82) -> 0
C43: B | D43: Auxílio Alimentação | F43: =HLOOKUP($B$12,'Dados Gerais'!$D$5:$BK$93,89) -> 
C44: C | D44: Assistência Médica e Familiar | F44: =HLOOKUP($B$12,'Dados Gerais'!$D$5:$BK$101,97) -> 185.84
C45: D | D45: Outros (Seguro de vida e auxílio funeral e auxílio odontológico) | F45: =HLOOKUP($B$12,'Dados Gerais'!$D$5:$BK$118,114) -> 0 | H45: * Nota 1 - O valor informado deverá ser o custo real do benefício (descontado o valor eventualmente pago pelo empregado).
H46: * Nota 2 - Observar a previsão dos benefícios contidos em Acordos, Convenções e Dissídios Coletivos de Trabalho e o disposto no art. 6º da IN 5/2017
D47: QUADRO-RESUMO DO MÓDULO 2
D48: 2.1 - 13º Salário, Férias e Adicional de Férias - 13º Destacado - Calculado no Módulo 7 | E48: =SUM(E27:E28) -> 0.1212121212 | F48: =F27+F28 -> 
D49: 2.2 - Encargos Previdenciários (GPS), Fundo de Garantia por Tempo de Serviço (FGTS) e Contribuições | E49: =SUM(E31:E39) -> 0.358 | F49: =SUM(F31:F39) -> 
D50: 2.3 - Benefícios Mensais e Diários | F50: =SUM(F42:F45) -> 
D52: TOTAL DOS ENCARGOS E BENEFÍCIOS | F52: =SUM(F48:F50) -> 
B54: MÓDULO 3 - PREVISÃO PARA RESCISÃO | E54: Percentuais | F54: Valor
C55: A | D55: Aviso Prévio Indenizado (Art. 7º, inciso XXI, da CF/1988 e arts. 477, 487, §1º, e 491 da CLT) | E55: ='Encargos Sociais'!E35 -> 0.008333333333 | F55: =ROUND(E55*$F$23,2) -> 
C56: B | D56: Incidência do FGTS sobre o Aviso Prévio Indenizado (Súmula 305 TST) | E56: ='Encargos Sociais'!E36 -> 0.0006666666667 | H56: * Nota 1 - Adotou-se os parâmetros do estudo do STF (http://www.stf.jus.br/arquivo/cms/sobrestfestudosci/anexo/encargos_sociais_03102007.pdf), onde 5% do pessoal é demitido pelo empregador no decurso do contrato (para estes, considerou-se o aviso prévio indenizado). Desprezou-se as demissões por justa causa e os pedidos de demissão.
C57: C | D57: Multa do FGTS e Contribuição Social sobre o Aviso Prévio Indenizado (Art. 18, §1º, da Lei 8.036/1990 e art. 1º da LC nº 110/2001) | E57: ='Encargos Sociais'!E37 -> 0.001274074074 | H57: * Nota 2 - No cálculo do percentual, considerou-se 36 dias, correspondendo à metade da duração média dos contratos (2 anos)
C58: D | D58: Aviso Prévio Trabalhado (Art. 488, parágrafo único, CLT) | E58: ='Encargos Sociais'!E38 -> 0.01203703704 | H58: * Nota 3 - Incide sobre a Remuneração + 13º salário (1/12) + Férias (1/12) + Adicional de Férias (1/36) x 50% multa (40% para o empregado e 10% de contribuição social) x 8% FGTS
C59: E | D59: Incidência de GPS, FGTS e outras contribuições sobre o Aviso Prévio Trabalhado | E59: ='Encargos Sociais'!E39 -> 0.004309259259 | H59: * Nota 4 - Os 95% restantes do cálculo, a um prazo médio de contrato de 4 anos. Assim, calcula-se 7 dias para o 1º ano de contrato e mais 3 dias para os 3 anos seguintes.
C60: F | D60: Multa do FGTS e Contribuição Social sobre o Aviso Prévio Trabalhado | E60: ='Encargos Sociais'!E40 -> 0.03050515556
D62: TOTAL DE PREVISÃO PARA RESCISÃO | F62: =SUM(F55:F60) -> 
B64: MÓDULO 4 - CUSTO DE REPOSIÇÃO DO PROFISSIONAL AUSENTE | E64: Percentuais | F64: Valor
B65: Submódulo 4.1 - Ausências Legais
C66: A | D66: Férias (Arts. 129 e 130, inc. I, da CLT) - Calculado no Submódulo 2.1 | E66: 0 | F66: =ROUND(E66*$F$23,2) ->  | H66: * Nota 1 - As alíneas “A” a “F” referem-se somente ao custo que será pago ao repositor pelos dias trabalhados quando da necessidade de substituir a mão de obra alocada na prestação do serviço.
C67: B | D67: Ausências Legais (Arts. 131 e 473 da CLT) | E67: ='Encargos Sociais'!E25 -> 0.007936507937 | H67: * Nota 2 - Adotou-se a estimativa do SINAPI de 2 dias por ano.
C68: C | D68: Licença-Paternidade (Art. 7º, XIX, e art. 10, §1º, do ADCT, CF/1988 e Art. 1º, II, da Lei 11.770/2008) | E68: ='Encargos Sociais'!E26 -> 0.0008277777778 | H68: * Nota 3 - Utilizada a proporção de 50% para homens, 5 dias de afastamento, e a probabilidade de um trabalhador requerer a Licença Paternidade em 5,22%, conforme SINAPI (citando dados da PNAD 2015)
C69: D | D69: Ausência por Acidente de Trabalho (Art. 131, III, da CLT) | E69: ='Encargos Sociais'!E27 -> 0.0008541666667 | H69: * Nota 4 - Utilzada a estatística de 1,96% dos contribuintes beneficiados com a emissão do auxílio, conforme Anuário Estatístico da Previdência Social. Afastamento de 15 dias a cargo da empresa.
C70: E | D70: Afastamento Maternidade (Art. 71 da Lei nº 8.213/1991) | E70: ='Encargos Sociais'!E28 -> 0.003292592593 | H70: * Nota 5 - Utilizada a proporção de 50% para mulheres, 180 dias de afastamento, e a probabilidade de uma trabalhadora requerer a Licença Maternidade em 4,91%, conforme SINAPI (citando dados do IBGE 2016)
C71: F | D71: Auxílio Enfermidade - Doença (Art. 59 da Lei nº 8.213/1991) | E71: ='Encargos Sociais'!E29 -> 0.007122222222 | H71: * Nota 6 - Utilizada a estatística de 3,37% dos contribuintes beneficiados com o auxílio, conforme Anuário Estatístico da Previdência Social de 2015 (acrescidos de 2 dias ao ano, para os quais o trabalhador nem requer o benefício da Previdência - conforme SINAPI)
B73: Submódulo 4.2 - Intrajornada
C74: A | D74: Intervalo para repouso ou alimentação | E74: ='Encargos Sociais'!E32 -> 0 | F74: =ROUND(E74*$F$23,2) -> 
D76: QUADRO-RESUMO DO MÓDULO 4 | F76: Valor
D77: 4.1 - Ausências Legais | E77: =SUM(E66:E71) -> 0.0200332672 | F77: =ROUND(E77*$F$23,2) -> 
D78: 4.2 - Intrajornada | E78: =E74 -> 0 | F78: =ROUND(E78*$F$23,2) -> 
D80: TOTAL DE PREVISÃO PARA RESCISÃO E INTERVALO INTRAJORNADA | F80: =SUM(F77:F78) -> 
B82: MÓDULO 5 - INSUMOS DIVERSOS | F82: Valor
C83: A | D83: Uniformes - aquisição | F83: =ROUND(HLOOKUP($B$12,Uniformes!K3:DZ33,3)/12,2) -> 0
C84: B | D84: Materiais de consumo relacionados ao posto - aquisição | F84: =ROUND(HLOOKUP(B12,'Mat Cons'!I11:DX13,3)/12,2) -> 0
C85: C | D85: Materiais permanentes relacionados ao posto - remuneração da sua depreciação / manutenção | F85: =HLOOKUP(B12,'Mat Perm'!Q11:EF13,3) -> 0
C86: D | D86: Equipamentos relacionados ao posto - remuneração da sua depreciação / manutenção | F86: =HLOOKUP(B12,'Equip Rel'!Q11:EF13,3) -> 0
C87: E | D87: Equipamentos de Proteção Individual - EPI - aquisição | F87: =ROUND(HLOOKUP(B12,EPI!I3:DX67,3)/12,2) -> 0
D89: TOTAL DE INSUMOS DIVERSOS | F89: =SUM(F83:F88) -> 0 | H89: * Nota - Valores mensais por empregado
B91: MÓDULO 6 - CUSTOS INDIRETOS, TRIBUTOS E LUCRO - BDI | E91: Percentuais | F91: Valor
C92: A | D92: Custos Indiretos | E92: =BDI!E6 -> 0.0444
C93: A.1 | D93: Administração Central | E93: =BDI!E7 -> 0.039
C94: A.2 | D94: Seguros, Garantias e Riscos | E94: =BDI!E8 -> 0.0054
C95: B | D95: Lucro | E95: =BDI!E10 -> 0.06
C96: C | D96: Tributos | E96: =SUM(E97:E98) -> 0.124
C97: C.1 | D97: Tributos Federais (COFINS, PIS e CPRB) | E97: =BDI!E18 -> 0.074
C98: C.2 | D98: Tributos Distritais (ISS) | E98: =BDI!E23 -> 0.05 | H98: * Nota - Utilizou-se o indicado pelo Sindicato da Arquitetura e da Engenharia (Sinaenco, 2008, p. 22), que adota um percentual redutor de 20% no cálculo dos custos tributários relativos às contribuições PIS e COFINS
C99: D | D99: Despesas Financeiras | E99: =BDI!E13 -> 0.004466921098
D101: TOTAL DE BDI | E101: =BDI!E26 -> 0.2694 | F101: =E101*E109 -> 
D103: QUADRO-RESUMO DO CUSTO MENSAL POR EMPREGADO - SEM O 13º | E103: Valor
D104: Módulo 1 - Composição da Remuneração | E104: =F23 -> 
D105: Módulo 2 - Encargos e Benefícios Anuais, Mensais e Diários | E105: =F52 -> 
D106: Módulo 3 - Provisão para Rescisão | E106: =F62 -> 
D107: Módulo 4 - Custo de Reposição do Profissional Ausente | E107: =F80 -> 
D108: Módulo 5 - Insumos Diversos | E108: =F89 -> 0
D109: SUBTOTAL (A+B+C+D+E) | E109: =SUM(E104:E108) -> 
D110: Módulo 6 - Custos Indiretos, Tributos e Lucro | E110: =F101 -> 
D112: TOTAL DO POSTO | E112: =SUM(E109:E110) -> 
B114: MÓDULO 7 - DESTAQUE DO MÓDULO 2 - 13º SALÁRIO | E114: Percentuais | F114: Valor
C115: A | D115: 13º Salário | E115: ='Encargos Sociais'!E31 -> 0.08333333333 | F115: =ROUND(E115*F$23,2) -> 
C116: B | D116: Encargos Sociais sobre o 13º Salário - Taxa calculada no SUBMÓDULO 2.2 | E116: =SUM($E$31:$E$39) -> 0.358 | F116: =ROUND(E116*$F$115,2) ->  | H116: * Nota 1 - Provisiona-se, mensalmente, o proporcional a 1/12 dos valores referentes a gratificação natalina e adicional de férias.
C117: C | D117: BDI sobre o 13º Salário - Taxa calculada no MÓDULO 6 | E117: =E101 -> 0.2694 | F117: =ROUND(E117*($F$115+$F$116),2) -> 
D119: TOTAL DO DESTAQUE DO 13º SALÁRIO | F119: =SUM(F115:F117) -> 
D121: QUADRO-RESUMO DO CUSTO MENSAL POR EMPREGADO | E121: Valor
D122: Custo total - sem o 13º Salário | E122: =E112 -> 
D123: Destaque do 13º Salário (valor mensal) | E123: =F119 -> 
D125: TOTAL DO POSTO | E125: =E122+E123 -> 

Sheet Dados Gerais
B3: INFORMAÇÕES DE ENTRADA
D5: 1 | E5: 2 | F5: 3 | G5: 4 | H5: 5 | I5: 6 | J5: 7 | K5: 8 | L5: 9 | M5: 10 | N5: 11 | O5: 12 | P5: 13 | Q5: 14 | R5: 15 | S5: 16 | T5: 17 | U5: 18 | V5: 19 | W5: 20 | X5: 21 | Y5: 22 | Z5: 23 | AA5: 24 | AB5: 25 | AC5: 26 | AD5: 27 | AE5: 28 | AF5: 29 | AG5: 30 | AH5: 31 | AI5: 32 | AJ5: 33 | AK5: 34 | AL5: 35 | AM5: 36 | AN5: 37 | AO5: 38 | AP5: 39 | AQ5: 40 | AR5: 41 | AS5: 42 | AT5: 43 | AU5: 44 | AV5: 45 | AW5: 46 | AX5: 47 | AY5: 48 | AZ5: 49 | BA5: 50 | BB5: 51 | BC5: 52 | BD5: 53 | BE5: 54 | BF5: 55 | BG5: 56 | BH5: 57 | BI5: 58 | BJ5: 59 | BK5: 60
D6: CARGO 1 | E6: CARGO 2 | F6: CARGO 3 | G6: CARGO 4 | H6: CARGO 5 | I6: CARGO 6 | J6: CARGO 7 | K6: CARGO 8 | L6: CARGO 9 | M6: CARGO 10 | N6: CARGO 11 | O6: CARGO 12 | P6: CARGO 13 | Q6: CARGO 14 | R6: CARGO 15 | S6: CARGO 16 | T6: CARGO 17 | U6: CARGO 18 | V6: CARGO 19 | W6: CARGO 20 | X6: CARGO 21 | Y6: CARGO 22 | Z6: CARGO 23 | AA6: CARGO 24 | AB6: CARGO 25 | AC6: CARGO 26 | AD6: CARGO 27 | AE6: CARGO 28 | AF6: CARGO 29 | AG6: CARGO 30 | AH6: CARGO 31 | AI6: CARGO 32 | AJ6: CARGO 33 | AK6: CARGO 34 | AL6: CARGO 35 | AM6: CARGO 36 | AN6: CARGO 37 | AO6: CARGO 38 | AP6: CARGO 39 | AQ6: CARGO 40 | AR6: CARGO 41 | AS6: CARGO 42 | AT6: CARGO 43 | AU6: CARGO 44 | AV6: CARGO 45 | AW6: CARGO 46 | AX6: CARGO 47 | AY6: CARGO 48 | AZ6: CARGO 49 | BA6: CARGO 50 | BB6: CARGO 51 | BC6: CARGO 52 | BD6: CARGO 53 | BE6: CARGO 54 | BF6: CARGO 55 | BG6: CARGO 56 | BH6: CARGO 57 | BI6: CARGO 58 | BJ6: CARGO 59 | BK6: CARGO 60
B7: INFORMAÇÕES BÁSICAS
B9: DESCRIÇÃO DOS POSTOS DE SERVIÇO
D10: BOMBEIRO HIDRÁULICO DE MANUTENÇÃO | E10: ENCARREGADO DE INSTALAÇÕES | F10: TÉCNICO EM ELETRÔNICA (DETECÇÃO, ALARME E COMBATE A INCÊNCIO) | G10: TÉCNICO EM ELETROTÉCNICA (QUADROS DE COMANDO E AUTOMAÇÃO) | H10: OPERADOR DE CENTRAL DE DETECÇÃO E ALARME DE INCÊNDIO | I10: OPERADOR DE CENTRAL DE DETECÇÃO E ALARME DE INCÊNDIO (COM ADICIONAL NOTURNO)
B11: REMUNERAÇÕES
D12: 2176.581733 | E12: 3527.923263 | F12: 2899.894873 | G12: 3004.863483 | H12: 2333.407505 | I12: 2333.407505
B13: QUANTIDADE DE POSTOS
D14: 1 | E14: 1 | F14: 1 | G14: 1 | H14: 4 | I14: 4
B15: JORNADA
C16: HORAS | D16: 220 | E16: 220 | F16: 220 | G16: 220 | H16: 180 | I16: 180
C17: DIAS/MÊS | D17: 22 | E17: 22 | F17: 22 | G17: 22 | H17: 15 | I17: 15
B18: CCT UTILIZADA
C19: SINDICATOS E REFERÊNCIA | D19: CCT STICOMBE/DF x SINDUSCON/DF 2021/2023 | E19: CCT STICOMBE/DF x SINDUSCON/DF 2021/2023 | F19: CCT STICOMBE/DF x SINDUSCON/DF 2021/2023 | G19: CCT STICOMBE/DF x SINDUSCON/DF 2021/2023 | H19: CCT STICOMBE/DF x SINDUSCON/DF 2021/2023 | I19: CCT STICOMBE/DF x SINDUSCON/DF 2021/2023
C20: DATA-BASE | D20: 2021-05-01 | E20: 2021-05-01 | F20: 2021-05-01 | G20: 2021-05-01 | H20: 2021-05-01 | I20: 2021-05-01
B22: ADICIONAIS LEGAIS E GRATIFICAÇÕES
B24: PERICULOSIDADE (PERCENTUAL)
D25: 0 | E25: 0 | F25: 0 | G25: 0 | H25: 0 | I25: 0
B26: BASE DE CÁLCULO DO ADICIONAL DE PERICULOSIDADE (SALÁRIO BÁSICO)
D27: =D12 -> 2176.581733 | E27: =E12 -> 3527.923263 | F27: =F12 -> 2899.894873 | G27: 2386.75 | H27: 2386.75 | I27: 2386.75 | J27: =J12 -> 0 | K27: =K12 -> 0 | L27: 0 | M27: 0 | N27: 0 | O27: 0
B28: VALOR MENSAL DO ADICIONAL DE PERICULOSIDADE
D29: =ROUND(D25*D12,2) -> 0 | E29: =ROUND(E25*E12,2) -> 0 | F29: =ROUND(F25*F12,2) -> 0 | G29: 0 | H29: 0 | I29: 0 | J29: =ROUND(J25*J12,2) -> 0 | K29: =ROUND(K25*K12,2) -> 0 | L29: 0 | M29: 0 | N29: 0 | O29: 0
B30: INSALUBRIDADE (PERCENTUAL)
D31: 0 | E31: 0 | F31: 0 | G31: 0 | H31: 0 | I31: 0
B32: BASE DE CÁLCULO DO ADICIONAL DE INSALUBRIDADE (SALÁRIO MÍNIMO LEGAL)
D33: 1100 | E33: 1100 | F33: 1100 | G33: 1100 | H33: 1100 | I33: 1100
B34: VALOR MENSAL DO ADICIONAL DE INSALUBRIDADE
D35: =ROUND(D31*D12,2) -> 0 | E35: =ROUND(E31*E12,2) -> 0 | F35: =ROUND(F31*F12,2) -> 0 | G35: 0 | H35: 0 | I35: 0 | J35: =ROUND(J31*J12,2) -> 0 | K35: 0 | L35: 0 | M35: 0 | N35: 0 | O35: 0
B36: GRATIFICAÇÃO - VALOR MENSAL (R$)
D37: 0 | E37: 0 | F37: 0 | G37: 0 | H37: 0 | I37: 0 | J37: 0 | K37: 0 | L37: 0 | M37: 0 | N37: 0 | O37: 0
B39: ADICIONAL NOTURNO
B41: INCIDÊNCIA (PERCENTUAL)
D42: 0.2 | E42: 0.2 | F42: 0.2 | G42: 0.2 | H42: 0.2 | I42: 0.2
B43: HORAS REAIS POR DIA
D44: 0 | E44: 0 | F44: 0 | G44: 0 | H44: 0 | I44: 7
B45: HORAS FICTAS POR DIA
D46: =D44*8/8 -> 0 | E46: =E44*8/8 -> 0 | F46: =F44*8/8 -> 0 | G46: =G44*8/8 -> 0 | H46: 0 | I46: =I44*8/8 -> 7 | J46: 0 | K46: =K44*8/8 -> 0 | L46: 0 | M46: 0 | N46: 0 | O46: 0
B47: BASE DE CÁLCULO DO ADICIONAL NOTURNO (INCLUINDO ADICIONAIS E GRATIFICAÇÕES)
D48: =D12+D29+D35+D37 -> 2176.581733 | E48: 3527.923263 | F48: =F12+F29+F35+F37 -> 2899.894873 | G48: =G12+G29+G35+G37 -> 3004.863483 | H48: 2333.407505 | I48: 2333.407505 | J48: 0 | K48: =K12+K29+K35+K37 -> 0 | L48: 0 | M48: 0 | N48: 0 | O48: =O12+O29+O35+O37 -> 0
B49: VALOR MENSAL DO ADICIONAL NOTURNO (HORA NORMAL + HORA REDUZIDA) - POR POSTO
D50: =ROUND(D48/D16*D42*D46*D17,2) -> 0 | E50: 0 | F50: 0 | G50: 0 | H50: 0 | I50: =ROUND(I48/I16*I42*I46*I17,2) -> 272.23 | J50: =ROUND(J46*J17*J42*J48/J16,2) ->  | K50: =ROUND(K46*K17*K42*K48/K16,2) ->  | O50: =ROUND(O46*O17*O42*O48/O16,2) -> 
B52: ADICIONAL DE HORA EXTRA
B54: INCIDÊNCIA (PERCENTUAL 1)
C55: 100% trabalho realizado em feriados CCT cláusula 33ª | D55: 0.5 | E55: 0.5 | F55: 0.5 | G55: 0.5 | H55: 0.5 | I55: 0.5
B56: HORAS EXTRAS POR MÊS (PERCENTUAL 1)
D57: 0 | E57: 0 | F57: 0 | G57: 0 | H57: 0 | I57: 0
B58: VALOR MENSAL DO ADICIONAL DE HORAS EXTRAS (PERCENTUAL 1) - POR POSTO
D59: =ROUND(D57*D55*D12/D16,2) -> 0 | E59: =ROUND(E57*E55*E12/E16,2) -> 0 | F59: =ROUND(F57*F55*F12/F16,2) -> 0 | G59: 0 | H59: 0 | I59: 0 | J59: =ROUND(J57*J55*J12/J16,2) ->  | K59: =ROUND(K57*K55*K12/K16,2) -> 
B60: INCIDÊNCIA (PERCENTUAL 2)
D61: 1 | E61: 1 | F61: 1 | G61: 1 | H61: 1 | I61: 1
B62: HORAS EXTRAS POR MÊS (PERCENTUAL 2)
D63: 0 | E63: 0 | F63: 0 | G63: 0 | H63: =12/12*12 -> 12 | I63: =12/12*12 -> 12
B64: VALOR MENSAL DO ADICIONAL DE HORAS EXTRAS (PERCENTUAL 2) - POR POSTO
D65: =ROUND(D63*D61*D12/D16,2) -> 0 | E65: =ROUND(E63*E61*E12/E16,2) -> 0 | F65: =ROUND(F63*F61*F12/F16,2) -> 0 | G65: 0 | H65: 0 | I65: 0 | J65: =ROUND(J63*J61*J12/J16,2) ->  | K65: =ROUND(K63*K61*K12/K16,2) -> 
B66: TOTAL MENSAL DOS ADICIONAIS DE HORAS EXTRAS - POR POSTO
D67: =D65+D59 -> 0 | E67: =E65+E59 -> 0 | F67: =F65+F59 -> 0 | G67: 0 | H67: =H12/H16*H63*H61 -> 155.5605004 | I67: =I12/I16*I63*I61 -> 155.5605004 | J67: =J65+J59 ->  | K67: =K65+K59 -> 
B69: BENEFÍCIOS COMUNS - AUXÍLIO TRANSPORTE
B71: DISTRIBUIÇÃO ESTIMADA DE PROCEDÊNCIA
C72: Cidade-satélite | D72: 0.68 | E72: 0.68 | F72: 0.68 | G72: 0.68 | H72: 0.68 | I72: 0.68
C73: Região do entorno | D73: 0.32 | E73: 0.32 | F73: 0.32 | G73: 0.32 | H73: 0.32 | I73: 0.32
C74: Esplanada - apenas para os que vêm do entorno | D74: =D73 -> 0.32 | E74: =E73 -> 0.32 | F74: =F73 -> 0.32 | G74: =G73 -> 0.32 | H74: 0.32 | I74: =I73 -> 0.32
B75: VALORES DOS VALES
C76: Cidade-satélite | D76: 5.5 | E76: 5.5 | F76: 5.5 | G76: =D76 -> 5.5 | H76: 5.5 | I76: 5.5
C77: Região do entorno | D77: 7.05 | E77: 7.05 | F77: 7.05 | G77: 7.05 | H77: 7.05 | I77: 7.05
C78: Esplanada | D78: 2.75 | E78: 2.75 | F78: 2.75 | G78: 2.75 | H78: 2.75 | I78: 2.75
B79: VALOR MENSAL BRUTO DE PAGAMENTO - POR POSTO
D80: =ROUND((D72*D76+D73*D77+D74*D78)*2*D17,2) -> 302.54 | E80: =ROUND((E72*E76+E73*E77+E74*E78)*2*E17,2) -> 302.54 | F80: =ROUND((F72*F76+F73*F77+F74*F78)*2*F17,2) -> 302.54 | G80: =ROUND((G72*G76+G73*G77+G74*G78)*2*G17,2) -> 302.54 | H80: 206.28 | I80: =ROUND((I72*I76+I73*I77+I74*I78)*2*I17,2) -> 206.28 | J80: =ROUND((J72*J76+J73*J77+J74*J78)*2*J17,2) -> 0 | K80: =ROUND((K72*K76+K73*K77+K74*K78)*2*K17,2) -> 0 | L80: 0 | M80: 0 | N80: 0 | O80: 0
B81: PERCENTUAL DE DESCONTO
D82: 0 | E82: 0 | F82: 0 | G82: 0 | H82: 0 | I82: 0
B83: VALOR MENSAL DO DESCONTO - POR POSTO
D84: =ROUND(D82*D12,2) -> 0 | E84: 0 | F84: =ROUND(F82*F12,2) -> 0 | G84: =ROUND(G82*G12,2) -> 0 | H84: 0 | I84: 0 | J84: 0 | K84: =ROUND(K82*K12,2) -> 0 | L84: 0 | M84: 0 | N84: 0 | O84: 0
B85: VALOR MENSAL LÍQUIDO DO VALE TRANSPORTE - POR POSTO
D86: =IF(D80>D84,D80-D84,0) -> 302.54 | E86: 302.54 | F86: =IF(F80>F84,F80-F84,0) -> 302.54 | G86: =IF(G80>G84,G80-G84,0) -> 302.54 | H86: 206.28 | I86: 206.28 | J86: 0 | K86: =IF(K80>K84,K80-K84,0) -> 0 | L86: 0 | M86: 0 | N86: 0 | O86: =IF(O80>O84,O80-O84,0) -> 0
D87: =D86*D14 -> 302.54 | E87: =E86*E14 -> 302.54 | F87: =F86*F14 -> 302.54 | G87: 2962.54 | H87: 2962.54 | I87: 2962.54 | J87: =J86*J14 -> 0 | K87: =K86*K14 -> 0 | L87: =L86*L14 -> 0 | M87: =M86*M14 -> 0
B88: BENEFÍCIOS COMUNS - AUXÍLIO ALIMENTAÇÃO
C90: VALOR CCT | D90: =18.31+4.21 -> 22.52 | E90: =18.31+4.21 -> 22.52 | F90: 22.52 | G90: 22.52 | H90: 22.52 | I90: 22.52
C91: VALOR CD | D91: 24.31 | E91: 24.31 | F91: 24.31 | G91: 24.31 | H91: 24.31 | I91: 24.31
B92: VALOR MENSAL DO AUXÍLIO ALIMENTAÇÃO - POR POSTO
D93: =ROUND(LARGE(D90:D91,1)*D17,2) -> 534.82 | E93: =ROUND(LARGE(E90:E91,1)*E17,2) -> 534.82 | F93: =ROUND(LARGE(F90:F91,1)*F17,2) -> 534.82 | G93: =ROUND(LARGE(G90:G91,1)*G17,2) -> 534.82 | H93: 364.65 | I93: =ROUND(LARGE(I90:I91,1)*I17,2) -> 364.65 | K93: =ROUND(LARGE(K90:K91,1)*K17,2) -> 
D94: =D93*D14 -> 534.82 | E94: =E93*E14 -> 534.82 | F94: =F93*F14 -> 534.82 | G94: 10339.56 | H94: 10339.56 | I94: 10339.56 | J94: =J93*J14 ->  | K94: =K93*K14 ->  | L94: =L93*L14 ->  | M94: =M93*M14 -> 
B95: BENEFÍCIOS ESPECIAIS - ASSISTÊNCIA MÉDICA E FAMILIAR
C97: OBRIGAÇÃO DE PAGTO x % CONTR. PATRONAL | D97: NÃO | E97: NÃO | F97: NÃO | G97: NÃO | H97: NÃO | I97: NÃO | J97: NÃO | K97: SIM | L97: SIM | M97: SIM | N97: SIM | O97: SIM
C98: VALOR CCT | D98: 0 | E98: 0 | F98: 0 | G98: 0 | H98: 0 | I98: 0 | J98: 0
C99: VALOR MERCADO | D99: 0 | E99: 0 | F99: 0 | G99: 0 | H99: 0 | I99: 0 | J99: 0 | K99: =371.67*0.6 -> 223.002 | L99: =371.67*0.5 -> 185.835 | M99: =371.67*0.5 -> 185.835 | N99: 185.835 | O99: 185.835
B100: VALOR MENSAL DO AUXÍLIO ESPECIAL - ASSISTÊNCIA MÉDICA E FAMILIAR - POR POSTO
D101: =IF(D97="SIM",ROUND(SMALL(D98:D99,1),2),0) -> 0 | E101: =IF(E97="SIM",ROUND(SMALL(E98:E99,1),2),0) -> 0 | F101: 0 | G101: 0 | H101: 0 | I101: 0 | J101: 0 | K101: 223 | L101: 185.84 | M101: 185.84 | N101: 185.84 | O101: 185.84
B103: BENEFÍCIOS ESPECIAIS - SEGURO DE VIDA E AUXÍLIO-FUNERAL, AUX ODONT, AUX CRECHE
B105: SEGURO DE VIDA E AUXÍLIO FUNERAL
C106: OBRIGAÇÃO DE PAGTO | D106: SIM | E106: SIM | F106: SIM | G106: SIM | H106: SIM | I106: SIM
C107: VALOR CCT | D107: 0 | E107: 0 | F107: 0 | G107: 0 | H107: 0 | I107: 0
C108: VALOR MERCADO | D108: 12.36 | E108: 12.36 | F108: 12.36 | G108: 12.36 | H108: 12.36 | I108: 12.36
B109: VALOR MENSAL DO AUXÍLIO ESPECIAL - SEGURO DE VIDA E AUXÍLIO FUNERAL - POR POSTO
D110: =IF(D106="SIM",ROUND(SMALL(D107:D108,1),2),0) -> 0 | E110: =IF(E106="SIM",ROUND(SMALL(E107:E108,1),2),0) -> 0 | F110: =IF(F106="SIM",ROUND(SMALL(F107:F108,1),2),0) -> 0 | G110: =IF(G106="SIM",ROUND(SMALL(G107:G108,1),2),0) -> 0 | H110: 0 | I110: 0 | J110: 0 | K110: =IF(K106="SIM",ROUND(SMALL(K107:K108,1),2),0) -> 0 | L110: 0 | M110: 0 | N110: 0 | O110: =IF(O106="SIM",ROUND(SMALL(O107:O108,1),2),0) -> 0
B111: AUXÍLIO ODONTOLÓGICO
C112: OBRIGAÇÃO DE PAGTO | D112: NÃO | E112: NÃO | F112: NÃO | G112: NÃO | H112: NÃO | I112: NÃO | J112: NÃO | K112: NÃO | L112: NÃO | M112: NÃO | N112: NÃO | O112: NÃO
C113: VALOR CCT | D113: 0 | E113: 0 | F113: 0 | G113: 0 | H113: 0 | I113: 0 | J113: 0 | K113: 0 | L113: 0 | M113: 0 | N113: 0 | O113: 0
C114: VALOR MERCADO | D114: 0 | E114: 0 | F114: 0 | G114: 0 | H114: 0 | I114: 0 | J114: 0 | K114: 0 | L114: 0 | M114: 0 | N114: 0 | O114: 0
B115: VALOR MENSAL DO AUXÍLIO ESPECIAL - SEGURO DE VIDA E AUX FUNERAL - POR POSTO
D116: =IF(D112="SIM",ROUND(SMALL(D113:D114,1),2)*D17,0) -> 0 | E116: =IF(E112="SIM",ROUND(SMALL(E113:E114,1),2)*E17,0) -> 0 | F116: =IF(F112="SIM",ROUND(SMALL(F113:F114,1),2)*F17,0) -> 0 | G116: 0 | H116: 0 | I116: 0 | J116: =IF(J112="SIM",ROUND(SMALL(J113:J114,1),2)*J17,0) -> 0 | K116: =IF(K112="SIM",ROUND(SMALL(K113:K114,1),2)*K17,0) -> 0 | L116: 0 | M116: 0 | N116: 0 | O116: 0
B117: TOTAL MENSAL DOS AUXÍLIOS ESPECIAIS - POR POSTO
D118: =D116+D110 -> 0 | E118: 0 | F118: =F116+F110 -> 0 | G118: =G116+G110 -> 0 | H118: 0 | I118: =I116+I110 -> 0 | J118: 0 | K118: =K116+K110 -> 0 | L118: 0 | M118: 0 | N118: 0 | O118: =O116+O110 -> 0

Sheet Encargos Sociais
B3: ENCARGOS SOCIAIS SOBRE A MÃO DE OBRA
E4: Percentuais
B6: Referência:
C7: SINAPI OUT/2018
B9: Categorias:
C10: TODAS
B12: GRUPO A: Encargos Sociais Básicos - Previdenciários (GPS), Fundo de Garantia por Tempo de Serviço (FGTS) e Outras Contribuições | E12: =ROUND(SUM(E13:E21),4) -> 0.358
C13: A | D13: INSS (art. 22, inciso I, Lei nº 8.212/91) | E13: 0.2
C14: B | D14: Salário Educação (art. 3º, inciso I, Decreto nº 87.043/82) | E14: 0.025
C15: C | D15: SAT/RAT (art. 22, II, Lei 8.212/91 e Anexo V, Decreto 6.042/07) - Enquadramento 3314-7/10 | E15: 0.01
C16: D | D16: SESC ou SESI (art. 30, Lei nº 8.036/90 e art. 1º, Lei 8.154/90) | E16: 0.015
C17: E | D17: SENAI ou SENAC (Decreto nº 2.318/86) | E17: 0.01
C18: F | D18: SEBRAE (§ 3º, art. 8º, Lei 8.029/90, alterada pela Lei nº 8.154/90) | E18: 0.006 | G18: * Nota 1 - Os percentuais dos encargos previdenciários, do FGTS e demais contribuições são estabelecidos por legislação vigente.
C19: G | D19: INCRA (art. 1º, I, Decreto Lei 1.146/70 e Lei 7.787, de 30/06/89) | E19: 0.002 | G19: * Nota 2 - O SAT, a depender do grau de risco do serviço, irá variar entre 1%, para risco leve, de 2%, para risco médio, e de 3% para risco grave.
C20: H | D20: FGTS (Lei Complementar nº 110/01 e art. 30, Lei nº 8.036/90) | E20: 0.08 | G20: * Nota 3 - Os percentuais do Submódulo 2.2 incidem sobre o Módulo 1, o Submódulo 2.1, o Módulo 3, o Módulo 4 e o Módulo 6.
C21: I | D21: SECONCI (Convenções Coletivas de Trabalho da construção) | E21: 0.01
B23: GRUPO B: Encargos Sociais Relacionados ao Custo de Reposição do Profissional Ausente - Ausências Legais | E23: =ROUND(SUM(E24:E32),4) -> 0.2246
C24: A | D24: Férias (Arts. 129 e 130, inc. I, da CLT) | E24: =1/11 -> 0.09090909091 | G24: * Nota 1 - As alíneas “A” a “F” referem-se somente ao custo que será pago ao repositor pelos dias trabalhados quando da necessidade de substituir a mão de obra alocada na prestação do serviço.
C25: B | D25: Ausências Legais (Arts. 131 e 473 da CLT) | E25: =2/252 -> 0.007936507937 | G25: * Nota 2 - Adotou-se a estimativa do SINAPI de 2 dias por ano. Em 252 dias úteis por ano.
C26: C | D26: Licença-Paternidade (Art. 7º, XIX, e art. 10, §1º, do ADCT, CF/1988 e Art. 1º, II, da Lei 11.770/2008) | E26: =(5/(30*12))*0.0596 -> 0.0008277777778 | G26: * Nota 3 - Utilizada a proporção de 50% para homens, 5 dias de afastamento, e a probabilidade de um trabalhador requerer a Licença Paternidade em 5,96%, conforme SINAPI (Anuário Estatístico da Previdência Social - 2017)
C27: D | D27: Ausência por Acidente de Trabalho (Art. 131, III, da CLT) | E27: =0.0205*15/360 -> 0.0008541666667 | G27: * Nota 4 - Utilzada a estatística de 2,05% dos contribuintes beneficiados com a emissão do auxílio, conforme Anuário Estatístico da Previdência Social. Afastamento de 15 dias a cargo da empresa.
C28: E | D28: Afastamento Maternidade (Art. 71 da Lei nº 8.213/1991) | E28: =0.0508*(120/360)*(30+30*4/3)/360 -> 0.003292592593 | G28: * Nota 5 - Utilizada a estimativa de 120 dias de afastamento, e a probabilidade de uma trabalhadora requerer a Licença Maternidade em 5,08%, conforme SINAPI (citando dados do IBGE 2017) - A própria previdência paga o benefício pelos 120 dias, contudo o empregador arca com o 13º e com as férias
C29: F | D29: Auxílio Enfermidade - Doença (Art. 59 da Lei nº 8.213/1991) | E29: =((0.0376*15)+2)/360 -> 0.007122222222 | G29: * Nota 6 - Utilizada a estatística de 3,76% dos contribuintes beneficiados com o auxílio, conforme Anuário Estatístico da Previdência Social de 2016 (acrescidos de 2 dias ao ano, para os quais o trabalhador nem requer o benefício da Previdência - conforme SINAPI)
C30: G | D30: Adicional de Férias (componente do Submódulo 2.1) | E30: =1/3*1/11 -> 0.0303030303 | G30: * Nota 7 - O adicional de férias contido no Submódulo 2.1 corresponde a 1/3 da remuneração que, por sua vez, é dividida por 12 contome Nota 1.
C31: H | D31: 13º Salário (destacado na planilha de custos) | E31: =1/12 -> 0.08333333333 | G31: * Nota 8 - Provisiona-se, mensalmente, o proporcional a 1/12 dos valores referentes a gratificação natalina e adicional de férias.
C32: I | D32: Intervalo para repouso ou alimentação (componente do Submódulo 4.2) | E32: 0
B34: GRUPO C: Encargos Sociais Relacionados à Previsão para Rescisão Trabalhista | E34: =ROUND(SUM(E35:E40),4) -> 0.0571
C35: A | D35: Aviso Prévio Indenizado (Art. 7º, inciso XXI, da CF/1988 e arts. 477, 487, §1º, e 491 da CLT) | E35: =0.1*30/360 -> 0.008333333333 | G35: * Nota 1 - Considerou-se demissões de 10% por ano para substituições, a um prazo estimado de contrato de 3 anos. Aviso prévio - 1º ano 30 dias. Considerou-se os 10% demitidos sem justa causa e recebendo aviso indenizado.
C36: B | D36: Incidência do FGTS sobre o Aviso Prévio Indenizado (Súmula 305 TST) | E36: =E20*E35 -> 0.0006666666667 | G36: * Nota 2 - No cálculo do percentual, considerou-se 36 dias, correspondendo à metade da duração média dos contratos (2 anos)
C37: C | D37: Multa do FGTS sobre o Aviso Prévio Indenizado (Art. 18, §1º, da Lei 8.036/1990) | E37: =(1+1/12+1/12+1/36)*0.4*E20*0.1/3 -> 0.001274074074 | G37: * Nota 3 - Incide sobre a Remuneração + 13º salário (1/12) + Férias (1/12) + Adicional de Férias (1/36) x 40% multa para o empregador x 8% FGTS x 10% do pessoal, uma vez a cada 3 anos
C38: D | D38: Aviso Prévio Trabalhado (Art. 488, parágrafo único, CLT) | E38: =((7+2*3)*100%/360)/3 -> 0.01203703704 | G38: * Nota 3 - Considerou-se demissões de 100% ao final do contrato, com um prazo médio estimado de 3 anos. Assim, calcula-se 7 dias para o 1º ano de contrato e mais 3 dias para os 2 anos seguintes. Total 13 dias.
C39: E | D39: Incidência de GPS, FGTS e outras contribuições sobre o Aviso Prévio Trabalhado | E39: =E38*E12 -> 0.004309259259
C40: F | D40: Multa do FGTS sobre o Aviso Prévio Trabalhado | E40: =(1+1/12+1/12+1/36)*0.4*E20*(1-0.2019) -> 0.03050515556 | G40: * Nota 4 - Incide sobre a Remuneração + 13º salário (1/12) + Férias (1/12) + Adicional de Férias (1/36) x 40% multa para o empregador x 8% FGTS
B42: GRUPO D: Reincidências | E42: =ROUND(SUM(E43:E43),4) -> 0.0804
C43: A | D43: Reincidência do Grupo A sobre o Grupo B | E43: =E12*E23 -> 0.0804068
D45: SOMATÓRIO - ENCARGOS SOCIAIS SOBRE A MÃO DE OBRA | E45: =E42+E34+E23+E12 -> 0.7201

Sheet BDI
B3: COMPOSIÇÃO DA TAXA DE CUSTOS INDIRETOS, TRIBUTOS E LUCRO - BDI
B4: APLICAÇÃO: MÃO DE OBRA, 13º, MATERIAIS, EPC E EQUIPAMENTO DE REGISTRO DE FREQUÊNCIA | E4: Percentuais
B6: Custos Indiretos da Contratada | E6: =SUM(E7:E8) -> 0.0444
C7: A | D7: Administração Central | E7: 0.039 | G7: * Nota 1 - O Somatório da Administração Central com o Lucro deve ser inferior a 12%
C8: B | D8: Seguros, Garantias e Riscos | E8: =0.34%+0.2% -> 0.0054 | G8: * Nota 2 - O risco previsto para o porte do contrato majorado em mais 0,20% devido ao não pagamento dos insumos componentes do custo do posto quando da ausência do mesmo.
B10: Lucro | E10: =SUM(E11:E11) -> 0.06
C11: A | D11: Lucro Real sobre os Custos Administrados | E11: 0.06
B13: Despesas Financeiras | E13: =E14 -> 0.004466921098
C14: A | D14: Cálculo Baseado no Prazo para a Restituição dos Desembolsos Realizados pelo Contratado e na Taxa de Retorno Arbitrada | E14: =(1+E16)^(E15/252)-1 -> 0.004466921098 | G14: * Nota 1 - DF = [(1+TR)^(DU/252)]/100
C15: A.1 | D15: Dias Úteis Considerados | E15: 11 | G15: * Nota 2 - Diferença de dias entre o desembolso, pelo contratado, e o pagamento, pela Câmara
C16: A.2 | D16: Taxa de Retorno | E16: 0.1075 | G16: * Nota 3 - A taxa sugerida é a meta da SELIC
B18: Impostos - Tributos Federais | E18: =SUM(E19:E21) -> 0.074
C19: A | D19: Contribuição para o Financiamento da Seguridade Social - COFINS | E19: =0.8*7.6% -> 0.0608 | G19: * Nota 1 - Redução de 20% considerando as deduções permitidas em Lei, conforme SENGE, citado pelo TCU - Acórdão 2622/2013
C20: B | D20: Programa de Integração Social - PIS | E20: =0.8*1.65% -> 0.0132 | G20: * Nota 2 - Redução de 20% considerando as deduções permitidas em Lei, conforme SENGE, citado pelo TCU - Acórdão 2622/2013
C21: C | D21: Contribuição Previdenciária sobre a Receita Bruta - CPRB | E21: 0 | G21: * Nota 3 - Lei 12.546/2011 - Verificar atualizações e setores beneficiados
B23: Impostos - Tributos Distritais | E23: =SUM(E24:E24) -> 0.05
C24: A | D24: Imposto sobre Serviço de Qualquer Natureza - ISS | E24: 0.05
D26: SOMATÓRIO - TAXA DE CUSTOS INDIRETOS, TRIBUTOS E LUCRO - BDI | E26: =ROUND((((1+E6)*(1+E10)*(1+E13)/(1-E18-E23))-1),4) -> 0.2694 | G26: * Nota 1 - [(1+AC+SGR)*(1+L)*(1+DF)/(1-CONFINS-PIS-CPRB-ISS)]-1

Sheet Uniformes
B3: UNIFORMES - AQUISIÇÃO | K3: 1 | M3: =K3+1 -> 2 | O3: =M3+1 -> 3 | Q3: =O3+1 -> 4 | S3: =Q3+1 -> 5 | U3: =S3+1 -> 6 | W3: =U3+1 -> 7 | Y3: =W3+1 -> 8 | AA3: =Y3+1 -> 9 | AC3: =AA3+1 -> 10 | AE3: =AC3+1 -> 11 | AG3: =AE3+1 -> 12 | AI3: =AG3+1 -> 13 | AK3: =AI3+1 -> 14 | AM3: =AK3+1 -> 15 | AO3: =AM3+1 -> 16 | AQ3: =AO3+1 -> 17 | AS3: =AQ3+1 -> 18 | AU3: =AS3+1 -> 19 | AW3: =AU3+1 -> 20 | AY3: =AW3+1 -> 21 | BA3: =AY3+1 -> 22 | BC3: =BA3+1 -> 23 | BE3: =BC3+1 -> 24 | BG3: =BE3+1 -> 25 | BI3: =BG3+1 -> 26 | BK3: =BI3+1 -> 27 | BM3: =BK3+1 -> 28 | BO3: =BM3+1 -> 29 | BQ3: =BO3+1 -> 30 | BS3: =BQ3+1 -> 31 | BU3: =BS3+1 -> 32 | BW3: =BU3+1 -> 33 | BY3: =BW3+1 -> 34 | CA3: =BY3+1 -> 35 | CC3: =CA3+1 -> 36 | CE3: =CC3+1 -> 37 | CG3: =CE3+1 -> 38 | CI3: =CG3+1 -> 39 | CK3: =CI3+1 -> 40 | CM3: =CK3+1 -> 41 | CO3: =CM3+1 -> 42 | CQ3: =CO3+1 -> 43 | CS3: =CQ3+1 -> 44 | CU3: =CS3+1 -> 45 | CW3: =CU3+1 -> 46 | CY3: =CW3+1 -> 47 | DA3: =CY3+1 -> 48 | DC3: =DA3+1 -> 49 | DE3: =DC3+1 -> 50 | DG3: =DE3+1 -> 51 | DI3: =DG3+1 -> 52 | DK3: =DI3+1 -> 53 | DM3: =DK3+1 -> 54 | DO3: =DM3+1 -> 55 | DQ3: =DO3+1 -> 56 | DS3: =DQ3+1 -> 57 | DU3: =DS3+1 -> 58 | DW3: =DU3+1 -> 59 | DY3: =DW3+1 -> 60
K5: =ROUND(SUM(L4:L52),2) -> 388.58 | M5: =ROUND(SUM(N4:N52),2) -> 388.58 | O5: =ROUND(SUM(P4:P52),2) -> 388.58 | Q5: =ROUND(SUM(R4:R52),2) -> 388.58 | S5: =ROUND(SUM(T4:T52),2) -> 388.58 | U5: =ROUND(SUM(V4:V52),2) -> 388.58 | W5: =ROUND(SUM(X4:X52),2) -> 0 | Y5: =ROUND(SUM(Z4:Z52),2) -> 0 | AA5: =ROUND(SUM(AB4:AB52),2) -> 0 | AC5: =ROUND(SUM(AD4:AD52),2) -> 0 | AE5: =ROUND(SUM(AF4:AF52),2) -> 0 | AG5: =ROUND(SUM(AH4:AH52),2) -> 0 | AI5: =ROUND(SUM(AJ4:AJ52),2) -> 0 | AK5: =ROUND(SUM(AL4:AL52),2) -> 0 | AM5: =ROUND(SUM(AN4:AN52),2) -> 0 | AO5: =ROUND(SUM(AP4:AP52),2) -> 0 | AQ5: =ROUND(SUM(AR4:AR52),2) -> 0 | AS5: =ROUND(SUM(AT4:AT52),2) -> 0 | AU5: =ROUND(SUM(AV4:AV52),2) -> 0 | AW5: =ROUND(SUM(AX4:AX52),2) -> 0 | AY5: =ROUND(SUM(AZ4:AZ52),2) -> 0 | BA5: =ROUND(SUM(BB4:BB52),2) -> 0 | BC5: =ROUND(SUM(BD4:BD52),2) -> 0 | BE5: =ROUND(SUM(BF4:BF52),2) -> 0 | BG5: =ROUND(SUM(BH4:BH52),2) -> 0 | BI5: =ROUND(SUM(BJ4:BJ52),2) -> 0 | BK5: =ROUND(SUM(BL4:BL52),2) -> 0 | BM5: =ROUND(SUM(BN4:BN52),2) -> 0 | BO5: =ROUND(SUM(BP4:BP52),2) -> 0 | BQ5: =ROUND(SUM(BR4:BR52),2) -> 0 | BS5: =ROUND(SUM(BT4:BT52),2) -> 0 | BU5: =ROUND(SUM(BV4:BV52),2) -> 0 | BW5: =ROUND(SUM(BX4:BX52),2) -> 0 | BY5: =ROUND(SUM(BZ4:BZ52),2) -> 0 | CA5: =ROUND(SUM(CB4:CB52),2) -> 0 | CC5: =ROUND(SUM(CD4:CD52),2) -> 0 | CE5: =ROUND(SUM(CF4:CF52),2) -> 0 | CG5: =ROUND(SUM(CH4:CH52),2) -> 0 | CI5: =ROUND(SUM(CJ4:CJ52),2) -> 0 | CK5: =ROUND(SUM(CL4:CL52),2) -> 0 | CM5: =ROUND(SUM(CN4:CN52),2) -> 0 | CO5: =ROUND(SUM(CP4:CP52),2) -> 0 | CQ5: =ROUND(SUM(CR4:CR52),2) -> 0 | CS5: =ROUND(SUM(CT4:CT52),2) -> 0 | CU5: =ROUND(SUM(CV4:CV52),2) -> 0 | CW5: =ROUND(SUM(CX4:CX52),2) -> 0 | CY5: =ROUND(SUM(CZ4:CZ52),2) -> 0 | DA5: =ROUND(SUM(DB4:DB52),2) -> 0 | DC5: =ROUND(SUM(DD4:DD52),2) -> 0 | DE5: =ROUND(SUM(DF4:DF52),2) -> 0 | DG5: =ROUND(SUM(DH4:DH52),2) -> 0 | DI5: =ROUND(SUM(DJ4:DJ52),2) -> 0 | DK5: =ROUND(SUM(DL4:DL52),2) -> 0 | DM5: =ROUND(SUM(DN4:DN52),2) -> 0 | DO5: =ROUND(SUM(DP4:DP52),2) -> 0 | DQ5: =ROUND(SUM(DR4:DR52),2) -> 0 | DS5: =ROUND(SUM(DT4:DT52),2) -> 0 | DU5: =ROUND(SUM(DV4:DV52),2) -> 0 | DW5: =ROUND(SUM(DX4:DX52),2) -> 0 | DY5: =ROUND(SUM(DZ4:DZ52),2) -> 0
C6: CATEGORIAS | H6: QUANTIDADE
C8: 1 | D8: =HLOOKUP($C8,'Dados Gerais'!$D$5:$BK$10,6) -> BOMBEIRO HIDRÁULICO DE MANUTENÇÃO | H8: =HLOOKUP($C8,'Dados Gerais'!$D$5:$BK$14,10) -> 1 | K8: =IF($C8=K$3,1,0) -> 1 | M8: =IF($C8=M$3,1,0) -> 0 | O8: =IF($C8=O$3,1,0) -> 0 | Q8: =IF($C8=Q$3,1,0) -> 0 | S8: =IF($C8=S$3,1,0) -> 0 | U8: =IF($C8=U$3,1,0) -> 0 | W8: =IF($C8=W$3,1,0) -> 0 | Y8: =IF($C8=Y$3,1,0) -> 0 | AA8: =IF($C8=AA$3,1,0) -> 0 | AC8: =IF($C8=AC$3,1,0) -> 0 | AE8: =IF($C8=AE$3,1,0) -> 0 | AG8: =IF($C8=AG$3,1,0) -> 0 | AI8: =IF($C8=AI$3,1,0) -> 0 | AK8: =IF($C8=AK$3,1,0) -> 0 | AM8: =IF($C8=AM$3,1,0) -> 0 | AO8: =IF($C8=AO$3,1,0) -> 0 | AQ8: =IF($C8=AQ$3,1,0) -> 0 | AS8: =IF($C8=AS$3,1,0) -> 0 | AU8: =IF($C8=AU$3,1,0) -> 0 | AW8: =IF($C8=AW$3,1,0) -> 0 | AY8: =IF($C8=AY$3,1,0) -> 0 | BA8: =IF($C8=BA$3,1,0) -> 0 | BC8: =IF($C8=BC$3,1,0) -> 0 | BE8: =IF($C8=BE$3,1,0) -> 0 | BG8: =IF($C8=BG$3,1,0) -> 0 | BI8: =IF($C8=BI$3,1,0) -> 0 | BK8: =IF($C8=BK$3,1,0) -> 0 | BM8: =IF($C8=BM$3,1,0) -> 0 | BO8: =IF($C8=BO$3,1,0) -> 0 | BQ8: =IF($C8=BQ$3,1,0) -> 0 | BS8: =IF($C8=BS$3,1,0) -> 0 | BU8: =IF($C8=BU$3,1,0) -> 0 | BW8: =IF($C8=BW$3,1,0) -> 0 | BY8: =IF($C8=BY$3,1,0) -> 0 | CA8: =IF($C8=CA$3,1,0) -> 0 | CC8: =IF($C8=CC$3,1,0) -> 0 | CE8: =IF($C8=CE$3,1,0) -> 0 | CG8: =IF($C8=CG$3,1,0) -> 0 | CI8: =IF($C8=CI$3,1,0) -> 0 | CK8: =IF($C8=CK$3,1,0) -> 0 | CM8: =IF($C8=CM$3,1,0) -> 0 | CO8: =IF($C8=CO$3,1,0) -> 0 | CQ8: =IF($C8=CQ$3,1,0) -> 0 | CS8: =IF($C8=CS$3,1,0) -> 0 | CU8: =IF($C8=CU$3,1,0) -> 0 | CW8: =IF($C8=CW$3,1,0) -> 0 | CY8: =IF($C8=CY$3,1,0) -> 0 | DA8: =IF($C8=DA$3,1,0) -> 0 | DC8: =IF($C8=DC$3,1,0) -> 0 | DE8: =IF($C8=DE$3,1,0) -> 0 | DG8: =IF($C8=DG$3,1,0) -> 0 | DI8: =IF($C8=DI$3,1,0) -> 0 | DK8: =IF($C8=DK$3,1,0) -> 0 | DM8: =IF($C8=DM$3,1,0) -> 0 | DO8: =IF($C8=DO$3,1,0) -> 0 | DQ8: =IF($C8=DQ$3,1,0) -> 0 | DS8: =IF($C8=DS$3,1,0) -> 0 | DU8: =IF($C8=DU$3,1,0) -> 0 | DW8: =IF($C8=DW$3,1,0) -> 0 | DY8: =IF($C8=DY$3,1,0) -> 0
C9: 2 | D9: =HLOOKUP($C9,'Dados Gerais'!$D$5:$BK$10,6) -> ENCARREGADO DE INSTALAÇÕES | H9: =HLOOKUP($C9,'Dados Gerais'!$D$5:$BK$14,10) -> 1 | K9: =IF($C9=K$3,1,0) -> 0 | M9: 1 | O9: 0 | Q9: 0 | S9: 0 | U9: 0 | W9: 0 | Y9: 0 | AA9: 0 | AC9: 0 | AE9: 0 | AG9: 0 | AI9: 0 | AK9: 0 | AM9: 0 | AO9: 0 | AQ9: 0 | AS9: 0 | AU9: 0 | AW9: 0 | AY9: 0 | BA9: 0 | BC9: 0 | BE9: 0 | BG9: 0 | BI9: 0 | BK9: 0 | BM9: 0 | BO9: 0 | BQ9: 0 | BS9: 0 | BU9: 0 | BW9: 0 | BY9: 0 | CA9: 0 | CC9: 0 | CE9: 0 | CG9: 0 | CI9: 0 | CK9: 0 | CM9: 0 | CO9: 0 | CQ9: 0 | CS9: 0 | CU9: 0 | CW9: 0 | CY9: 0 | DA9: 0 | DC9: 0 | DE9: 0 | DG9: 0 | DI9: 0 | DK9: 0 | DM9: 0 | DO9: 0 | DQ9: 0 | DS9: 0 | DU9: 0 | DW9: 0 | DY9: 0
C10: 3 | D10: =HLOOKUP($C10,'Dados Gerais'!$D$5:$BK$10,6) -> TÉCNICO EM ELETRÔNICA (DETECÇÃO, ALARME E COMBATE A INCÊNCIO) | H10: =HLOOKUP($C10,'Dados Gerais'!$D$5:$BK$14,10) -> 1 | K10: =IF($C10=K$3,1,0) -> 0 | M10: 0 | O10: 1 | Q10: 0 | S10: 0 | U10: 0 | W10: 0 | Y10: 0 | AA10: 0 | AC10: 0 | AE10: 0 | AG10: 0 | AI10: 0 | AK10: 0 | AM10: 0 | AO10: 0 | AQ10: 0 | AS10: 0 | AU10: 0 | AW10: 0 | AY10: 0 | BA10: 0 | BC10: 0 | BE10: 0 | BG10: 0 | BI10: 0 | BK10: 0 | BM10: 0 | BO10: 0 | BQ10: 0 | BS10: 0 | BU10: 0 | BW10: 0 | BY10: 0 | CA10: 0 | CC10: 0 | CE10: 0 | CG10: 0 | CI10: 0 | CK10: 0 | CM10: 0 | CO10: 0 | CQ10: 0 | CS10: 0 | CU10: 0 | CW10: 0 | CY10: 0 | DA10: 0 | DC10: 0 | DE10: 0 | DG10: 0 | DI10: 0 | DK10: 0 | DM10: 0 | DO10: 0 | DQ10: 0 | DS10: 0 | DU10: 0 | DW10: 0 | DY10: 0
C11: 4 | D11: =HLOOKUP($C11,'Dados Gerais'!$D$5:$BK$10,6) -> TÉCNICO EM ELETROTÉCNICA (QUADROS DE COMANDO E AUTOMAÇÃO) | H11: =HLOOKUP($C11,'Dados Gerais'!$D$5:$BK$14,10) -> 1 | K11: =IF($C11=K$3,1,0) -> 0 | M11: 0 | O11: 0 | Q11: 1 | S11: 0 | U11: 0 | W11: 0 | Y11: 0 | AA11: 0 | AC11: 0 | AE11: 0 | AG11: 0 | AI11: 0 | AK11: 0 | AM11: 0 | AO11: 0 | AQ11: 0 | AS11: 0 | AU11: 0 | AW11: 0 | AY11: 0 | BA11: 0 | BC11: 0 | BE11: 0 | BG11: 0 | BI11: 0 | BK11: 0 | BM11: 0 | BO11: 0 | BQ11: 0 | BS11: 0 | BU11: 0 | BW11: 0 | BY11: 0 | CA11: 0 | CC11: 0 | CE11: 0 | CG11: 0 | CI11: 0 | CK11: 0 | CM11: 0 | CO11: 0 | CQ11: 0 | CS11: 0 | CU11: 0 | CW11: 0 | CY11: 0 | DA11: 0 | DC11: 0 | DE11: 0 | DG11: 0 | DI11: 0 | DK11: 0 | DM11: 0 | DO11: 0 | DQ11: 0 | DS11: 0 | DU11: 0 | DW11: 0 | DY11: 0
C14: ITEM | D14: DESCRIÇÃO | E14: QUANT ANUAL POR POSTO | F14: Nº DE POSTOS | G14: QUANT ANUAL TOTAL | H14: VALOR
AV15: =IF(SUM(AU$7:AU$12)>0,$E15*$H15,0) -> 0 | AX15: =IF(SUM(AW$7:AW$12)>0,$E15*$H15,0) -> 0 | AZ15: =IF(SUM(AY$7:AY$12)>0,$E15*$H15,0) -> 0 | BB15: =IF(SUM(BA$7:BA$12)>0,$E15*$H15,0) -> 0 | BD15: =IF(SUM(BC$7:BC$12)>0,$E15*$H15,0) -> 0 | BF15: =IF(SUM(BE$7:BE$12)>0,$E15*$H15,0) -> 0 | BH15: =IF(SUM(BG$7:BG$12)>0,$E15*$H15,0) -> 0 | BJ15: =IF(SUM(BI$7:BI$12)>0,$E15*$H15,0) -> 0 | BL15: =IF(SUM(BK$7:BK$12)>0,$E15*$H15,0) -> 0 | BN15: =IF(SUM(BM$7:BM$12)>0,$E15*$H15,0) -> 0 | BP15: =IF(SUM(BO$7:BO$12)>0,$E15*$H15,0) -> 0 | BR15: =IF(SUM(BQ$7:BQ$12)>0,$E15*$H15,0) -> 0 | BT15: =IF(SUM(BS$7:BS$12)>0,$E15*$H15,0) -> 0 | BV15: =IF(SUM(BU$7:BU$12)>0,$E15*$H15,0) -> 0 | BX15: =IF(SUM(BW$7:BW$12)>0,$E15*$H15,0) -> 0 | BZ15: =IF(SUM(BY$7:BY$12)>0,$E15*$H15,0) -> 0 | CB15: =IF(SUM(CA$7:CA$12)>0,$E15*$H15,0) -> 0 | CD15: =IF(SUM(CC$7:CC$12)>0,$E15*$H15,0) -> 0 | CF15: =IF(SUM(CE$7:CE$12)>0,$E15*$H15,0) -> 0 | CH15: =IF(SUM(CG$7:CG$12)>0,$E15*$H15,0) -> 0 | CJ15: =IF(SUM(CI$7:CI$12)>0,$E15*$H15,0) -> 0 | CL15: =IF(SUM(CK$7:CK$12)>0,$E15*$H15,0) -> 0 | CN15: =IF(SUM(CM$7:CM$12)>0,$E15*$H15,0) -> 0 | CP15: =IF(SUM(CO$7:CO$12)>0,$E15*$H15,0) -> 0 | CR15: =IF(SUM(CQ$7:CQ$12)>0,$E15*$H15,0) -> 0 | CT15: =IF(SUM(CS$7:CS$12)>0,$E15*$H15,0) -> 0 | CV15: =IF(SUM(CU$7:CU$12)>0,$E15*$H15,0) -> 0 | CX15: =IF(SUM(CW$7:CW$12)>0,$E15*$H15,0) -> 0 | CZ15: =IF(SUM(CY$7:CY$12)>0,$E15*$H15,0) -> 0 | DB15: =IF(SUM(DA$7:DA$12)>0,$E15*$H15,0) -> 0 | DD15: =IF(SUM(DC$7:DC$12)>0,$E15*$H15,0) -> 0 | DF15: =IF(SUM(DE$7:DE$12)>0,$E15*$H15,0) -> 0 | DH15: =IF(SUM(DG$7:DG$12)>0,$E15*$H15,0) -> 0 | DJ15: =IF(SUM(DI$7:DI$12)>0,$E15*$H15,0) -> 0 | DL15: =IF(SUM(DK$7:DK$12)>0,$E15*$H15,0) -> 0 | DN15: =IF(SUM(DM$7:DM$12)>0,$E15*$H15,0) -> 0 | DP15: =IF(SUM(DO$7:DO$12)>0,$E15*$H15,0) -> 0 | DR15: =IF(SUM(DQ$7:DQ$12)>0,$E15*$H15,0) -> 0 | DT15: =IF(SUM(DS$7:DS$12)>0,$E15*$H15,0) -> 0 | DV15: =IF(SUM(DU$7:DU$12)>0,$E15*$H15,0) -> 0 | DX15: =IF(SUM(DW$7:DW$12)>0,$E15*$H15,0) -> 0 | DZ15: =IF(SUM(DY$7:DY$12)>0,$E15*$H15,0) -> 0
D16: Calça jeans azul marinho | E16: 2 | F16: =SUM(H8:H11) -> 4 | G16: =E16*F16 -> 8 | H16: 68.1 | L16: =IF(SUM(K$7:K$12)>0,$E16*$H16,0) -> 136.2 | N16: =IF(SUM(M$7:M$12)>0,$E16*$H16,0) -> 136.2 | P16: =IF(SUM(O$7:O$12)>0,$E16*$H16,0) -> 136.2 | R16: =IF(SUM(Q$7:Q$12)>0,$E16*$H16,0) -> 136.2 | T16: =IF(SUM(S$7:S$12)>0,$E16*$H16,0) -> 0 | V16: =IF(SUM(U$7:U$12)>0,$E16*$H16,0) -> 0 | X16: =IF(SUM(W$7:W$12)>0,$E16*$H16,0) -> 0 | Z16: =IF(SUM(Y$7:Y$12)>0,$E16*$H16,0) -> 0 | AB16: =IF(SUM(AA$7:AA$12)>0,$E16*$H16,0) -> 0 | AD16: =IF(SUM(AC$7:AC$12)>0,$E16*$H16,0) -> 0 | AF16: =IF(SUM(AE$7:AE$12)>0,$E16*$H16,0) -> 0 | AH16: =IF(SUM(AG$7:AG$12)>0,$E16*$H16,0) -> 0 | AJ16: =IF(SUM(AI$7:AI$12)>0,$E16*$H16,0) -> 0 | AL16: =IF(SUM(AK$7:AK$12)>0,$E16*$H16,0) -> 0 | AN16: =IF(SUM(AM$7:AM$12)>0,$E16*$H16,0) -> 0 | AP16: =IF(SUM(AO$7:AO$12)>0,$E16*$H16,0) -> 0 | AR16: =IF(SUM(AQ$7:AQ$12)>0,$E16*$H16,0) -> 0 | AT16: =IF(SUM(AS$7:AS$12)>0,$E16*$H16,0) -> 0 | AV16: 0 | AX16: 0 | AZ16: 0 | BB16: 0 | BD16: 0 | BF16: 0 | BH16: 0 | BJ16: 0 | BL16: 0 | BN16: 0 | BP16: 0 | BR16: 0 | BT16: 0 | BV16: 0 | BX16: 0 | BZ16: 0 | CB16: 0 | CD16: 0 | CF16: 0 | CH16: 0 | CJ16: 0 | CL16: 0 | CN16: 0 | CP16: 0 | CR16: 0 | CT16: 0 | CV16: 0 | CX16: 0 | CZ16: 0 | DB16: 0 | DD16: 0 | DF16: 0 | DH16: 0 | DJ16: 0 | DL16: 0 | DN16: 0 | DP16: 0 | DR16: 0 | DT16: 0 | DV16: 0 | DX16: 0 | DZ16: 0
D17: Camisa com manga curta em poliéster na cor azul marinho | E17: 6 | F17: =F16 -> 4 | G17: =E17*F17 -> 24 | H17: 27.09 | L17: =IF(SUM(K$7:K$12)>0,$E17*$H17,0) -> 162.54 | N17: =IF(SUM(M$7:M$12)>0,$E17*$H17,0) -> 162.54 | P17: =IF(SUM(O$7:O$12)>0,$E17*$H17,0) -> 162.54 | R17: =IF(SUM(Q$7:Q$12)>0,$E17*$H17,0) -> 162.54 | T17: =IF(SUM(S$7:S$12)>0,$E17*$H17,0) -> 0 | V17: =IF(SUM(U$7:U$12)>0,$E17*$H17,0) -> 0 | X17: =IF(SUM(W$7:W$12)>0,$E17*$H17,0) -> 0 | Z17: =IF(SUM(Y$7:Y$12)>0,$E17*$H17,0) -> 0 | AB17: =IF(SUM(AA$7:AA$12)>0,$E17*$H17,0) -> 0 | AD17: =IF(SUM(AC$7:AC$12)>0,$E17*$H17,0) -> 0 | AF17: =IF(SUM(AE$7:AE$12)>0,$E17*$H17,0) -> 0 | AH17: =IF(SUM(AG$7:AG$12)>0,$E17*$H17,0) -> 0 | AJ17: =IF(SUM(AI$7:AI$12)>0,$E17*$H17,0) -> 0 | AL17: =IF(SUM(AK$7:AK$12)>0,$E17*$H17,0) -> 0 | AN17: =IF(SUM(AM$7:AM$12)>0,$E17*$H17,0) -> 0 | AP17: =IF(SUM(AO$7:AO$12)>0,$E17*$H17,0) -> 0 | AR17: =IF(SUM(AQ$7:AQ$12)>0,$E17*$H17,0) -> 0 | AT17: =IF(SUM(AS$7:AS$12)>0,$E17*$H17,0) -> 0 | AV17: 0 | AX17: 0 | AZ17: 0 | BB17: 0 | BD17: 0 | BF17: 0 | BH17: 0 | BJ17: 0 | BL17: 0 | BN17: 0 | BP17: 0 | BR17: 0 | BT17: 0 | BV17: 0 | BX17: 0 | BZ17: 0 | CB17: 0 | CD17: 0 | CF17: 0 | CH17: 0 | CJ17: 0 | CL17: 0 | CN17: 0 | CP17: 0 | CR17: 0 | CT17: 0 | CV17: 0 | CX17: 0 | CZ17: 0 | DB17: 0 | DD17: 0 | DF17: 0 | DH17: 0 | DJ17: 0 | DL17: 0 | DN17: 0 | DP17: 0 | DR17: 0 | DT17: 0 | DV17: 0 | DX17: 0 | DZ17: 0
D18: Meia social preta | E18: 8 | F18: =F17 -> 4 | G18: =E18*F18 -> 32 | H18: 11.23 | L18: =IF(SUM(K$7:K$12)>0,$E18*$H18,0) -> 89.84 | N18: =IF(SUM(M$7:M$12)>0,$E18*$H18,0) -> 89.84 | P18: =IF(SUM(O$7:O$12)>0,$E18*$H18,0) -> 89.84 | R18: =IF(SUM(Q$7:Q$12)>0,$E18*$H18,0) -> 89.84 | T18: =IF(SUM(S$7:S$12)>0,$E18*$H18,0) -> 0 | V18: =IF(SUM(U$7:U$12)>0,$E18*$H18,0) -> 0 | X18: =IF(SUM(W$7:W$12)>0,$E18*$H18,0) -> 0 | Z18: =IF(SUM(Y$7:Y$12)>0,$E18*$H18,0) -> 0 | AB18: =IF(SUM(AA$7:AA$12)>0,$E18*$H18,0) -> 0 | AD18: =IF(SUM(AC$7:AC$12)>0,$E18*$H18,0) -> 0 | AF18: =IF(SUM(AE$7:AE$12)>0,$E18*$H18,0) -> 0 | AH18: =IF(SUM(AG$7:AG$12)>0,$E18*$H18,0) -> 0 | AJ18: =IF(SUM(AI$7:AI$12)>0,$E18*$H18,0) -> 0 | AL18: =IF(SUM(AK$7:AK$12)>0,$E18*$H18,0) -> 0 | AN18: =IF(SUM(AM$7:AM$12)>0,$E18*$H18,0) -> 0 | AP18: =IF(SUM(AO$7:AO$12)>0,$E18*$H18,0) -> 0 | AR18: =IF(SUM(AQ$7:AQ$12)>0,$E18*$H18,0) -> 0 | AT18: =IF(SUM(AS$7:AS$12)>0,$E18*$H18,0) -> 0 | AV18: 0 | AX18: 0 | AZ18: 0 | BB18: 0 | BD18: 0 | BF18: 0 | BH18: 0 | BJ18: 0 | BL18: 0 | BN18: 0 | BP18: 0 | BR18: 0 | BT18: 0 | BV18: 0 | BX18: 0 | BZ18: 0 | CB18: 0 | CD18: 0 | CF18: 0 | CH18: 0 | CJ18: 0 | CL18: 0 | CN18: 0 | CP18: 0 | CR18: 0 | CT18: 0 | CV18: 0 | CX18: 0 | CZ18: 0 | DB18: 0 | DD18: 0 | DF18: 0 | DH18: 0 | DJ18: 0 | DL18: 0 | DN18: 0 | DP18: 0 | DR18: 0 | DT18: 0 | DV18: 0 | DX18: 0 | DZ18: 0
AV19: 0 | AX19: 0 | AZ19: 0 | BB19: 0 | BD19: 0 | BF19: 0 | BH19: 0 | BJ19: 0 | BL19: 0 | BN19: 0 | BP19: 0 | BR19: 0 | BT19: 0 | BV19: 0 | BX19: 0 | BZ19: 0 | CB19: 0 | CD19: 0 | CF19: 0 | CH19: 0 | CJ19: 0 | CL19: 0 | CN19: 0 | CP19: 0 | CR19: 0 | CT19: 0 | CV19: 0 | CX19: 0 | CZ19: 0 | DB19: 0 | DD19: 0 | DF19: 0 | DH19: 0 | DJ19: 0 | DL19: 0 | DN19: 0 | DP19: 0 | DR19: 0 | DT19: 0 | DV19: 0 | DX19: 0 | DZ19: 0
C21: CATEGORIAS | H21: QUANTIDADE
C23: 5 | D23: =HLOOKUP($C23,'Dados Gerais'!$D$5:$BK$10,6) -> OPERADOR DE CENTRAL DE DETECÇÃO E ALARME DE INCÊNDIO | H23: =HLOOKUP($C23,'Dados Gerais'!$D$5:$BK$14,10) -> 4 | K23: =IF($C23=K$3,1,0) -> 0 | M23: 0 | O23: 0 | Q23: 0 | S23: 1 | U23: 0 | W23: 0 | Y23: 0 | AA23: =IF($C23=AA$3,1,0) -> 0 | AC23: 0 | AE23: 0 | AG23: 0 | AI23: 0 | AK23: 0 | AM23: 0 | AO23: 0 | AQ23: 0 | AS23: 0 | AU23: =IF($C23=AU$3,1,0) -> 0 | AW23: =IF($C23=AW$3,1,0) -> 0 | AY23: =IF($C23=AY$3,1,0) -> 0 | BA23: =IF($C23=BA$3,1,0) -> 0 | BC23: =IF($C23=BC$3,1,0) -> 0 | BE23: =IF($C23=BE$3,1,0) -> 0 | BG23: =IF($C23=BG$3,1,0) -> 0 | BI23: =IF($C23=BI$3,1,0) -> 0 | BK23: =IF($C23=BK$3,1,0) -> 0 | BM23: =IF($C23=BM$3,1,0) -> 0 | BO23: =IF($C23=BO$3,1,0) -> 0 | BQ23: =IF($C23=BQ$3,1,0) -> 0 | BS23: =IF($C23=BS$3,1,0) -> 0 | BU23: =IF($C23=BU$3,1,0) -> 0 | BW23: =IF($C23=BW$3,1,0) -> 0 | BY23: =IF($C23=BY$3,1,0) -> 0 | CA23: =IF($C23=CA$3,1,0) -> 0 | CC23: =IF($C23=CC$3,1,0) -> 0 | CE23: =IF($C23=CE$3,1,0) -> 0 | CG23: =IF($C23=CG$3,1,0) -> 0 | CI23: =IF($C23=CI$3,1,0) -> 0 | CK23: =IF($C23=CK$3,1,0) -> 0 | CM23: =IF($C23=CM$3,1,0) -> 0 | CO23: =IF($C23=CO$3,1,0) -> 0 | CQ23: =IF($C23=CQ$3,1,0) -> 0 | CS23: =IF($C23=CS$3,1,0) -> 0 | CU23: =IF($C23=CU$3,1,0) -> 0 | CW23: =IF($C23=CW$3,1,0) -> 0 | CY23: =IF($C23=CY$3,1,0) -> 0 | DA23: =IF($C23=DA$3,1,0) -> 0 | DC23: =IF($C23=DC$3,1,0) -> 0 | DE23: =IF($C23=DE$3,1,0) -> 0 | DG23: =IF($C23=DG$3,1,0) -> 0 | DI23: =IF($C23=DI$3,1,0) -> 0 | DK23: =IF($C23=DK$3,1,0) -> 0 | DM23: =IF($C23=DM$3,1,0) -> 0 | DO23: =IF($C23=DO$3,1,0) -> 0 | DQ23: =IF($C23=DQ$3,1,0) -> 0 | DS23: =IF($C23=DS$3,1,0) -> 0 | DU23: =IF($C23=DU$3,1,0) -> 0 | DW23: =IF($C23=DW$3,1,0) -> 0 | DY23: =IF($C23=DY$3,1,0) -> 0
C24: 6 | D24: =HLOOKUP($C24,'Dados Gerais'!$D$5:$BK$10,6) -> OPERADOR DE CENTRAL DE DETECÇÃO E ALARME DE INCÊNDIO (COM ADICIONAL NOTURNO) | H24: =HLOOKUP($C24,'Dados Gerais'!$D$5:$BK$14,10) -> 4 | K24: 0 | M24: 0 | O24: 0 | Q24: 0 | S24: 0 | U24: 1 | W24: 0 | Y24: 0 | AA24: 0 | AC24: 0 | AE24: 0 | AG24: 0 | AI24: 0 | AK24: 0 | AM24: 0 | AO24: 0 | AQ24: 0 | AS24: 0 | AU24: 0 | AW24: 0 | AY24: 0 | BA24: 0 | BC24: 0 | BE24: 0 | BG24: 0 | BI24: 0 | BK24: 0 | BM24: 0 | BO24: 0 | BQ24: 0 | BS24: 0 | BU24: 0 | BW24: 0 | BY24: 0 | CA24: 0 | CC24: 0 | CE24: 0 | CG24: 0 | CI24: 0 | CK24: 0 | CM24: 0 | CO24: 0 | CQ24: 0 | CS24: 0 | CU24: 0 | CW24: 0 | CY24: 0 | DA24: 0 | DC24: 0 | DE24: 0 | DG24: 0 | DI24: 0 | DK24: 0 | DM24: 0 | DO24: 0 | DQ24: 0 | DS24: 0 | DU24: 0 | DW24: 0 | DY24: 0
C27: ITEM | D27: DESCRIÇÃO | E27: QUANT ANUAL POR POSTO | F27: Nº DE POSTOS | G27: QUANT ANUAL TOTAL | H27: VALOR
AV28: =IF(SUM(AU$7:AU$12)>0,$E28*$H28,0) -> 0 | AX28: =IF(SUM(AW$7:AW$12)>0,$E28*$H28,0) -> 0 | AZ28: =IF(SUM(AY$7:AY$12)>0,$E28*$H28,0) -> 0 | BB28: =IF(SUM(BA$7:BA$12)>0,$E28*$H28,0) -> 0 | BD28: =IF(SUM(BC$7:BC$12)>0,$E28*$H28,0) -> 0 | BF28: =IF(SUM(BE$7:BE$12)>0,$E28*$H28,0) -> 0 | BH28: =IF(SUM(BG$7:BG$12)>0,$E28*$H28,0) -> 0 | BJ28: =IF(SUM(BI$7:BI$12)>0,$E28*$H28,0) -> 0 | BL28: =IF(SUM(BK$7:BK$12)>0,$E28*$H28,0) -> 0 | BN28: =IF(SUM(BM$7:BM$12)>0,$E28*$H28,0) -> 0 | BP28: =IF(SUM(BO$7:BO$12)>0,$E28*$H28,0) -> 0 | BR28: =IF(SUM(BQ$7:BQ$12)>0,$E28*$H28,0) -> 0 | BT28: =IF(SUM(BS$7:BS$12)>0,$E28*$H28,0) -> 0 | BV28: =IF(SUM(BU$7:BU$12)>0,$E28*$H28,0) -> 0 | BX28: =IF(SUM(BW$7:BW$12)>0,$E28*$H28,0) -> 0 | BZ28: =IF(SUM(BY$7:BY$12)>0,$E28*$H28,0) -> 0 | CB28: =IF(SUM(CA$7:CA$12)>0,$E28*$H28,0) -> 0 | CD28: =IF(SUM(CC$7:CC$12)>0,$E28*$H28,0) -> 0 | CF28: =IF(SUM(CE$7:CE$12)>0,$E28*$H28,0) -> 0 | CH28: =IF(SUM(CG$7:CG$12)>0,$E28*$H28,0) -> 0 | CJ28: =IF(SUM(CI$7:CI$12)>0,$E28*$H28,0) -> 0 | CL28: =IF(SUM(CK$7:CK$12)>0,$E28*$H28,0) -> 0 | CN28: =IF(SUM(CM$7:CM$12)>0,$E28*$H28,0) -> 0 | CP28: =IF(SUM(CO$7:CO$12)>0,$E28*$H28,0) -> 0 | CR28: =IF(SUM(CQ$7:CQ$12)>0,$E28*$H28,0) -> 0 | CT28: =IF(SUM(CS$7:CS$12)>0,$E28*$H28,0) -> 0 | CV28: =IF(SUM(CU$7:CU$12)>0,$E28*$H28,0) -> 0 | CX28: =IF(SUM(CW$7:CW$12)>0,$E28*$H28,0) -> 0 | CZ28: =IF(SUM(CY$7:CY$12)>0,$E28*$H28,0) -> 0 | DB28: =IF(SUM(DA$7:DA$12)>0,$E28*$H28,0) -> 0 | DD28: =IF(SUM(DC$7:DC$12)>0,$E28*$H28,0) -> 0 | DF28: =IF(SUM(DE$7:DE$12)>0,$E28*$H28,0) -> 0 | DH28: =IF(SUM(DG$7:DG$12)>0,$E28*$H28,0) -> 0 | DJ28: =IF(SUM(DI$7:DI$12)>0,$E28*$H28,0) -> 0 | DL28: =IF(SUM(DK$7:DK$12)>0,$E28*$H28,0) -> 0 | DN28: =IF(SUM(DM$7:DM$12)>0,$E28*$H28,0) -> 0 | DP28: =IF(SUM(DO$7:DO$12)>0,$E28*$H28,0) -> 0 | DR28: =IF(SUM(DQ$7:DQ$12)>0,$E28*$H28,0) -> 0 | DT28: =IF(SUM(DS$7:DS$12)>0,$E28*$H28,0) -> 0 | DV28: =IF(SUM(DU$7:DU$12)>0,$E28*$H28,0) -> 0 | DX28: =IF(SUM(DW$7:DW$12)>0,$E28*$H28,0) -> 0 | DZ28: =IF(SUM(DY$7:DY$12)>0,$E28*$H28,0) -> 0
D29: Calça jeans azul marinho | E29: 2 | F29: =SUM(H23:H24) -> 8 | G29: =E29*F29 -> 16 | H29: =H16 -> 68.1 | L29: =IF(SUM(K$23:K$25)>0,$E29*$H29,0) -> 0 | N29: =IF(SUM(M$23:M$25)>0,$E29*$H29,0) -> 0 | P29: =IF(SUM(O$23:O$25)>0,$E29*$H29,0) -> 0 | R29: =IF(SUM(Q$23:Q$25)>0,$E29*$H29,0) -> 0 | T29: =IF(SUM(S$23:S$25)>0,$E29*$H29,0) -> 136.2 | V29: =IF(SUM(U$23:U$25)>0,$E29*$H29,0) -> 136.2 | X29: =IF(SUM(W$23:W$25)>0,$E29*$H29,0) -> 0 | Z29: =IF(SUM(Y$23:Y$25)>0,$E29*$H29,0) -> 0 | AB29: =IF(SUM(AA$23:AA$25)>0,$E29*$H29,0) -> 0 | AD29: =IF(SUM(AC$23:AC$25)>0,$E29*$H29,0) -> 0 | AF29: =IF(SUM(AE$23:AE$25)>0,$E29*$H29,0) -> 0 | AH29: =IF(SUM(AG$23:AG$25)>0,$E29*$H29,0) -> 0 | AJ29: =IF(SUM(AI$23:AI$25)>0,$E29*$H29,0) -> 0 | AL29: =IF(SUM(AK$23:AK$25)>0,$E29*$H29,0) -> 0 | AN29: =IF(SUM(AM$23:AM$25)>0,$E29*$H29,0) -> 0 | AP29: =IF(SUM(AO$23:AO$25)>0,$E29*$H29,0) -> 0 | AR29: =IF(SUM(AQ$23:AQ$25)>0,$E29*$H29,0) -> 0 | AT29: =IF(SUM(AS$23:AS$25)>0,$E29*$H29,0) -> 0 | AV29: =IF(SUM(AU$7:AU$12)>0,$E29*$H29,0) -> 0 | AX29: =IF(SUM(AW$7:AW$12)>0,$E29*$H29,0) -> 0 | AZ29: =IF(SUM(AY$7:AY$12)>0,$E29*$H29,0) -> 0 | BB29: =IF(SUM(BA$7:BA$12)>0,$E29*$H29,0) -> 0 | BD29: =IF(SUM(BC$7:BC$12)>0,$E29*$H29,0) -> 0 | BF29: =IF(SUM(BE$7:BE$12)>0,$E29*$H29,0) -> 0 | BH29: =IF(SUM(BG$7:BG$12)>0,$E29*$H29,0) -> 0 | BJ29: =IF(SUM(BI$7:BI$12)>0,$E29*$H29,0) -> 0 | BL29: =IF(SUM(BK$7:BK$12)>0,$E29*$H29,0) -> 0 | BN29: =IF(SUM(BM$7:BM$12)>0,$E29*$H29,0) -> 0 | BP29: =IF(SUM(BO$7:BO$12)>0,$E29*$H29,0) -> 0 | BR29: =IF(SUM(BQ$7:BQ$12)>0,$E29*$H29,0) -> 0 | BT29: =IF(SUM(BS$7:BS$12)>0,$E29*$H29,0) -> 0 | BV29: =IF(SUM(BU$7:BU$12)>0,$E29*$H29,0) -> 0 | BX29: =IF(SUM(BW$7:BW$12)>0,$E29*$H29,0) -> 0 | BZ29: =IF(SUM(BY$7:BY$12)>0,$E29*$H29,0) -> 0 | CB29: =IF(SUM(CA$7:CA$12)>0,$E29*$H29,0) -> 0 | CD29: =IF(SUM(CC$7:CC$12)>0,$E29*$H29,0) -> 0 | CF29: =IF(SUM(CE$7:CE$12)>0,$E29*$H29,0) -> 0 | CH29: =IF(SUM(CG$7:CG$12)>0,$E29*$H29,0) -> 0 | CJ29: =IF(SUM(CI$7:CI$12)>0,$E29*$H29,0) -> 0 | CL29: =IF(SUM(CK$7:CK$12)>0,$E29*$H29,0) -> 0 | CN29: =IF(SUM(CM$7:CM$12)>0,$E29*$H29,0) -> 0 | CP29: =IF(SUM(CO$7:CO$12)>0,$E29*$H29,0) -> 0 | CR29: =IF(SUM(CQ$7:CQ$12)>0,$E29*$H29,0) -> 0 | CT29: =IF(SUM(CS$7:CS$12)>0,$E29*$H29,0) -> 0 | CV29: =IF(SUM(CU$7:CU$12)>0,$E29*$H29,0) -> 0 | CX29: =IF(SUM(CW$7:CW$12)>0,$E29*$H29,0) -> 0 | CZ29: =IF(SUM(CY$7:CY$12)>0,$E29*$H29,0) -> 0 | DB29: =IF(SUM(DA$7:DA$12)>0,$E29*$H29,0) -> 0 | DD29: =IF(SUM(DC$7:DC$12)>0,$E29*$H29,0) -> 0 | DF29: =IF(SUM(DE$7:DE$12)>0,$E29*$H29,0) -> 0 | DH29: =IF(SUM(DG$7:DG$12)>0,$E29*$H29,0) -> 0 | DJ29: =IF(SUM(DI$7:DI$12)>0,$E29*$H29,0) -> 0 | DL29: =IF(SUM(DK$7:DK$12)>0,$E29*$H29,0) -> 0 | DN29: =IF(SUM(DM$7:DM$12)>0,$E29*$H29,0) -> 0 | DP29: =IF(SUM(DO$7:DO$12)>0,$E29*$H29,0) -> 0 | DR29: =IF(SUM(DQ$7:DQ$12)>0,$E29*$H29,0) -> 0 | DT29: =IF(SUM(DS$7:DS$12)>0,$E29*$H29,0) -> 0 | DV29: =IF(SUM(DU$7:DU$12)>0,$E29*$H29,0) -> 0 | DX29: =IF(SUM(DW$7:DW$12)>0,$E29*$H29,0) -> 0 | DZ29: =IF(SUM(DY$7:DY$12)>0,$E29*$H29,0) -> 0
D30: Camisa com manga curta em poliéster na cor azul marinho | E30: 6 | F30: =F29 -> 8 | G30: =E30*F30 -> 48 | H30: =H17 -> 27.09 | L30: =IF(SUM(K$23:K$25)>0,$E30*$H30,0) -> 0 | N30: =IF(SUM(M$23:M$25)>0,$E30*$H30,0) -> 0 | P30: =IF(SUM(O$23:O$25)>0,$E30*$H30,0) -> 0 | R30: =IF(SUM(Q$23:Q$25)>0,$E30*$H30,0) -> 0 | T30: =IF(SUM(S$23:S$25)>0,$E30*$H30,0) -> 162.54 | V30: =IF(SUM(U$23:U$25)>0,$E30*$H30,0) -> 162.54 | X30: =IF(SUM(W$23:W$25)>0,$E30*$H30,0) -> 0 | Z30: =IF(SUM(Y$23:Y$25)>0,$E30*$H30,0) -> 0 | AB30: =IF(SUM(AA$23:AA$25)>0,$E30*$H30,0) -> 0 | AD30: =IF(SUM(AC$23:AC$25)>0,$E30*$H30,0) -> 0 | AF30: =IF(SUM(AE$23:AE$25)>0,$E30*$H30,0) -> 0 | AH30: =IF(SUM(AG$23:AG$25)>0,$E30*$H30,0) -> 0 | AJ30: =IF(SUM(AI$23:AI$25)>0,$E30*$H30,0) -> 0 | AL30: =IF(SUM(AK$23:AK$25)>0,$E30*$H30,0) -> 0 | AN30: =IF(SUM(AM$23:AM$25)>0,$E30*$H30,0) -> 0 | AP30: =IF(SUM(AO$23:AO$25)>0,$E30*$H30,0) -> 0 | AR30: =IF(SUM(AQ$23:AQ$25)>0,$E30*$H30,0) -> 0 | AT30: =IF(SUM(AS$23:AS$25)>0,$E30*$H30,0) -> 0 | AV30: =IF(SUM(AU$7:AU$12)>0,$E30*$H30,0) -> 0 | AX30: =IF(SUM(AW$7:AW$12)>0,$E30*$H30,0) -> 0 | AZ30: =IF(SUM(AY$7:AY$12)>0,$E30*$H30,0) -> 0 | BB30: =IF(SUM(BA$7:BA$12)>0,$E30*$H30,0) -> 0 | BD30: =IF(SUM(BC$7:BC$12)>0,$E30*$H30,0) -> 0 | BF30: =IF(SUM(BE$7:BE$12)>0,$E30*$H30,0) -> 0 | BH30: =IF(SUM(BG$7:BG$12)>0,$E30*$H30,0) -> 0 | BJ30: =IF(SUM(BI$7:BI$12)>0,$E30*$H30,0) -> 0 | BL30: =IF(SUM(BK$7:BK$12)>0,$E30*$H30,0) -> 0 | BN30: =IF(SUM(BM$7:BM$12)>0,$E30*$H30,0) -> 0 | BP30: =IF(SUM(BO$7:BO$12)>0,$E30*$H30,0) -> 0 | BR30: =IF(SUM(BQ$7:BQ$12)>0,$E30*$H30,0) -> 0 | BT30: =IF(SUM(BS$7:BS$12)>0,$E30*$H30,0) -> 0 | BV30: =IF(SUM(BU$7:BU$12)>0,$E30*$H30,0) -> 0 | BX30: =IF(SUM(BW$7:BW$12)>0,$E30*$H30,0) -> 0 | BZ30: =IF(SUM(BY$7:BY$12)>0,$E30*$H30,0) -> 0 | CB30: =IF(SUM(CA$7:CA$12)>0,$E30*$H30,0) -> 0 | CD30: =IF(SUM(CC$7:CC$12)>0,$E30*$H30,0) -> 0 | CF30: =IF(SUM(CE$7:CE$12)>0,$E30*$H30,0) -> 0 | CH30: =IF(SUM(CG$7:CG$12)>0,$E30*$H30,0) -> 0 | CJ30: =IF(SUM(CI$7:CI$12)>0,$E30*$H30,0) -> 0 | CL30: =IF(SUM(CK$7:CK$12)>0,$E30*$H30,0) -> 0 | CN30: =IF(SUM(CM$7:CM$12)>0,$E30*$H30,0) -> 0 | CP30: =IF(SUM(CO$7:CO$12)>0,$E30*$H30,0) -> 0 | CR30: =IF(SUM(CQ$7:CQ$12)>0,$E30*$H30,0) -> 0 | CT30: =IF(SUM(CS$7:CS$12)>0,$E30*$H30,0) -> 0 | CV30: =IF(SUM(CU$7:CU$12)>0,$E30*$H30,0) -> 0 | CX30: =IF(SUM(CW$7:CW$12)>0,$E30*$H30,0) -> 0 | CZ30: =IF(SUM(CY$7:CY$12)>0,$E30*$H30,0) -> 0 | DB30: =IF(SUM(DA$7:DA$12)>0,$E30*$H30,0) -> 0 | DD30: =IF(SUM(DC$7:DC$12)>0,$E30*$H30,0) -> 0 | DF30: =IF(SUM(DE$7:DE$12)>0,$E30*$H30,0) -> 0 | DH30: =IF(SUM(DG$7:DG$12)>0,$E30*$H30,0) -> 0 | DJ30: =IF(SUM(DI$7:DI$12)>0,$E30*$H30,0) -> 0 | DL30: =IF(SUM(DK$7:DK$12)>0,$E30*$H30,0) -> 0 | DN30: =IF(SUM(DM$7:DM$12)>0,$E30*$H30,0) -> 0 | DP30: =IF(SUM(DO$7:DO$12)>0,$E30*$H30,0) -> 0 | DR30: =IF(SUM(DQ$7:DQ$12)>0,$E30*$H30,0) -> 0 | DT30: =IF(SUM(DS$7:DS$12)>0,$E30*$H30,0) -> 0 | DV30: =IF(SUM(DU$7:DU$12)>0,$E30*$H30,0) -> 0 | DX30: =IF(SUM(DW$7:DW$12)>0,$E30*$H30,0) -> 0 | DZ30: =IF(SUM(DY$7:DY$12)>0,$E30*$H30,0) -> 0
D31: Meia social preta | E31: 8 | F31: =F30 -> 8 | G31: =E31*F31 -> 64 | H31: =H18 -> 11.23 | L31: =IF(SUM(K$23:K$25)>0,$E31*$H31,0) -> 0 | N31: =IF(SUM(M$23:M$25)>0,$E31*$H31,0) -> 0 | P31: =IF(SUM(O$23:O$25)>0,$E31*$H31,0) -> 0 | R31: =IF(SUM(Q$23:Q$25)>0,$E31*$H31,0) -> 0 | T31: =IF(SUM(S$23:S$25)>0,$E31*$H31,0) -> 89.84 | V31: =IF(SUM(U$23:U$25)>0,$E31*$H31,0) -> 89.84 | X31: =IF(SUM(W$23:W$25)>0,$E31*$H31,0) -> 0 | Z31: =IF(SUM(Y$23:Y$25)>0,$E31*$H31,0) -> 0 | AB31: =IF(SUM(AA$23:AA$25)>0,$E31*$H31,0) -> 0 | AD31: =IF(SUM(AC$23:AC$25)>0,$E31*$H31,0) -> 0 | AF31: =IF(SUM(AE$23:AE$25)>0,$E31*$H31,0) -> 0 | AH31: =IF(SUM(AG$23:AG$25)>0,$E31*$H31,0) -> 0 | AJ31: =IF(SUM(AI$23:AI$25)>0,$E31*$H31,0) -> 0 | AL31: =IF(SUM(AK$23:AK$25)>0,$E31*$H31,0) -> 0 | AN31: =IF(SUM(AM$23:AM$25)>0,$E31*$H31,0) -> 0 | AP31: =IF(SUM(AO$23:AO$25)>0,$E31*$H31,0) -> 0 | AR31: =IF(SUM(AQ$23:AQ$25)>0,$E31*$H31,0) -> 0 | AT31: =IF(SUM(AS$23:AS$25)>0,$E31*$H31,0) -> 0 | AV31: =IF(SUM(AU$7:AU$12)>0,$E31*$H31,0) -> 0 | AX31: =IF(SUM(AW$7:AW$12)>0,$E31*$H31,0) -> 0 | AZ31: =IF(SUM(AY$7:AY$12)>0,$E31*$H31,0) -> 0 | BB31: =IF(SUM(BA$7:BA$12)>0,$E31*$H31,0) -> 0 | BD31: =IF(SUM(BC$7:BC$12)>0,$E31*$H31,0) -> 0 | BF31: =IF(SUM(BE$7:BE$12)>0,$E31*$H31,0) -> 0 | BH31: =IF(SUM(BG$7:BG$12)>0,$E31*$H31,0) -> 0 | BJ31: =IF(SUM(BI$7:BI$12)>0,$E31*$H31,0) -> 0 | BL31: =IF(SUM(BK$7:BK$12)>0,$E31*$H31,0) -> 0 | BN31: =IF(SUM(BM$7:BM$12)>0,$E31*$H31,0) -> 0 | BP31: =IF(SUM(BO$7:BO$12)>0,$E31*$H31,0) -> 0 | BR31: =IF(SUM(BQ$7:BQ$12)>0,$E31*$H31,0) -> 0 | BT31: =IF(SUM(BS$7:BS$12)>0,$E31*$H31,0) -> 0 | BV31: =IF(SUM(BU$7:BU$12)>0,$E31*$H31,0) -> 0 | BX31: =IF(SUM(BW$7:BW$12)>0,$E31*$H31,0) -> 0 | BZ31: =IF(SUM(BY$7:BY$12)>0,$E31*$H31,0) -> 0 | CB31: =IF(SUM(CA$7:CA$12)>0,$E31*$H31,0) -> 0 | CD31: =IF(SUM(CC$7:CC$12)>0,$E31*$H31,0) -> 0 | CF31: =IF(SUM(CE$7:CE$12)>0,$E31*$H31,0) -> 0 | CH31: =IF(SUM(CG$7:CG$12)>0,$E31*$H31,0) -> 0 | CJ31: =IF(SUM(CI$7:CI$12)>0,$E31*$H31,0) -> 0 | CL31: =IF(SUM(CK$7:CK$12)>0,$E31*$H31,0) -> 0 | CN31: =IF(SUM(CM$7:CM$12)>0,$E31*$H31,0) -> 0 | CP31: =IF(SUM(CO$7:CO$12)>0,$E31*$H31,0) -> 0 | CR31: =IF(SUM(CQ$7:CQ$12)>0,$E31*$H31,0) -> 0 | CT31: =IF(SUM(CS$7:CS$12)>0,$E31*$H31,0) -> 0 | CV31: =IF(SUM(CU$7:CU$12)>0,$E31*$H31,0) -> 0 | CX31: =IF(SUM(CW$7:CW$12)>0,$E31*$H31,0) -> 0 | CZ31: =IF(SUM(CY$7:CY$12)>0,$E31*$H31,0) -> 0 | DB31: =IF(SUM(DA$7:DA$12)>0,$E31*$H31,0) -> 0 | DD31: =IF(SUM(DC$7:DC$12)>0,$E31*$H31,0) -> 0 | DF31: =IF(SUM(DE$7:DE$12)>0,$E31*$H31,0) -> 0 | DH31: =IF(SUM(DG$7:DG$12)>0,$E31*$H31,0) -> 0 | DJ31: =IF(SUM(DI$7:DI$12)>0,$E31*$H31,0) -> 0 | DL31: =IF(SUM(DK$7:DK$12)>0,$E31*$H31,0) -> 0 | DN31: =IF(SUM(DM$7:DM$12)>0,$E31*$H31,0) -> 0 | DP31: =IF(SUM(DO$7:DO$12)>0,$E31*$H31,0) -> 0 | DR31: =IF(SUM(DQ$7:DQ$12)>0,$E31*$H31,0) -> 0 | DT31: =IF(SUM(DS$7:DS$12)>0,$E31*$H31,0) -> 0 | DV31: =IF(SUM(DU$7:DU$12)>0,$E31*$H31,0) -> 0 | DX31: =IF(SUM(DW$7:DW$12)>0,$E31*$H31,0) -> 0 | DZ31: =IF(SUM(DY$7:DY$12)>0,$E31*$H31,0) -> 0
L32: =IF(SUM(K$23:K$25)>0,$E32*$H32,0) -> 0 | N32: =IF(SUM(M$23:M$25)>0,$E32*$H32,0) -> 0 | P32: =IF(SUM(O$23:O$25)>0,$E32*$H32,0) -> 0 | R32: =IF(SUM(Q$23:Q$25)>0,$E32*$H32,0) -> 0 | T32: =IF(SUM(S$23:S$25)>0,$E32*$H32,0) -> 0 | V32: =IF(SUM(U$23:U$25)>0,$E32*$H32,0) -> 0 | X32: =IF(SUM(W$23:W$25)>0,$E32*$H32,0) -> 0 | Z32: =IF(SUM(Y$23:Y$25)>0,$E32*$H32,0) -> 0 | AB32: =IF(SUM(AA$23:AA$25)>0,$E32*$H32,0) -> 0 | AD32: =IF(SUM(AC$23:AC$25)>0,$E32*$H32,0) -> 0 | AF32: =IF(SUM(AE$23:AE$25)>0,$E32*$H32,0) -> 0 | AH32: =IF(SUM(AG$23:AG$25)>0,$E32*$H32,0) -> 0 | AJ32: =IF(SUM(AI$23:AI$25)>0,$E32*$H32,0) -> 0 | AL32: =IF(SUM(AK$23:AK$25)>0,$E32*$H32,0) -> 0 | AN32: =IF(SUM(AM$23:AM$25)>0,$E32*$H32,0) -> 0 | AP32: =IF(SUM(AO$23:AO$25)>0,$E32*$H32,0) -> 0 | AR32: =IF(SUM(AQ$23:AQ$25)>0,$E32*$H32,0) -> 0 | AT32: =IF(SUM(AS$23:AS$25)>0,$E32*$H32,0) -> 0 | AV32: =IF(SUM(AU$7:AU$12)>0,$E32*$H32,0) -> 0 | AX32: =IF(SUM(AW$7:AW$12)>0,$E32*$H32,0) -> 0 | AZ32: =IF(SUM(AY$7:AY$12)>0,$E32*$H32,0) -> 0 | BB32: =IF(SUM(BA$7:BA$12)>0,$E32*$H32,0) -> 0 | BD32: =IF(SUM(BC$7:BC$12)>0,$E32*$H32,0) -> 0 | BF32: =IF(SUM(BE$7:BE$12)>0,$E32*$H32,0) -> 0 | BH32: =IF(SUM(BG$7:BG$12)>0,$E32*$H32,0) -> 0 | BJ32: =IF(SUM(BI$7:BI$12)>0,$E32*$H32,0) -> 0 | BL32: =IF(SUM(BK$7:BK$12)>0,$E32*$H32,0) -> 0 | BN32: =IF(SUM(BM$7:BM$12)>0,$E32*$H32,0) -> 0 | BP32: =IF(SUM(BO$7:BO$12)>0,$E32*$H32,0) -> 0 | BR32: =IF(SUM(BQ$7:BQ$12)>0,$E32*$H32,0) -> 0 | BT32: =IF(SUM(BS$7:BS$12)>0,$E32*$H32,0) -> 0 | BV32: =IF(SUM(BU$7:BU$12)>0,$E32*$H32,0) -> 0 | BX32: =IF(SUM(BW$7:BW$12)>0,$E32*$H32,0) -> 0 | BZ32: =IF(SUM(BY$7:BY$12)>0,$E32*$H32,0) -> 0 | CB32: =IF(SUM(CA$7:CA$12)>0,$E32*$H32,0) -> 0 | CD32: =IF(SUM(CC$7:CC$12)>0,$E32*$H32,0) -> 0 | CF32: =IF(SUM(CE$7:CE$12)>0,$E32*$H32,0) -> 0 | CH32: =IF(SUM(CG$7:CG$12)>0,$E32*$H32,0) -> 0 | CJ32: =IF(SUM(CI$7:CI$12)>0,$E32*$H32,0) -> 0 | CL32: =IF(SUM(CK$7:CK$12)>0,$E32*$H32,0) -> 0 | CN32: =IF(SUM(CM$7:CM$12)>0,$E32*$H32,0) -> 0 | CP32: =IF(SUM(CO$7:CO$12)>0,$E32*$H32,0) -> 0 | CR32: =IF(SUM(CQ$7:CQ$12)>0,$E32*$H32,0) -> 0 | CT32: =IF(SUM(CS$7:CS$12)>0,$E32*$H32,0) -> 0 | CV32: =IF(SUM(CU$7:CU$12)>0,$E32*$H32,0) -> 0 | CX32: =IF(SUM(CW$7:CW$12)>0,$E32*$H32,0) -> 0 | CZ32: =IF(SUM(CY$7:CY$12)>0,$E32*$H32,0) -> 0 | DB32: =IF(SUM(DA$7:DA$12)>0,$E32*$H32,0) -> 0 | DD32: =IF(SUM(DC$7:DC$12)>0,$E32*$H32,0) -> 0 | DF32: =IF(SUM(DE$7:DE$12)>0,$E32*$H32,0) -> 0 | DH32: =IF(SUM(DG$7:DG$12)>0,$E32*$H32,0) -> 0 | DJ32: =IF(SUM(DI$7:DI$12)>0,$E32*$H32,0) -> 0 | DL32: =IF(SUM(DK$7:DK$12)>0,$E32*$H32,0) -> 0 | DN32: =IF(SUM(DM$7:DM$12)>0,$E32*$H32,0) -> 0 | DP32: =IF(SUM(DO$7:DO$12)>0,$E32*$H32,0) -> 0 | DR32: =IF(SUM(DQ$7:DQ$12)>0,$E32*$H32,0) -> 0 | DT32: =IF(SUM(DS$7:DS$12)>0,$E32*$H32,0) -> 0 | DV32: =IF(SUM(DU$7:DU$12)>0,$E32*$H32,0) -> 0 | DX32: =IF(SUM(DW$7:DW$12)>0,$E32*$H32,0) -> 0 | DZ32: =IF(SUM(DY$7:DY$12)>0,$E32*$H32,0) -> 0
K34: =SUMPRODUCT(#REF!,#REF!) -> 
K35: =K34*($H$11+#REF!) -> 
K36: =K35/12 -> 
K37: =K36/91 -> 

Sheet EPI
B3: EQUIPAMENTOS DE PROTEÇÃO INDIVIDUAL - AQUISIÇÃO | I3: 1 | K3: =I3+1 -> 2 | M3: =K3+1 -> 3 | O3: =M3+1 -> 4 | Q3: =O3+1 -> 5 | S3: =Q3+1 -> 6 | U3: =S3+1 -> 7 | W3: =U3+1 -> 8 | Y3: =W3+1 -> 9 | AA3: =Y3+1 -> 10 | AC3: =AA3+1 -> 11 | AE3: =AC3+1 -> 12 | AG3: =AE3+1 -> 13 | AI3: =AG3+1 -> 14 | AK3: =AI3+1 -> 15 | AM3: =AK3+1 -> 16 | AO3: =AM3+1 -> 17 | AQ3: =AO3+1 -> 18 | AS3: =AQ3+1 -> 19 | AU3: =AS3+1 -> 20 | AW3: =AU3+1 -> 21 | AY3: =AW3+1 -> 22 | BA3: =AY3+1 -> 23 | BC3: =BA3+1 -> 24 | BE3: =BC3+1 -> 25 | BG3: =BE3+1 -> 26 | BI3: =BG3+1 -> 27 | BK3: =BI3+1 -> 28 | BM3: =BK3+1 -> 29 | BO3: =BM3+1 -> 30 | BQ3: =BO3+1 -> 31 | BS3: =BQ3+1 -> 32 | BU3: =BS3+1 -> 33 | BW3: =BU3+1 -> 34 | BY3: =BW3+1 -> 35 | CA3: =BY3+1 -> 36 | CC3: =CA3+1 -> 37 | CE3: =CC3+1 -> 38 | CG3: =CE3+1 -> 39 | CI3: =CG3+1 -> 40 | CK3: =CI3+1 -> 41 | CM3: =CK3+1 -> 42 | CO3: =CM3+1 -> 43 | CQ3: =CO3+1 -> 44 | CS3: =CQ3+1 -> 45 | CU3: =CS3+1 -> 46 | CW3: =CU3+1 -> 47 | CY3: =CW3+1 -> 48 | DA3: =CY3+1 -> 49 | DC3: =DA3+1 -> 50 | DE3: =DC3+1 -> 51 | DG3: =DE3+1 -> 52 | DI3: =DG3+1 -> 53 | DK3: =DI3+1 -> 54 | DM3: =DK3+1 -> 55 | DO3: =DM3+1 -> 56 | DQ3: =DO3+1 -> 57 | DS3: =DQ3+1 -> 58 | DU3: =DS3+1 -> 59 | DW3: =DU3+1 -> 60
I5: =ROUND(SUM(J4:J67),2) -> 661.77 | K5: =ROUND(SUM(L4:L104),2) -> 696.02 | M5: =ROUND(SUM(N4:N104),2) -> 502.75 | O5: =ROUND(SUM(P4:P104),2) -> 456.67 | Q5: =ROUND(SUM(R4:R104),2) -> 1413.84 | S5: =ROUND(SUM(T4:T104),2) -> 1413.84 | U5: =ROUND(SUM(V4:V104),2) -> 0 | W5: =ROUND(SUM(X4:X104),2) -> 0 | Y5: =ROUND(SUM(Z4:Z104),2) -> 0 | AA5: =ROUND(SUM(AB4:AB104),2) -> 0 | AC5: =ROUND(SUM(AD4:AD104),2) -> 0 | AE5: =ROUND(SUM(AF4:AF104),2) -> 0 | AG5: =ROUND(SUM(AH4:AH104),2) -> 0 | AI5: =ROUND(SUM(AJ4:AJ104),2) -> 0 | AK5: =ROUND(SUM(AL4:AL104),2) -> 0 | AM5: =ROUND(SUM(AN4:AN104),2) -> 0 | AO5: =ROUND(SUM(AP4:AP104),2) -> 0 | AQ5: =ROUND(SUM(AR4:AR104),2) -> 0 | AS5: =ROUND(SUM(AT4:AT104),2) -> 0 | AU5: =ROUND(SUM(AV4:AV104),2) -> 0 | AW5: =ROUND(SUM(AX4:AX104),2) -> 0 | AY5: =ROUND(SUM(AZ4:AZ104),2) -> 0 | BA5: =ROUND(SUM(BB4:BB104),2) -> 0 | BC5: =ROUND(SUM(BD4:BD104),2) -> 0 | BE5: =ROUND(SUM(BF4:BF104),2) -> 0 | BG5: =ROUND(SUM(BH4:BH104),2) -> 0 | BI5: =ROUND(SUM(BJ4:BJ104),2) -> 0 | BK5: =ROUND(SUM(BL4:BL104),2) -> 0 | BM5: =ROUND(SUM(BN4:BN104),2) -> 0 | BO5: =ROUND(SUM(BP4:BP104),2) -> 0 | BQ5: =ROUND(SUM(BR4:BR104),2) -> 0 | BS5: =ROUND(SUM(BT4:BT104),2) -> 0 | BU5: =ROUND(SUM(BV4:BV104),2) -> 0 | BW5: =ROUND(SUM(BX4:BX104),2) -> 0 | BY5: =ROUND(SUM(BZ4:BZ104),2) -> 0 | CA5: =ROUND(SUM(CB4:CB104),2) -> 0 | CC5: =ROUND(SUM(CD4:CD104),2) -> 0 | CE5: =ROUND(SUM(CF4:CF104),2) -> 0 | CG5: =ROUND(SUM(CH4:CH104),2) -> 0 | CI5: =ROUND(SUM(CJ4:CJ104),2) -> 0 | CK5: =ROUND(SUM(CL4:CL104),2) -> 0 | CM5: =ROUND(SUM(CN4:CN104),2) -> 0 | CO5: =ROUND(SUM(CP4:CP104),2) -> 0 | CQ5: =ROUND(SUM(CR4:CR104),2) -> 0 | CS5: =ROUND(SUM(CT4:CT104),2) -> 0 | CU5: =ROUND(SUM(CV4:CV104),2) -> 0 | CW5: =ROUND(SUM(CX4:CX104),2) -> 0 | CY5: =ROUND(SUM(CZ4:CZ104),2) -> 0 | DA5: =ROUND(SUM(DB4:DB104),2) -> 0 | DC5: =ROUND(SUM(DD4:DD104),2) -> 0 | DE5: =ROUND(SUM(DF4:DF104),2) -> 0 | DG5: =ROUND(SUM(DH4:DH104),2) -> 0 | DI5: =ROUND(SUM(DJ4:DJ104),2) -> 0 | DK5: =ROUND(SUM(DL4:DL104),2) -> 0 | DM5: =ROUND(SUM(DN4:DN104),2) -> 0 | DO5: =ROUND(SUM(DP4:DP104),2) -> 0 | DQ5: =ROUND(SUM(DR4:DR104),2) -> 0 | DS5: =ROUND(SUM(DT4:DT104),2) -> 0 | DU5: =ROUND(SUM(DV4:DV104),2) -> 0 | DW5: =ROUND(SUM(DX4:DX104),2) -> 0
C6: CATEGORIAS | F6: QUANTIDADE
I7: =IF($C7=I$3,1,0) -> 0 | K7: =IF($C7=K$3,1,0) -> 0 | M7: =IF($C7=M$3,1,0) -> 0 | O7: =IF($C7=O$3,1,0) -> 0 | Q7: =IF($C7=Q$3,1,0) -> 0 | S7: =IF($C7=S$3,1,0) -> 0 | U7: =IF($C7=U$3,1,0) -> 0 | W7: =IF($C7=W$3,1,0) -> 0 | Y7: =IF($C7=Y$3,1,0) -> 0 | AA7: =IF($C7=AA$3,1,0) -> 0 | AC7: =IF($C7=AC$3,1,0) -> 0 | AE7: =IF($C7=AE$3,1,0) -> 0 | AG7: =IF($C7=AG$3,1,0) -> 0 | AI7: =IF($C7=AI$3,1,0) -> 0 | AK7: =IF($C7=AK$3,1,0) -> 0 | AM7: =IF($C7=AM$3,1,0) -> 0 | AO7: =IF($C7=AO$3,1,0) -> 0 | AQ7: =IF($C7=AQ$3,1,0) -> 0 | AS7: =IF($C7=AS$3,1,0) -> 0
C8: 1 | D8: =HLOOKUP($C8,'Dados Gerais'!$D$5:$BK$10,6) -> BOMBEIRO HIDRÁULICO DE MANUTENÇÃO | F8: =HLOOKUP($C8,'Dados Gerais'!$D$5:$BK$14,10) -> 1 | I8: =IF($C8=I$3,1,0) -> 1 | K8: 0 | M8: 0 | O8: 0 | Q8: 0 | S8: 0 | U8: 0 | W8: 0 | Y8: 0 | AA8: 0 | AC8: 0 | AE8: =IF($C8=AE$3,1,0) -> 0 | AG8: 0 | AI8: 0 | AK8: 0 | AM8: 0 | AO8: 0 | AQ8: 0 | AS8: 0 | AU8: =IF($C8=AU$3,1,0) -> 0 | AW8: =IF($C8=AW$3,1,0) -> 0 | AY8: =IF($C8=AY$3,1,0) -> 0 | BA8: =IF($C8=BA$3,1,0) -> 0 | BC8: =IF($C8=BC$3,1,0) -> 0 | BE8: =IF($C8=BE$3,1,0) -> 0 | BG8: =IF($C8=BG$3,1,0) -> 0 | BI8: =IF($C8=BI$3,1,0) -> 0 | BK8: =IF($C8=BK$3,1,0) -> 0 | BM8: =IF($C8=BM$3,1,0) -> 0 | BO8: =IF($C8=BO$3,1,0) -> 0 | BQ8: =IF($C8=BQ$3,1,0) -> 0 | BS8: =IF($C8=BS$3,1,0) -> 0 | BU8: =IF($C8=BU$3,1,0) -> 0 | BW8: =IF($C8=BW$3,1,0) -> 0 | BY8: =IF($C8=BY$3,1,0) -> 0 | CA8: =IF($C8=CA$3,1,0) -> 0 | CC8: =IF($C8=CC$3,1,0) -> 0 | CE8: =IF($C8=CE$3,1,0) -> 0 | CG8: =IF($C8=CG$3,1,0) -> 0 | CI8: =IF($C8=CI$3,1,0) -> 0 | CK8: =IF($C8=CK$3,1,0) -> 0 | CM8: =IF($C8=CM$3,1,0) -> 0 | CO8: =IF($C8=CO$3,1,0) -> 0 | CQ8: =IF($C8=CQ$3,1,0) -> 0 | CS8: =IF($C8=CS$3,1,0) -> 0 | CU8: =IF($C8=CU$3,1,0) -> 0 | CW8: =IF($C8=CW$3,1,0) -> 0 | CY8: =IF($C8=CY$3,1,0) -> 0 | DA8: =IF($C8=DA$3,1,0) -> 0 | DC8: =IF($C8=DC$3,1,0) -> 0 | DE8: =IF($C8=DE$3,1,0) -> 0 | DG8: =IF($C8=DG$3,1,0) -> 0 | DI8: =IF($C8=DI$3,1,0) -> 0 | DK8: =IF($C8=DK$3,1,0) -> 0 | DM8: =IF($C8=DM$3,1,0) -> 0 | DO8: =IF($C8=DO$3,1,0) -> 0 | DQ8: =IF($C8=DQ$3,1,0) -> 0 | DS8: =IF($C8=DS$3,1,0) -> 0 | DU8: =IF($C8=DU$3,1,0) -> 0 | DW8: =IF($C8=DW$3,1,0) -> 0
I9: =IF($C9=I$3,1,0) -> 0 | K9: 0 | M9: 0 | O9: 0 | Q9: 0 | S9: 0 | U9: 0 | W9: 0 | Y9: 0 | AA9: 0 | AC9: 0 | AE9: =IF($C9=AE$3,1,0) -> 0 | AG9: 0 | AI9: 0 | AK9: 0 | AM9: 0 | AO9: 0 | AQ9: 0 | AS9: 0
C11: ITEM | D11: DESCRIÇÃO | E11: QUANT ANUAL POR POSTO | F11: VALOR
C13: 1 | D13: Luva de segurança em látex, espessura de 0,60mm, forrada internamente com flocos de algodão, palma antiderrapante., marca ref. MUCAMBO | E13: 12 | F13: 6.6 | J13: =IF(SUM(I$7:I$9)>0,$E13*$F13,0) -> 79.2 | L13: =IF(SUM(K$7:K$9)>0,$E13*$F13,0) -> 0 | N13: =IF(SUM(M$7:M$9)>0,$E13*$F13,0) -> 0 | P13: =IF(SUM(O$7:O$9)>0,$E13*$F13,0) -> 0 | R13: =IF(SUM(Q$7:Q$9)>0,$E13*$F13,0) -> 0 | T13: =IF(SUM(S$7:S$9)>0,$E13*$F13,0) -> 0 | V13: =IF(SUM(U$7:U$9)>0,$E13*$F13,0) -> 0 | X13: =IF(SUM(W$7:W$9)>0,$E13*$F13,0) -> 0 | Z13: =IF(SUM(Y$7:Y$9)>0,$E13*$F13,0) -> 0 | AB13: =IF(SUM(AA$7:AA$9)>0,$E13*$F13,0) -> 0 | AD13: =IF(SUM(AC$7:AC$9)>0,$E13*$F13,0) -> 0 | AF13: =IF(SUM(AE$7:AE$9)>0,$E13*$F13,0) -> 0 | AH13: =IF(SUM(AG$7:AG$9)>0,$E13*$F13,0) -> 0 | AJ13: =IF(SUM(AI$7:AI$9)>0,$E13*$F13,0) -> 0 | AL13: =IF(SUM(AK$7:AK$9)>0,$E13*$F13,0) -> 0 | AN13: =IF(SUM(AM$7:AM$9)>0,$E13*$F13,0) -> 0 | AP13: =IF(SUM(AO$7:AO$9)>0,$E13*$F13,0) -> 0 | AR13: =IF(SUM(AQ$7:AQ$9)>0,$E13*$F13,0) -> 0 | AT13: =IF(SUM(AS$7:AS$9)>0,$E13*$F13,0) -> 0 | AV13: =IF(SUM(AU$7:AU$9)>0,$E13*$F13,0) -> 0 | AX13: =IF(SUM(AW$7:AW$9)>0,$E13*$F13,0) -> 0 | AZ13: =IF(SUM(AY$7:AY$9)>0,$E13*$F13,0) -> 0 | BB13: =IF(SUM(BA$7:BA$9)>0,$E13*$F13,0) -> 0 | BD13: =IF(SUM(BC$7:BC$9)>0,$E13*$F13,0) -> 0 | BF13: =IF(SUM(BE$7:BE$9)>0,$E13*$F13,0) -> 0 | BH13: =IF(SUM(BG$7:BG$9)>0,$E13*$F13,0) -> 0 | BJ13: =IF(SUM(BI$7:BI$9)>0,$E13*$F13,0) -> 0 | BL13: =IF(SUM(BK$7:BK$9)>0,$E13*$F13,0) -> 0 | BN13: =IF(SUM(BM$7:BM$9)>0,$E13*$F13,0) -> 0 | BP13: =IF(SUM(BO$7:BO$9)>0,$E13*$F13,0) -> 0 | BR13: =IF(SUM(BQ$7:BQ$9)>0,$E13*$F13,0) -> 0 | BT13: =IF(SUM(BS$7:BS$9)>0,$E13*$F13,0) -> 0 | BV13: =IF(SUM(BU$7:BU$9)>0,$E13*$F13,0) -> 0 | BX13: =IF(SUM(BW$7:BW$9)>0,$E13*$F13,0) -> 0 | BZ13: =IF(SUM(BY$7:BY$9)>0,$E13*$F13,0) -> 0 | CB13: =IF(SUM(CA$7:CA$9)>0,$E13*$F13,0) -> 0 | CD13: =IF(SUM(CC$7:CC$9)>0,$E13*$F13,0) -> 0 | CF13: =IF(SUM(CE$7:CE$9)>0,$E13*$F13,0) -> 0 | CH13: =IF(SUM(CG$7:CG$9)>0,$E13*$F13,0) -> 0 | CJ13: =IF(SUM(CI$7:CI$9)>0,$E13*$F13,0) -> 0 | CL13: =IF(SUM(CK$7:CK$9)>0,$E13*$F13,0) -> 0 | CN13: =IF(SUM(CM$7:CM$9)>0,$E13*$F13,0) -> 0 | CP13: =IF(SUM(CO$7:CO$9)>0,$E13*$F13,0) -> 0 | CR13: =IF(SUM(CQ$7:CQ$9)>0,$E13*$F13,0) -> 0 | CT13: =IF(SUM(CS$7:CS$9)>0,$E13*$F13,0) -> 0 | CV13: =IF(SUM(CU$7:CU$9)>0,$E13*$F13,0) -> 0 | CX13: =IF(SUM(CW$7:CW$9)>0,$E13*$F13,0) -> 0 | CZ13: =IF(SUM(CY$7:CY$9)>0,$E13*$F13,0) -> 0 | DB13: =IF(SUM(DA$7:DA$9)>0,$E13*$F13,0) -> 0 | DD13: =IF(SUM(DC$7:DC$9)>0,$E13*$F13,0) -> 0 | DF13: =IF(SUM(DE$7:DE$9)>0,$E13*$F13,0) -> 0 | DH13: =IF(SUM(DG$7:DG$9)>0,$E13*$F13,0) -> 0 | DJ13: =IF(SUM(DI$7:DI$9)>0,$E13*$F13,0) -> 0 | DL13: =IF(SUM(DK$7:DK$9)>0,$E13*$F13,0) -> 0 | DN13: =IF(SUM(DM$7:DM$9)>0,$E13*$F13,0) -> 0 | DP13: =IF(SUM(DO$7:DO$9)>0,$E13*$F13,0) -> 0 | DR13: =IF(SUM(DQ$7:DQ$9)>0,$E13*$F13,0) -> 0 | DT13: =IF(SUM(DS$7:DS$9)>0,$E13*$F13,0) -> 0 | DV13: =IF(SUM(DU$7:DU$9)>0,$E13*$F13,0) -> 0 | DX13: =IF(SUM(DW$7:DW$9)>0,$E13*$F13,0) -> 0
C14: 2 | D14: Luva de malha tricotada em fios de algodão com acabamento em overloque e palmas pigmentadas em PVC. Ref. LEDAN | E14: 4 | F14: 12.4 | J14: =IF(SUM(I$7:I$9)>0,$E14*$F14,0) -> 49.6 | L14: 0 | N14: 0 | P14: 0 | R14: 0 | T14: 0 | V14: 0 | X14: 0 | Z14: 0 | AB14: 0 | AD14: 0 | AF14: 0 | AH14: 0 | AJ14: 0 | AL14: 0 | AN14: 0 | AP14: 0 | AR14: 0 | AT14: 0 | AV14: 0 | AX14: 0 | AZ14: 0 | BB14: 0 | BD14: 0 | BF14: 0 | BH14: 0 | BJ14: 0 | BL14: 0 | BN14: 0 | BP14: 0 | BR14: 0 | BT14: 0 | BV14: 0 | BX14: 0 | BZ14: 0 | CB14: 0 | CD14: 0 | CF14: 0 | CH14: 0 | CJ14: 0 | CL14: 0 | CN14: 0 | CP14: 0 | CR14: 0 | CT14: 0 | CV14: 0 | CX14: 0 | CZ14: 0 | DB14: 0 | DD14: 0 | DF14: 0 | DH14: 0 | DJ14: 0 | DL14: 0 | DN14: 0 | DP14: 0 | DR14: 0 | DT14: 0 | DV14: 0 | DX14: 0
C15: 3 | D15: Óculos de segurança constituídos de armação e visor confeccionados em uma única peça de policarbonato INCOLOR, anti-risco, apoio nasal de plástico maleável. Hastes emborrachadas. Ref.: 3M Virtua V4 | E15: 4 | F15: 31.71 | J15: 126.84 | L15: 0 | N15: 0 | P15: 0 | R15: 0 | T15: 0 | V15: 0 | X15: 0 | Z15: 0 | AB15: 0 | AD15: 0 | AF15: 0 | AH15: 0 | AJ15: 0 | AL15: 0 | AN15: 0 | AP15: 0 | AR15: 0 | AT15: 0 | AV15: 0 | AX15: 0 | AZ15: 0 | BB15: 0 | BD15: 0 | BF15: 0 | BH15: 0 | BJ15: 0 | BL15: 0 | BN15: 0 | BP15: 0 | BR15: 0 | BT15: 0 | BV15: 0 | BX15: 0 | BZ15: 0 | CB15: 0 | CD15: 0 | CF15: 0 | CH15: 0 | CJ15: 0 | CL15: 0 | CN15: 0 | CP15: 0 | CR15: 0 | CT15: 0 | CV15: 0 | CX15: 0 | CZ15: 0 | DB15: 0 | DD15: 0 | DF15: 0 | DH15: 0 | DJ15: 0 | DL15: 0 | DN15: 0 | DP15: 0 | DR15: 0 | DT15: 0 | DV15: 0 | DX15: 0
C16: 4 | D16: Capacete de segurança em polietileno de alta densidade, na cor VERMELHA, aba frontal, suspensão em tecido, com Faixa anti-suor, regulagem de tamanho com ajuste simples, com jugular ajustável. MARCA(S) DE REFERÊNCIA:Ref: MSA | E16: 1 | F16: 47.66 | J16: 47.66 | L16: 0 | N16: 0 | P16: 0 | R16: 0 | T16: 0 | V16: 0 | X16: 0 | Z16: 0 | AB16: 0 | AD16: 0 | AF16: 0 | AH16: 0 | AJ16: 0 | AL16: 0 | AN16: 0 | AP16: 0 | AR16: 0 | AT16: 0 | AV16: 0 | AX16: 0 | AZ16: 0 | BB16: 0 | BD16: 0 | BF16: 0 | BH16: 0 | BJ16: 0 | BL16: 0 | BN16: 0 | BP16: 0 | BR16: 0 | BT16: 0 | BV16: 0 | BX16: 0 | BZ16: 0 | CB16: 0 | CD16: 0 | CF16: 0 | CH16: 0 | CJ16: 0 | CL16: 0 | CN16: 0 | CP16: 0 | CR16: 0 | CT16: 0 | CV16: 0 | CX16: 0 | CZ16: 0 | DB16: 0 | DD16: 0 | DF16: 0 | DH16: 0 | DJ16: 0 | DL16: 0 | DN16: 0 | DP16: 0 | DR16: 0 | DT16: 0 | DV16: 0 | DX16: 0
C17: 5 | D17: Botina de segurança, fechamento em elástico, sem componentes metálicos, confeccionada em couro curtido ao cromo, na cor preta, elásticos laterais, BIQUEIRA EM COMPOSITE ou POLIPROPILENO, solado de poliuretano bidensidade injetado diretamente ao cabedal, solado com perfil antiderrapante e sistemas de absorção de impacto. Com selo conforto. Em conformidade com as Normas de segurança da ABNT NBR ISO 20344 e 20347. Ref.: MARLUVAS. | E17: 2 | F17: 148.98 | J17: 297.96 | L17: =IF(SUM(K$7:K$9)>0,$E17*$F17,0) -> 0 | N17: =IF(SUM(M$7:M$9)>0,$E17*$F17,0) -> 0 | P17: =IF(SUM(O$7:O$9)>0,$E17*$F17,0) -> 0 | R17: =IF(SUM(Q$7:Q$9)>0,$E17*$F17,0) -> 0 | T17: =IF(SUM(S$7:S$9)>0,$E17*$F17,0) -> 0 | V17: =IF(SUM(U$7:U$9)>0,$E17*$F17,0) -> 0 | X17: =IF(SUM(W$7:W$9)>0,$E17*$F17,0) -> 0 | Z17: =IF(SUM(Y$7:Y$9)>0,$E17*$F17,0) -> 0 | AB17: =IF(SUM(AA$7:AA$9)>0,$E17*$F17,0) -> 0 | AD17: =IF(SUM(AC$7:AC$9)>0,$E17*$F17,0) -> 0 | AF17: =IF(SUM(AE$7:AE$9)>0,$E17*$F17,0) -> 0 | AH17: =IF(SUM(AG$7:AG$9)>0,$E17*$F17,0) -> 0 | AJ17: =IF(SUM(AI$7:AI$9)>0,$E17*$F17,0) -> 0 | AL17: =IF(SUM(AK$7:AK$9)>0,$E17*$F17,0) -> 0 | AN17: =IF(SUM(AM$7:AM$9)>0,$E17*$F17,0) -> 0 | AP17: =IF(SUM(AO$7:AO$9)>0,$E17*$F17,0) -> 0 | AR17: =IF(SUM(AQ$7:AQ$9)>0,$E17*$F17,0) -> 0 | AT17: =IF(SUM(AS$7:AS$9)>0,$E17*$F17,0) -> 0 | AV17: 0 | AX17: 0 | AZ17: 0 | BB17: 0 | BD17: 0 | BF17: 0 | BH17: 0 | BJ17: 0 | BL17: 0 | BN17: 0 | BP17: 0 | BR17: 0 | BT17: 0 | BV17: 0 | BX17: 0 | BZ17: 0 | CB17: 0 | CD17: 0 | CF17: 0 | CH17: 0 | CJ17: 0 | CL17: 0 | CN17: 0 | CP17: 0 | CR17: 0 | CT17: 0 | CV17: 0 | CX17: 0 | CZ17: 0 | DB17: 0 | DD17: 0 | DF17: 0 | DH17: 0 | DJ17: 0 | DL17: 0 | DN17: 0 | DP17: 0 | DR17: 0 | DT17: 0 | DV17: 0 | DX17: 0
C18: 6 | D18: Bota em PVC, impermeável, forrada internamente, cano médio. Ref. PEGA FORTE. | E18: 1 | F18: 47.93 | J18: 47.93 | L18: 0 | N18: 0 | P18: 0 | R18: 0 | T18: 0 | V18: 0 | X18: 0 | Z18: 0 | AB18: 0 | AD18: 0 | AF18: 0 | AH18: 0 | AJ18: 0 | AL18: 0 | AN18: 0 | AP18: 0 | AR18: 0 | AT18: 0 | AV18: 0 | AX18: 0 | AZ18: 0 | BB18: 0 | BD18: 0 | BF18: 0 | BH18: 0 | BJ18: 0 | BL18: 0 | BN18: 0 | BP18: 0 | BR18: 0 | BT18: 0 | BV18: 0 | BX18: 0 | BZ18: 0 | CB18: 0 | CD18: 0 | CF18: 0 | CH18: 0 | CJ18: 0 | CL18: 0 | CN18: 0 | CP18: 0 | CR18: 0 | CT18: 0 | CV18: 0 | CX18: 0 | CZ18: 0 | DB18: 0 | DD18: 0 | DF18: 0 | DH18: 0 | DJ18: 0 | DL18: 0 | DN18: 0 | DP18: 0 | DR18: 0 | DT18: 0 | DV18: 0 | DX18: 0
C19: 7 | D19: Boné tipo Touca Árabe confeccionado em helanca com viés na aba, elástico interno traseiro para ajuste de tamanho, fechamento da saia em velcro. | E19: 1 | F19: 12.58 | J19: 12.58 | L19: 0 | N19: 0 | P19: 0 | R19: 0 | T19: 0 | V19: 0 | X19: 0 | Z19: 0 | AB19: 0 | AD19: 0 | AF19: 0 | AH19: 0 | AJ19: 0 | AL19: 0 | AN19: 0 | AP19: 0 | AR19: 0 | AT19: 0 | AV19: 0 | AX19: 0 | AZ19: 0 | BB19: 0 | BD19: 0 | BF19: 0 | BH19: 0 | BJ19: 0 | BL19: 0 | BN19: 0 | BP19: 0 | BR19: 0 | BT19: 0 | BV19: 0 | BX19: 0 | BZ19: 0 | CB19: 0 | CD19: 0 | CF19: 0 | CH19: 0 | CJ19: 0 | CL19: 0 | CN19: 0 | CP19: 0 | CR19: 0 | CT19: 0 | CV19: 0 | CX19: 0 | CZ19: 0 | DB19: 0 | DD19: 0 | DF19: 0 | DH19: 0 | DJ19: 0 | DL19: 0 | DN19: 0 | DP19: 0 | DR19: 0 | DT19: 0 | DV19: 0 | DX19: 0
C21: CATEGORIAS | F21: QUANTIDADE
I22: =IF($C22=I$3,1,0) -> 0 | K22: =IF($C22=K$3,1,0) -> 0 | M22: =IF($C22=M$3,1,0) -> 0 | O22: =IF($C22=O$3,1,0) -> 0 | Q22: =IF($C22=Q$3,1,0) -> 0 | S22: =IF($C22=S$3,1,0) -> 0 | U22: =IF($C22=U$3,1,0) -> 0 | W22: =IF($C22=W$3,1,0) -> 0 | Y22: =IF($C22=Y$3,1,0) -> 0 | AA22: =IF($C22=AA$3,1,0) -> 0 | AC22: =IF($C22=AC$3,1,0) -> 0 | AE22: =IF($C22=AE$3,1,0) -> 0 | AG22: =IF($C22=AG$3,1,0) -> 0 | AI22: =IF($C22=AI$3,1,0) -> 0 | AK22: =IF($C22=AK$3,1,0) -> 0 | AM22: =IF($C22=AM$3,1,0) -> 0 | AO22: =IF($C22=AO$3,1,0) -> 0 | AQ22: =IF($C22=AQ$3,1,0) -> 0 | AS22: =IF($C22=AS$3,1,0) -> 0
C23: 2 | D23: =HLOOKUP($C23,'Dados Gerais'!$D$5:$BK$10,6) -> ENCARREGADO DE INSTALAÇÕES | F23: =HLOOKUP($C23,'Dados Gerais'!$D$5:$BK$14,10) -> 1 | I23: =IF($C23=I$3,1,0) -> 0 | J23: =IF($C23=J$3,1,0) -> 0 | K23: 1 | L23: 0 | M23: 0 | N23: 0 | O23: 0 | P23: 0 | Q23: 0 | R23: 0 | S23: 0 | T23: 0 | U23: 0 | V23: 0 | W23: 0 | X23: 0 | Y23: 0 | Z23: 0 | AA23: 0 | AB23: 0 | AC23: 0 | AD23: 0 | AE23: =IF($C23=AE$3,1,0) -> 0 | AF23: 0 | AG23: 0 | AH23: 0 | AI23: 0 | AJ23: 0 | AK23: 0 | AL23: 0 | AM23: 0 | AN23: 0 | AO23: 0 | AP23: 0 | AQ23: 0 | AR23: 0 | AS23: 0 | AT23: 0 | AU23: =IF($C23=AU$3,1,0) -> 0 | AV23: 0 | AW23: =IF($C23=AW$3,1,0) -> 0 | AX23: 0 | AY23: =IF($C23=AY$3,1,0) -> 0 | AZ23: 0 | BA23: =IF($C23=BA$3,1,0) -> 0 | BB23: 0 | BC23: =IF($C23=BC$3,1,0) -> 0 | BD23: 0 | BE23: =IF($C23=BE$3,1,0) -> 0 | BF23: 0 | BG23: =IF($C23=BG$3,1,0) -> 0 | BH23: 0 | BI23: =IF($C23=BI$3,1,0) -> 0 | BJ23: 0 | BK23: =IF($C23=BK$3,1,0) -> 0 | BL23: 0 | BM23: =IF($C23=BM$3,1,0) -> 0 | BN23: 0 | BO23: =IF($C23=BO$3,1,0) -> 0 | BP23: 0 | BQ23: =IF($C23=BQ$3,1,0) -> 0 | BR23: 0 | BS23: =IF($C23=BS$3,1,0) -> 0 | BT23: 0 | BU23: =IF($C23=BU$3,1,0) -> 0 | BV23: 0 | BW23: =IF($C23=BW$3,1,0) -> 0 | BX23: 0 | BY23: =IF($C23=BY$3,1,0) -> 0 | BZ23: 0 | CA23: =IF($C23=CA$3,1,0) -> 0 | CB23: 0 | CC23: =IF($C23=CC$3,1,0) -> 0 | CD23: 0 | CE23: =IF($C23=CE$3,1,0) -> 0 | CF23: 0 | CG23: =IF($C23=CG$3,1,0) -> 0 | CH23: 0 | CI23: =IF($C23=CI$3,1,0) -> 0 | CJ23: 0 | CK23: =IF($C23=CK$3,1,0) -> 0 | CL23: 0 | CM23: =IF($C23=CM$3,1,0) -> 0 | CN23: 0 | CO23: =IF($C23=CO$3,1,0) -> 0 | CP23: 0 | CQ23: =IF($C23=CQ$3,1,0) -> 0 | CR23: 0 | CS23: =IF($C23=CS$3,1,0) -> 0 | CT23: 0 | CU23: =IF($C23=CU$3,1,0) -> 0 | CV23: 0 | CW23: =IF($C23=CW$3,1,0) -> 0 | CX23: 0 | CY23: =IF($C23=CY$3,1,0) -> 0 | CZ23: 0 | DA23: =IF($C23=DA$3,1,0) -> 0 | DB23: 0 | DC23: =IF($C23=DC$3,1,0) -> 0 | DD23: 0 | DE23: =IF($C23=DE$3,1,0) -> 0 | DF23: 0 | DG23: =IF($C23=DG$3,1,0) -> 0 | DH23: 0 | DI23: =IF($C23=DI$3,1,0) -> 0 | DJ23: 0 | DK23: =IF($C23=DK$3,1,0) -> 0 | DL23: 0 | DM23: =IF($C23=DM$3,1,0) -> 0 | DN23: 0 | DO23: =IF($C23=DO$3,1,0) -> 0 | DP23: 0 | DQ23: =IF($C23=DQ$3,1,0) -> 0 | DR23: 0 | DS23: =IF($C23=DS$3,1,0) -> 0 | DT23: 0 | DU23: =IF($C23=DU$3,1,0) -> 0 | DV23: 0 | DW23: =IF($C23=DW$3,1,0) -> 0 | DX23: 0
I24: =IF($C24=I$3,1,0) -> 0 | K24: 0 | M24: 0 | O24: 0 | Q24: 0 | S24: 0 | U24: 0 | W24: 0 | Y24: 0 | AA24: 0 | AC24: 0 | AE24: =IF($C24=AE$3,1,0) -> 0 | AG24: 0 | AI24: 0 | AK24: 0 | AM24: 0 | AO24: 0 | AQ24: 0 | AS24: 0
C26: ITEM | D26: DESCRIÇÃO | E26: QUANT ANUAL POR POSTO | F26: VALOR
C28: 1 | D28: Luva de malha tricotada em fios de algodão com acabamento em overloque e palmas pigmentadas em PVC. Ref. LEDAN | E28: 5 | F28: =F14 -> 12.4 | J28: =IF(SUM(I$22:I$24)>0,$E28*$F28,0) -> 0 | L28: =IF(SUM(K$22:K$24)>0,$E28*$F28,0) -> 62 | N28: =IF(SUM(M$22:M$24)>0,$E28*$F28,0) -> 0 | P28: =IF(SUM(O$22:O$24)>0,$E28*$F28,0) -> 0 | R28: =IF(SUM(Q$22:Q$24)>0,$E28*$F28,0) -> 0 | T28: =IF(SUM(S$22:S$24)>0,$E28*$F28,0) -> 0 | V28: =IF(SUM(U$22:U$24)>0,$E28*$F28,0) -> 0 | X28: =IF(SUM(W$22:W$24)>0,$E28*$F28,0) -> 0 | Z28: =IF(SUM(Y$22:Y$24)>0,$E28*$F28,0) -> 0 | AB28: =IF(SUM(AA$22:AA$24)>0,$E28*$F28,0) -> 0 | AD28: =IF(SUM(AC$22:AC$24)>0,$E28*$F28,0) -> 0 | AF28: =IF(SUM(AE$22:AE$24)>0,$E28*$F28,0) -> 0 | AH28: =IF(SUM(AG$22:AG$24)>0,$E28*$F28,0) -> 0 | AJ28: =IF(SUM(AI$22:AI$24)>0,$E28*$F28,0) -> 0 | AL28: =IF(SUM(AK$22:AK$24)>0,$E28*$F28,0) -> 0 | AN28: =IF(SUM(AM$22:AM$24)>0,$E28*$F28,0) -> 0 | AP28: =IF(SUM(AO$22:AO$24)>0,$E28*$F28,0) -> 0 | AR28: =IF(SUM(AQ$22:AQ$24)>0,$E28*$F28,0) -> 0 | AT28: =IF(SUM(AS$22:AS$24)>0,$E28*$F28,0) -> 0 | AV28: =IF(SUM(AU$22:AU$24)>0,$E28*$F28,0) -> 0 | AX28: =IF(SUM(AW$22:AW$24)>0,$E28*$F28,0) -> 0 | AZ28: =IF(SUM(AY$22:AY$24)>0,$E28*$F28,0) -> 0 | BB28: =IF(SUM(BA$22:BA$24)>0,$E28*$F28,0) -> 0 | BD28: =IF(SUM(BC$22:BC$24)>0,$E28*$F28,0) -> 0 | BF28: =IF(SUM(BE$22:BE$24)>0,$E28*$F28,0) -> 0 | BH28: =IF(SUM(BG$22:BG$24)>0,$E28*$F28,0) -> 0 | BJ28: =IF(SUM(BI$22:BI$24)>0,$E28*$F28,0) -> 0 | BL28: =IF(SUM(BK$22:BK$24)>0,$E28*$F28,0) -> 0 | BN28: =IF(SUM(BM$22:BM$24)>0,$E28*$F28,0) -> 0 | BP28: =IF(SUM(BO$22:BO$24)>0,$E28*$F28,0) -> 0 | BR28: =IF(SUM(BQ$22:BQ$24)>0,$E28*$F28,0) -> 0 | BT28: =IF(SUM(BS$22:BS$24)>0,$E28*$F28,0) -> 0 | BV28: =IF(SUM(BU$22:BU$24)>0,$E28*$F28,0) -> 0 | BX28: =IF(SUM(BW$22:BW$24)>0,$E28*$F28,0) -> 0 | BZ28: =IF(SUM(BY$22:BY$24)>0,$E28*$F28,0) -> 0 | CB28: =IF(SUM(CA$22:CA$24)>0,$E28*$F28,0) -> 0 | CD28: =IF(SUM(CC$22:CC$24)>0,$E28*$F28,0) -> 0 | CF28: =IF(SUM(CE$22:CE$24)>0,$E28*$F28,0) -> 0 | CH28: =IF(SUM(CG$22:CG$24)>0,$E28*$F28,0) -> 0 | CJ28: =IF(SUM(CI$22:CI$24)>0,$E28*$F28,0) -> 0 | CL28: =IF(SUM(CK$22:CK$24)>0,$E28*$F28,0) -> 0 | CN28: =IF(SUM(CM$22:CM$24)>0,$E28*$F28,0) -> 0 | CP28: =IF(SUM(CO$22:CO$24)>0,$E28*$F28,0) -> 0 | CR28: =IF(SUM(CQ$22:CQ$24)>0,$E28*$F28,0) -> 0 | CT28: =IF(SUM(CS$22:CS$24)>0,$E28*$F28,0) -> 0 | CV28: =IF(SUM(CU$22:CU$24)>0,$E28*$F28,0) -> 0 | CX28: =IF(SUM(CW$22:CW$24)>0,$E28*$F28,0) -> 0 | CZ28: =IF(SUM(CY$22:CY$24)>0,$E28*$F28,0) -> 0 | DB28: =IF(SUM(DA$22:DA$24)>0,$E28*$F28,0) -> 0 | DD28: =IF(SUM(DC$22:DC$24)>0,$E28*$F28,0) -> 0 | DF28: =IF(SUM(DE$22:DE$24)>0,$E28*$F28,0) -> 0 | DH28: =IF(SUM(DG$22:DG$24)>0,$E28*$F28,0) -> 0 | DJ28: =IF(SUM(DI$22:DI$24)>0,$E28*$F28,0) -> 0 | DL28: =IF(SUM(DK$22:DK$24)>0,$E28*$F28,0) -> 0 | DN28: =IF(SUM(DM$22:DM$24)>0,$E28*$F28,0) -> 0 | DP28: =IF(SUM(DO$22:DO$24)>0,$E28*$F28,0) -> 0 | DR28: =IF(SUM(DQ$22:DQ$24)>0,$E28*$F28,0) -> 0 | DT28: =IF(SUM(DS$22:DS$24)>0,$E28*$F28,0) -> 0 | DV28: =IF(SUM(DU$22:DU$24)>0,$E28*$F28,0) -> 0 | DX28: =IF(SUM(DW$22:DW$24)>0,$E28*$F28,0) -> 0
C29: 2 | D29: Óculos de segurança constituídos de armação e visor confeccionados em uma única peça de policarbonato INCOLOR, anti-risco, apoio nasal de plástico maleável. Hastes emborrachadas. Ref.: 3M Virtua V4 | E29: 4 | F29: =F15 -> 31.71 | J29: =IF(SUM(I$22:I$24)>0,$E29*$F29,0) -> 0 | L29: 126.84 | N29: 0 | P29: 0 | R29: 0 | T29: 0 | V29: 0 | X29: 0 | Z29: 0 | AB29: 0 | AD29: 0 | AF29: 0 | AH29: 0 | AJ29: 0 | AL29: 0 | AN29: 0 | AP29: 0 | AR29: 0 | AT29: 0 | AV29: 0 | AX29: 0 | AZ29: 0 | BB29: 0 | BD29: 0 | BF29: 0 | BH29: 0 | BJ29: 0 | BL29: 0 | BN29: 0 | BP29: 0 | BR29: 0 | BT29: 0 | BV29: 0 | BX29: 0 | BZ29: 0 | CB29: 0 | CD29: 0 | CF29: 0 | CH29: 0 | CJ29: 0 | CL29: 0 | CN29: 0 | CP29: 0 | CR29: 0 | CT29: 0 | CV29: 0 | CX29: 0 | CZ29: 0 | DB29: 0 | DD29: 0 | DF29: 0 | DH29: 0 | DJ29: 0 | DL29: 0 | DN29: 0 | DP29: 0 | DR29: 0 | DT29: 0 | DV29: 0 | DX29: 0
C30: 3 | D30: Capacete de segurança em polietileno de alta densidade, na cor VERMELHA, aba frontal, suspensão em tecido, com Faixa anti-suor, regulagem de tamanho com ajuste simples, com jugular ajustável. MARCA(S) DE REFERÊNCIA:Ref: MSA | E30: 1 | F30: =F16 -> 47.66 | J30: 0 | L30: =IF(SUM(K$22:K$24)>0,$E30*$F30,0) -> 47.66 | N30: 0 | P30: 0 | R30: 0 | T30: 0 | V30: 0 | X30: 0 | Z30: 0 | AB30: 0 | AD30: 0 | AF30: 0 | AH30: 0 | AJ30: 0 | AL30: 0 | AN30: 0 | AP30: 0 | AR30: 0 | AT30: 0 | AV30: 0 | AX30: 0 | AZ30: 0 | BB30: 0 | BD30: 0 | BF30: 0 | BH30: 0 | BJ30: 0 | BL30: 0 | BN30: 0 | BP30: 0 | BR30: 0 | BT30: 0 | BV30: 0 | BX30: 0 | BZ30: 0 | CB30: 0 | CD30: 0 | CF30: 0 | CH30: 0 | CJ30: 0 | CL30: 0 | CN30: 0 | CP30: 0 | CR30: 0 | CT30: 0 | CV30: 0 | CX30: 0 | CZ30: 0 | DB30: 0 | DD30: 0 | DF30: 0 | DH30: 0 | DJ30: 0 | DL30: 0 | DN30: 0 | DP30: 0 | DR30: 0 | DT30: 0 | DV30: 0 | DX30: 0
C31: 4 | D31: Botina de segurança, fechamento em elástico, sem componentes metálicos, confeccionada em couro curtido ao cromo, na cor preta, elásticos laterais, BIQUEIRA EM COMPOSITE ou POLIPROPILENO, solado de poliuretano bidensidade injetado diretamente ao cabedal, solado com perfil antiderrapante e sistemas de absorção de impacto. Com selo conforto. Em conformidade com as Normas de segurança da ABNT NBR ISO 20344 e 20347. Ref.: MARLUVAS. | E31: 3 | F31: =F17 -> 148.98 | J31: 0 | L31: 446.94 | N31: 0 | P31: 0 | R31: 0 | T31: 0 | V31: 0 | X31: 0 | Z31: 0 | AB31: 0 | AD31: 0 | AF31: 0 | AH31: 0 | AJ31: 0 | AL31: 0 | AN31: 0 | AP31: 0 | AR31: 0 | AT31: 0 | AV31: 0 | AX31: 0 | AZ31: 0 | BB31: 0 | BD31: 0 | BF31: 0 | BH31: 0 | BJ31: 0 | BL31: 0 | BN31: 0 | BP31: 0 | BR31: 0 | BT31: 0 | BV31: 0 | BX31: 0 | BZ31: 0 | CB31: 0 | CD31: 0 | CF31: 0 | CH31: 0 | CJ31: 0 | CL31: 0 | CN31: 0 | CP31: 0 | CR31: 0 | CT31: 0 | CV31: 0 | CX31: 0 | CZ31: 0 | DB31: 0 | DD31: 0 | DF31: 0 | DH31: 0 | DJ31: 0 | DL31: 0 | DN31: 0 | DP31: 0 | DR31: 0 | DT31: 0 | DV31: 0 | DX31: 0
C32: 5 | D32: Boné tipo Touca Árabe confeccionado em helanca com viés na aba, elástico interno traseiro para ajuste de tamanho, fechamento da saia em velcro. | E32: 1 | F32: =F19 -> 12.58 | J32: =IF(SUM(I$22:I$24)>0,$E32*$F32,0) -> 0 | L32: =IF(SUM(K$22:K$24)>0,$E32*$F32,0) -> 12.58 | N32: =IF(SUM(M$22:M$24)>0,$E32*$F32,0) -> 0 | P32: =IF(SUM(O$22:O$24)>0,$E32*$F32,0) -> 0 | R32: =IF(SUM(Q$22:Q$24)>0,$E32*$F32,0) -> 0 | T32: =IF(SUM(S$22:S$24)>0,$E32*$F32,0) -> 0 | V32: =IF(SUM(U$22:U$24)>0,$E32*$F32,0) -> 0 | X32: =IF(SUM(W$22:W$24)>0,$E32*$F32,0) -> 0 | Z32: =IF(SUM(Y$22:Y$24)>0,$E32*$F32,0) -> 0 | AB32: =IF(SUM(AA$22:AA$24)>0,$E32*$F32,0) -> 0 | AD32: =IF(SUM(AC$22:AC$24)>0,$E32*$F32,0) -> 0 | AF32: =IF(SUM(AE$22:AE$24)>0,$E32*$F32,0) -> 0 | AH32: =IF(SUM(AG$22:AG$24)>0,$E32*$F32,0) -> 0 | AJ32: =IF(SUM(AI$22:AI$24)>0,$E32*$F32,0) -> 0 | AL32: =IF(SUM(AK$22:AK$24)>0,$E32*$F32,0) -> 0 | AN32: =IF(SUM(AM$22:AM$24)>0,$E32*$F32,0) -> 0 | AP32: =IF(SUM(AO$22:AO$24)>0,$E32*$F32,0) -> 0 | AR32: =IF(SUM(AQ$22:AQ$24)>0,$E32*$F32,0) -> 0 | AT32: =IF(SUM(AS$22:AS$24)>0,$E32*$F32,0) -> 0 | AV32: =IF(SUM(AU$22:AU$24)>0,$E32*$F32,0) -> 0 | AX32: =IF(SUM(AW$22:AW$24)>0,$E32*$F32,0) -> 0 | AZ32: =IF(SUM(AY$22:AY$24)>0,$E32*$F32,0) -> 0 | BB32: =IF(SUM(BA$22:BA$24)>0,$E32*$F32,0) -> 0 | BD32: =IF(SUM(BC$22:BC$24)>0,$E32*$F32,0) -> 0 | BF32: =IF(SUM(BE$22:BE$24)>0,$E32*$F32,0) -> 0 | BH32: =IF(SUM(BG$22:BG$24)>0,$E32*$F32,0) -> 0 | BJ32: =IF(SUM(BI$22:BI$24)>0,$E32*$F32,0) -> 0 | BL32: =IF(SUM(BK$22:BK$24)>0,$E32*$F32,0) -> 0 | BN32: =IF(SUM(BM$22:BM$24)>0,$E32*$F32,0) -> 0 | BP32: =IF(SUM(BO$22:BO$24)>0,$E32*$F32,0) -> 0 | BR32: =IF(SUM(BQ$22:BQ$24)>0,$E32*$F32,0) -> 0 | BT32: =IF(SUM(BS$22:BS$24)>0,$E32*$F32,0) -> 0 | BV32: =IF(SUM(BU$22:BU$24)>0,$E32*$F32,0) -> 0 | BX32: =IF(SUM(BW$22:BW$24)>0,$E32*$F32,0) -> 0 | BZ32: =IF(SUM(BY$22:BY$24)>0,$E32*$F32,0) -> 0 | CB32: =IF(SUM(CA$22:CA$24)>0,$E32*$F32,0) -> 0 | CD32: =IF(SUM(CC$22:CC$24)>0,$E32*$F32,0) -> 0 | CF32: =IF(SUM(CE$22:CE$24)>0,$E32*$F32,0) -> 0 | CH32: =IF(SUM(CG$22:CG$24)>0,$E32*$F32,0) -> 0 | CJ32: =IF(SUM(CI$22:CI$24)>0,$E32*$F32,0) -> 0 | CL32: =IF(SUM(CK$22:CK$24)>0,$E32*$F32,0) -> 0 | CN32: =IF(SUM(CM$22:CM$24)>0,$E32*$F32,0) -> 0 | CP32: =IF(SUM(CO$22:CO$24)>0,$E32*$F32,0) -> 0 | CR32: =IF(SUM(CQ$22:CQ$24)>0,$E32*$F32,0) -> 0 | CT32: =IF(SUM(CS$22:CS$24)>0,$E32*$F32,0) -> 0 | CV32: =IF(SUM(CU$22:CU$24)>0,$E32*$F32,0) -> 0 | CX32: =IF(SUM(CW$22:CW$24)>0,$E32*$F32,0) -> 0 | CZ32: =IF(SUM(CY$22:CY$24)>0,$E32*$F32,0) -> 0 | DB32: =IF(SUM(DA$22:DA$24)>0,$E32*$F32,0) -> 0 | DD32: =IF(SUM(DC$22:DC$24)>0,$E32*$F32,0) -> 0 | DF32: =IF(SUM(DE$22:DE$24)>0,$E32*$F32,0) -> 0 | DH32: =IF(SUM(DG$22:DG$24)>0,$E32*$F32,0) -> 0 | DJ32: =IF(SUM(DI$22:DI$24)>0,$E32*$F32,0) -> 0 | DL32: =IF(SUM(DK$22:DK$24)>0,$E32*$F32,0) -> 0 | DN32: =IF(SUM(DM$22:DM$24)>0,$E32*$F32,0) -> 0 | DP32: =IF(SUM(DO$22:DO$24)>0,$E32*$F32,0) -> 0 | DR32: =IF(SUM(DQ$22:DQ$24)>0,$E32*$F32,0) -> 0 | DT32: =IF(SUM(DS$22:DS$24)>0,$E32*$F32,0) -> 0 | DV32: =IF(SUM(DU$22:DU$24)>0,$E32*$F32,0) -> 0 | DX32: =IF(SUM(DW$22:DW$24)>0,$E32*$F32,0) -> 0
C34: CATEGORIAS | F34: QUANTIDADE
I35: =IF($C35=I$3,1,0) -> 0 | K35: =IF($C35=K$3,1,0) -> 0 | M35: =IF($C35=M$3,1,0) -> 0 | O35: =IF($C35=O$3,1,0) -> 0 | Q35: =IF($C35=Q$3,1,0) -> 0 | S35: =IF($C35=S$3,1,0) -> 0 | U35: =IF($C35=U$3,1,0) -> 0 | W35: =IF($C35=W$3,1,0) -> 0 | Y35: =IF($C35=Y$3,1,0) -> 0 | AA35: =IF($C35=AA$3,1,0) -> 0 | AC35: =IF($C35=AC$3,1,0) -> 0 | AE35: =IF($C35=AE$3,1,0) -> 0 | AG35: =IF($C35=AG$3,1,0) -> 0 | AI35: =IF($C35=AI$3,1,0) -> 0 | AK35: =IF($C35=AK$3,1,0) -> 0 | AM35: =IF($C35=AM$3,1,0) -> 0 | AO35: =IF($C35=AO$3,1,0) -> 0 | AQ35: =IF($C35=AQ$3,1,0) -> 0 | AS35: =IF($C35=AS$3,1,0) -> 0 | AU35: =IF($C35=AU$3,1,0) -> 0 | AW35: =IF($C35=AW$3,1,0) -> 0 | AY35: =IF($C35=AY$3,1,0) -> 0 | BA35: =IF($C35=BA$3,1,0) -> 0 | BC35: =IF($C35=BC$3,1,0) -> 0 | BE35: =IF($C35=BE$3,1,0) -> 0 | BG35: =IF($C35=BG$3,1,0) -> 0 | BI35: =IF($C35=BI$3,1,0) -> 0 | BK35: =IF($C35=BK$3,1,0) -> 0 | BM35: =IF($C35=BM$3,1,0) -> 0 | BO35: =IF($C35=BO$3,1,0) -> 0 | BQ35: =IF($C35=BQ$3,1,0) -> 0 | BS35: =IF($C35=BS$3,1,0) -> 0 | BU35: =IF($C35=BU$3,1,0) -> 0 | BW35: =IF($C35=BW$3,1,0) -> 0 | BY35: =IF($C35=BY$3,1,0) -> 0 | CA35: =IF($C35=CA$3,1,0) -> 0 | CC35: =IF($C35=CC$3,1,0) -> 0 | CE35: =IF($C35=CE$3,1,0) -> 0 | CG35: =IF($C35=CG$3,1,0) -> 0 | CI35: =IF($C35=CI$3,1,0) -> 0 | CK35: =IF($C35=CK$3,1,0) -> 0 | CM35: =IF($C35=CM$3,1,0) -> 0 | CO35: =IF($C35=CO$3,1,0) -> 0 | CQ35: =IF($C35=CQ$3,1,0) -> 0 | CS35: =IF($C35=CS$3,1,0) -> 0 | CU35: =IF($C35=CU$3,1,0) -> 0 | CW35: =IF($C35=CW$3,1,0) -> 0 | CY35: =IF($C35=CY$3,1,0) -> 0 | DA35: =IF($C35=DA$3,1,0) -> 0 | DC35: =IF($C35=DC$3,1,0) -> 0 | DE35: =IF($C35=DE$3,1,0) -> 0 | DG35: =IF($C35=DG$3,1,0) -> 0 | DI35: =IF($C35=DI$3,1,0) -> 0 | DK35: =IF($C35=DK$3,1,0) -> 0 | DM35: =IF($C35=DM$3,1,0) -> 0 | DO35: =IF($C35=DO$3,1,0) -> 0 | DQ35: =IF($C35=DQ$3,1,0) -> 0 | DS35: =IF($C35=DS$3,1,0) -> 0 | DU35: =IF($C35=DU$3,1,0) -> 0 | DW35: =IF($C35=DW$3,1,0) -> 0
C36: 3 | D36: =HLOOKUP($C36,'Dados Gerais'!$D$5:$BK$10,6) -> TÉCNICO EM ELETRÔNICA (DETECÇÃO, ALARME E COMBATE A INCÊNCIO) | F36: =HLOOKUP($C36,'Dados Gerais'!$D$5:$BK$14,10) -> 1 | I36: =IF($C36=I$3,1,0) -> 0 | J36: =IF($C36=J$3,1,0) -> 0 | K36: =IF($C36=K$3,1,0) -> 0 | L36: 0 | M36: =IF($C36=M$3,1,0) -> 1 | N36: 0 | O36: =IF($C36=O$3,1,0) -> 0 | P36: 0 | Q36: =IF($C36=Q$3,1,0) -> 0 | R36: 0 | S36: =IF($C36=S$3,1,0) -> 0 | T36: 0 | U36: =IF($C36=U$3,1,0) -> 0 | V36: 0 | W36: =IF($C36=W$3,1,0) -> 0 | X36: 0 | Y36: =IF($C36=Y$3,1,0) -> 0 | Z36: 0 | AA36: =IF($C36=AA$3,1,0) -> 0 | AB36: 0 | AC36: =IF($C36=AC$3,1,0) -> 0 | AD36: 0 | AE36: =IF($C36=AE$3,1,0) -> 0 | AF36: 0 | AG36: =IF($C36=AG$3,1,0) -> 0 | AH36: 0 | AI36: =IF($C36=AI$3,1,0) -> 0 | AJ36: 0 | AK36: =IF($C36=AK$3,1,0) -> 0 | AL36: 0 | AM36: =IF($C36=AM$3,1,0) -> 0 | AN36: 0 | AO36: =IF($C36=AO$3,1,0) -> 0 | AP36: 0 | AQ36: =IF($C36=AQ$3,1,0) -> 0 | AR36: 0 | AS36: =IF($C36=AS$3,1,0) -> 0 | AT36: 0 | AU36: =IF($C36=AU$3,1,0) -> 0 | AV36: 0 | AW36: =IF($C36=AW$3,1,0) -> 0 | AX36: 0 | AY36: =IF($C36=AY$3,1,0) -> 0 | AZ36: 0 | BA36: =IF($C36=BA$3,1,0) -> 0 | BB36: 0 | BC36: =IF($C36=BC$3,1,0) -> 0 | BD36: 0 | BE36: =IF($C36=BE$3,1,0) -> 0 | BF36: 0 | BG36: =IF($C36=BG$3,1,0) -> 0 | BH36: 0 | BI36: =IF($C36=BI$3,1,0) -> 0 | BJ36: 0 | BK36: =IF($C36=BK$3,1,0) -> 0 | BL36: 0 | BM36: =IF($C36=BM$3,1,0) -> 0 | BN36: 0 | BO36: =IF($C36=BO$3,1,0) -> 0 | BP36: 0 | BQ36: =IF($C36=BQ$3,1,0) -> 0 | BR36: 0 | BS36: =IF($C36=BS$3,1,0) -> 0 | BT36: 0 | BU36: =IF($C36=BU$3,1,0) -> 0 | BV36: 0 | BW36: =IF($C36=BW$3,1,0) -> 0 | BX36: 0 | BY36: =IF($C36=BY$3,1,0) -> 0 | BZ36: 0 | CA36: =IF($C36=CA$3,1,0) -> 0 | CB36: 0 | CC36: =IF($C36=CC$3,1,0) -> 0 | CD36: 0 | CE36: =IF($C36=CE$3,1,0) -> 0 | CF36: 0 | CG36: =IF($C36=CG$3,1,0) -> 0 | CH36: 0 | CI36: =IF($C36=CI$3,1,0) -> 0 | CJ36: 0 | CK36: =IF($C36=CK$3,1,0) -> 0 | CL36: 0 | CM36: =IF($C36=CM$3,1,0) -> 0 | CN36: 0 | CO36: =IF($C36=CO$3,1,0) -> 0 | CP36: 0 | CQ36: =IF($C36=CQ$3,1,0) -> 0 | CR36: 0 | CS36: =IF($C36=CS$3,1,0) -> 0 | CT36: 0 | CU36: =IF($C36=CU$3,1,0) -> 0 | CV36: 0 | CW36: =IF($C36=CW$3,1,0) -> 0 | CX36: 0 | CY36: =IF($C36=CY$3,1,0) -> 0 | CZ36: 0 | DA36: =IF($C36=DA$3,1,0) -> 0 | DB36: 0 | DC36: =IF($C36=DC$3,1,0) -> 0 | DD36: 0 | DE36: =IF($C36=DE$3,1,0) -> 0 | DF36: 0 | DG36: =IF($C36=DG$3,1,0) -> 0 | DH36: 0 | DI36: =IF($C36=DI$3,1,0) -> 0 | DJ36: 0 | DK36: =IF($C36=DK$3,1,0) -> 0 | DL36: 0 | DM36: =IF($C36=DM$3,1,0) -> 0 | DN36: 0 | DO36: =IF($C36=DO$3,1,0) -> 0 | DP36: 0 | DQ36: =IF($C36=DQ$3,1,0) -> 0 | DR36: 0 | DS36: =IF($C36=DS$3,1,0) -> 0 | DT36: 0 | DU36: =IF($C36=DU$3,1,0) -> 0 | DV36: 0 | DW36: =IF($C36=DW$3,1,0) -> 0 | DX36: 0
I37: =IF($C37=I$3,1,0) -> 0 | K37: 0 | M37: 0 | O37: 0 | Q37: 0 | S37: 0 | U37: 0 | W37: 0 | Y37: 0 | AA37: 0 | AC37: 0 | AE37: =IF($C37=AE$3,1,0) -> 0 | AG37: 0 | AI37: 0 | AK37: 0 | AM37: 0 | AO37: 0 | AQ37: 0 | AS37: 0
C39: ITEM | D39: DESCRIÇÃO | E39: QUANT ANUAL POR POSTO | F39: VALOR
C41: 1 | D41: Luva de malha tricotada em fios de algodão com acabamento em overloque e palmas pigmentadas em PVC. Ref. LEDAN | E41: 5 | F41: =F28 -> 12.4 | J41: =IF(SUM(I$35:I$37)>0,$E41*$F41,0) -> 0 | L41: =IF(SUM(K$35:K$37)>0,$E41*$F41,0) -> 0 | N41: =IF(SUM(M$35:M$37)>0,$E41*$F41,0) -> 62 | P41: =IF(SUM(O$35:O$37)>0,$E41*$F41,0) -> 0 | R41: =IF(SUM(Q$35:Q$37)>0,$E41*$F41,0) -> 0 | T41: =IF(SUM(S$35:S$37)>0,$E41*$F41,0) -> 0 | V41: =IF(SUM(U$35:U$37)>0,$E41*$F41,0) -> 0 | X41: =IF(SUM(W$35:W$37)>0,$E41*$F41,0) -> 0 | Z41: =IF(SUM(Y$35:Y$37)>0,$E41*$F41,0) -> 0 | AB41: =IF(SUM(AA$35:AA$37)>0,$E41*$F41,0) -> 0 | AD41: =IF(SUM(AC$35:AC$37)>0,$E41*$F41,0) -> 0 | AF41: =IF(SUM(AE$35:AE$37)>0,$E41*$F41,0) -> 0 | AH41: =IF(SUM(AG$35:AG$37)>0,$E41*$F41,0) -> 0 | AJ41: =IF(SUM(AI$35:AI$37)>0,$E41*$F41,0) -> 0 | AL41: =IF(SUM(AK$35:AK$37)>0,$E41*$F41,0) -> 0 | AN41: =IF(SUM(AM$35:AM$37)>0,$E41*$F41,0) -> 0 | AP41: =IF(SUM(AO$35:AO$37)>0,$E41*$F41,0) -> 0 | AR41: =IF(SUM(AQ$35:AQ$37)>0,$E41*$F41,0) -> 0 | AT41: =IF(SUM(AS$35:AS$37)>0,$E41*$F41,0) -> 0 | AV41: =IF(SUM(AU$35:AU$37)>0,$E41*$F41,0) -> 0 | AX41: =IF(SUM(AW$35:AW$37)>0,$E41*$F41,0) -> 0 | AZ41: =IF(SUM(AY$35:AY$37)>0,$E41*$F41,0) -> 0 | BB41: =IF(SUM(BA$35:BA$37)>0,$E41*$F41,0) -> 0 | BD41: =IF(SUM(BC$35:BC$37)>0,$E41*$F41,0) -> 0 | BF41: =IF(SUM(BE$35:BE$37)>0,$E41*$F41,0) -> 0 | BH41: =IF(SUM(BG$35:BG$37)>0,$E41*$F41,0) -> 0 | BJ41: =IF(SUM(BI$35:BI$37)>0,$E41*$F41,0) -> 0 | BL41: =IF(SUM(BK$35:BK$37)>0,$E41*$F41,0) -> 0 | BN41: =IF(SUM(BM$35:BM$37)>0,$E41*$F41,0) -> 0 | BP41: =IF(SUM(BO$35:BO$37)>0,$E41*$F41,0) -> 0 | BR41: =IF(SUM(BQ$35:BQ$37)>0,$E41*$F41,0) -> 0 | BT41: =IF(SUM(BS$35:BS$37)>0,$E41*$F41,0) -> 0 | BV41: =IF(SUM(BU$35:BU$37)>0,$E41*$F41,0) -> 0 | BX41: =IF(SUM(BW$35:BW$37)>0,$E41*$F41,0) -> 0 | BZ41: =IF(SUM(BY$35:BY$37)>0,$E41*$F41,0) -> 0 | CB41: =IF(SUM(CA$35:CA$37)>0,$E41*$F41,0) -> 0 | CD41: =IF(SUM(CC$35:CC$37)>0,$E41*$F41,0) -> 0 | CF41: =IF(SUM(CE$35:CE$37)>0,$E41*$F41,0) -> 0 | CH41: =IF(SUM(CG$35:CG$37)>0,$E41*$F41,0) -> 0 | CJ41: =IF(SUM(CI$35:CI$37)>0,$E41*$F41,0) -> 0 | CL41: =IF(SUM(CK$35:CK$37)>0,$E41*$F41,0) -> 0 | CN41: =IF(SUM(CM$35:CM$37)>0,$E41*$F41,0) -> 0 | CP41: =IF(SUM(CO$35:CO$37)>0,$E41*$F41,0) -> 0 | CR41: =IF(SUM(CQ$35:CQ$37)>0,$E41*$F41,0) -> 0 | CT41: =IF(SUM(CS$35:CS$37)>0,$E41*$F41,0) -> 0 | CV41: =IF(SUM(CU$35:CU$37)>0,$E41*$F41,0) -> 0 | CX41: =IF(SUM(CW$35:CW$37)>0,$E41*$F41,0) -> 0 | CZ41: =IF(SUM(CY$35:CY$37)>0,$E41*$F41,0) -> 0 | DB41: =IF(SUM(DA$35:DA$37)>0,$E41*$F41,0) -> 0 | DD41: =IF(SUM(DC$35:DC$37)>0,$E41*$F41,0) -> 0 | DF41: =IF(SUM(DE$35:DE$37)>0,$E41*$F41,0) -> 0 | DH41: =IF(SUM(DG$35:DG$37)>0,$E41*$F41,0) -> 0 | DJ41: =IF(SUM(DI$35:DI$37)>0,$E41*$F41,0) -> 0 | DL41: =IF(SUM(DK$35:DK$37)>0,$E41*$F41,0) -> 0 | DN41: =IF(SUM(DM$35:DM$37)>0,$E41*$F41,0) -> 0 | DP41: =IF(SUM(DO$35:DO$37)>0,$E41*$F41,0) -> 0 | DR41: =IF(SUM(DQ$35:DQ$37)>0,$E41*$F41,0) -> 0 | DT41: =IF(SUM(DS$35:DS$37)>0,$E41*$F41,0) -> 0 | DV41: =IF(SUM(DU$35:DU$37)>0,$E41*$F41,0) -> 0 | DX41: =IF(SUM(DW$35:DW$37)>0,$E41*$F41,0) -> 0
C42: 2 | D42: Óculos de segurança constituídos de armação e visor confeccionados em uma única peça de policarbonato INCOLOR, anti-risco, apoio nasal de plástico maleável. Hastes emborrachadas. Ref.: 3M Virtua V4 | E42: 3 | F42: =F29 -> 31.71 | J42: =IF(SUM(I$35:I$37)>0,$E42*$F42,0) -> 0 | L42: 0 | N42: 95.13 | P42: 0 | R42: 0 | T42: 0 | V42: 0 | X42: 0 | Z42: 0 | AB42: 0 | AD42: 0 | AF42: 0 | AH42: 0 | AJ42: 0 | AL42: 0 | AN42: 0 | AP42: 0 | AR42: 0 | AT42: 0 | AV42: 0 | AX42: 0 | AZ42: 0 | BB42: 0 | BD42: 0 | BF42: 0 | BH42: 0 | BJ42: 0 | BL42: 0 | BN42: 0 | BP42: 0 | BR42: 0 | BT42: 0 | BV42: 0 | BX42: 0 | BZ42: 0 | CB42: 0 | CD42: 0 | CF42: 0 | CH42: 0 | CJ42: 0 | CL42: 0 | CN42: 0 | CP42: 0 | CR42: 0 | CT42: 0 | CV42: 0 | CX42: 0 | CZ42: 0 | DB42: 0 | DD42: 0 | DF42: 0 | DH42: 0 | DJ42: 0 | DL42: 0 | DN42: 0 | DP42: 0 | DR42: 0 | DT42: 0 | DV42: 0 | DX42: 0
C43: 3 | D43: Capacete de segurança em polietileno de alta densidade, na cor VERMELHA, aba frontal, suspensão em tecido, com Faixa anti-suor, regulagem de tamanho com ajuste simples, com jugular ajustável. MARCA(S) DE REFERÊNCIA:Ref: MSA | E43: 1 | F43: =F30 -> 47.66 | J43: 0 | L43: =IF(SUM(K$35:K$37)>0,$E43*$F43,0) -> 0 | N43: 47.66 | P43: 0 | R43: 0 | T43: 0 | V43: 0 | X43: 0 | Z43: 0 | AB43: 0 | AD43: 0 | AF43: 0 | AH43: 0 | AJ43: 0 | AL43: 0 | AN43: 0 | AP43: 0 | AR43: 0 | AT43: 0 | AV43: 0 | AX43: 0 | AZ43: 0 | BB43: 0 | BD43: 0 | BF43: 0 | BH43: 0 | BJ43: 0 | BL43: 0 | BN43: 0 | BP43: 0 | BR43: 0 | BT43: 0 | BV43: 0 | BX43: 0 | BZ43: 0 | CB43: 0 | CD43: 0 | CF43: 0 | CH43: 0 | CJ43: 0 | CL43: 0 | CN43: 0 | CP43: 0 | CR43: 0 | CT43: 0 | CV43: 0 | CX43: 0 | CZ43: 0 | DB43: 0 | DD43: 0 | DF43: 0 | DH43: 0 | DJ43: 0 | DL43: 0 | DN43: 0 | DP43: 0 | DR43: 0 | DT43: 0 | DV43: 0 | DX43: 0
C44: 4 | D44: Botina de segurança, fechamento em elástico, sem componentes metálicos, confeccionada em couro curtido ao cromo, na cor preta, elásticos laterais, BIQUEIRA EM COMPOSITE ou POLIPROPILENO, solado de poliuretano bidensidade injetado diretamente ao cabedal, solado com perfil antiderrapante e sistemas de absorção de impacto. Com selo conforto. Em conformidade com as Normas de segurança da ABNT NBR ISO 20344 e 20347. Ref.: MARLUVAS. | E44: 2 | F44: =F31 -> 148.98 | J44: 0 | L44: 0 | N44: 297.96 | P44: 0 | R44: 0 | T44: 0 | V44: 0 | X44: 0 | Z44: 0 | AB44: 0 | AD44: 0 | AF44: 0 | AH44: 0 | AJ44: 0 | AL44: 0 | AN44: 0 | AP44: 0 | AR44: 0 | AT44: 0 | AV44: 0 | AX44: 0 | AZ44: 0 | BB44: 0 | BD44: 0 | BF44: 0 | BH44: 0 | BJ44: 0 | BL44: 0 | BN44: 0 | BP44: 0 | BR44: 0 | BT44: 0 | BV44: 0 | BX44: 0 | BZ44: 0 | CB44: 0 | CD44: 0 | CF44: 0 | CH44: 0 | CJ44: 0 | CL44: 0 | CN44: 0 | CP44: 0 | CR44: 0 | CT44: 0 | CV44: 0 | CX44: 0 | CZ44: 0 | DB44: 0 | DD44: 0 | DF44: 0 | DH44: 0 | DJ44: 0 | DL44: 0 | DN44: 0 | DP44: 0 | DR44: 0 | DT44: 0 | DV44: 0 | DX44: 0
C46: CATEGORIAS | F46: QUANTIDADE
I47: =IF($C47=I$3,1,0) -> 0 | K47: =IF($C47=K$3,1,0) -> 0 | M47: =IF($C47=M$3,1,0) -> 0 | O47: =IF($C47=O$3,1,0) -> 0 | Q47: =IF($C47=Q$3,1,0) -> 0 | S47: =IF($C47=S$3,1,0) -> 0 | U47: =IF($C47=U$3,1,0) -> 0 | W47: =IF($C47=W$3,1,0) -> 0 | Y47: =IF($C47=Y$3,1,0) -> 0 | AA47: =IF($C47=AA$3,1,0) -> 0 | AC47: =IF($C47=AC$3,1,0) -> 0 | AE47: =IF($C47=AE$3,1,0) -> 0 | AG47: =IF($C47=AG$3,1,0) -> 0 | AI47: =IF($C47=AI$3,1,0) -> 0 | AK47: =IF($C47=AK$3,1,0) -> 0 | AM47: =IF($C47=AM$3,1,0) -> 0 | AO47: =IF($C47=AO$3,1,0) -> 0 | AQ47: =IF($C47=AQ$3,1,0) -> 0 | AS47: =IF($C47=AS$3,1,0) -> 0
C48: 4 | D48: =HLOOKUP($C48,'Dados Gerais'!$D$5:$BK$10,6) -> TÉCNICO EM ELETROTÉCNICA (QUADROS DE COMANDO E AUTOMAÇÃO) | F48: =HLOOKUP($C48,'Dados Gerais'!$D$5:$BK$14,10) -> 1 | I48: =IF($C48=I$3,1,0) -> 0 | J48: =IF($C48=J$3,1,0) -> 0 | K48: 0 | L48: 0 | M48: 0 | N48: 0 | O48: 1 | P48: 0 | Q48: 0 | R48: 0 | S48: 0 | T48: 0 | U48: 0 | V48: 0 | W48: 0 | X48: 0 | Y48: 0 | Z48: 0 | AA48: 0 | AB48: 0 | AC48: 0 | AD48: 0 | AE48: =IF($C48=AE$3,1,0) -> 0 | AF48: 0 | AG48: 0 | AH48: 0 | AI48: 0 | AJ48: 0 | AK48: 0 | AL48: 0 | AM48: 0 | AN48: 0 | AO48: 0 | AP48: 0 | AQ48: 0 | AR48: 0 | AS48: 0 | AT48: 0 | AU48: =IF($C48=AU$3,1,0) -> 0 | AV48: 0 | AW48: =IF($C48=AW$3,1,0) -> 0 | AX48: 0 | AY48: =IF($C48=AY$3,1,0) -> 0 | AZ48: 0 | BA48: =IF($C48=BA$3,1,0) -> 0 | BB48: 0 | BC48: =IF($C48=BC$3,1,0) -> 0 | BD48: 0 | BE48: =IF($C48=BE$3,1,0) -> 0 | BF48: 0 | BG48: =IF($C48=BG$3,1,0) -> 0 | BH48: 0 | BI48: =IF($C48=BI$3,1,0) -> 0 | BJ48: 0 | BK48: =IF($C48=BK$3,1,0) -> 0 | BL48: 0 | BM48: =IF($C48=BM$3,1,0) -> 0 | BN48: 0 | BO48: =IF($C48=BO$3,1,0) -> 0 | BP48: 0 | BQ48: =IF($C48=BQ$3,1,0) -> 0 | BR48: 0 | BS48: =IF($C48=BS$3,1,0) -> 0 | BT48: 0 | BU48: =IF($C48=BU$3,1,0) -> 0 | BV48: 0 | BW48: =IF($C48=BW$3,1,0) -> 0 | BX48: 0 | BY48: =IF($C48=BY$3,1,0) -> 0 | BZ48: 0 | CA48: =IF($C48=CA$3,1,0) -> 0 | CB48: 0 | CC48: =IF($C48=CC$3,1,0) -> 0 | CD48: 0 | CE48: =IF($C48=CE$3,1,0) -> 0 | CF48: 0 | CG48: =IF($C48=CG$3,1,0) -> 0 | CH48: 0 | CI48: =IF($C48=CI$3,1,0) -> 0 | CJ48: 0 | CK48: =IF($C48=CK$3,1,0) -> 0 | CL48: 0 | CM48: =IF($C48=CM$3,1,0) -> 0 | CN48: 0 | CO48: =IF($C48=CO$3,1,0) -> 0 | CP48: 0 | CQ48: =IF($C48=CQ$3,1,0) -> 0 | CR48: 0 | CS48: =IF($C48=CS$3,1,0) -> 0 | CT48: 0 | CU48: =IF($C48=CU$3,1,0) -> 0 | CV48: 0 | CW48: =IF($C48=CW$3,1,0) -> 0 | CX48: 0 | CY48: =IF($C48=CY$3,1,0) -> 0 | CZ48: 0 | DA48: =IF($C48=DA$3,1,0) -> 0 | DB48: 0 | DC48: =IF($C48=DC$3,1,0) -> 0 | DD48: 0 | DE48: =IF($C48=DE$3,1,0) -> 0 | DF48: 0 | DG48: =IF($C48=DG$3,1,0) -> 0 | DH48: 0 | DI48: =IF($C48=DI$3,1,0) -> 0 | DJ48: 0 | DK48: =IF($C48=DK$3,1,0) -> 0 | DL48: 0 | DM48: =IF($C48=DM$3,1,0) -> 0 | DN48: 0 | DO48: =IF($C48=DO$3,1,0) -> 0 | DP48: 0 | DQ48: =IF($C48=DQ$3,1,0) -> 0 | DR48: 0 | DS48: =IF($C48=DS$3,1,0) -> 0 | DT48: 0 | DU48: =IF($C48=DU$3,1,0) -> 0 | DV48: 0 | DW48: =IF($C48=DW$3,1,0) -> 0 | DX48: 0
I49: =IF($C49=I$3,1,0) -> 0 | K49: 0 | M49: 0 | O49: 0 | Q49: 0 | S49: 0 | U49: 0 | W49: 0 | Y49: 0 | AA49: 0 | AC49: 0 | AE49: =IF($C49=AE$3,1,0) -> 0 | AG49: 0 | AI49: 0 | AK49: 0 | AM49: 0 | AO49: 0 | AQ49: 0 | AS49: 0
C51: ITEM | D51: DESCRIÇÃO | E51: QUANT ANUAL POR POSTO | F51: VALOR
C53: 1 | D53: Luva de malha tricotada em fios de algodão com acabamento em overloque e palmas pigmentadas em PVC. Ref. LEDAN | E53: 5 | F53: =F41 -> 12.4 | J53: =IF(SUM(I$47:I$49)>0,$E53*$F53,0) -> 0 | L53: =IF(SUM(K$47:K$49)>0,$E53*$F53,0) -> 0 | N53: =IF(SUM(M$47:M$49)>0,$E53*$F53,0) -> 0 | P53: =IF(SUM(O$47:O$49)>0,$E53*$F53,0) -> 62 | R53: =IF(SUM(Q$47:Q$49)>0,$E53*$F53,0) -> 0 | T53: =IF(SUM(S$47:S$49)>0,$E53*$F53,0) -> 0 | V53: =IF(SUM(U$47:U$49)>0,$E53*$F53,0) -> 0 | X53: =IF(SUM(W$47:W$49)>0,$E53*$F53,0) -> 0 | Z53: =IF(SUM(Y$47:Y$49)>0,$E53*$F53,0) -> 0 | AB53: =IF(SUM(AA$47:AA$49)>0,$E53*$F53,0) -> 0 | AD53: =IF(SUM(AC$47:AC$49)>0,$E53*$F53,0) -> 0 | AF53: =IF(SUM(AE$47:AE$49)>0,$E53*$F53,0) -> 0 | AH53: =IF(SUM(AG$47:AG$49)>0,$E53*$F53,0) -> 0 | AJ53: =IF(SUM(AI$47:AI$49)>0,$E53*$F53,0) -> 0 | AL53: =IF(SUM(AK$47:AK$49)>0,$E53*$F53,0) -> 0 | AN53: =IF(SUM(AM$47:AM$49)>0,$E53*$F53,0) -> 0 | AP53: =IF(SUM(AO$47:AO$49)>0,$E53*$F53,0) -> 0 | AR53: =IF(SUM(AQ$47:AQ$49)>0,$E53*$F53,0) -> 0 | AT53: =IF(SUM(AS$47:AS$49)>0,$E53*$F53,0) -> 0 | AV53: =IF(SUM(AU$47:AU$49)>0,$E53*$F53,0) -> 0 | AX53: =IF(SUM(AW$47:AW$49)>0,$E53*$F53,0) -> 0 | AZ53: =IF(SUM(AY$47:AY$49)>0,$E53*$F53,0) -> 0 | BB53: =IF(SUM(BA$47:BA$49)>0,$E53*$F53,0) -> 0 | BD53: =IF(SUM(BC$47:BC$49)>0,$E53*$F53,0) -> 0 | BF53: =IF(SUM(BE$47:BE$49)>0,$E53*$F53,0) -> 0 | BH53: =IF(SUM(BG$47:BG$49)>0,$E53*$F53,0) -> 0 | BJ53: =IF(SUM(BI$47:BI$49)>0,$E53*$F53,0) -> 0 | BL53: =IF(SUM(BK$47:BK$49)>0,$E53*$F53,0) -> 0 | BN53: =IF(SUM(BM$47:BM$49)>0,$E53*$F53,0) -> 0 | BP53: =IF(SUM(BO$47:BO$49)>0,$E53*$F53,0) -> 0 | BR53: =IF(SUM(BQ$47:BQ$49)>0,$E53*$F53,0) -> 0 | BT53: =IF(SUM(BS$47:BS$49)>0,$E53*$F53,0) -> 0 | BV53: =IF(SUM(BU$47:BU$49)>0,$E53*$F53,0) -> 0 | BX53: =IF(SUM(BW$47:BW$49)>0,$E53*$F53,0) -> 0 | BZ53: =IF(SUM(BY$47:BY$49)>0,$E53*$F53,0) -> 0 | CB53: =IF(SUM(CA$47:CA$49)>0,$E53*$F53,0) -> 0 | CD53: =IF(SUM(CC$47:CC$49)>0,$E53*$F53,0) -> 0 | CF53: =IF(SUM(CE$47:CE$49)>0,$E53*$F53,0) -> 0 | CH53: =IF(SUM(CG$47:CG$49)>0,$E53*$F53,0) -> 0 | CJ53: =IF(SUM(CI$47:CI$49)>0,$E53*$F53,0) -> 0 | CL53: =IF(SUM(CK$47:CK$49)>0,$E53*$F53,0) -> 0 | CN53: =IF(SUM(CM$47:CM$49)>0,$E53*$F53,0) -> 0 | CP53: =IF(SUM(CO$47:CO$49)>0,$E53*$F53,0) -> 0 | CR53: =IF(SUM(CQ$47:CQ$49)>0,$E53*$F53,0) -> 0 | CT53: =IF(SUM(CS$47:CS$49)>0,$E53*$F53,0) -> 0 | CV53: =IF(SUM(CU$47:CU$49)>0,$E53*$F53,0) -> 0 | CX53: =IF(SUM(CW$47:CW$49)>0,$E53*$F53,0) -> 0 | CZ53: =IF(SUM(CY$47:CY$49)>0,$E53*$F53,0) -> 0 | DB53: =IF(SUM(DA$47:DA$49)>0,$E53*$F53,0) -> 0 | DD53: =IF(SUM(DC$47:DC$49)>0,$E53*$F53,0) -> 0 | DF53: =IF(SUM(DE$47:DE$49)>0,$E53*$F53,0) -> 0 | DH53: =IF(SUM(DG$47:DG$49)>0,$E53*$F53,0) -> 0 | DJ53: =IF(SUM(DI$47:DI$49)>0,$E53*$F53,0) -> 0 | DL53: =IF(SUM(DK$47:DK$49)>0,$E53*$F53,0) -> 0 | DN53: =IF(SUM(DM$47:DM$49)>0,$E53*$F53,0) -> 0 | DP53: =IF(SUM(DO$47:DO$49)>0,$E53*$F53,0) -> 0 | DR53: =IF(SUM(DQ$47:DQ$49)>0,$E53*$F53,0) -> 0 | DT53: =IF(SUM(DS$47:DS$49)>0,$E53*$F53,0) -> 0 | DV53: =IF(SUM(DU$47:DU$49)>0,$E53*$F53,0) -> 0 | DX53: =IF(SUM(DW$47:DW$49)>0,$E53*$F53,0) -> 0
C54: 2 | D54: Óculos de segurança constituídos de armação e visor confeccionados em uma única peça de policarbonato INCOLOR, anti-risco, apoio nasal de plástico maleável. Hastes emborrachadas. Ref.: 3M Virtua V4 | E54: 3 | F54: =F42 -> 31.71 | J54: =IF(SUM(I$47:I$49)>0,$E54*$F54,0) -> 0 | L54: 0 | N54: 0 | P54: 95.13 | R54: 0 | T54: 0 | V54: 0 | X54: 0 | Z54: 0 | AB54: 0 | AD54: 0 | AF54: 0 | AH54: 0 | AJ54: 0 | AL54: 0 | AN54: 0 | AP54: 0 | AR54: 0 | AT54: 0 | AV54: 0 | AX54: 0 | AZ54: 0 | BB54: 0 | BD54: 0 | BF54: 0 | BH54: 0 | BJ54: 0 | BL54: 0 | BN54: 0 | BP54: 0 | BR54: 0 | BT54: 0 | BV54: 0 | BX54: 0 | BZ54: 0 | CB54: 0 | CD54: 0 | CF54: 0 | CH54: 0 | CJ54: 0 | CL54: 0 | CN54: 0 | CP54: 0 | CR54: 0 | CT54: 0 | CV54: 0 | CX54: 0 | CZ54: 0 | DB54: 0 | DD54: 0 | DF54: 0 | DH54: 0 | DJ54: 0 | DL54: 0 | DN54: 0 | DP54: 0 | DR54: 0 | DT54: 0 | DV54: 0 | DX54: 0
C55: 3 | D55: Capacete de segurança em polietileno de alta densidade, na cor VERMELHA, aba frontal, suspensão em tecido, com Faixa anti-suor, regulagem de tamanho com ajuste simples, com jugular ajustável. MARCA(S) DE REFERÊNCIA:Ref: MSA | E55: 1 | F55: =F43 -> 47.66 | J55: 0 | L55: =IF(SUM(K$47:K$49)>0,$E55*$F55,0) -> 0 | N55: 0 | P55: 47.66 | R55: 0 | T55: 0 | V55: 0 | X55: 0 | Z55: 0 | AB55: 0 | AD55: 0 | AF55: 0 | AH55: 0 | AJ55: 0 | AL55: 0 | AN55: 0 | AP55: 0 | AR55: 0 | AT55: 0 | AV55: 0 | AX55: 0 | AZ55: 0 | BB55: 0 | BD55: 0 | BF55: 0 | BH55: 0 | BJ55: 0 | BL55: 0 | BN55: 0 | BP55: 0 | BR55: 0 | BT55: 0 | BV55: 0 | BX55: 0 | BZ55: 0 | CB55: 0 | CD55: 0 | CF55: 0 | CH55: 0 | CJ55: 0 | CL55: 0 | CN55: 0 | CP55: 0 | CR55: 0 | CT55: 0 | CV55: 0 | CX55: 0 | CZ55: 0 | DB55: 0 | DD55: 0 | DF55: 0 | DH55: 0 | DJ55: 0 | DL55: 0 | DN55: 0 | DP55: 0 | DR55: 0 | DT55: 0 | DV55: 0 | DX55: 0
C56: 4 | D56: Botina de segurança, fechamento em elástico, sem componentes metálicos, confeccionada em couro curtido ao cromo, na cor preta, elásticos laterais, BIQUEIRA EM COMPOSITE ou POLIPROPILENO, solado de poliuretano bidensidade injetado diretamente ao cabedal, solado com perfil antiderrapante e sistemas de absorção de impacto. Deverá possuir proteção contra risco de choques elétricos. Com selo conforto. Em conformidade com as Normas de segurança da ABNT NBR ISO 20344 e 20347. Ref.: MARLUVAS. | E56: 2 | F56: 125.94 | J56: 0 | L56: 0 | N56: 0 | P56: 251.88 | R56: 0 | T56: 0 | V56: 0 | X56: 0 | Z56: 0 | AB56: 0 | AD56: 0 | AF56: 0 | AH56: 0 | AJ56: 0 | AL56: 0 | AN56: 0 | AP56: 0 | AR56: 0 | AT56: 0 | AV56: 0 | AX56: 0 | AZ56: 0 | BB56: 0 | BD56: 0 | BF56: 0 | BH56: 0 | BJ56: 0 | BL56: 0 | BN56: 0 | BP56: 0 | BR56: 0 | BT56: 0 | BV56: 0 | BX56: 0 | BZ56: 0 | CB56: 0 | CD56: 0 | CF56: 0 | CH56: 0 | CJ56: 0 | CL56: 0 | CN56: 0 | CP56: 0 | CR56: 0 | CT56: 0 | CV56: 0 | CX56: 0 | CZ56: 0 | DB56: 0 | DD56: 0 | DF56: 0 | DH56: 0 | DJ56: 0 | DL56: 0 | DN56: 0 | DP56: 0 | DR56: 0 | DT56: 0 | DV56: 0 | DX56: 0
C58: CATEGORIAS | F58: QUANTIDADE
I59: =IF($C59=I$3,1,0) -> 0 | K59: =IF($C59=K$3,1,0) -> 0 | M59: =IF($C59=M$3,1,0) -> 0 | O59: =IF($C59=O$3,1,0) -> 0 | Q59: =IF($C59=Q$3,1,0) -> 0 | S59: =IF($C59=S$3,1,0) -> 0 | U59: =IF($C59=U$3,1,0) -> 0 | W59: =IF($C59=W$3,1,0) -> 0 | Y59: =IF($C59=Y$3,1,0) -> 0 | AA59: =IF($C59=AA$3,1,0) -> 0 | AC59: =IF($C59=AC$3,1,0) -> 0 | AE59: =IF($C59=AE$3,1,0) -> 0 | AG59: =IF($C59=AG$3,1,0) -> 0 | AI59: =IF($C59=AI$3,1,0) -> 0 | AK59: =IF($C59=AK$3,1,0) -> 0 | AM59: =IF($C59=AM$3,1,0) -> 0 | AO59: =IF($C59=AO$3,1,0) -> 0 | AQ59: =IF($C59=AQ$3,1,0) -> 0 | AS59: =IF($C59=AS$3,1,0) -> 0
C60: 5 | D60: =HLOOKUP($C60,'Dados Gerais'!$D$5:$BK$10,6) -> OPERADOR DE CENTRAL DE DETECÇÃO E ALARME DE INCÊNDIO | F60: =HLOOKUP($C60,'Dados Gerais'!$D$5:$BK$14,10) -> 4 | I60: =IF($C60=I$3,1,0) -> 0 | J60: =IF($C60=J$3,1,0) -> 0 | K60: 0 | L60: 0 | M60: 0 | N60: 0 | O60: 0 | P60: 0 | Q60: =IF($C60=Q$3,1,0) -> 1 | R60: 0 | S60: 0 | T60: 0 | U60: 0 | V60: 0 | W60: 0 | X60: 0 | Y60: 0 | Z60: 0 | AA60: 0 | AB60: 0 | AC60: 0 | AD60: 0 | AE60: =IF($C60=AE$3,1,0) -> 0 | AF60: 0 | AG60: 0 | AH60: 0 | AI60: 0 | AJ60: 0 | AK60: 0 | AL60: 0 | AM60: 0 | AN60: 0 | AO60: 0 | AP60: 0 | AQ60: 0 | AR60: 0 | AS60: 0 | AT60: 0 | AU60: =IF($C60=AU$3,1,0) -> 0 | AV60: 0 | AW60: =IF($C60=AW$3,1,0) -> 0 | AX60: 0 | AY60: =IF($C60=AY$3,1,0) -> 0 | AZ60: 0 | BA60: =IF($C60=BA$3,1,0) -> 0 | BB60: 0 | BC60: =IF($C60=BC$3,1,0) -> 0 | BD60: 0 | BE60: =IF($C60=BE$3,1,0) -> 0 | BF60: 0 | BG60: =IF($C60=BG$3,1,0) -> 0 | BH60: 0 | BI60: =IF($C60=BI$3,1,0) -> 0 | BJ60: 0 | BK60: =IF($C60=BK$3,1,0) -> 0 | BL60: 0 | BM60: =IF($C60=BM$3,1,0) -> 0 | BN60: 0 | BO60: =IF($C60=BO$3,1,0) -> 0 | BP60: 0 | BQ60: =IF($C60=BQ$3,1,0) -> 0 | BR60: 0 | BS60: =IF($C60=BS$3,1,0) -> 0 | BT60: 0 | BU60: =IF($C60=BU$3,1,0) -> 0 | BV60: 0 | BW60: =IF($C60=BW$3,1,0) -> 0 | BX60: 0 | BY60: =IF($C60=BY$3,1,0) -> 0 | BZ60: 0 | CA60: =IF($C60=CA$3,1,0) -> 0 | CB60: 0 | CC60: =IF($C60=CC$3,1,0) -> 0 | CD60: 0 | CE60: =IF($C60=CE$3,1,0) -> 0 | CF60: 0 | CG60: =IF($C60=CG$3,1,0) -> 0 | CH60: 0 | CI60: =IF($C60=CI$3,1,0) -> 0 | CJ60: 0 | CK60: =IF($C60=CK$3,1,0) -> 0 | CL60: 0 | CM60: =IF($C60=CM$3,1,0) -> 0 | CN60: 0 | CO60: =IF($C60=CO$3,1,0) -> 0 | CP60: 0 | CQ60: =IF($C60=CQ$3,1,0) -> 0 | CR60: 0 | CS60: =IF($C60=CS$3,1,0) -> 0 | CT60: 0 | CU60: =IF($C60=CU$3,1,0) -> 0 | CV60: 0 | CW60: =IF($C60=CW$3,1,0) -> 0 | CX60: 0 | CY60: =IF($C60=CY$3,1,0) -> 0 | CZ60: 0 | DA60: =IF($C60=DA$3,1,0) -> 0 | DB60: 0 | DC60: =IF($C60=DC$3,1,0) -> 0 | DD60: 0 | DE60: =IF($C60=DE$3,1,0) -> 0 | DF60: 0 | DG60: =IF($C60=DG$3,1,0) -> 0 | DH60: 0 | DI60: =IF($C60=DI$3,1,0) -> 0 | DJ60: 0 | DK60: =IF($C60=DK$3,1,0) -> 0 | DL60: 0 | DM60: =IF($C60=DM$3,1,0) -> 0 | DN60: 0 | DO60: =IF($C60=DO$3,1,0) -> 0 | DP60: 0 | DQ60: =IF($C60=DQ$3,1,0) -> 0 | DR60: 0 | DS60: =IF($C60=DS$3,1,0) -> 0 | DT60: 0 | DU60: =IF($C60=DU$3,1,0) -> 0 | DV60: 0 | DW60: =IF($C60=DW$3,1,0) -> 0 | DX60: 0
C61: 6 | D61: =HLOOKUP($C61,'Dados Gerais'!$D$5:$BK$10,6) -> OPERADOR DE CENTRAL DE DETECÇÃO E ALARME DE INCÊNDIO (COM ADICIONAL NOTURNO) | F61: =HLOOKUP($C61,'Dados Gerais'!$D$5:$BK$14,10) -> 4 | I61: =IF($C61=I$3,1,0) -> 0 | J61: 0 | K61: 0 | L61: 0 | M61: 0 | N61: 0 | O61: 0 | P61: 0 | Q61: 0 | R61: 0 | S61: 1 | T61: 0 | U61: 0 | V61: 0 | W61: 0 | X61: 0 | Y61: 0 | Z61: 0 | AA61: 0 | AB61: 0 | AC61: 0 | AD61: 0 | AE61: =IF($C61=AE$3,1,0) -> 0 | AF61: 0 | AG61: 0 | AH61: 0 | AI61: 0 | AJ61: 0 | AK61: 0 | AL61: 0 | AM61: 0 | AN61: 0 | AO61: 0 | AP61: 0 | AQ61: 0 | AR61: 0 | AS61: 0 | AT61: 0 | AU61: =IF($C61=AU$3,1,0) -> 0 | AV61: 0 | AW61: =IF($C61=AW$3,1,0) -> 0 | AX61: 0 | AY61: =IF($C61=AY$3,1,0) -> 0 | AZ61: 0 | BA61: =IF($C61=BA$3,1,0) -> 0 | BB61: 0 | BC61: =IF($C61=BC$3,1,0) -> 0 | BD61: 0 | BE61: =IF($C61=BE$3,1,0) -> 0 | BF61: 0 | BG61: =IF($C61=BG$3,1,0) -> 0 | BH61: 0 | BI61: =IF($C61=BI$3,1,0) -> 0 | BJ61: 0 | BK61: =IF($C61=BK$3,1,0) -> 0 | BL61: 0 | BM61: =IF($C61=BM$3,1,0) -> 0 | BN61: 0 | BO61: =IF($C61=BO$3,1,0) -> 0 | BP61: 0 | BQ61: =IF($C61=BQ$3,1,0) -> 0 | BR61: 0 | BS61: =IF($C61=BS$3,1,0) -> 0 | BT61: 0 | BU61: =IF($C61=BU$3,1,0) -> 0 | BV61: 0 | BW61: =IF($C61=BW$3,1,0) -> 0 | BX61: 0 | BY61: =IF($C61=BY$3,1,0) -> 0 | BZ61: 0 | CA61: =IF($C61=CA$3,1,0) -> 0 | CB61: 0 | CC61: =IF($C61=CC$3,1,0) -> 0 | CD61: 0 | CE61: =IF($C61=CE$3,1,0) -> 0 | CF61: 0 | CG61: =IF($C61=CG$3,1,0) -> 0 | CH61: 0 | CI61: =IF($C61=CI$3,1,0) -> 0 | CJ61: 0 | CK61: =IF($C61=CK$3,1,0) -> 0 | CL61: 0 | CM61: =IF($C61=CM$3,1,0) -> 0 | CN61: 0 | CO61: =IF($C61=CO$3,1,0) -> 0 | CP61: 0 | CQ61: =IF($C61=CQ$3,1,0) -> 0 | CR61: 0 | CS61: =IF($C61=CS$3,1,0) -> 0 | CT61: 0 | CU61: =IF($C61=CU$3,1,0) -> 0 | CV61: 0 | CW61: =IF($C61=CW$3,1,0) -> 0 | CX61: 0 | CY61: =IF($C61=CY$3,1,0) -> 0 | CZ61: 0 | DA61: =IF($C61=DA$3,1,0) -> 0 | DB61: 0 | DC61: =IF($C61=DC$3,1,0) -> 0 | DD61: 0 | DE61: =IF($C61=DE$3,1,0) -> 0 | DF61: 0 | DG61: =IF($C61=DG$3,1,0) -> 0 | DH61: 0 | DI61: =IF($C61=DI$3,1,0) -> 0 | DJ61: 0 | DK61: =IF($C61=DK$3,1,0) -> 0 | DL61: 0 | DM61: =IF($C61=DM$3,1,0) -> 0 | DN61: 0 | DO61: =IF($C61=DO$3,1,0) -> 0 | DP61: 0 | DQ61: =IF($C61=DQ$3,1,0) -> 0 | DR61: 0 | DS61: =IF($C61=DS$3,1,0) -> 0 | DT61: 0 | DU61: =IF($C61=DU$3,1,0) -> 0 | DV61: 0 | DW61: =IF($C61=DW$3,1,0) -> 0 | DX61: 0
I62: =IF($C62=I$3,1,0) -> 0 | K62: 0 | M62: 0 | O62: 0 | Q62: 0 | S62: 0 | U62: 0 | W62: 0 | Y62: 0 | AA62: 0 | AC62: 0 | AE62: =IF($C62=AE$3,1,0) -> 0 | AG62: 0 | AI62: 0 | AK62: 0 | AM62: 0 | AO62: 0 | AQ62: 0 | AS62: 0
C64: ITEM | D64: DESCRIÇÃO | E64: QUANT ANUAL POR POSTO | F64: VALOR
C66: 1 | D66: Sapato social de segurança, na cor preta, confeccionado em couro curtido ao cromo, colarinho acolchoado, fechamento em elástico, palmilha de montagem em poliester, solado de PU monodensidade injetado diretamente ao cabedal. Ref.: Marluvas 20S29 S. CA: 41864 | E66: 8 | F66: 176.73 | J66: =IF(SUM(I$59:I$62)>0,$E66*$F66,0) -> 0 | L66: =IF(SUM(K$59:K$62)>0,$E66*$F66,0) -> 0 | N66: =IF(SUM(M$59:M$62)>0,$E66*$F66,0) -> 0 | P66: =IF(SUM(O$59:O$62)>0,$E66*$F66,0) -> 0 | R66: =IF(SUM(Q$59:Q$62)>0,$E66*$F66,0) -> 1413.84 | T66: =IF(SUM(S$59:S$62)>0,$E66*$F66,0) -> 1413.84 | V66: =IF(SUM(U$59:U$62)>0,$E66*$F66,0) -> 0 | X66: =IF(SUM(W$59:W$62)>0,$E66*$F66,0) -> 0 | Z66: =IF(SUM(Y$59:Y$62)>0,$E66*$F66,0) -> 0 | AB66: =IF(SUM(AA$59:AA$62)>0,$E66*$F66,0) -> 0 | AD66: =IF(SUM(AC$59:AC$62)>0,$E66*$F66,0) -> 0 | AF66: =IF(SUM(AE$59:AE$62)>0,$E66*$F66,0) -> 0 | AH66: =IF(SUM(AG$59:AG$62)>0,$E66*$F66,0) -> 0 | AJ66: =IF(SUM(AI$59:AI$62)>0,$E66*$F66,0) -> 0 | AL66: =IF(SUM(AK$59:AK$62)>0,$E66*$F66,0) -> 0 | AN66: =IF(SUM(AM$59:AM$62)>0,$E66*$F66,0) -> 0 | AP66: =IF(SUM(AO$59:AO$62)>0,$E66*$F66,0) -> 0 | AR66: =IF(SUM(AQ$59:AQ$62)>0,$E66*$F66,0) -> 0 | AT66: =IF(SUM(AS$59:AS$62)>0,$E66*$F66,0) -> 0 | AV66: =IF(SUM(AU$59:AU$62)>0,$E66*$F66,0) -> 0 | AX66: =IF(SUM(AW$59:AW$62)>0,$E66*$F66,0) -> 0 | AZ66: =IF(SUM(AY$59:AY$62)>0,$E66*$F66,0) -> 0 | BB66: =IF(SUM(BA$59:BA$62)>0,$E66*$F66,0) -> 0 | BD66: =IF(SUM(BC$59:BC$62)>0,$E66*$F66,0) -> 0 | BF66: =IF(SUM(BE$59:BE$62)>0,$E66*$F66,0) -> 0 | BH66: =IF(SUM(BG$59:BG$62)>0,$E66*$F66,0) -> 0 | BJ66: =IF(SUM(BI$59:BI$62)>0,$E66*$F66,0) -> 0 | BL66: =IF(SUM(BK$59:BK$62)>0,$E66*$F66,0) -> 0 | BN66: =IF(SUM(BM$59:BM$62)>0,$E66*$F66,0) -> 0 | BP66: =IF(SUM(BO$59:BO$62)>0,$E66*$F66,0) -> 0 | BR66: =IF(SUM(BQ$59:BQ$62)>0,$E66*$F66,0) -> 0 | BT66: =IF(SUM(BS$59:BS$62)>0,$E66*$F66,0) -> 0 | BV66: =IF(SUM(BU$59:BU$62)>0,$E66*$F66,0) -> 0 | BX66: =IF(SUM(BW$59:BW$62)>0,$E66*$F66,0) -> 0 | BZ66: =IF(SUM(BY$59:BY$62)>0,$E66*$F66,0) -> 0 | CB66: =IF(SUM(CA$59:CA$62)>0,$E66*$F66,0) -> 0 | CD66: =IF(SUM(CC$59:CC$62)>0,$E66*$F66,0) -> 0 | CF66: =IF(SUM(CE$59:CE$62)>0,$E66*$F66,0) -> 0 | CH66: =IF(SUM(CG$59:CG$62)>0,$E66*$F66,0) -> 0 | CJ66: =IF(SUM(CI$59:CI$62)>0,$E66*$F66,0) -> 0 | CL66: =IF(SUM(CK$59:CK$62)>0,$E66*$F66,0) -> 0 | CN66: =IF(SUM(CM$59:CM$62)>0,$E66*$F66,0) -> 0 | CP66: =IF(SUM(CO$59:CO$62)>0,$E66*$F66,0) -> 0 | CR66: =IF(SUM(CQ$59:CQ$62)>0,$E66*$F66,0) -> 0 | CT66: =IF(SUM(CS$59:CS$62)>0,$E66*$F66,0) -> 0 | CV66: =IF(SUM(CU$59:CU$62)>0,$E66*$F66,0) -> 0 | CX66: =IF(SUM(CW$59:CW$62)>0,$E66*$F66,0) -> 0 | CZ66: =IF(SUM(CY$59:CY$62)>0,$E66*$F66,0) -> 0 | DB66: =IF(SUM(DA$59:DA$62)>0,$E66*$F66,0) -> 0 | DD66: =IF(SUM(DC$59:DC$62)>0,$E66*$F66,0) -> 0 | DF66: =IF(SUM(DE$59:DE$62)>0,$E66*$F66,0) -> 0 | DH66: =IF(SUM(DG$59:DG$62)>0,$E66*$F66,0) -> 0 | DJ66: =IF(SUM(DI$59:DI$62)>0,$E66*$F66,0) -> 0 | DL66: =IF(SUM(DK$59:DK$62)>0,$E66*$F66,0) -> 0 | DN66: =IF(SUM(DM$59:DM$62)>0,$E66*$F66,0) -> 0 | DP66: =IF(SUM(DO$59:DO$62)>0,$E66*$F66,0) -> 0 | DR66: =IF(SUM(DQ$59:DQ$62)>0,$E66*$F66,0) -> 0 | DT66: =IF(SUM(DS$59:DS$62)>0,$E66*$F66,0) -> 0 | DV66: =IF(SUM(DU$59:DU$62)>0,$E66*$F66,0) -> 0 | DX66: =IF(SUM(DW$59:DW$62)>0,$E66*$F66,0) -> 0

Sheet Equip Rel (hidden)
C1: CÂMARA DOS DEPUTADOS
C2: DEPARTAMENTO TÉCNICO
C3: Coordenação de Planejamento e Gestão
C5: Data: | D5: ='Dados Gerais'!#REF! -> 
C6: Processo: | D6: ='Dados Gerais'!#REF! -> 
C7: Objeto: | D7: ='Dados Gerais'!#REF! -> 
B11: EQUIPAMENTOS RELACIONADOS AO POSTO - PAGAMENTO DA DEPRECIAÇÃO / MANUTENÇÃO | Q11: 1 | S11: =Q11+1 -> 2 | U11: =S11+1 -> 3 | W11: =U11+1 -> 4 | Y11: =W11+1 -> 5 | AA11: =Y11+1 -> 6 | AC11: =AA11+1 -> 7 | AE11: =AC11+1 -> 8 | AG11: =AE11+1 -> 9 | AI11: =AG11+1 -> 10 | AK11: =AI11+1 -> 11 | AM11: =AK11+1 -> 12 | AO11: =AM11+1 -> 13 | AQ11: =AO11+1 -> 14 | AS11: =AQ11+1 -> 15 | AU11: =AS11+1 -> 16 | AW11: =AU11+1 -> 17 | AY11: =AW11+1 -> 18 | BA11: =AY11+1 -> 19 | BC11: =BA11+1 -> 20 | BE11: =BC11+1 -> 21 | BG11: =BE11+1 -> 22 | BI11: =BG11+1 -> 23 | BK11: =BI11+1 -> 24 | BM11: =BK11+1 -> 25 | BO11: =BM11+1 -> 26 | BQ11: =BO11+1 -> 27 | BS11: =BQ11+1 -> 28 | BU11: =BS11+1 -> 29 | BW11: =BU11+1 -> 30 | BY11: =BW11+1 -> 31 | CA11: =BY11+1 -> 32 | CC11: =CA11+1 -> 33 | CE11: =CC11+1 -> 34 | CG11: =CE11+1 -> 35 | CI11: =CG11+1 -> 36 | CK11: =CI11+1 -> 37 | CM11: =CK11+1 -> 38 | CO11: =CM11+1 -> 39 | CQ11: =CO11+1 -> 40 | CS11: =CQ11+1 -> 41 | CU11: =CS11+1 -> 42 | CW11: =CU11+1 -> 43 | CY11: =CW11+1 -> 44 | DA11: =CY11+1 -> 45 | DC11: =DA11+1 -> 46 | DE11: =DC11+1 -> 47 | DG11: =DE11+1 -> 48 | DI11: =DG11+1 -> 49 | DK11: =DI11+1 -> 50 | DM11: =DK11+1 -> 51 | DO11: =DM11+1 -> 52 | DQ11: =DO11+1 -> 53 | DS11: =DQ11+1 -> 54 | DU11: =DS11+1 -> 55 | DW11: =DU11+1 -> 56 | DY11: =DW11+1 -> 57 | EA11: =DY11+1 -> 58 | EC11: =EA11+1 -> 59 | EE11: =EC11+1 -> 60
Q13: =SUM(R12:R61) -> 0 | S13: =SUM(T12:T61) -> 0 | U13: =SUM(V12:V61) -> 0 | W13: =SUM(X12:X61) -> 0 | Y13: =SUM(Z12:Z61) -> 0 | AA13: =SUM(AB12:AB61) -> 0 | AC13: =SUM(AD12:AD61) -> 0 | AE13: =SUM(AF12:AF61) -> 0 | AG13: =SUM(AH12:AH61) -> 0 | AI13: =SUM(AJ12:AJ61) -> 0 | AK13: =SUM(AL12:AL61) -> 0 | AM13: =SUM(AN12:AN61) -> 0 | AO13: =SUM(AP12:AP61) -> 0 | AQ13: =SUM(AR12:AR61) -> 0 | AS13: =SUM(AT12:AT61) -> 0 | AU13: =SUM(AV12:AV61) -> 0 | AW13: =SUM(AX12:AX61) -> 0 | AY13: =SUM(AZ12:AZ61) -> 0 | BA13: =SUM(BB12:BB61) -> 0 | BC13: =SUM(BD12:BD61) -> 0 | BE13: =SUM(BF12:BF61) -> 0 | BG13: =SUM(BH12:BH61) -> 0 | BI13: =SUM(BJ12:BJ61) -> 0 | BK13: =SUM(BL12:BL61) -> 0 | BM13: =SUM(BN12:BN61) -> 0 | BO13: =SUM(BP12:BP61) -> 0 | BQ13: =SUM(BR12:BR61) -> 0 | BS13: =SUM(BT12:BT61) -> 0 | BU13: =SUM(BV12:BV61) -> 0 | BW13: =SUM(BX12:BX61) -> 0 | BY13: =SUM(BZ12:BZ61) -> 0 | CA13: =SUM(CB12:CB61) -> 0 | CC13: =SUM(CD12:CD61) -> 0 | CE13: =SUM(CF12:CF61) -> 0 | CG13: =SUM(CH12:CH61) -> 0 | CI13: =SUM(CJ12:CJ61) -> 0 | CK13: =SUM(CL12:CL61) -> 0 | CM13: =SUM(CN12:CN61) -> 0 | CO13: =SUM(CP12:CP61) -> 0 | CQ13: =SUM(CR12:CR61) -> 0 | CS13: =SUM(CT12:CT61) -> 0 | CU13: =SUM(CV12:CV61) -> 0 | CW13: =SUM(CX12:CX61) -> 0 | CY13: =SUM(CZ12:CZ61) -> 0 | DA13: =SUM(DB12:DB61) -> 0 | DC13: =SUM(DD12:DD61) -> 0 | DE13: =SUM(DF12:DF61) -> 0 | DG13: =SUM(DH12:DH61) -> 0 | DI13: =SUM(DJ12:DJ61) -> 0 | DK13: =SUM(DL12:DL61) -> 0 | DM13: =SUM(DN12:DN61) -> 0 | DO13: =SUM(DP12:DP61) -> 0 | DQ13: =SUM(DR12:DR61) -> 0 | DS13: =SUM(DT12:DT61) -> 0 | DU13: =SUM(DV12:DV61) -> 0 | DW13: =SUM(DX12:DX61) -> 0 | DY13: =SUM(DZ12:DZ61) -> 0 | EA13: =SUM(EB12:EB61) -> 0 | EC13: =SUM(ED12:ED61) -> 0 | EE13: =SUM(EF12:EF61) -> 0
C14: CATEGORIAS | E14: QUANTIDADE
Q15: =IF($C15=Q$11,1,0) -> 0 | S15: =IF($C15=S$11,1,0) -> 0 | U15: =IF($C15=U$11,1,0) -> 0 | W15: =IF($C15=W$11,1,0) -> 0 | Y15: =IF($C15=Y$11,1,0) -> 0 | AA15: =IF($C15=AA$11,1,0) -> 0 | AC15: =IF($C15=AC$11,1,0) -> 0 | AE15: =IF($C15=AE$11,1,0) -> 0 | AG15: =IF($C15=AG$11,1,0) -> 0 | AI15: =IF($C15=AI$11,1,0) -> 0 | AK15: =IF($C15=AK$11,1,0) -> 0 | AM15: =IF($C15=AM$11,1,0) -> 0 | AO15: =IF($C15=AO$11,1,0) -> 0 | AQ15: =IF($C15=AQ$11,1,0) -> 0 | AS15: =IF($C15=AS$11,1,0) -> 0 | AU15: =IF($C15=AU$11,1,0) -> 0 | AW15: =IF($C15=AW$11,1,0) -> 0 | AY15: =IF($C15=AY$11,1,0) -> 0 | BA15: =IF($C15=BA$11,1,0) -> 0 | BC15: =IF($C15=BC$11,1,0) -> 0 | BE15: =IF($C15=BE$11,1,0) -> 0 | BG15: =IF($C15=BG$11,1,0) -> 0 | BI15: =IF($C15=BI$11,1,0) -> 0 | BK15: =IF($C15=BK$11,1,0) -> 0 | BM15: =IF($C15=BM$11,1,0) -> 0 | BO15: =IF($C15=BO$11,1,0) -> 0 | BQ15: =IF($C15=BQ$11,1,0) -> 0 | BS15: =IF($C15=BS$11,1,0) -> 0 | BU15: =IF($C15=BU$11,1,0) -> 0 | BW15: =IF($C15=BW$11,1,0) -> 0 | BY15: =IF($C15=BY$11,1,0) -> 0 | CA15: =IF($C15=CA$11,1,0) -> 0 | CC15: =IF($C15=CC$11,1,0) -> 0 | CE15: =IF($C15=CE$11,1,0) -> 0 | CG15: =IF($C15=CG$11,1,0) -> 0 | CI15: =IF($C15=CI$11,1,0) -> 0 | CK15: =IF($C15=CK$11,1,0) -> 0 | CM15: =IF($C15=CM$11,1,0) -> 0 | CO15: =IF($C15=CO$11,1,0) -> 0 | CQ15: =IF($C15=CQ$11,1,0) -> 0 | CS15: =IF($C15=CS$11,1,0) -> 0 | CU15: =IF($C15=CU$11,1,0) -> 0 | CW15: =IF($C15=CW$11,1,0) -> 0 | CY15: =IF($C15=CY$11,1,0) -> 0 | DA15: =IF($C15=DA$11,1,0) -> 0 | DC15: =IF($C15=DC$11,1,0) -> 0 | DE15: =IF($C15=DE$11,1,0) -> 0 | DG15: =IF($C15=DG$11,1,0) -> 0 | DI15: =IF($C15=DI$11,1,0) -> 0 | DK15: =IF($C15=DK$11,1,0) -> 0 | DM15: =IF($C15=DM$11,1,0) -> 0 | DO15: =IF($C15=DO$11,1,0) -> 0 | DQ15: =IF($C15=DQ$11,1,0) -> 0 | DS15: =IF($C15=DS$11,1,0) -> 0 | DU15: =IF($C15=DU$11,1,0) -> 0 | DW15: =IF($C15=DW$11,1,0) -> 0 | DY15: =IF($C15=DY$11,1,0) -> 0 | EA15: =IF($C15=EA$11,1,0) -> 0 | EC15: =IF($C15=EC$11,1,0) -> 0 | EE15: =IF($C15=EE$11,1,0) -> 0
D16: =HLOOKUP($C16,'Dados Gerais'!$D$5:$BK$10,6) ->  | E16: =HLOOKUP($C16,'Dados Gerais'!$D$5:$BK$14,10) ->  | Q16: =IF($C16=Q$11,1,0) -> 0 | S16: =IF($C16=S$11,1,0) -> 0 | U16: =IF($C16=U$11,1,0) -> 0 | W16: =IF($C16=W$11,1,0) -> 0 | Y16: =IF($C16=Y$11,1,0) -> 0 | AA16: =IF($C16=AA$11,1,0) -> 0 | AC16: =IF($C16=AC$11,1,0) -> 0 | AE16: =IF($C16=AE$11,1,0) -> 0 | AG16: =IF($C16=AG$11,1,0) -> 0 | AI16: =IF($C16=AI$11,1,0) -> 0 | AK16: =IF($C16=AK$11,1,0) -> 0 | AM16: =IF($C16=AM$11,1,0) -> 0 | AO16: =IF($C16=AO$11,1,0) -> 0 | AQ16: =IF($C16=AQ$11,1,0) -> 0 | AS16: =IF($C16=AS$11,1,0) -> 0 | AU16: =IF($C16=AU$11,1,0) -> 0 | AW16: =IF($C16=AW$11,1,0) -> 0 | AY16: =IF($C16=AY$11,1,0) -> 0 | BA16: =IF($C16=BA$11,1,0) -> 0 | BC16: =IF($C16=BC$11,1,0) -> 0 | BE16: =IF($C16=BE$11,1,0) -> 0 | BG16: =IF($C16=BG$11,1,0) -> 0 | BI16: =IF($C16=BI$11,1,0) -> 0 | BK16: =IF($C16=BK$11,1,0) -> 0 | BM16: =IF($C16=BM$11,1,0) -> 0 | BO16: =IF($C16=BO$11,1,0) -> 0 | BQ16: =IF($C16=BQ$11,1,0) -> 0 | BS16: =IF($C16=BS$11,1,0) -> 0 | BU16: =IF($C16=BU$11,1,0) -> 0 | BW16: =IF($C16=BW$11,1,0) -> 0 | BY16: =IF($C16=BY$11,1,0) -> 0 | CA16: =IF($C16=CA$11,1,0) -> 0 | CC16: =IF($C16=CC$11,1,0) -> 0 | CE16: =IF($C16=CE$11,1,0) -> 0 | CG16: =IF($C16=CG$11,1,0) -> 0 | CI16: =IF($C16=CI$11,1,0) -> 0 | CK16: =IF($C16=CK$11,1,0) -> 0 | CM16: =IF($C16=CM$11,1,0) -> 0 | CO16: =IF($C16=CO$11,1,0) -> 0 | CQ16: =IF($C16=CQ$11,1,0) -> 0 | CS16: =IF($C16=CS$11,1,0) -> 0 | CU16: =IF($C16=CU$11,1,0) -> 0 | CW16: =IF($C16=CW$11,1,0) -> 0 | CY16: =IF($C16=CY$11,1,0) -> 0 | DA16: =IF($C16=DA$11,1,0) -> 0 | DC16: =IF($C16=DC$11,1,0) -> 0 | DE16: =IF($C16=DE$11,1,0) -> 0 | DG16: =IF($C16=DG$11,1,0) -> 0 | DI16: =IF($C16=DI$11,1,0) -> 0 | DK16: =IF($C16=DK$11,1,0) -> 0 | DM16: =IF($C16=DM$11,1,0) -> 0 | DO16: =IF($C16=DO$11,1,0) -> 0 | DQ16: =IF($C16=DQ$11,1,0) -> 0 | DS16: =IF($C16=DS$11,1,0) -> 0 | DU16: =IF($C16=DU$11,1,0) -> 0 | DW16: =IF($C16=DW$11,1,0) -> 0 | DY16: =IF($C16=DY$11,1,0) -> 0 | EA16: =IF($C16=EA$11,1,0) -> 0 | EC16: =IF($C16=EC$11,1,0) -> 0 | EE16: =IF($C16=EE$11,1,0) -> 0
Q17: =IF($C17=Q$11,1,0) -> 0 | S17: =IF($C17=S$11,1,0) -> 0 | U17: =IF($C17=U$11,1,0) -> 0 | W17: =IF($C17=W$11,1,0) -> 0 | Y17: =IF($C17=Y$11,1,0) -> 0 | AA17: =IF($C17=AA$11,1,0) -> 0 | AC17: =IF($C17=AC$11,1,0) -> 0 | AE17: =IF($C17=AE$11,1,0) -> 0 | AG17: =IF($C17=AG$11,1,0) -> 0 | AI17: =IF($C17=AI$11,1,0) -> 0 | AK17: =IF($C17=AK$11,1,0) -> 0 | AM17: =IF($C17=AM$11,1,0) -> 0 | AO17: =IF($C17=AO$11,1,0) -> 0 | AQ17: =IF($C17=AQ$11,1,0) -> 0 | AS17: =IF($C17=AS$11,1,0) -> 0 | AU17: =IF($C17=AU$11,1,0) -> 0 | AW17: =IF($C17=AW$11,1,0) -> 0 | AY17: =IF($C17=AY$11,1,0) -> 0 | BA17: =IF($C17=BA$11,1,0) -> 0 | BC17: =IF($C17=BC$11,1,0) -> 0 | BE17: =IF($C17=BE$11,1,0) -> 0 | BG17: =IF($C17=BG$11,1,0) -> 0 | BI17: =IF($C17=BI$11,1,0) -> 0 | BK17: =IF($C17=BK$11,1,0) -> 0 | BM17: =IF($C17=BM$11,1,0) -> 0 | BO17: =IF($C17=BO$11,1,0) -> 0 | BQ17: =IF($C17=BQ$11,1,0) -> 0 | BS17: =IF($C17=BS$11,1,0) -> 0 | BU17: =IF($C17=BU$11,1,0) -> 0 | BW17: =IF($C17=BW$11,1,0) -> 0 | BY17: =IF($C17=BY$11,1,0) -> 0 | CA17: =IF($C17=CA$11,1,0) -> 0 | CC17: =IF($C17=CC$11,1,0) -> 0 | CE17: =IF($C17=CE$11,1,0) -> 0 | CG17: =IF($C17=CG$11,1,0) -> 0 | CI17: =IF($C17=CI$11,1,0) -> 0 | CK17: =IF($C17=CK$11,1,0) -> 0 | CM17: =IF($C17=CM$11,1,0) -> 0 | CO17: =IF($C17=CO$11,1,0) -> 0 | CQ17: =IF($C17=CQ$11,1,0) -> 0 | CS17: =IF($C17=CS$11,1,0) -> 0 | CU17: =IF($C17=CU$11,1,0) -> 0 | CW17: =IF($C17=CW$11,1,0) -> 0 | CY17: =IF($C17=CY$11,1,0) -> 0 | DA17: =IF($C17=DA$11,1,0) -> 0 | DC17: =IF($C17=DC$11,1,0) -> 0 | DE17: =IF($C17=DE$11,1,0) -> 0 | DG17: =IF($C17=DG$11,1,0) -> 0 | DI17: =IF($C17=DI$11,1,0) -> 0 | DK17: =IF($C17=DK$11,1,0) -> 0 | DM17: =IF($C17=DM$11,1,0) -> 0 | DO17: =IF($C17=DO$11,1,0) -> 0 | DQ17: =IF($C17=DQ$11,1,0) -> 0 | DS17: =IF($C17=DS$11,1,0) -> 0 | DU17: =IF($C17=DU$11,1,0) -> 0 | DW17: =IF($C17=DW$11,1,0) -> 0 | DY17: =IF($C17=DY$11,1,0) -> 0 | EA17: =IF($C17=EA$11,1,0) -> 0 | EC17: =IF($C17=EC$11,1,0) -> 0 | EE17: =IF($C17=EE$11,1,0) -> 0
C19: PAGAMENTO DA DEPRECIAÇÃO
C20: ITEM | D20: DESCRIÇÃO | E20: QUANT ANUAL | F20: CONTA SIAFI | G20: VALOR DE AQ. | H20: % RESIDUAL | I20: VIDA ÚTIL | J20: DEP. MENSAL | K20: CUSTO TOTAL | L20: BDI (%) | M20: PREÇO TOTAL | N20: FONTE | O20: REFERÊNCIA
J22: =G22*(1-H22)/(I22*12) ->  | K22: =J22*E22 ->  | L22: =BDI!E26 -> 0.2694 | M22: =ROUND(K22*(1+L22),2) ->  | N22: COTAÇÃO
C25: PAGAMENTO DA MANUTENÇÃO
C26: ITEM | D26: DESCRIÇÃO | H26: K (calculado) | I26: MENSAL DEPR. | J26: % MAN X DEP | K26: MENSAL MAN. | L26: BDI (%) | M26: PREÇO TOTAL
H28: =H35 -> 0.2395008 | I28: =M22 ->  | J28: =H28 -> 0.2395008 | K28: =I28*H28 ->  | L28: =L22 -> 0.2694 | M28: =ROUND(K28*(1+L28),2) -> 
E30: K1 | F30: K2 | G30: K3 | H30: K4
E31: 1 | F31: 1 | G31: 0.8 | H31: 0.8
E32: K5 | F32: K6 | G32: K7 | H32: K8
E33: 1 | F33: 0.6 | G33: 0.5 | H33: 1.1
E34: K9 | F34: K10 | G34: K11 | H34: RESULTADO
D35: * a descrição de cada coeficiente segue abaixo | E35: 0.9 | F35: 0.9 | G35: 1.4 | H35: =E31*F31*G31*H31*E33*F33*G33*H33*E35*F35*G35 -> 0.2395008
C38: MATERIAL DE CONSUMO ASSOCIADO
C39: ITEM | D39: DESCRIÇÃO | H39: QUANTID/ANO | I39: UNIDADE | J39: VALOR DE AQ. | K39: MENSAL MAT | L39: BDI (%) | M39: PREÇO TOTAL
K41: =J41*H41/12 -> 0 | L41: =L28 -> 0.2694 | M41: =ROUND(K41*(1+L41),2) -> 0
C44: MATERIAL DE CONSUMO ASSOCIADO
C45: ITEM | D45: DESCRIÇÃO | M45: PREÇO TOTAL
C47: 1 | D47: Componente DEPRECIAÇÃO - POR POSTO | M47: =M22 -> 
C48: 2 | D48: Componente MANUTENÇÃO - POR POSTO | M48: =M28 -> 
C49: 3 | D49: Componente MATERIAL DE CONSUMO ASSOCIADO - POR POSTO | M49: =M41 -> 0
L51: SOMATÓRIO TOTAL MENSAL - POR POSTO | M51: =SUM(M46:M50) ->  | R51: =IF(SUM(Q$15:Q$17)>0,$M51,0) -> 0 | T51: =IF(SUM(S$15:S$17)>0,$M51,0) -> 0 | V51: =IF(SUM(U$15:U$17)>0,$M51,0) -> 0 | X51: =IF(SUM(W$15:W$17)>0,$M51,0) -> 0 | Z51: =IF(SUM(Y$15:Y$17)>0,$M51,0) -> 0 | AB51: =IF(SUM(AA$15:AA$17)>0,$M51,0) -> 0 | AD51: =IF(SUM(AC$15:AC$17)>0,$M51,0) -> 0 | AF51: =IF(SUM(AE$15:AE$17)>0,$M51,0) -> 0 | AH51: =IF(SUM(AG$15:AG$17)>0,$M51,0) -> 0 | AJ51: =IF(SUM(AI$15:AI$17)>0,$M51,0) -> 0 | AL51: =IF(SUM(AK$15:AK$17)>0,$M51,0) -> 0 | AN51: =IF(SUM(AM$15:AM$17)>0,$M51,0) -> 0 | AP51: =IF(SUM(AO$15:AO$17)>0,$M51,0) -> 0 | AR51: =IF(SUM(AQ$15:AQ$17)>0,$M51,0) -> 0 | AT51: =IF(SUM(AS$15:AS$17)>0,$M51,0) -> 0 | AV51: =IF(SUM(AU$15:AU$17)>0,$M51,0) -> 0 | AX51: =IF(SUM(AW$15:AW$17)>0,$M51,0) -> 0 | AZ51: =IF(SUM(AY$15:AY$17)>0,$M51,0) -> 0 | BB51: =IF(SUM(BA$15:BA$17)>0,$M51,0) -> 0 | BD51: =IF(SUM(BC$15:BC$17)>0,$M51,0) -> 0 | BF51: =IF(SUM(BE$15:BE$17)>0,$M51,0) -> 0 | BH51: =IF(SUM(BG$15:BG$17)>0,$M51,0) -> 0 | BJ51: =IF(SUM(BI$15:BI$17)>0,$M51,0) -> 0 | BL51: =IF(SUM(BK$15:BK$17)>0,$M51,0) -> 0 | BN51: =IF(SUM(BM$15:BM$17)>0,$M51,0) -> 0 | BP51: =IF(SUM(BO$15:BO$17)>0,$M51,0) -> 0 | BR51: =IF(SUM(BQ$15:BQ$17)>0,$M51,0) -> 0 | BT51: =IF(SUM(BS$15:BS$17)>0,$M51,0) -> 0 | BV51: =IF(SUM(BU$15:BU$17)>0,$M51,0) -> 0 | BX51: =IF(SUM(BW$15:BW$17)>0,$M51,0) -> 0 | BZ51: =IF(SUM(BY$15:BY$17)>0,$M51,0) -> 0 | CB51: =IF(SUM(CA$15:CA$17)>0,$M51,0) -> 0 | CD51: =IF(SUM(CC$15:CC$17)>0,$M51,0) -> 0 | CF51: =IF(SUM(CE$15:CE$17)>0,$M51,0) -> 0 | CH51: =IF(SUM(CG$15:CG$17)>0,$M51,0) -> 0 | CJ51: =IF(SUM(CI$15:CI$17)>0,$M51,0) -> 0 | CL51: =IF(SUM(CK$15:CK$17)>0,$M51,0) -> 0 | CN51: =IF(SUM(CM$15:CM$17)>0,$M51,0) -> 0 | CP51: =IF(SUM(CO$15:CO$17)>0,$M51,0) -> 0 | CR51: =IF(SUM(CQ$15:CQ$17)>0,$M51,0) -> 0 | CT51: =IF(SUM(CS$15:CS$17)>0,$M51,0) -> 0 | CV51: =IF(SUM(CU$15:CU$17)>0,$M51,0) -> 0 | CX51: =IF(SUM(CW$15:CW$17)>0,$M51,0) -> 0 | CZ51: =IF(SUM(CY$15:CY$17)>0,$M51,0) -> 0 | DB51: =IF(SUM(DA$15:DA$17)>0,$M51,0) -> 0 | DD51: =IF(SUM(DC$15:DC$17)>0,$M51,0) -> 0 | DF51: =IF(SUM(DE$15:DE$17)>0,$M51,0) -> 0 | DH51: =IF(SUM(DG$15:DG$17)>0,$M51,0) -> 0 | DJ51: =IF(SUM(DI$15:DI$17)>0,$M51,0) -> 0 | DL51: =IF(SUM(DK$15:DK$17)>0,$M51,0) -> 0 | DN51: =IF(SUM(DM$15:DM$17)>0,$M51,0) -> 0 | DP51: =IF(SUM(DO$15:DO$17)>0,$M51,0) -> 0 | DR51: =IF(SUM(DQ$15:DQ$17)>0,$M51,0) -> 0 | DT51: =IF(SUM(DS$15:DS$17)>0,$M51,0) -> 0 | DV51: =IF(SUM(DU$15:DU$17)>0,$M51,0) -> 0 | DX51: =IF(SUM(DW$15:DW$17)>0,$M51,0) -> 0 | DZ51: =IF(SUM(DY$15:DY$17)>0,$M51,0) -> 0 | EB51: =IF(SUM(EA$15:EA$17)>0,$M51,0) -> 0 | ED51: =IF(SUM(EC$15:EC$17)>0,$M51,0) -> 0 | EF51: =IF(SUM(EE$15:EE$17)>0,$M51,0) -> 0
L52: SOMATÓRIO TOTAL ANUAL - POR POSTO | M52: =M51*12 -> 
C55: MATERIAL DE CONSUMO ASSOCIADO
C56: MEMÓRIA DE CÁLCULO DO COEFICIENTE DE CORRELAÇÃO MANUTENÇÃO X DEPRECIAÇÃO (K)
C58: JUSTIFICATIVAS | E58: TIPO | F58: K1 | H58: Condições de Trab | I58: K4 | K58: Tempo Vida (anos) | L58: K6 | N58: Temperatura | O58: K8
E59: Guindaste | F59: 0.5 | H59: Em espera | I59: 0.4 | K59: 1 | L59: 0.6 | N59: Muito quente (> 40º C) | O59: 1.3
C60: K1 | D60: Arbitrado 1 | E60: Caminhão-comum | F60: 0.8 | H60: Leves | I60: 0.8 | K60: 2 | L60: 0.7 | N60: Quente (30º a 40º C) | O60: 1.1
C61: K2 | D61: Considerado o operador médio | E61: Fora-de-estrada | F61: 1 | H61: Médias | I61: 1 | K61: 3 | L61: 0.8 | N61: Médio (10º a 30º C) | O61: 1
C62: K3 | D62: Consideradas ferramentas de primeira qualidade | E62: Carregadeira | F62: 1 | H62: Pesadas | I62: 1.4 | K62: 4 | L62: 0.9 | N62: Frio (< 10º C) | O62: 1.2
C63: K4 | D63: Consições leves | E63: Escavadeira | F63: 1.4 | H63: Severas | I63: 2 | K63: 5 | L63: 1
C64: K5 | D64: Considerando manutenção normal | E64: Motoescrêiper | F64: 1.1 | K64: 6 | L64: 1 | N64: Ritmo de Trabalho | O64: K9
C65: K6 | D65: Equipamentos novos | E65: Trator de esteira | F65: 1.2 | H65: Manutenção | I65: K5 | K65: 7 | L65: 1 | N65: Folgado | O65: 0.9
C66: K7 | D66: 220h por mês, 252 dias por ano | H66: Excelente | I66: 0.6 | K66: 8 | L66: 1.2 | N66: Médio | O66: 1
C67: K8 | D67: Clima quente, acima de 30º C | E67: Qualid do Operador | F67: K2 | H67: Boa | I67: 0.8 | K67: 9 | L67: 1.3 | N67: Com pressa | O67: 1.5
C68: K9 | D68: Ritmo de trabalho usualmente folgado | E68: Excelente | F68: 0.8 | H68: Média | I68: 1 | K68: 10 | L68: 1.4
C69: K10 | D69: Considerado o operador médio | E69: Boa | F69: 0.9 | H69: Ruim | I69: 1.5 | K69: 11 | L69: 2 | N69: Conh do Serviço | O69: K10
C70: K11 | D70: Foi considerada a opção de aluguel a terceiros, ainda que a simulação seja dos custos do contratado, contudo a execução dos serviços é em local de terceiros | E70: Média | F70: 1 | H70: Inexistente | I70: 3 | K70: 15 | L70: 2 | N70: Grande | O70: 0.8
E71: Ruim | F71: 1.2 | N71: Médio | O71: 0.9
E72: Péssima | F72: 2 | H72: Horas de Uso | I72: K7 | J72: 6000 | K72: 1 | N72: Pouco | O72: 1
H73: 1000 | I73: 0.5 | J73: 8000 | K73: 1.3
E74: Qualidade do Equip | F74: K3 | H74: 2000 | I74: 0.5 | J74: 10000 | K74: 1.6 | N74: Tipo do Serviço | O74: K11
E75: De primeira | F75: 0.8 | H75: 3000 | I75: 0.6 | J75: 12000 | K75: 1.9 | N75: Mina ou Pedreira | O75: 0.8
E76: Média | F76: 1 | H76: 4000 | I76: 0.7 | J76: 15000 | K76: 2.3 | N76: Construção Geral | O76: 1
E77: Ruim | F77: 1.5 | H77: 5000 | I77: 0.9 | J77: 20000 | K77: 3 | N77: Aluguel a Terceiros | O77: 1.4
E79: Fonte:
E80: MATTOS, Aldo Dórea. Como preparar orçamentos de obras. São Paulo: Pini, 2006. 281 p., il

Sheet Mat Cons (hidden)
C1: CÂMARA DOS DEPUTADOS
C2: DEPARTAMENTO TÉCNICO
C3: Coordenação de Planejamento e Gestão
C5: Data: | D5: ='Dados Gerais'!#REF! -> 
C6: Processo: | D6: ='Dados Gerais'!#REF! -> 
C7: Objeto: | D7: ='Dados Gerais'!#REF! -> 
B11: MATERIAIS DE CONSUMO RELACIONADOS AO POSTO - AQUISIÇÃO | I11: 1 | K11: =I11+1 -> 2 | M11: =K11+1 -> 3 | O11: =M11+1 -> 4 | Q11: =O11+1 -> 5 | S11: =Q11+1 -> 6 | U11: =S11+1 -> 7 | W11: =U11+1 -> 8 | Y11: =W11+1 -> 9 | AA11: =Y11+1 -> 10 | AC11: =AA11+1 -> 11 | AE11: =AC11+1 -> 12 | AG11: =AE11+1 -> 13 | AI11: =AG11+1 -> 14 | AK11: =AI11+1 -> 15 | AM11: =AK11+1 -> 16 | AO11: =AM11+1 -> 17 | AQ11: =AO11+1 -> 18 | AS11: =AQ11+1 -> 19 | AU11: =AS11+1 -> 20 | AW11: =AU11+1 -> 21 | AY11: =AW11+1 -> 22 | BA11: =AY11+1 -> 23 | BC11: =BA11+1 -> 24 | BE11: =BC11+1 -> 25 | BG11: =BE11+1 -> 26 | BI11: =BG11+1 -> 27 | BK11: =BI11+1 -> 28 | BM11: =BK11+1 -> 29 | BO11: =BM11+1 -> 30 | BQ11: =BO11+1 -> 31 | BS11: =BQ11+1 -> 32 | BU11: =BS11+1 -> 33 | BW11: =BU11+1 -> 34 | BY11: =BW11+1 -> 35 | CA11: =BY11+1 -> 36 | CC11: =CA11+1 -> 37 | CE11: =CC11+1 -> 38 | CG11: =CE11+1 -> 39 | CI11: =CG11+1 -> 40 | CK11: =CI11+1 -> 41 | CM11: =CK11+1 -> 42 | CO11: =CM11+1 -> 43 | CQ11: =CO11+1 -> 44 | CS11: =CQ11+1 -> 45 | CU11: =CS11+1 -> 46 | CW11: =CU11+1 -> 47 | CY11: =CW11+1 -> 48 | DA11: =CY11+1 -> 49 | DC11: =DA11+1 -> 50 | DE11: =DC11+1 -> 51 | DG11: =DE11+1 -> 52 | DI11: =DG11+1 -> 53 | DK11: =DI11+1 -> 54 | DM11: =DK11+1 -> 55 | DO11: =DM11+1 -> 56 | DQ11: =DO11+1 -> 57 | DS11: =DQ11+1 -> 58 | DU11: =DS11+1 -> 59 | DW11: =DU11+1 -> 60
